{"text_format":"1","workbook":"xlsx","n_sheets":14,"sheets":["Avantages perçus","Conventions signées","FIRMES","AVANTAGES","CONVENTIONS","Conception","Tableaux de synthèse","Mts avtgs & dépenses","nbres avtgs & dépenses","nbres cvts & dépenses","Regr lin nbr avt & dépenses","Regr lin nbr cvt & dépenses","Regr lin mts & dépenses","DATA"],"not_rendered":{"charts":6,"images":2,"macros":1,"external_links":1,"defined_names":8,"comments":0,"pivot_tables":0},"unopened":[{"sheet":"Mts avtgs & dépenses","index":7,"reason":"not_a_worksheet"},{"sheet":"nbres avtgs & dépenses","index":8,"reason":"not_a_worksheet"},{"sheet":"nbres cvts & dépenses","index":9,"reason":"not_a_worksheet"}],"bounds":{"document_bytes":16777216,"sheet_cells":100000,"rows_first":2000,"rows_last":500,"rows_between":2000,"halvings":0,"cell_chars":16384,"cell_head_chars":4096},"cells_cut":0,"cells_raw":0,"read":"whole","date_system":"1900"}

{"sheet":"Avantages perçus","index":0,"n_rows":1629,"n_cols":6,"rows_kept":1629,"cut":false,"hidden":false,"merged":[]}
["Bénéficiaire","Type de bénéficiaire","Entreprise","Date","Nature","Montant"]
["Daniel WENDLING","Médecin ","LABORATOIRE GLAXOSMITHKLINE","17/04/2012","Hospitalité ",52]
["Daniel WENDLING","Médecin ","LABORATOIRE GLAXOSMITHKLINE","19/05/2012","Transport ",15]
["Daniel WENDLING","Médecin ","LABORATOIRE GLAXOSMITHKLINE","19/05/2012","Inscription ",637]
["Daniel WENDLING","Médecin ","LABORATOIRE GLAXOSMITHKLINE","19/05/2012","Hospitalité ",2340]
["Daniel WENDLING","Médecin ","MSD France","21/06/2012","HOSPITALITÉ ",60]
["Daniel WENDLING","Médecin ","AbbVie","18/10/2012","AUTRE : [HOSPITALITE] ",33]
["Daniel WENDLING","Médecin ","AbbVie","25/10/2012","AUTRE : [HOSPITALITE] ",58]
["Daniel WENDLING","Médecin ","AbbVie","29/11/2012","AUTRE : [HOSPITALITE] ",47]
["Daniel WENDLING","Médecin ","AbbVie","14/02/2013","AUTRE : [HOSPITALITE] ",23]
["Daniel WENDLING","Médecin ","MSD France","28/02/2013","REPAS ",28]
["Daniel WENDLING","Médecin ","LABORATOIRE GLAXOSMITHKLINE","2013-03-07","Hospitalite ",25]
["Daniel WENDLING","Médecin ","AbbVie","28/03/2013","AUTRE : [HOSPITALITE] ",48]
["Daniel WENDLING","Médecin ","MSD France","28/03/2013","REPAS ",26]
["Daniel WENDLING","Médecin ","MSD France","28/03/2013","REPAS ",26]
["Daniel WENDLING","Médecin ","AbbVie","22/04/2013","AUTRE : [HOSPITALITE] ",451]
["Daniel WENDLING","Médecin ","AbbVie","16/05/2013","AUTRE : [HOSPITALITE] ",47]
["Daniel WENDLING","Médecin ","AbbVie","16/05/2013","AUTRE : [HOSPITALITE] ",24]
["Daniel WENDLING","Médecin ","LABORATOIRE NOVEX PHARMA","23/05/2013","Repas ",20]
["Daniel WENDLING","Médecin ","MSD France","2013-06-12","HOSPITALITÉ ",2053]
["Daniel WENDLING","Médecin ","MSD France","15/06/2013","HOSPITALITÉ ",615]
["Daniel WENDLING","Médecin ","PFIZER SAS","27/06/2013","Repas ",30]
["Daniel WENDLING","Médecin ","AbbVie","27/06/2013","AUTRE : [HOSPITALITE] ",317]
["Daniel WENDLING","Médecin ","AbbVie","22/08/2013","Repas ",10]
["Daniel WENDLING","Médecin ","PFIZER SAS","14/09/2013","REPAS ",136]
["Daniel WENDLING","Médecin ","PFIZER SAS","14/09/2013","TRANSPORT ",291]
["Daniel WENDLING","Médecin ","PFIZER SAS","14/09/2013","HEBERGEMENT ",180]
["Daniel WENDLING","Médecin ","AbbVie","17/09/2013","Repas ",36]
["Daniel WENDLING","Médecin ","MSD France","24/09/2013","HOSPITALITÉ ",468]
["Daniel WENDLING","Médecin ","ROCHE SAS","2013-10-01","Repas ",17]
["Daniel WENDLING","Médecin ","Laboratoires Grünenthal SAS","2013-10-03","REPAS ",20]
["Daniel WENDLING","Médecin ","AbbVie","2013-10-11","TRANSPORT ",102]
["Daniel WENDLING","Médecin ","AbbVie","2013-10-11","HOSPITALITE ",23]
["Daniel WENDLING","Médecin ","AbbVie","2013-10-11","REPAS ",42]
["Daniel WENDLING","Médecin ","AbbVie","2013-10-11","HÉBERGEMENT ",207]
["Daniel WENDLING","Médecin ","AbbVie","2013-10-11","REPAS ",60]
["Daniel WENDLING","Médecin ","MSD France","17/10/2013","REPAS ",27]
["Daniel WENDLING","Médecin ","CHUGAI PHARMA FRANCE","29/10/2013","REPAS ",22]
["Daniel WENDLING","Médecin ","PACKAGE","13/11/2013","AUTRE ",230]
["Daniel WENDLING","Médecin ","PACKAGE","13/11/2013","REPAS ",53]
["Daniel WENDLING","Médecin ","CHUGAI PHARMA FRANCE","14/11/2013","REPAS ",59]
["Daniel WENDLING","Médecin ","PFIZER SAS","2013-12-03","AUTRE: INSCRIPTION ",350]
["Daniel WENDLING","Médecin ","PFIZER SAS","2013-12-03","TRANSPORT ",208]
["Daniel WENDLING","Médecin ","ROTTAPHARM SAS","2013-12-09","VISITE/GO-ON 25MG ",18]
["Daniel WENDLING","Médecin ","Laboratoires Grünenthal SAS","2014-01-09","REPAS ",55]
["Daniel WENDLING","Médecin ","Laboratoires Expanscience","30/01/2014","Repas ",23]
["Daniel WENDLING","Médecin ","BRISTOL-MYERS SQUIBB","31/01/2014","Repas ",22]
["Daniel WENDLING","Médecin ","CHUGAI PHARMA FRANCE","2014-02-02","TRANSPORT ",150]
["Daniel WENDLING","Médecin ","PFIZER SAS","2014-02-08","REPAS ",144]
["Daniel WENDLING","Médecin ","PFIZER SAS","2014-02-08","TRANSPORT ",206]
["Daniel WENDLING","Médecin ","PFIZER SAS","2014-02-08","HEBERGEMENT ",199]
["Daniel WENDLING","Médecin ","AMGEN SAS","2014-02-11","REPAS IMPROMPTU ",60]
["Daniel WENDLING","Médecin ","Lilly France SAS","27/02/2014","REPAS ",22]
["Daniel WENDLING","Médecin ","Lilly France SAS","27/02/2014","REPAS ",22]
["Daniel WENDLING","Médecin ","MEDEXACT","2014-03-07","Autre: [Enquête] ",16]
["Daniel WENDLING","Médecin ","AbbVie","19/03/2014","REPAS ",24]
["Daniel WENDLING","Médecin ","AbbVie","19/03/2014","TRANSPORT ",48]
["Daniel WENDLING","Médecin ","ROTTAPHARM SAS","26/03/2014","SOIREE ",10]
["Daniel WENDLING","Médecin ","BRISTOL-MYERS SQUIBB","27/03/2014","Hébergement ",126]
["Daniel WENDLING","Médecin ","HOSPIRA FRANCE","2014-04-09","HOSPITALITE ",40]
["Daniel WENDLING","Médecin ","BRISTOL-MYERS SQUIBB","2014-04-10","Repas ",45]
["Daniel WENDLING","Médecin ","Lilly France SAS","17/04/2014","REPAS ",23]
["Daniel WENDLING","Médecin ","MSD France","2014-05-04","TRANSPORT ",3509]
["Daniel WENDLING","Médecin ","MSD France","2014-05-04","REPAS ",53]
["Daniel WENDLING","Médecin ","MSD France","2014-05-04","HÉBERGEMENT ",105]
["Daniel WENDLING","Médecin ","MSD France","2014-05-05","HÉBERGEMENT ",105]
["Daniel WENDLING","Médecin ","MSD France","2014-05-06","REPAS ",53]
["Daniel WENDLING","Médecin ","MSD France","2014-05-06","HÉBERGEMENT ",105]
["Daniel WENDLING","Médecin ","PFIZER SAS","16/05/2014","REPAS ",136]
["Daniel WENDLING","Médecin ","PFIZER SAS","16/05/2014","HEBERGEMENT ",200]
["Daniel WENDLING","Médecin ","PFIZER SAS","16/05/2014","TRANSPORT ",182]
["Daniel WENDLING","Médecin ","AbbVie","20/05/2014","REPAS ",46]
["Daniel WENDLING","Médecin ","MSD France","2014-06-11","INSCRIPTION ",765]
["Daniel WENDLING","Médecin ","MSD France","2014-06-11","HÉBERGEMENT ",1058]
["Daniel WENDLING","Médecin ","MSD France","2014-06-11","TRANSPORT ",230]
["Daniel WENDLING","Médecin ","MSD France","2014-06-11","REPAS ",55]
["Daniel WENDLING","Médecin ","MSD France","2014-06-12","REPAS ",55]
["Daniel WENDLING","Médecin ","MSD France","13/06/2014","REPAS ",60]
["Daniel WENDLING","Médecin ","ICOMED","16/06/2014","Autre: [Enquête] ",26]
["Daniel WENDLING","Médecin ","PRECIPHAR","19/06/2014","Repas ",60]
["Daniel WENDLING","Médecin ","LABORATOIRES MAYOLY SPINDLER","26/06/2014","HOSPITALITE ",50]
["Daniel WENDLING","Médecin ","BRISTOL-MYERS SQUIBB","30/06/2014","Repas ",60]
["Daniel WENDLING","Médecin ","AbbVie","2014-07-02","REPAS ",43]
["Daniel WENDLING","Médecin ","AbbVie","2014-07-04","REPAS ",51]
["Daniel WENDLING","Médecin ","AbbVie","2014-07-04","AUTRE : [PAUSE] ",10]
["Daniel WENDLING","Médecin ","AbbVie","2014-07-04","TRANSPORT ",268]
["Daniel WENDLING","Médecin ","AbbVie","2014-10-07","REPAS ",39]
["Daniel WENDLING","Médecin ","AbbVie","15/10/2014","HEBERGEMENT ",215]
["Daniel WENDLING","Médecin ","AbbVie","15/10/2014","REPAS ",60]
["Daniel WENDLING","Médecin ","AbbVie","15/10/2014","TRANSPORT ",178]
["Daniel WENDLING","Médecin ","AbbVie","16/10/2014","REPAS ",42]
["Daniel WENDLING","Médecin ","CHUGAI PHARMA FRANCE","16/10/2014","REPAS ",60]
["Daniel WENDLING","Médecin ","PFIZER SAS","23/10/2014","Transport ",372]
["Daniel WENDLING","Médecin ","PFIZER SAS","23/10/2014","Hébergement ",283]
["Daniel WENDLING","Médecin ","PFIZER SAS","23/10/2014","Autre : Frais d'inscription Congrès ",600]
["Daniel WENDLING","Médecin ","PFIZER SAS","23/10/2014","Repas ",50]
["Daniel WENDLING","Médecin ","Lilly France SAS","30/10/2014","REPAS ",22]
["Daniel WENDLING","Médecin ","Laboratoires Expanscience","2014-11-03","Repas ",31]
["Daniel WENDLING","Médecin ","LIVE ! BY GL EVENTS","2014-11-05","Repas ",61]
["Daniel WENDLING","Médecin ","LIVE ! BY GL EVENTS","2014-11-12","Autre : [note de frais] ",230]
["Daniel WENDLING","Médecin ","AbbVie","26/11/2014","REPAS ",31]
["Daniel WENDLING","Médecin ","ROCHE SAS","27/11/2014","Repas ",39]
["Daniel WENDLING","Médecin ","Lilly France SAS","2014-12-01","REPAS ",21]
["Daniel WENDLING","Médecin ","AMGEN SAS","2014-12-04","REPAS IMPROMPTU ",16]
["Daniel WENDLING","Médecin ","MEDEXACT","2014-12-10","Autre: [Enquête] ",31]
["Daniel WENDLING","Médecin ","AbbVie","2014-12-11","REPAS ",25]
["Daniel WENDLING","Médecin ","UCB Pharma SA","13/12/2014","Repas ",58]
["Daniel WENDLING","Médecin ","CHUGAI PHARMA FRANCE","22/01/2015","REPAS ",20]
["Daniel WENDLING","Médecin ","MSD France","30/01/2015","TRANSPORT ",154]
["Daniel WENDLING","Médecin ","MSD France","30/01/2015","REPAS ",43]
["Daniel WENDLING","Médecin ","BRISTOL-MYERS SQUIBB","2015-02-03","Repas ",60]
["Daniel WENDLING","Médecin ","BIOGARAN","19/02/2015","Repas ",18]
["Daniel WENDLING","Médecin ","CHUGAI PHARMA FRANCE","19/02/2015","REPAS ",60]
["Daniel WENDLING","Médecin ","AbbVie","2015-03-10","REPAS ",50]
["Daniel WENDLING","Médecin ","Laboratoires Grünenthal SAS","19/03/2015","REPAS ",45]
["Daniel WENDLING","Médecin ","SWEDISH ORPHAN BIOVITRUM","24/03/2015","REPAS ",38]
["Daniel WENDLING","Médecin ","MSD France","26/03/2015","HÉBERGEMENT ",189]
["Daniel WENDLING","Médecin ","MSD France","26/03/2015","HOSPITALITÉ ",53]
["Daniel WENDLING","Médecin ","MSD France","26/03/2015","TRANSPORT ",139]
["Daniel WENDLING","Médecin ","BRISTOL-MYERS SQUIBB","23/04/2015","Repas ",47]
["Daniel WENDLING","Médecin ","NORDIC PHARMA SAS","2015-05-01","Transport ",607]
["Daniel WENDLING","Médecin ","NORDIC PHARMA SAS","2015-05-01","Repas ",93]
["Daniel WENDLING","Médecin ","NORDIC PHARMA SAS","2015-05-01","Hébergement ",514]
["Daniel WENDLING","Médecin ","ICOMED","13/05/2015","Autre: [Enquête] ",31]
["Daniel WENDLING","Médecin ","UCB Pharma SA","19/05/2015","Repas ",50]
["Daniel WENDLING","Médecin ","UCB Pharma SA","21/05/2015","Repas ",39]
["Daniel WENDLING","Médecin ","AbbVie","21/05/2015","REPAS ",40]
["Daniel WENDLING","Médecin ","UCB Pharma SA","2015-06-02","Repas ",50]
["Daniel WENDLING","Médecin ","UCB Pharma SA","2015-06-02","Transport ",57]
["Daniel WENDLING","Médecin ","AMGEN SAS","2015-06-04","REPAS REUNION ",18]
["Daniel WENDLING","Médecin ","MSD France","2015-06-10","INSCRIPTION ",765]
["Daniel WENDLING","Médecin ","MSD France","2015-06-10","TRANSPORT ",654]
["Daniel WENDLING","Médecin ","MSD France","2015-06-10","REPAS ",60]
["Daniel WENDLING","Médecin ","MSD France","2015-06-10","TRANSPORT ",309]
["Daniel WENDLING","Médecin ","MSD France","2015-06-10","HOSPITALITÉ ",40]
["Daniel WENDLING","Médecin ","MSD France","2015-06-10","HÉBERGEMENT ",528]
["Daniel WENDLING","Médecin ","MSD France","2015-06-11","REPAS ",60]
["Daniel WENDLING","Médecin ","MSD France","2015-06-12","REPAS ",60]
["Daniel WENDLING","Médecin ","UCB Pharma SA","17/06/2015","Transport ",57]
["Daniel WENDLING","Médecin ","PRECIPHAR","18/06/2015","Repas ",60]
["Daniel WENDLING","Médecin ","GIBAUD","18/06/2015","Repas ",16]
["Daniel WENDLING","Médecin ","MSD France","20/06/2015","REPAS ",48]
["Daniel WENDLING","Médecin ","MSD France","20/06/2015","TRANSPORT ",134]
["Daniel WENDLING","Médecin ","ROCHE SAS","2015-09-10","Repas ",46]
["Daniel WENDLING","Médecin ","PFIZER SAS","2015-09-11","Transport ",222]
["Daniel WENDLING","Médecin ","PFIZER SAS","2015-09-11","Hébergement ",180]
["Daniel WENDLING","Médecin ","PFIZER SAS","2015-09-11","Repas ",76]
["Daniel WENDLING","Médecin ","UCB Pharma SA","18/09/2015","REPAS ",140]
["Daniel WENDLING","Médecin ","UCB Pharma SA","18/09/2015","REPAS ",140]
["Daniel WENDLING","Médecin ","BRISTOL-MYERS SQUIBB","28/09/2015","Repas ",39]
["Daniel WENDLING","Médecin ","NOVARTIS PHARMA SAS","14/10/2015","REPAS ",59]
["Daniel WENDLING","Médecin ","ROCHE SAS","26/11/2015","Repas ",35]
["Daniel WENDLING","Médecin ","MSD France","27/11/2015","TRANSPORT ",128]
["Daniel WENDLING","Médecin ","MSD France","27/11/2015","TRANSPORT ",12]
["Daniel WENDLING","Médecin ","MSD France","27/11/2015","REPAS ",60]
["Daniel WENDLING","Médecin ","MSD France","27/11/2015","HÉBERGEMENT ",227]
["Daniel WENDLING","Médecin ","MSD France","28/11/2015","REPAS ",10]
["Daniel WENDLING","Médecin ","MSD France","28/11/2015","REPAS ",55]
["Daniel WENDLING","Médecin ","MSD France","2015-12-03","REPAS ",23]
["Francis BERENBAUM","Médecin ","MSD France","2012-01-06","REPAS ",19]
["Francis BERENBAUM","Médecin ","AbbVie","2013-03-08","AUTRE : [HOSPITALITE] ",24]
["Francis BERENBAUM","Médecin ","AbbVie","19/03/2013","AUTRE : [HOSPITALITE] ",29]
["Francis BERENBAUM","Médecin ","ROCHE SAS","30/05/2013","Restauration ",60]
["Francis BERENBAUM","Médecin ","ROCHE SAS","30/05/2013","Frais remboursés (transport) ",47]
["Francis BERENBAUM","Médecin ","ROCHE SAS","30/05/2013","Hébergement ",105]
["Francis BERENBAUM","Médecin ","ROCHE SAS","31/05/2013","Hébergement ",105]
["Francis BERENBAUM","Médecin ","PFIZER SAS","26/06/2013","Repas ",12]
["Francis BERENBAUM","Médecin ","PFIZER SAS","29/06/2013","HEBERGEMENT ",130]
["Francis BERENBAUM","Médecin ","PFIZER SAS","29/06/2013","REPAS ",111]
["Francis BERENBAUM","Médecin ","AbbVie","2013-07-12","Repas ",33]
["Francis BERENBAUM","Médecin ","UCB Pharma SA","2013-09-12","Repas ",30]
["Francis BERENBAUM","Médecin ","BRISTOL-MYERS SQUIBB","26/09/2013","Transport ",513]
["Francis BERENBAUM","Médecin ","BRISTOL-MYERS SQUIBB","26/09/2013","Repas ",42]
["Francis BERENBAUM","Médecin ","AbbVie","30/09/2013","Repas ",30]
["Francis BERENBAUM","Médecin ","LES LABORATOIRES SERVIER","15/10/2013","Repas ",37]
["Francis BERENBAUM","Médecin ","AbbVie","18/10/2013","Repas ",35]
["Francis BERENBAUM","Médecin ","PFIZER SAS","22/10/2013","Repas ",23]
["Francis BERENBAUM","Médecin ","PFIZER SAS","30/10/2013","AUTRES: INSCRIPTION ",324]
["Francis BERENBAUM","Médecin ","PFIZER SAS","30/10/2013","HEBERGEMENT ",1084]
["Francis BERENBAUM","Médecin ","PFIZER SAS","30/10/2013","AUTRES: INSCRIPTION ",324]
["Francis BERENBAUM","Médecin ","PFIZER SAS","30/10/2013","REPAS ",261]
["Francis BERENBAUM","Médecin ","AbbVie","13/11/2013","REPAS ",59]
["Francis BERENBAUM","Médecin ","MSD France","14/11/2013","REPAS ",33]
["Francis BERENBAUM","Médecin ","PFIZER SAS","19/11/2013","Repas ",34]
["Francis BERENBAUM","Médecin ","UCB Pharma SA","2013-12-10","Repas ",57]
["Francis BERENBAUM","Médecin ","AbbVie","23/01/2014","REPAS ",30]
["Francis BERENBAUM","Médecin ","MSD France","2014-02-07","REPAS ",20]
["Francis BERENBAUM","Médecin ","AbbVie","13/03/2014","REPAS ",34]
["Francis BERENBAUM","Médecin ","AbbVie","2014-04-10","REPAS ",60]
["Francis BERENBAUM","Médecin ","PFIZER SAS","18/04/2014","REPAS ",23]
["Francis BERENBAUM","Médecin ","PFIZER SAS","29/04/2014","REPAS ",36]
["Francis BERENBAUM","Médecin ","PFIZER SAS","29/04/2014","REPAS ",36]
["Francis BERENBAUM","Médecin ","UCB Pharma SA","2014-05-05","Autre : [ Forfait journée d\u0092étude ou forfait congrès ] ",1550]
["Francis BERENBAUM","Médecin ","UCB Pharma SA","2014-05-05","Repas ",53]
["Francis BERENBAUM","Médecin ","UCB Pharma SA","2014-05-05","Transport ",124]
["Francis BERENBAUM","Médecin ","AbbVie","13/05/2014","REPAS ",34]
["Francis BERENBAUM","Médecin ","Lilly France SAS","26/05/2014","REPAS ",32]
["Francis BERENBAUM","Médecin ","BRISTOL-MYERS SQUIBB","2014-06-04","Repas ",28]
["Francis BERENBAUM","Médecin ","AbbVie","30/06/2014","REPAS ",43]
["Francis BERENBAUM","Médecin ","UCB Pharma SA","2014-08-06","Autre : [ Forfait journée d\u0092étude ou forfait congrès ] ",31]
["Francis BERENBAUM","Médecin ","MSD France","24/10/2014","REPAS ",18]
["Francis BERENBAUM","Médecin ","ROCHE SAS","2014-12-04","Repas ",42]
["Francis BERENBAUM","Médecin ","AbbVie","2014-12-12","REPAS ",35]
["Francis BERENBAUM","Médecin ","BIOGARAN","16/12/2014","REPAS ",10]
["Francis BERENBAUM","Médecin ","AbbVie","26/01/2015","REPAS ",41]
["Francis BERENBAUM","Médecin ","PFIZER SAS","2015-02-03","Repas ",41]
["Francis BERENBAUM","Médecin ","MSD France","2015-03-06","REPAS ",24]
["Francis BERENBAUM","Médecin ","AbbVie","2015-03-09","REPAS ",36]
["Francis BERENBAUM","Médecin ","BIOGARAN","2015-03-10","HOSPITALITE ",10]
["Francis BERENBAUM","Médecin ","MSD France","26/03/2015","INSCRIPTION ",230]
["Francis BERENBAUM","Médecin ","AbbVie","17/04/2015","REPAS ",31]
["Francis BERENBAUM","Médecin ","AbbVie","27/04/2015","REPAS ",48]
["Francis BERENBAUM","Médecin ","AbbVie","2015-06-05","REPAS ",52]
["Francis BERENBAUM","Médecin ","AbbVie","2015-06-12","REPAS ",18]
["Francis BERENBAUM","Médecin ","PFIZER SAS","14/06/2015","Repas ",50]
["Francis BERENBAUM","Médecin ","UCB Pharma SA","17/06/2015","Autre : [ Forfait journée d\u0092étude ou forfait congrès ] ",53]
["Francis BERENBAUM","Médecin ","NORDIC PHARMA SAS","13/07/2015","Hébergement ",564]
["Francis BERENBAUM","Médecin ","NORDIC PHARMA SAS","13/07/2015","Transport ",811]
["Francis BERENBAUM","Médecin ","NORDIC PHARMA SAS","13/07/2015","Inscription ",765]
["Francis BERENBAUM","Médecin ","AbbVie","21/07/2015","REPAS ",44]
["Francis BERENBAUM","Médecin ","UCB Pharma SA","18/09/2015","REPAS ",140]
["Francis BERENBAUM","Médecin ","UCB Pharma SA","18/09/2015","REPAS ",140]
["Francis BERENBAUM","Médecin ","BIOGARAN","30/09/2015","HOSPITALITE ",10]
["Francis BERENBAUM","Médecin ","NOVARTIS PHARMA SAS","2015-10-08","Repas ",42]
["Francis BERENBAUM","Médecin ","AbbVie","2015-10-09","REPAS ",33]
["Francis BERENBAUM","Médecin ","Regeneron Pharmaceuticals, Inc.","18/12/2015","transport ",5178]
["René Marc FLIPO","Médecin ","MSD France","2012-02-09","HOSPITALITÉ ",38]
["René Marc FLIPO","Médecin ","AbbVie","2012-10-09","AUTRE : [HOSPITALITE] ",46]
["René Marc FLIPO","Médecin ","AbbVie","2012-10-12","AUTRE : [HOSPITALITE] ",1926]
["René Marc FLIPO","Médecin ","AbbVie","2012-10-12","AUTRE : [HOSPITALITE] ",180]
["René Marc FLIPO","Médecin ","MSD France","25/10/2012","HOSPITALITÉ ",60]
["René Marc FLIPO","Médecin ","AbbVie","26/10/2012","AUTRE : [HOSPITALITE] ",50]
["René Marc FLIPO","Médecin ","AbbVie","2012-11-12","AUTRE : [HOSPITALITE] ",23]
["René Marc FLIPO","Médecin ","AbbVie","20/11/2012","AUTRE : [HOSPITALITE] ",20]
["René Marc FLIPO","Médecin ","AbbVie","2012-12-10","AUTRE : [HOSPITALITE] ",184]
["René Marc FLIPO","Médecin ","AbbVie","18/12/2012","AUTRE : [HOSPITALITE] ",45]
["René Marc FLIPO","Médecin ","PFIZER SAS","2013-01-05","HOSPITALITE ",33]
["René Marc FLIPO","Médecin ","LABORATOIRE GLAXOSMITHKLINE","17/01/2013","Hospitalite ",35]
["René Marc FLIPO","Médecin ","AbbVie","2013-03-04","AUTRE : [HOSPITALITE] ",27]
["René Marc FLIPO","Médecin ","AbbVie","2013-03-04","AUTRE : [HOSPITALITE] ",56]
["René Marc FLIPO","Médecin ","PFIZER SAS","20/03/2013","HOSPITALITE ",147]
["René Marc FLIPO","Médecin ","MSD France","27/03/2013","REPAS ",29]
["René Marc FLIPO","Médecin ","MSD France","28/03/2013","REPAS ",26]
["René Marc FLIPO","Médecin ","AbbVie","16/04/2013","AUTRE : [HOSPITALITE] ",31]
["René Marc FLIPO","Médecin ","ICOMED","19/04/2013","Autre: [Enquête] ",29]
["René Marc FLIPO","Médecin ","MSD France","21/05/2013","HOSPITALITÉ ",59]
["René Marc FLIPO","Médecin ","MSD France","27/05/2013","REPAS ",16]
["René Marc FLIPO","Médecin ","AbbVie","29/05/2013","AUTRE : [HOSPITALITE] ",11]
["René Marc FLIPO","Médecin ","MSD France","30/05/2013","REPAS ",24]
["René Marc FLIPO","Médecin ","ROCHE SAS","30/05/2013","Restauration ",60]
["René Marc FLIPO","Médecin ","MSD France","30/05/2013","REPAS ",24]
["René Marc FLIPO","Médecin ","ROCHE SAS","2013-06-12","Transport ",533]
["René Marc FLIPO","Médecin ","ROCHE SAS","2013-06-12","Hébergement ",226]
["René Marc FLIPO","Médecin ","ROCHE SAS","2013-06-12","Inscription ",650]
["René Marc FLIPO","Médecin ","ROCHE SAS","13/06/2013","Hébergement ",226]
["René Marc FLIPO","Médecin ","ROCHE SAS","13/06/2013","Restauration ",60]
["René Marc FLIPO","Médecin ","ROCHE SAS","14/06/2013","Hébergement ",226]
["René Marc FLIPO","Médecin ","AbbVie","14/06/2013","AUTRE : [HOSPITALITE] ",15]
["René Marc FLIPO","Médecin ","ROCHE SAS","15/06/2013","Restauration ",60]
["René Marc FLIPO","Médecin ","ROCHE SAS","15/06/2013","Hébergement ",226]
["René Marc FLIPO","Médecin ","CHUGAI PHARMA FRANCE","25/06/2013","REPAS ",65]
["René Marc FLIPO","Médecin ","MSD France","2013-07-03","REPAS ",23]
["René Marc FLIPO","Médecin ","BRISTOL-MYERS SQUIBB","2013-07-09","Repas ",70]
["René Marc FLIPO","Médecin ","BRISTOL-MYERS SQUIBB","2013-07-09","Transport ",176]
["René Marc FLIPO","Médecin ","CHUGAI PHARMA FRANCE","2013-07-10","TRANSPORT ",332]
["René Marc FLIPO","Médecin ","UCB Pharma SA","22/07/2013","Transport ",355]
["René Marc FLIPO","Médecin ","PFIZER SAS","13/08/2013","Repas ",44]
["René Marc FLIPO","Médecin ","ROCHE SAS","19/08/2013","Repas ",25]
["René Marc FLIPO","Médecin ","MENARINI FRANCE","20/08/2013","AUTRE : RNT ",41]
["René Marc FLIPO","Médecin ","AbbVie","21/08/2013","Repas ",26]
["René Marc FLIPO","Médecin ","BRISTOL-MYERS SQUIBB","29/08/2013","Repas ",23]
["René Marc FLIPO","Médecin ","CHUGAI PHARMA FRANCE","2013-09-03","TRANSPORT ",166]
["René Marc FLIPO","Médecin ","LES LABORATOIRES SERVIER","2013-09-03","Repas ",43]
["René Marc FLIPO","Médecin ","MSD France","2013-09-05","REPAS ",52]
["René Marc FLIPO","Médecin ","MSD France","2013-09-06","HOSPITALITÉ ",400]
["René Marc FLIPO","Médecin ","PFIZER SAS","13/09/2013","Repas ",15]
["René Marc FLIPO","Médecin ","PFIZER SAS","14/09/2013","HEBERGEMENT ",180]
["René Marc FLIPO","Médecin ","PFIZER SAS","14/09/2013","TRANSPORT ",222]
["René Marc FLIPO","Médecin ","PFIZER SAS","14/09/2013","REPAS ",205]
["René Marc FLIPO","Médecin ","JANSSEN-CILAG","16/09/2013","TRANSPORT ",158]
["René Marc FLIPO","Médecin ","UCB Pharma SA","17/09/2013","Repas ",49]
["René Marc FLIPO","Médecin ","MSD France","26/09/2013","REPAS ",56]
["René Marc FLIPO","Médecin ","BRISTOL-MYERS SQUIBB","27/09/2013","Hébergement ",230]
["René Marc FLIPO","Médecin ","BRISTOL-MYERS SQUIBB","27/09/2013","Repas ",118]
["René Marc FLIPO","Médecin ","AbbVie","30/09/2013","Repas ",24]
["René Marc FLIPO","Médecin ","AbbVie","2013-10-01","Repas ",25]
["René Marc FLIPO","Médecin ","MSD France","2013-10-02","TRANSPORT ",166]
["René Marc FLIPO","Médecin ","MSD France","2013-10-02","TRANSPORT ",166]
["René Marc FLIPO","Médecin ","AbbVie","2013-10-03","TRANSPORT ",94]
["René Marc FLIPO","Médecin ","AbbVie","2013-10-04","HOSPITALITE ",384]
["René Marc FLIPO","Médecin ","AbbVie","2013-10-04","TRANSPORT ",2400]
["René Marc FLIPO","Médecin ","AbbVie","2013-10-07","TRANSPORT ",94]
["René Marc FLIPO","Médecin ","LABORATOIRES MAYOLY SPINDLER","2013-10-09","HOSPITALITE ",50]
["René Marc FLIPO","Médecin ","BRISTOL-MYERS SQUIBB","2013-10-09","Transport ",176]
["René Marc FLIPO","Médecin ","BRISTOL-MYERS SQUIBB","2013-10-09","Repas ",70]
["René Marc FLIPO","Médecin ","AbbVie","2013-10-11","TRANSPORT ",304]
["René Marc FLIPO","Médecin ","AbbVie","2013-10-11","REPAS ",60]
["René Marc FLIPO","Médecin ","AbbVie","2013-10-11","REPAS ",42]
["René Marc FLIPO","Médecin ","AbbVie","2013-10-11","HÉBERGEMENT ",207]
["René Marc FLIPO","Médecin ","AbbVie","2013-10-11","HOSPITALITE ",23]
["René Marc FLIPO","Médecin ","MSD France","15/10/2013","REPAS ",50]
["René Marc FLIPO","Médecin ","AbbVie","18/10/2013","Repas ",25]
["René Marc FLIPO","Médecin ","ROCHE SAS","27/10/2013","Repas ",18]
["René Marc FLIPO","Médecin ","PFIZER SAS","30/10/2013","HEBERGEMENT ",1084]
["René Marc FLIPO","Médecin ","PFIZER SAS","30/10/2013","REPAS ",261]
["René Marc FLIPO","Médecin ","PFIZER SAS","30/10/2013","TRANSPORT ",7908]
["René Marc FLIPO","Médecin ","PFIZER SAS","30/10/2013","AUTRES: INSCRIPTION ",324]
["René Marc FLIPO","Médecin ","AbbVie","2013-11-06","Repas ",23]
["René Marc FLIPO","Médecin ","MSD France","2013-11-07","REPAS ",29]
["René Marc FLIPO","Médecin ","PFIZER SAS","2013-11-07","HOSPITALITE ",166]
["René Marc FLIPO","Médecin ","RE-IMAGINE Health Agency","2013-11-08","AUTRE : HONORAIRES CONFERENCE TELEPHONIQUE ",400]
["René Marc FLIPO","Médecin ","BRISTOL-MYERS SQUIBB","18/11/2013","Repas ",26]
["René Marc FLIPO","Médecin ","AbbVie","19/11/2013","TRANSPORT ",178]
["René Marc FLIPO","Médecin ","AbbVie","19/11/2013","REPAS ",40]
["René Marc FLIPO","Médecin ","MSD France","25/11/2013","TRANSPORT ",166]
["René Marc FLIPO","Médecin ","UCB Pharma SA","26/11/2013","Repas ",54]
["René Marc FLIPO","Médecin ","BRISTOL-MYERS SQUIBB","27/11/2013","Repas ",24]
["René Marc FLIPO","Médecin ","MSD France","2013-12-01","HOSPITALITÉ ",398]
["René Marc FLIPO","Médecin ","MSD France","2013-12-02","TRANSPORT ",25]
["René Marc FLIPO","Médecin ","PFIZER SAS","2013-12-02","Repas ",29]
["René Marc FLIPO","Médecin ","UCB Pharma SA","2013-12-10","Autre : [ Forfait journée d\u0092étude ] ",54]
["René Marc FLIPO","Médecin ","UCB Pharma SA","2013-12-10","Repas ",57]
["René Marc FLIPO","Médecin ","AbbVie","2013-12-10","REPAS ",51]
["René Marc FLIPO","Médecin ","MSD France","13/12/2013","HOSPITALITÉ ",290]
["René Marc FLIPO","Médecin ","CHUGAI PHARMA FRANCE","20/12/2013","TRANSPORT ",166]
["René Marc FLIPO","Médecin ","CHUGAI PHARMA FRANCE","20/12/2013","REPAS ",42]
["René Marc FLIPO","Médecin ","UCB Pharma SA","23/12/2013","Transport ",83]
["René Marc FLIPO","Médecin ","UCB Pharma SA","23/12/2013","Hébergement ",189]
["René Marc FLIPO","Médecin ","MSD France","2014-01-07","REPAS ",18]
["René Marc FLIPO","Médecin ","PFIZER SAS","20/01/2014","HOSPITALITE ",170]
["René Marc FLIPO","Médecin ","ROCHE SAS","27/01/2014","Repas ",21]
["René Marc FLIPO","Médecin ","PFIZER SAS","30/01/2014","HOSPITALITE ",83]
["René Marc FLIPO","Médecin ","LES LABORATOIRES SERVIER","2014-02-04","Repas ",50]
["René Marc FLIPO","Médecin ","BRISTOL-MYERS SQUIBB","2014-02-05","Repas ",60]
["René Marc FLIPO","Médecin ","AMGEN SAS","2014-02-06","REPAS IMPROMPTU ",60]
["René Marc FLIPO","Médecin ","BRISTOL-MYERS SQUIBB","2014-02-11","Transport ",170]
["René Marc FLIPO","Médecin ","BRISTOL-MYERS SQUIBB","2014-02-11","Repas ",68]
["René Marc FLIPO","Médecin ","MSD France","13/02/2014","REPAS ",82]
["René Marc FLIPO","Médecin ","SWEDISH ORPHAN BIOVITRUM","16/02/2014","REPAS ",24]
["René Marc FLIPO","Médecin ","ROCHE SAS","21/02/2014","Repas ",47]
["René Marc FLIPO","Médecin ","BRISTOL-MYERS SQUIBB","18/03/2014","Repas ",60]
["René Marc FLIPO","Médecin ","AbbVie","21/03/2014","REPAS ",55]
["René Marc FLIPO","Médecin ","AbbVie","21/03/2014","HEBERGEMENT ",204]
["René Marc FLIPO","Médecin ","AbbVie","21/03/2014","TRANSPORT ",387]
["René Marc FLIPO","Médecin ","AbbVie","23/03/2014","TRANSPORT ",44]
["René Marc FLIPO","Médecin ","BRISTOL-MYERS SQUIBB","2014-04-01","Repas ",11]
["René Marc FLIPO","Médecin ","BRISTOL-MYERS SQUIBB","2014-04-01","Transport ",170]
["René Marc FLIPO","Médecin ","AbbVie","2014-04-09","REPAS ",26]
["René Marc FLIPO","Médecin ","MSD France","2014-04-11","REPAS ",144]
["René Marc FLIPO","Médecin ","PFIZER SAS","2014-04-12","HEBERGEMENT ",180]
["René Marc FLIPO","Médecin ","PFIZER SAS","2014-04-12","REPAS ",171]
["René Marc FLIPO","Médecin ","AbbVie","15/04/2014","REPAS ",46]
["René Marc FLIPO","Médecin ","NORDIC PHARMA SAS","28/04/2014","Inscription ",700]
["René Marc FLIPO","Médecin ","MSD France","2014-05-02","REPAS ",56]
["René Marc FLIPO","Médecin ","MSD France","2014-05-02","HÉBERGEMENT ",222]
["René Marc FLIPO","Médecin ","MSD France","2014-05-02","TRANSPORT ",3798]
["René Marc FLIPO","Médecin ","MSD France","2014-05-03","REPAS ",58]
["René Marc FLIPO","Médecin ","MSD France","2014-05-03","HÉBERGEMENT ",222]
["René Marc FLIPO","Médecin ","MSD France","2014-05-04","REPAS ",53]
["René Marc FLIPO","Médecin ","NORDIC PHARMA SAS","2014-05-04","Repas ",39]
["René Marc FLIPO","Médecin ","MSD France","2014-05-04","HÉBERGEMENT ",222]
["René Marc FLIPO","Médecin ","MSD France","2014-05-05","HÉBERGEMENT ",222]
["René Marc FLIPO","Médecin ","MSD France","2014-05-06","HÉBERGEMENT ",222]
["René Marc FLIPO","Médecin ","MSD France","2014-05-06","REPAS ",53]
["René Marc FLIPO","Médecin ","MSD France","2014-05-07","HÉBERGEMENT ",222]
["René Marc FLIPO","Médecin ","NORDIC PHARMA SAS","2014-05-07","Repas ",56]
["René Marc FLIPO","Médecin ","MSD France","2014-05-07","REPAS ",60]
["René Marc FLIPO","Médecin ","PFIZER SAS","2014-05-12","REPAS ",39]
["René Marc FLIPO","Médecin ","BRISTOL-MYERS SQUIBB","16/05/2014","Repas ",30]
["René Marc FLIPO","Médecin ","BRISTOL-MYERS SQUIBB","17/05/2014","Repas ",42]
["René Marc FLIPO","Médecin ","BRISTOL-MYERS SQUIBB","20/05/2014","Repas ",30]
["René Marc FLIPO","Médecin ","MSD France","22/05/2014","REPAS ",39]
["René Marc FLIPO","Médecin ","MSD France","22/05/2014","REPAS ",43]
["René Marc FLIPO","Médecin ","BRISTOL-MYERS SQUIBB","23/05/2014","Repas ",121]
["René Marc FLIPO","Médecin ","ROCHE SAS","26/05/2014","Repas ",40]
["René Marc FLIPO","Médecin ","AbbVie","2014-06-02","REPAS ",27]
["René Marc FLIPO","Médecin ","ROCHE SAS","2014-06-02","Repas ",55]
["René Marc FLIPO","Médecin ","MENARINI FRANCE","2014-06-03","AUTRE : RNT ",57]
["René Marc FLIPO","Médecin ","ICOMED","2014-06-05","Autre: [Enquête] ",25]
["René Marc FLIPO","Médecin ","ROCHE SAS","2014-06-06","Repas ",25]
["René Marc FLIPO","Médecin ","AbbVie","2014-06-12","REPAS ",53]
["René Marc FLIPO","Médecin ","AMGEN SAS","13/06/2014","REPAS IMPROMPTU ",12]
["René Marc FLIPO","Médecin ","AMGEN SAS","13/06/2014","REPAS IMPROMPTU ",55]
["René Marc FLIPO","Médecin ","MSD France","24/06/2014","TRANSPORT ",95]
["René Marc FLIPO","Médecin ","MSD France","24/06/2014","REPAS ",28]
["René Marc FLIPO","Médecin ","ROCHE SAS","25/06/2014","Repas ",29]
["René Marc FLIPO","Médecin ","MSD France","27/06/2014","TRANSPORT ",60]
["René Marc FLIPO","Médecin ","MSD France","27/06/2014","HÉBERGEMENT ",190]
["René Marc FLIPO","Médecin ","MSD France","27/06/2014","REPAS ",60]
["René Marc FLIPO","Médecin ","MSD France","28/06/2014","REPAS ",59]
["René Marc FLIPO","Médecin ","ROCHE SAS","2014-07-03","H‚bergement ",180]
["René Marc FLIPO","Médecin ","ROCHE SAS","2014-07-03","Repas ",131]
["René Marc FLIPO","Médecin ","ROCHE SAS","2014-07-03","Transport ",213]
["René Marc FLIPO","Médecin ","ROCHE SAS","2014-07-04","H‚bergement ",180]
["René Marc FLIPO","Médecin ","ROCHE SAS","2014-07-04","Repas ",131]
["René Marc FLIPO","Médecin ","ROCHE SAS","2014-07-05","Repas ",131]
["René Marc FLIPO","Médecin ","ROCHE SAS","2014-07-05","H‚bergement ",180]
["René Marc FLIPO","Médecin ","CELGENE","2014-07-08","REPAS RELATION NORMALE DE TRAVAIL ",49]
["René Marc FLIPO","Médecin ","AbbVie","2014-07-08","TRANSPORT ",170]
["René Marc FLIPO","Médecin ","AbbVie","2014-07-08","AUTRE : [PAUSE] ",10]
["René Marc FLIPO","Médecin ","AbbVie","2014-07-08","REPAS ",59]
["René Marc FLIPO","Médecin ","BRISTOL-MYERS SQUIBB","2014-07-11","Transport ",4215]
["René Marc FLIPO","Médecin ","BRISTOL-MYERS SQUIBB","2014-07-11","Hébergement ",151]
["René Marc FLIPO","Médecin ","BRISTOL-MYERS SQUIBB","2014-07-11","Repas ",50]
["René Marc FLIPO","Médecin ","AbbVie","20/08/2014","REPAS ",20]
["René Marc FLIPO","Médecin ","CHUGAI PHARMA FRANCE","2014-09-02","REPAS ",36]
["René Marc FLIPO","Médecin ","IMPACT MEDICOM","19/09/2014","Droits d'auteur pris en charge par UCB ",8000]
["René Marc FLIPO","Médecin ","OVERCOME","19/09/2014","Transport pris en charge par UCB ",170]
["René Marc FLIPO","Médecin ","UCB Pharma SA","30/09/2014","Repas ",50]
["René Marc FLIPO","Médecin ","AbbVie","2014-10-01","REPAS ",49]
["René Marc FLIPO","Médecin ","BRISTOL-MYERS SQUIBB","2014-10-07","Repas ",72]
["René Marc FLIPO","Médecin ","AbbVie","2014-10-09","TRANSPORT ",6737]
["René Marc FLIPO","Médecin ","MSD France","14/10/2014","TRANSPORT ",85]
["René Marc FLIPO","Médecin ","MSD France","14/10/2014","TRANSPORT ",85]
["René Marc FLIPO","Médecin ","BRISTOL-MYERS SQUIBB","15/10/2014","Repas ",60]
["René Marc FLIPO","Médecin ","ROCHE SAS","17/10/2014","Repas ",33]
["René Marc FLIPO","Médecin ","BRISTOL-MYERS SQUIBB","24/10/2014","Transport ",563]
["René Marc FLIPO","Médecin ","BRISTOL-MYERS SQUIBB","24/10/2014","Repas ",83]
["René Marc FLIPO","Médecin ","AbbVie","2014-11-07","REPAS ",60]
["René Marc FLIPO","Médecin ","AbbVie","2014-11-07","HEBERGEMENT ",210]
["René Marc FLIPO","Médecin ","AbbVie","2014-11-07","TRANSPORT ",15]
["René Marc FLIPO","Médecin ","AbbVie","2014-11-07","TRANSPORT ",246]
["René Marc FLIPO","Médecin ","AbbVie","2014-11-08","REPAS ",48]
["René Marc FLIPO","Médecin ","AbbVie","2014-11-08","TRANSPORT ",15]
["René Marc FLIPO","Médecin ","AbbVie","2014-11-08","TRANSPORT ",13]
["René Marc FLIPO","Médecin ","AbbVie","14/11/2014","REPAS ",60]
["René Marc FLIPO","Médecin ","AbbVie","14/11/2014","TRANSPORT ",39]
["René Marc FLIPO","Médecin ","AbbVie","14/11/2014","TRANSPORT ",3976]
["René Marc FLIPO","Médecin ","AbbVie","14/11/2014","TRANSPORT ",210]
["René Marc FLIPO","Médecin ","AbbVie","14/11/2014","HEBERGEMENT ",240]
["René Marc FLIPO","Médecin ","AbbVie","14/11/2014","TRANSPORT ",14]
["René Marc FLIPO","Médecin ","AbbVie","14/11/2014","TRANSPORT ",17]
["René Marc FLIPO","Médecin ","AbbVie","15/11/2014","INSCRIPTION ",510]
["René Marc FLIPO","Médecin ","AbbVie","15/11/2014","HEBERGEMENT ",240]
["René Marc FLIPO","Médecin ","AbbVie","16/11/2014","TRANSPORT ",14]
["René Marc FLIPO","Médecin ","AbbVie","16/11/2014","HEBERGEMENT ",240]
["René Marc FLIPO","Médecin ","AbbVie","16/11/2014","REPAS ",60]
["René Marc FLIPO","Médecin ","AbbVie","17/11/2014","HEBERGEMENT ",240]
["René Marc FLIPO","Médecin ","AbbVie","18/11/2014","HEBERGEMENT ",240]
["René Marc FLIPO","Médecin ","AbbVie","19/11/2014","TRANSPORT ",39]
["René Marc FLIPO","Médecin ","CELGENE","26/11/2014","TRANSPORT ",170]
["René Marc FLIPO","Médecin ","CELGENE","26/11/2014","REPAS REUNION SCIENTIFIQUE ",24]
["René Marc FLIPO","Médecin ","MEDEXACT","2014-12-03","Autre: [Enquête] ",17]
["René Marc FLIPO","Médecin ","MSD France","2014-12-07","TRANSPORT ",209]
["René Marc FLIPO","Médecin ","PFIZER SAS","2014-12-07","Repas ",22]
["René Marc FLIPO","Médecin ","MSD France","2014-12-07","INSCRIPTION ",290]
["René Marc FLIPO","Médecin ","CHUGAI PHARMA FRANCE","2014-12-09","TRANSPORT ",40]
["René Marc FLIPO","Médecin ","ROCHE SAS","16/12/2014","Repas ",39]
["René Marc FLIPO","Médecin ","CHUGAI PHARMA FRANCE","19/12/2014","REPAS ",54]
["René Marc FLIPO","Médecin ","PFIZER SAS","21/12/2014","Repas ",37]
["René Marc FLIPO","Médecin ","BRISTOL-MYERS SQUIBB","2015-01-09","Repas ",26]
["René Marc FLIPO","Médecin ","ROCHE SAS","2015-01-12","Repas ",20]
["René Marc FLIPO","Médecin ","BRISTOL-MYERS SQUIBB","14/01/2015","Transport ",170]
["René Marc FLIPO","Médecin ","Genzyme","15/01/2015","Autre : [Remboursement de frais] ",83]
["René Marc FLIPO","Médecin ","AbbVie","16/01/2015","REPAS ",25]
["René Marc FLIPO","Médecin ","BRISTOL-MYERS SQUIBB","16/01/2015","Transport ",104]
["René Marc FLIPO","Médecin ","BRISTOL-MYERS SQUIBB","26/01/2015","Repas ",22]
["René Marc FLIPO","Médecin ","BRISTOL-MYERS SQUIBB","29/01/2015","Repas ",60]
["René Marc FLIPO","Médecin ","MSD France","30/01/2015","TRANSPORT ",207]
["René Marc FLIPO","Médecin ","MSD France","30/01/2015","REPAS ",43]
["René Marc FLIPO","Médecin ","PFIZER SAS","2015-02-06","Repas ",59]
["René Marc FLIPO","Médecin ","PFIZER SAS","2015-02-06","Hebergement ",195]
["René Marc FLIPO","Médecin ","PFIZER SAS","2015-02-06","Transport ",174]
["René Marc FLIPO","Médecin ","BRISTOL-MYERS SQUIBB","2015-02-10","Repas ",58]
["René Marc FLIPO","Médecin ","NORDIC PHARMA SAS","2015-02-10","Repas ",63]
["René Marc FLIPO","Médecin ","ROCHE SAS","18/02/2015","Repas ",30]
["René Marc FLIPO","Médecin ","MSD France","2015-03-06","REPAS ",60]
["René Marc FLIPO","Médecin ","MSD France","2015-03-06","TRANSPORT ",110]
["René Marc FLIPO","Médecin ","MSD France","2015-03-06","REPAS ",42]
["René Marc FLIPO","Médecin ","MSD France","2015-03-06","HÉBERGEMENT ",145]
["René Marc FLIPO","Médecin ","MSD France","2015-03-09","REPAS ",224]
["René Marc FLIPO","Médecin ","MSD France","2015-03-09","HÉBERGEMENT ",737]
["René Marc FLIPO","Médecin ","MSD France","2015-03-09","TRANSPORT ",6719]
["René Marc FLIPO","Médecin ","MSD France","2015-03-09","TRANSPORT ",8280]
["René Marc FLIPO","Médecin ","ROCHE SAS","17/03/2015","Repas ",50]
["René Marc FLIPO","Médecin ","AbbVie","23/03/2015","REPAS ",21]
["René Marc FLIPO","Médecin ","ROCHE SAS","2015-04-01","Repas ",40]
["René Marc FLIPO","Médecin ","BRISTOL-MYERS SQUIBB","2015-04-07","Repas ",60]
["René Marc FLIPO","Médecin ","MSD France","2015-04-10","REPAS ",60]
["René Marc FLIPO","Médecin ","MSD France","2015-04-10","TRANSPORT ",132]
["René Marc FLIPO","Médecin ","NOVARTIS PHARMA SAS","13/04/2015","REPAS ",65]
["René Marc FLIPO","Médecin ","NOVARTIS PHARMA SAS","13/04/2015","AUTRE : [PARTICIPATION EVENEMENT SCIENTIFIQUE] ",174]
["René Marc FLIPO","Médecin ","NOVARTIS PHARMA SAS","13/04/2015","AUTRE : [PARTICIPATION EVENEMENT SCIENTIFIQUE] ",174]
["René Marc FLIPO","Médecin ","NOVARTIS PHARMA SAS","13/04/2015","REPAS ",65]
["René Marc FLIPO","Médecin ","AbbVie","15/04/2015","REPAS ",27]
["René Marc FLIPO","Médecin ","MSD France","16/04/2015","REPAS ",42]
["René Marc FLIPO","Médecin ","MSD France","16/04/2015","REPAS ",50]
["René Marc FLIPO","Médecin ","BRISTOL-MYERS SQUIBB","17/04/2015","Repas ",126]
["René Marc FLIPO","Médecin ","LABORATOIRES MAYOLY SPINDLER","22/04/2015","FRAIS DE BOUCHE ",21]
["René Marc FLIPO","Médecin ","JANSSEN-CILAG","24/04/2015","AUTRE : REMBOURSEMENT DE FRAIS ",54]
["René Marc FLIPO","Médecin ","JANSSEN-CILAG","24/04/2015","TRANSPORT ",432]
["René Marc FLIPO","Médecin ","MSD France","25/04/2015","REPAS ",112]
["René Marc FLIPO","Médecin ","UCB Pharma SA","28/04/2015","Autre : [ Forfait journée d\u0092étude ou forfait congrès ] ",53]
["René Marc FLIPO","Médecin ","UCB Pharma SA","28/04/2015","Transport ",59]
["René Marc FLIPO","Médecin ","NORDIC PHARMA SAS","2015-05-01","Hébergement ",343]
["René Marc FLIPO","Médecin ","NORDIC PHARMA SAS","2015-05-01","Repas ",45]
["René Marc FLIPO","Médecin ","AbbVie","2015-05-05","REPAS ",34]
["René Marc FLIPO","Médecin ","BRISTOL-MYERS SQUIBB","15/05/2015","Transport ",174]
["René Marc FLIPO","Médecin ","ICOMED","20/05/2015","Autre: [Enquête] ",31]
["René Marc FLIPO","Médecin ","ROCHE SAS","27/05/2015","Repas ",26]
["René Marc FLIPO","Médecin ","BRISTOL-MYERS SQUIBB","28/05/2015","Repas ",55]
["René Marc FLIPO","Médecin ","BRISTOL-MYERS SQUIBB","28/05/2015","Transport ",174]
["René Marc FLIPO","Médecin ","MSD France","30/05/2015","REPAS ",53]
["René Marc FLIPO","Médecin ","AbbVie","2015-06-01","REPAS ",45]
["René Marc FLIPO","Médecin ","AbbVie","16/06/2015","REPAS ",25]
["René Marc FLIPO","Médecin ","AbbVie","26/06/2015","REPAS ",60]
["René Marc FLIPO","Médecin ","AbbVie","26/06/2015","HEBERGEMENT ",230]
["René Marc FLIPO","Médecin ","AbbVie","26/06/2015","REPAS ",55]
["René Marc FLIPO","Médecin ","AbbVie","26/06/2015","TRANSPORT ",174]
["René Marc FLIPO","Médecin ","AbbVie","26/06/2015","AUTRE : [PAUSE] ",10]
["René Marc FLIPO","Médecin ","AbbVie","27/06/2015","AUTRE : [PAUSE] ",10]
["René Marc FLIPO","Médecin ","BRISTOL-MYERS SQUIBB","30/06/2015","Repas ",50]
["René Marc FLIPO","Médecin ","ROCHE SAS","2015-07-04","Transport ",562]
["René Marc FLIPO","Médecin ","ROCHE SAS","2015-07-04","Hebergement ",250]
["René Marc FLIPO","Médecin ","ROCHE SAS","2015-07-04","Repas ",120]
["René Marc FLIPO","Médecin ","ROCHE SAS","2015-07-05","Repas ",120]
["René Marc FLIPO","Médecin ","ROCHE SAS","2015-07-05","Hebergement ",158]
["René Marc FLIPO","Médecin ","ROCHE SAS","2015-07-06","Hebergement ",158]
["René Marc FLIPO","Médecin ","ROCHE SAS","2015-07-06","Repas ",39]
["René Marc FLIPO","Médecin ","ROCHE SAS","2015-07-06","Repas ",120]
["René Marc FLIPO","Médecin ","ROCHE SAS","2015-07-07","Repas ",17]
["René Marc FLIPO","Médecin ","AbbVie","2015-07-07","TRANSPORT ",183]
["René Marc FLIPO","Médecin ","AbbVie","2015-07-07","REPAS ",59]
["René Marc FLIPO","Médecin ","AbbVie","2015-07-07","AUTRE : [PAUSE] ",10]
["René Marc FLIPO","Médecin ","ROCHE SAS","2015-07-08","Repas ",50]
["René Marc FLIPO","Médecin ","NORDIC PHARMA SAS","13/07/2015","Repas ",60]
["René Marc FLIPO","Médecin ","NORDIC PHARMA SAS","13/07/2015","Transport ",711]
["René Marc FLIPO","Médecin ","NORDIC PHARMA SAS","13/07/2015","Inscription ",700]
["René Marc FLIPO","Médecin ","NORDIC PHARMA SAS","13/07/2015","Hébergement ",564]
["René Marc FLIPO","Médecin ","JANSSEN-CILAG","2015-08-04","REPAS ",37]
["René Marc FLIPO","Médecin ","ROCHE SAS","19/08/2015","Repas ",35]
["René Marc FLIPO","Médecin ","LABORATOIRES MAYOLY SPINDLER","31/08/2015","FRAIS DE BOUCHE ",25]
["René Marc FLIPO","Médecin ","JANSSEN-CILAG","2015-09-01","TRANSPORT ",165]
["René Marc FLIPO","Médecin ","ROCHE SAS","2015-09-10","Repas ",40]
["René Marc FLIPO","Médecin ","PFIZER SAS","2015-09-11","Repas ",128]
["René Marc FLIPO","Médecin ","PFIZER SAS","2015-09-11","Hébergement ",171]
["René Marc FLIPO","Médecin ","UCB Pharma SA","15/09/2015","REPAS ",40]
["René Marc FLIPO","Médecin ","UCB Pharma SA","18/09/2015","REPAS ",21]
["René Marc FLIPO","Médecin ","UCB Pharma SA","18/09/2015","REPAS ",140]
["René Marc FLIPO","Médecin ","UCB Pharma SA","18/09/2015","HÉBERGEMENT ",162]
["René Marc FLIPO","Médecin ","UCB Pharma SA","18/09/2015","REPAS ",140]
["René Marc FLIPO","Médecin ","UCB Pharma SA","18/09/2015","REPAS ",50]
["René Marc FLIPO","Médecin ","AbbVie","24/09/2015","REPAS ",51]
["René Marc FLIPO","Médecin ","BRISTOL-MYERS SQUIBB","25/09/2015","Hospitalité ",29]
["René Marc FLIPO","Médecin ","AbbVie","28/09/2015","REPAS ",26]
["René Marc FLIPO","Médecin ","MSD France","29/09/2015","REPAS ",50]
["René Marc FLIPO","Médecin ","LABORATOIRES MAYOLY SPINDLER","2015-10-01","FRAIS DE BOUCHE ",34]
["René Marc FLIPO","Médecin ","MSD France","15/10/2015","REPAS ",41]
["René Marc FLIPO","Médecin ","MSD France","15/10/2015","REPAS ",42]
["René Marc FLIPO","Médecin ","PFIZER SAS","2015-11-01","Repas ",33]
["René Marc FLIPO","Médecin ","AbbVie","2015-11-02","REPAS ",24]
["René Marc FLIPO","Médecin ","ROCHE SAS","2015-11-04","Repas ",25]
["René Marc FLIPO","Médecin ","MSD France","2015-11-04","REPAS ",185]
["René Marc FLIPO","Médecin ","MSD France","2015-11-06","TRANSPORT ",7551]
["René Marc FLIPO","Médecin ","MSD France","2015-11-06","HÉBERGEMENT ",1230]
["René Marc FLIPO","Médecin ","MSD France","2015-11-06","TRANSPORT ",515]
["René Marc FLIPO","Médecin ","MSD France","2015-11-06","REPAS ",47]
["René Marc FLIPO","Médecin ","MSD France","2015-11-06","INSCRIPTION ",372]
["René Marc FLIPO","Médecin ","NORDIC PHARMA SAS","2015-11-07","Repas ",66]
["René Marc FLIPO","Médecin ","MSD France","2015-11-07","REPAS ",47]
["René Marc FLIPO","Médecin ","MSD France","2015-11-08","REPAS ",62]
["René Marc FLIPO","Médecin ","MSD France","2015-11-08","REPAS ",47]
["René Marc FLIPO","Médecin ","MSD France","2015-11-09","REPAS ",47]
["René Marc FLIPO","Médecin ","MSD France","2015-11-10","REPAS ",47]
["René Marc FLIPO","Médecin ","MSD France","2015-11-12","REPAS ",53]
["René Marc FLIPO","Médecin ","AbbVie","17/11/2015","REPAS ",50]
["René Marc FLIPO","Médecin ","MENARINI FRANCE","24/11/2015","Transport ",299]
["René Marc FLIPO","Médecin ","MSD France","27/11/2015","REPAS ",60]
["René Marc FLIPO","Médecin ","MSD France","27/11/2015","TRANSPORT ",38]
["René Marc FLIPO","Médecin ","MSD France","27/11/2015","REPAS ",10]
["René Marc FLIPO","Médecin ","MSD France","27/11/2015","HÉBERGEMENT ",227]
["René Marc FLIPO","Médecin ","MSD France","27/11/2015","TRANSPORT ",12]
["René Marc FLIPO","Médecin ","MSD France","28/11/2015","REPAS ",55]
["René Marc FLIPO","Médecin ","MSD France","28/11/2015","REPAS ",10]
["René Marc FLIPO","Médecin ","LABORATOIRES MAYOLY SPINDLER","30/11/2015","FRAIS DE BOUCHE ",18]
["René Marc FLIPO","Médecin ","BRISTOL-MYERS SQUIBB","2015-12-04","Transport ",22]
["René Marc FLIPO","Médecin ","BRISTOL-MYERS SQUIBB","2015-12-07","Hospitalité ",25]
["René Marc FLIPO","Médecin ","JANSSEN-CILAG","2015-12-08","TRANSPORT ",154]
["René Marc FLIPO","Médecin ","JANSSEN-CILAG","2015-12-08","INSCRIPTION ",440]
["René Marc FLIPO","Médecin ","MSD France","13/12/2015","INSCRIPTION ",290]
["René Marc FLIPO","Médecin ","MSD France","14/12/2015","REPAS ",29]
["René Marc FLIPO","Médecin ","ROCHE SAS","21/12/2015","Repas ",45]
["Alain CANTAGREL","Médecin ","MSD France","18/09/2012","HOSPITALITÉ ",54]
["Alain CANTAGREL","Médecin ","AbbVie","2012-10-09","AUTRE : [HOSPITALITE] ",37]
["Alain CANTAGREL","Médecin ","MSD France","2012-11-11","REPAS ",29]
["Alain CANTAGREL","Médecin ","AbbVie","2012-11-11","AUTRE : [HOSPITALITE] ",24]
["Alain CANTAGREL","Médecin ","MSD France","2012-11-11","REPAS ",29]
["Alain CANTAGREL","Médecin ","AbbVie","22/11/2012","AUTRE : [HOSPITALITE] ",665]
["Alain CANTAGREL","Médecin ","MSD France","2012-12-01","REPAS ",21]
["Alain CANTAGREL","Médecin ","AbbVie","2013-01-09","AUTRE : [HOSPITALITE] ",14]
["Alain CANTAGREL","Médecin ","AbbVie","18/01/2013","AUTRE : [HOSPITALITE] ",168]
["Alain CANTAGREL","Médecin ","PFIZER SAS","25/01/2013","HOSPITALITE ",502]
["Alain CANTAGREL","Médecin ","MSD France","19/02/2013","REPAS ",33]
["Alain CANTAGREL","Médecin ","MSD France","19/02/2013","REPAS ",33]
["Alain CANTAGREL","Médecin ","AbbVie","2013-03-04","AUTRE : [HOSPITALITE] ",56]
["Alain CANTAGREL","Médecin ","MSD France","15/03/2013","REPAS ",24]
["Alain CANTAGREL","Médecin ","MSD France","18/03/2013","REPAS ",28]
["Alain CANTAGREL","Médecin ","AbbVie","25/03/2013","AUTRE : [HOSPITALITE] ",33]
["Alain CANTAGREL","Médecin ","JANSSEN-CILAG","22/04/2013","REPAS ",27]
["Alain CANTAGREL","Médecin ","MSD France","26/04/2013","REPAS ",25]
["Alain CANTAGREL","Médecin ","MSD France","23/05/2013","HOSPITALITÉ ",636]
["Alain CANTAGREL","Médecin ","MSD France","23/05/2013","TRANSPORT ",603]
["Alain CANTAGREL","Médecin ","AbbVie","16/06/2013","AUTRE : [HOSPITALITE] ",49]
["Alain CANTAGREL","Médecin ","AbbVie","20/06/2013","AUTRE : [HOSPITALITE] ",550]
["Alain CANTAGREL","Médecin ","AbbVie","27/06/2013","AUTRE : [HOSPITALITE] ",929]
["Alain CANTAGREL","Médecin ","AbbVie","27/06/2013","AUTRE : [HOSPITALITE] ",60]
["Alain CANTAGREL","Médecin ","AbbVie","2013-07-01","Hébergement ",179]
["Alain CANTAGREL","Médecin ","NORDIC PHARMA SAS","2013-07-02","Repas ",60]
["Alain CANTAGREL","Médecin ","MSD France","2013-07-02","REPAS ",49]
["Alain CANTAGREL","Médecin ","BRISTOL-MYERS SQUIBB","2013-07-09","Repas ",70]
["Alain CANTAGREL","Médecin ","BRISTOL-MYERS SQUIBB","2013-07-09","Transport ",572]
["Alain CANTAGREL","Médecin ","MSD France","24/09/2013","HOSPITALITÉ ",841]
["Alain CANTAGREL","Médecin ","AbbVie","30/09/2013","TRANSPORT ",507]
["Alain CANTAGREL","Médecin ","AbbVie","30/09/2013","HÉBERGEMENT ",179]
["Alain CANTAGREL","Médecin ","AbbVie","30/09/2013","Repas ",30]
["Alain CANTAGREL","Médecin ","MSD France","2013-10-02","TRANSPORT ",53]
["Alain CANTAGREL","Médecin ","MSD France","2013-10-02","TRANSPORT ",425]
["Alain CANTAGREL","Médecin ","ROCHE SAS","2013-10-03","Repas ",46]
["Alain CANTAGREL","Médecin ","AbbVie","2013-10-04","Repas ",10]
["Alain CANTAGREL","Médecin ","UCB Pharma SA","2013-10-07","Repas ",14]
["Alain CANTAGREL","Médecin ","BRISTOL-MYERS SQUIBB","2013-10-08","Transport ",692]
["Alain CANTAGREL","Médecin ","AbbVie","2013-10-08","Repas ",60]
["Alain CANTAGREL","Médecin ","BRISTOL-MYERS SQUIBB","2013-10-08","Transport ",692]
["Alain CANTAGREL","Médecin ","AbbVie","2013-10-11","REPAS ",42]
["Alain CANTAGREL","Médecin ","AbbVie","2013-10-11","HÉBERGEMENT ",207]
["Alain CANTAGREL","Médecin ","AbbVie","2013-10-11","TRANSPORT ",737]
["Alain CANTAGREL","Médecin ","AbbVie","2013-10-11","HOSPITALITE ",23]
["Alain CANTAGREL","Médecin ","AbbVie","2013-10-11","REPAS ",60]
["Alain CANTAGREL","Médecin ","Actelion Pharmaceuticals France","14/10/2013","AUTRE [RESTAURATION STAFF] ",22]
["Alain CANTAGREL","Médecin ","PFIZER SAS","17/10/2013","Repas ",30]
["Alain CANTAGREL","Médecin ","PFIZER SAS","29/10/2013","Repas ",31]
["Alain CANTAGREL","Médecin ","PFIZER SAS","30/10/2013","AUTRES: INSCRIPTION ",324]
["Alain CANTAGREL","Médecin ","PFIZER SAS","30/10/2013","REPAS ",208]
["Alain CANTAGREL","Médecin ","PFIZER SAS","30/10/2013","HEBERGEMENT ",1084]
["Alain CANTAGREL","Médecin ","PFIZER SAS","30/10/2013","TRANSPORT ",7621]
["Alain CANTAGREL","Médecin ","MSD France","2013-11-05","REPAS ",60]
["Alain CANTAGREL","Médecin ","MSD France","2013-11-05","HOSPITALITÉ ",24]
["Alain CANTAGREL","Médecin ","MSD France","2013-11-12","TRANSPORT ",576]
["Alain CANTAGREL","Médecin ","Lilly France SAS","18/11/2013","REPAS ",24]
["Alain CANTAGREL","Médecin ","Lilly France SAS","18/11/2013","REPAS ",23]
["Alain CANTAGREL","Médecin ","AbbVie","19/11/2013","Repas ",35]
["Alain CANTAGREL","Médecin ","BRISTOL-MYERS SQUIBB","20/11/2013","Repas ",17]
["Alain CANTAGREL","Médecin ","Actelion Pharmaceuticals France","21/11/2013","REPAS ",56]
["Alain CANTAGREL","Médecin ","BRISTOL-MYERS SQUIBB","25/11/2013","Repas ",20]
["Alain CANTAGREL","Médecin ","MSD France","2013-12-01","HOSPITALITÉ ",1610]
["Alain CANTAGREL","Médecin ","MSD France","2013-12-09","REPAS ",23]
["Alain CANTAGREL","Médecin ","PFIZER SAS","16/12/2013","Repas ",23]
["Alain CANTAGREL","Médecin ","AbbVie","17/12/2013","Repas ",55]
["Alain CANTAGREL","Médecin ","RE-IMAGINE Health Agency","17/12/2013","AUTRE : HONORAIRE CONFERENCE TELEPHONIQUE ",300]
["Alain CANTAGREL","Médecin ","AbbVie","17/12/2013","REPAS ",55]
["Alain CANTAGREL","Médecin ","AbbVie","2014-01-10","REPAS ",40]
["Alain CANTAGREL","Médecin ","AbbVie","17/01/2014","REPAS ",51]
["Alain CANTAGREL","Médecin ","AbbVie","17/01/2014","HEBERGEMENT ",140]
["Alain CANTAGREL","Médecin ","AbbVie","17/01/2014","REPAS ",27]
["Alain CANTAGREL","Médecin ","AbbVie","17/01/2014","TRANSPORT ",157]
["Alain CANTAGREL","Médecin ","AbbVie","18/01/2014","REPAS ",60]
["Alain CANTAGREL","Médecin ","JANSSEN-CILAG","27/01/2014","REPAS ",30]
["Alain CANTAGREL","Médecin ","MSD France","28/01/2014","REPAS ",17]
["Alain CANTAGREL","Médecin ","PFIZER SAS","30/01/2014","HOSPITALITE ",492]
["Alain CANTAGREL","Médecin ","AbbVie","2014-02-04","REPAS ",21]
["Alain CANTAGREL","Médecin ","BRISTOL-MYERS SQUIBB","2014-02-07","Repas ",37]
["Alain CANTAGREL","Médecin ","BRISTOL-MYERS SQUIBB","2014-02-07","Transport ",37]
["Alain CANTAGREL","Médecin ","BRISTOL-MYERS SQUIBB","2014-02-07","Hébergement ",111]
["Alain CANTAGREL","Médecin ","PFIZER SAS","2014-02-08","REPAS ",152]
["Alain CANTAGREL","Médecin ","PFIZER SAS","2014-02-08","HEBERGEMENT ",199]
["Alain CANTAGREL","Médecin ","PFIZER SAS","2014-02-08","TRANSPORT ",413]
["Alain CANTAGREL","Médecin ","BRISTOL-MYERS SQUIBB","2014-02-11","Repas ",68]
["Alain CANTAGREL","Médecin ","BRISTOL-MYERS SQUIBB","2014-02-11","Transport ",448]
["Alain CANTAGREL","Médecin ","PFIZER SAS","14/02/2014","REPAS ",36]
["Alain CANTAGREL","Médecin ","MSD France","17/02/2014","REPAS ",17]
["Alain CANTAGREL","Médecin ","ROCHE SAS","18/02/2014","Repas ",33]
["Alain CANTAGREL","Médecin ","AbbVie","24/02/2014","REPAS ",24]
["Alain CANTAGREL","Médecin ","AbbVie","25/02/2014","REPAS ",35]
["Alain CANTAGREL","Médecin ","AbbVie","27/02/2014","REPAS ",53]
["Alain CANTAGREL","Médecin ","BRISTOL-MYERS SQUIBB","2014-03-04","Repas ",32]
["Alain CANTAGREL","Médecin ","JANSSEN-CILAG","2014-03-10","REPAS ",20]
["Alain CANTAGREL","Médecin ","MSD France","18/03/2014","TRANSPORT ",16]
["Alain CANTAGREL","Médecin ","MSD France","18/03/2014","TRANSPORT ",30]
["Alain CANTAGREL","Médecin ","MSD France","18/03/2014","TRANSPORT ",30]
["Alain CANTAGREL","Médecin ","MSD France","18/03/2014","TRANSPORT ",433]
["Alain CANTAGREL","Médecin ","AbbVie","21/03/2014","REPAS ",40]
["Alain CANTAGREL","Médecin ","ROCHE SAS","24/03/2014","Repas ",23]
["Alain CANTAGREL","Médecin ","BRISTOL-MYERS SQUIBB","25/03/2014","Repas ",29]
["Alain CANTAGREL","Médecin ","UCB Pharma SA","27/03/2014","Transport ",437]
["Alain CANTAGREL","Médecin ","PFIZER SAS","28/03/2014","REPAS ",40]
["Alain CANTAGREL","Médecin ","BRISTOL-MYERS SQUIBB","31/03/2014","Repas ",21]
["Alain CANTAGREL","Médecin ","MSD France","2014-04-03","REPAS ",58]
["Alain CANTAGREL","Médecin ","SWEDISH ORPHAN BIOVITRUM","2014-04-06","REPAS ",18]
["Alain CANTAGREL","Médecin ","MSD France","2014-04-11","REPAS ",144]
["Alain CANTAGREL","Médecin ","PFIZER SAS","2014-04-12","TRANSPORT ",188]
["Alain CANTAGREL","Médecin ","PFIZER SAS","2014-04-12","REPAS ",171]
["Alain CANTAGREL","Médecin ","PFIZER SAS","2014-04-12","HEBERGEMENT ",180]
["Alain CANTAGREL","Médecin ","AbbVie","23/04/2014","REPAS ",55]
["Alain CANTAGREL","Médecin ","BRISTOL-MYERS SQUIBB","24/04/2014","Repas ",41]
["Alain CANTAGREL","Médecin ","BRISTOL-MYERS SQUIBB","24/04/2014","Repas ",60]
["Alain CANTAGREL","Médecin ","NORDIC PHARMA SAS","28/04/2014","Inscription ",700]
["Alain CANTAGREL","Médecin ","BRISTOL-MYERS SQUIBB","23/05/2014","Transport ",399]
["Alain CANTAGREL","Médecin ","BRISTOL-MYERS SQUIBB","23/05/2014","Repas ",71]
["Alain CANTAGREL","Médecin ","BRISTOL-MYERS SQUIBB","2014-06-04","Repas ",55]
["Alain CANTAGREL","Médecin ","AbbVie","2014-06-12","REPAS ",40]
["Alain CANTAGREL","Médecin ","AMGEN SAS","13/06/2014","REPAS IMPROMPTU ",55]
["Alain CANTAGREL","Médecin ","AMGEN SAS","13/06/2014","REPAS IMPROMPTU ",12]
["Alain CANTAGREL","Médecin ","BRISTOL-MYERS SQUIBB","2014-07-01","Repas ",69]
["Alain CANTAGREL","Médecin ","BRISTOL-MYERS SQUIBB","2014-07-01","Transport ",516]
["Alain CANTAGREL","Médecin ","MSD France","2014-07-03","REPAS ",50]
["Alain CANTAGREL","Médecin ","AbbVie","2014-07-04","AUTRE : [PAUSE] ",10]
["Alain CANTAGREL","Médecin ","AbbVie","2014-07-04","HEBERGEMENT ",220]
["Alain CANTAGREL","Médecin ","AbbVie","2014-07-04","REPAS ",51]
["Alain CANTAGREL","Médecin ","AbbVie","2014-07-04","REPAS ",60]
["Alain CANTAGREL","Médecin ","AbbVie","2014-07-04","TRANSPORT ",58]
["Alain CANTAGREL","Médecin ","AbbVie","2014-07-04","TRANSPORT ",434]
["Alain CANTAGREL","Médecin ","AbbVie","2014-07-05","REPAS ",51]
["Alain CANTAGREL","Médecin ","AbbVie","2014-07-05","TRANSPORT ",33]
["Alain CANTAGREL","Médecin ","AbbVie","2014-07-05","AUTRE : [PAUSE] ",10]
["Alain CANTAGREL","Médecin ","AbbVie","16/07/2014","REPAS ",47]
["Alain CANTAGREL","Médecin ","PFIZER SAS","30/07/2014","HOSPITALITE ",475]
["Alain CANTAGREL","Médecin ","BRISTOL-MYERS SQUIBB","17/09/2014","Repas ",28]
["Alain CANTAGREL","Médecin ","MSD France","23/09/2014","REPAS ",51]
["Alain CANTAGREL","Médecin ","ROCHE SAS","25/09/2014","Hébergement ",170]
["Alain CANTAGREL","Médecin ","ROCHE SAS","25/09/2014","Repas ",60]
["Alain CANTAGREL","Médecin ","BRISTOL-MYERS SQUIBB","26/09/2014","Transport ",55]
["Alain CANTAGREL","Médecin ","BRISTOL-MYERS SQUIBB","2014-10-03","Repas ",30]
["Alain CANTAGREL","Médecin ","BRISTOL-MYERS SQUIBB","2014-10-03","Transport ",381]
["Alain CANTAGREL","Médecin ","BRISTOL-MYERS SQUIBB","2014-10-03","Hébergement ",231]
["Alain CANTAGREL","Médecin ","BRISTOL-MYERS SQUIBB","2014-10-07","Repas ",10]
["Alain CANTAGREL","Médecin ","BRISTOL-MYERS SQUIBB","2014-10-07","Transport ",592]
["Alain CANTAGREL","Médecin ","BRISTOL-MYERS SQUIBB","2014-10-07","Repas ",72]
["Alain CANTAGREL","Médecin ","BRISTOL-MYERS SQUIBB","2014-10-07","Transport ",540]
["Alain CANTAGREL","Médecin ","AbbVie","14/10/2014","TRANSPORT ",33]
["Alain CANTAGREL","Médecin ","MSD France","14/10/2014","TRANSPORT ",25]
["Alain CANTAGREL","Médecin ","AbbVie","14/10/2014","REPAS ",50]
["Alain CANTAGREL","Médecin ","MSD France","14/10/2014","TRANSPORT ",26]
["Alain CANTAGREL","Médecin ","AbbVie","14/10/2014","HEBERGEMENT ",111]
["Alain CANTAGREL","Médecin ","MSD France","14/10/2014","TRANSPORT ",435]
["Alain CANTAGREL","Médecin ","AbbVie","15/10/2014","TRANSPORT ",185]
["Alain CANTAGREL","Médecin ","UCB Pharma SA","22/10/2014","Repas ",57]
["Alain CANTAGREL","Médecin ","Lilly France SAS","27/10/2014","REPAS ",10]
["Alain CANTAGREL","Médecin ","Lilly France SAS","27/10/2014","REPAS ",60]
["Alain CANTAGREL","Médecin ","ROCHE SAS","2014-11-04","Repas ",24]
["Alain CANTAGREL","Médecin ","BRISTOL-MYERS SQUIBB","2014-11-05","Transport ",46]
["Alain CANTAGREL","Médecin ","BRISTOL-MYERS SQUIBB","14/11/2014","Repas ",115]
["Alain CANTAGREL","Médecin ","BRISTOL-MYERS SQUIBB","14/11/2014","Hébergement ",135]
["Alain CANTAGREL","Médecin ","AbbVie","21/11/2014","REPAS ",18]
["Alain CANTAGREL","Médecin ","AbbVie","25/11/2014","REPAS ",60]
["Alain CANTAGREL","Médecin ","CHUGAI PHARMA FRANCE","2014-12-09","TRANSPORT ",127]
["Alain CANTAGREL","Médecin ","CHUGAI PHARMA FRANCE","2014-12-09","TRANSPORT ",47]
["Alain CANTAGREL","Médecin ","AbbVie","17/12/2014","REPAS ",58]
["Alain CANTAGREL","Médecin ","AbbVie","2015-01-12","REPAS ",15]
["Alain CANTAGREL","Médecin ","AbbVie","16/01/2015","REPAS ",60]
["Alain CANTAGREL","Médecin ","AbbVie","16/01/2015","REPAS ",46]
["Alain CANTAGREL","Médecin ","AbbVie","16/01/2015","HEBERGEMENT ",130]
["Alain CANTAGREL","Médecin ","AbbVie","16/01/2015","TRANSPORT ",298]
["Alain CANTAGREL","Médecin ","AbbVie","17/01/2015","REPAS ",16]
["Alain CANTAGREL","Médecin ","BRISTOL-MYERS SQUIBB","28/01/2015","Repas ",25]
["Alain CANTAGREL","Médecin ","MSD France","30/01/2015","REPAS ",43]
["Alain CANTAGREL","Médecin ","AbbVie","2015-02-02","REPAS ",38]
["Alain CANTAGREL","Médecin ","MSD France","2015-02-02","REPAS ",1346]
["Alain CANTAGREL","Médecin ","PFIZER SAS","2015-02-06","Hebergement ",195]
["Alain CANTAGREL","Médecin ","PFIZER SAS","2015-02-06","Transport ",611]
["Alain CANTAGREL","Médecin ","PFIZER SAS","2015-02-06","Repas ",119]
["Alain CANTAGREL","Médecin ","PFIZER SAS","2015-03-06","Hebergement ",102]
["Alain CANTAGREL","Médecin ","PFIZER SAS","2015-03-06","Repas ",96]
["Alain CANTAGREL","Médecin ","PFIZER SAS","2015-03-06","Transport ",59]
["Alain CANTAGREL","Médecin ","ROCHE SAS","19/03/2015","Repas ",49]
["Alain CANTAGREL","Médecin ","JANSSEN-CILAG","24/03/2015","REPAS ",30]
["Alain CANTAGREL","Médecin ","JANSSEN-CILAG","30/03/2015","REPAS ",39]
["Alain CANTAGREL","Médecin ","BRISTOL-MYERS SQUIBB","2015-04-01","Repas ",19]
["Alain CANTAGREL","Médecin ","AbbVie","2015-04-01","REPAS ",50]
["Alain CANTAGREL","Médecin ","NOVARTIS PHARMA SAS","2015-04-10","REPAS ",59]
["Alain CANTAGREL","Médecin ","NOVARTIS PHARMA SAS","2015-04-10","TRANSPORT ",473]
["Alain CANTAGREL","Médecin ","AbbVie","14/04/2015","REPAS ",48]
["Alain CANTAGREL","Médecin ","UCB Pharma SA","17/04/2015","Autre : [ Forfait journée d\u0092étude ou forfait congrès ] ",53]
["Alain CANTAGREL","Médecin ","UCB Pharma SA","17/04/2015","Transport ",439]
["Alain CANTAGREL","Médecin ","JANSSEN-CILAG","22/04/2015","AUTRE : REMBOURSEMENT DE FRAIS ",55]
["Alain CANTAGREL","Médecin ","JANSSEN-CILAG","22/04/2015","TRANSPORT ",556]
["Alain CANTAGREL","Médecin ","JANSSEN-CILAG","22/04/2015","AUTRE : REMBOURSEMENT DE FRAIS ",44]
["Alain CANTAGREL","Médecin ","JANSSEN-CILAG","22/04/2015","TRANSPORT ",65]
["Alain CANTAGREL","Médecin ","QualWorld","28/04/2015","Dédommagement ",240]
["Alain CANTAGREL","Médecin ","AbbVie","2015-05-05","REPAS ",43]
["Alain CANTAGREL","Médecin ","AMGEN SAS","2015-05-11","REPAS REUNION ",33]
["Alain CANTAGREL","Médecin ","AbbVie","18/05/2015","REPAS ",33]
["Alain CANTAGREL","Médecin ","MSD France","19/05/2015","TRANSPORT ",16]
["Alain CANTAGREL","Médecin ","MSD France","19/05/2015","TRANSPORT ",441]
["Alain CANTAGREL","Médecin ","MSD France","19/05/2015","TRANSPORT ",57]
["Alain CANTAGREL","Médecin ","MSD France","19/05/2015","TRANSPORT ",40]
["Alain CANTAGREL","Médecin ","BRISTOL-MYERS SQUIBB","28/05/2015","Repas ",113]
["Alain CANTAGREL","Médecin ","BRISTOL-MYERS SQUIBB","28/05/2015","Hébergement ",427]
["Alain CANTAGREL","Médecin ","NORDIC PHARMA SAS","2015-06-11","Repas ",48]
["Alain CANTAGREL","Médecin ","AbbVie","26/06/2015","TRANSPORT ",730]
["Alain CANTAGREL","Médecin ","AbbVie","26/06/2015","HEBERGEMENT ",230]
["Alain CANTAGREL","Médecin ","AbbVie","26/06/2015","AUTRE : [PAUSE] ",10]
["Alain CANTAGREL","Médecin ","AbbVie","27/06/2015","AUTRE : [PAUSE] ",10]
["Alain CANTAGREL","Médecin ","MSD France","2015-07-02","REPAS ",50]
["Alain CANTAGREL","Médecin ","NORDIC PHARMA SAS","13/07/2015","Transport ",1232]
["Alain CANTAGREL","Médecin ","NORDIC PHARMA SAS","13/07/2015","Hébergement ",564]
["Alain CANTAGREL","Médecin ","NORDIC PHARMA SAS","13/07/2015","Repas ",60]
["Alain CANTAGREL","Médecin ","ROCHE SAS","15/07/2015","Repas ",30]
["Alain CANTAGREL","Médecin ","MSD France","23/07/2015","REPAS ",112]
["Alain CANTAGREL","Médecin ","BRISTOL-MYERS SQUIBB","21/08/2015","Transport ",546]
["Alain CANTAGREL","Médecin ","AbbVie","14/09/2015","REPAS ",23]
["Alain CANTAGREL","Médecin ","MSD France","13/10/2015","TRANSPORT ",439]
["Alain CANTAGREL","Médecin ","MSD France","13/10/2015","TRANSPORT ",30]
["Alain CANTAGREL","Médecin ","MSD France","13/10/2015","TRANSPORT ",45]
["Alain CANTAGREL","Médecin ","NOVARTIS PHARMA SAS","30/10/2015","REPAS ",59]
["Alain CANTAGREL","Médecin ","NOVARTIS PHARMA SAS","30/10/2015","TRANSPORT ",604]
["Alain CANTAGREL","Médecin ","MSD France","2015-11-04","REPAS ",185]
["Alain CANTAGREL","Médecin ","ROCHE SAS","2015-11-05","Repas ",49]
["Alain CANTAGREL","Médecin ","BRISTOL-MYERS SQUIBB","27/11/2015","Repas ",57]
["Alain CANTAGREL","Médecin ","BRISTOL-MYERS SQUIBB","27/11/2015","Hébergement ",159]
["Alain CANTAGREL","Médecin ","BRISTOL-MYERS SQUIBB","27/11/2015","Transport ",322]
["Alain CANTAGREL","Médecin ","ROCHE SAS","2015-12-08","Repas ",49]
["Alain CANTAGREL","Médecin ","MSD France","15/12/2015","REPAS ",58]
["Thierry THOMAS","Médecin ","AbbVie","28/11/2012","AUTRE : [HOSPITALITE] ",28]
["Thierry THOMAS","Médecin ","AbbVie","2012-12-05","AUTRE : [HOSPITALITE] ",41]
["Thierry THOMAS","Médecin ","MSD France","20/02/2013","HOSPITALITÉ ",113]
["Thierry THOMAS","Médecin ","AbbVie","13/03/2013","AUTRE : [HOSPITALITE] ",37]
["Thierry THOMAS","Médecin ","ICOMED","15/04/2013","Autre: [Enquête] ",30]
["Thierry THOMAS","Médecin ","MSD France","23/05/2013","HOSPITALITÉ ",60]
["Thierry THOMAS","Médecin ","AbbVie","29/05/2013","AUTRE : [HOSPITALITE] ",24]
["Thierry THOMAS","Médecin ","ROCHE SAS","30/05/2013","Frais remboursés (transport) ",338]
["Thierry THOMAS","Médecin ","ROCHE SAS","30/05/2013","Restauration ",60]
["Thierry THOMAS","Médecin ","ROCHE SAS","30/05/2013","Hébergement ",105]
["Thierry THOMAS","Médecin ","ROCHE SAS","31/05/2013","Hébergement ",105]
["Thierry THOMAS","Médecin ","CHUGAI PHARMA FRANCE","2013-06-05","REPAS ",12]
["Thierry THOMAS","Médecin ","ROCHE SAS","2013-07-03","Repas ",23]
["Thierry THOMAS","Médecin ","MSD France","2013-07-04","REPAS ",45]
["Thierry THOMAS","Médecin ","Genzyme","17/07/2013","Hébergement, restauration, transport ",24]
["Thierry THOMAS","Médecin ","Lilly France SAS","2013-08-01","AUTRE : [REMBOURSEMENT FRAIS LOGISTIQUE] ",346]
["Thierry THOMAS","Médecin ","Lilly France SAS","2013-09-03","REPAS ",51]
["Thierry THOMAS","Médecin ","MSD France","2013-09-06","HOSPITALITÉ ",717]
["Thierry THOMAS","Médecin ","SEPROPHARM INTERNATIONAL","2013-09-09","REPAS ",16]
["Thierry THOMAS","Médecin ","SEPROPHARM INTERNATIONAL","2013-09-09","REPAS ",45]
["Thierry THOMAS","Médecin ","SEPROPHARM INTERNATIONAL","2013-09-09","HEBERGEMENT ",302]
["Thierry THOMAS","Médecin ","SEPROPHARM INTERNATIONAL","2013-09-09","REPAS ",45]
["Thierry THOMAS","Médecin ","SEPROPHARM INTERNATIONAL","2013-09-09","HEBERGEMENT ",171]
["Thierry THOMAS","Médecin ","Lilly France SAS","2013-09-09","TRANSPORT ",4775]
["Thierry THOMAS","Médecin ","SEPROPHARM INTERNATIONAL","2013-09-09","HEBERGEMENT ",131]
["Thierry THOMAS","Médecin ","Lilly France SAS","2013-09-10","TRANSPORT ",144]
["Thierry THOMAS","Médecin ","SEPROPHARM INTERNATIONAL","2013-09-10","REPAS ",60]
["Thierry THOMAS","Médecin ","CHUGAI PHARMA FRANCE","13/09/2013","TRANSPORT ",295]
["Thierry THOMAS","Médecin ","Lilly France SAS","19/09/2013","AUTRE : [REMBOURSEMENT FRAIS LOGISTIQUE] ",136]
["Thierry THOMAS","Médecin ","MSD France","24/09/2013","HOSPITALITÉ ",678]
["Thierry THOMAS","Médecin ","NOVARTIS PHARMA SAS","2013-10-04","Autre : [Inscription Evenement Scientifique] ",275]
["Thierry THOMAS","Médecin ","NOVARTIS PHARMA SAS","2013-10-04","Repas ",62]
["Thierry THOMAS","Médecin ","NOVARTIS PHARMA SAS","2013-10-04","Transport ",3336]
["Thierry THOMAS","Médecin ","NOVARTIS PHARMA SAS","2013-10-04","Hébergement ",920]
["Thierry THOMAS","Médecin ","MSD France","16/10/2013","REPAS ",19]
["Thierry THOMAS","Médecin ","PFIZER SAS","2013-11-06","Repas ",32]
["Thierry THOMAS","Médecin ","AMGEN SAS","2013-12-06","TRANSPORT ",222]
["Thierry THOMAS","Médecin ","AMGEN SAS","19/12/2013","TRANSPORT ",262]
["Thierry THOMAS","Médecin ","AMGEN SAS","19/12/2013","TRANSPORT ",262]
["Thierry THOMAS","Médecin ","BRISTOL-MYERS SQUIBB","2014-01-08","Repas ",25]
["Thierry THOMAS","Médecin ","BRISTOL-MYERS SQUIBB","2014-01-10","Repas ",105]
["Thierry THOMAS","Médecin ","BRISTOL-MYERS SQUIBB","2014-01-10","Hébergement ",121]
["Thierry THOMAS","Médecin ","LIVE ! BY GL EVENTS","17/01/2014","AUTRES ",270]
["Thierry THOMAS","Médecin ","LIVE ! BY GL EVENTS","17/01/2014","REPAS ",65]
["Thierry THOMAS","Médecin ","Lilly France SAS","2014-02-05","TRANSPORT ",270]
["Thierry THOMAS","Médecin ","UCB Pharma SA","2014-02-05","Repas ",20]
["Thierry THOMAS","Médecin ","AbbVie","19/03/2014","REPAS ",24]
["Thierry THOMAS","Médecin ","AMGEN SAS","25/03/2014","HEBERGEMENT ",119]
["Thierry THOMAS","Médecin ","MSD France","25/03/2014","REPAS ",36]
["Thierry THOMAS","Médecin ","AMGEN SAS","25/03/2014","TRANSPORT ",737]
["Thierry THOMAS","Médecin ","Genzyme","26/03/2014","Repas ",23]
["Thierry THOMAS","Médecin ","AMGEN SAS","2014-04-10","HEBERGEMENT ",119]
["Thierry THOMAS","Médecin ","MSD France","2014-04-10","TRANSPORT ",270]
["Thierry THOMAS","Médecin ","AMGEN SAS","2014-04-11","AUTRE [PAUSE] ",10]
["Thierry THOMAS","Médecin ","AMGEN SAS","2014-04-11","REPAS REUNION ",48]
["Thierry THOMAS","Médecin ","AMGEN SAS","2014-04-11","AUTRE [PAUSE] ",10]
["Thierry THOMAS","Médecin ","AMGEN SAS","22/04/2014","TRANSPORT ",270]
["Thierry THOMAS","Médecin ","UCB Pharma SA","23/04/2014","Repas ",22]
["Thierry THOMAS","Médecin ","AMGEN SAS","24/04/2014","REPAS IMPROMPTU ",60]
["Thierry THOMAS","Médecin ","AMGEN SAS","29/04/2014","REPAS IMPROMPTU ",60]
["Thierry THOMAS","Médecin ","MSD France","29/04/2014","REPAS ",54]
["Thierry THOMAS","Médecin ","ICOMED","14/05/2014","Autre: [Enquête] ",24]
["Thierry THOMAS","Médecin ","Lilly France SAS","14/05/2014","REPAS ",23]
["Thierry THOMAS","Médecin ","Lilly France SAS","24/05/2014","REPAS ",10]
["Thierry THOMAS","Médecin ","Lilly France SAS","24/05/2014","TRANSPORT ",135]
["Thierry THOMAS","Médecin ","Lilly France SAS","25/05/2014","TRANSPORT ",135]
["Thierry THOMAS","Médecin ","Lilly France SAS","25/05/2014","TRANSPORT ",120]
["Thierry THOMAS","Médecin ","Lilly France SAS","25/05/2014","REPAS ",60]
["Thierry THOMAS","Médecin ","Lilly France SAS","25/05/2014","HÉBERGEMENT ",195]
["Thierry THOMAS","Médecin ","Lilly France SAS","25/05/2014","REPAS ",10]
["Thierry THOMAS","Médecin ","SWEDISH ORPHAN BIOVITRUM","2014-06-03","REPAS ",14]
["Thierry THOMAS","Médecin ","UCB Pharma SA","2014-06-03","Repas ",50]
["Thierry THOMAS","Médecin ","SWEDISH ORPHAN BIOVITRUM","2014-06-10","REPAS ",17]
["Thierry THOMAS","Médecin ","ROCHE DIAGNOSTICS FRANCE","18/06/2014","REPAS ",29]
["Thierry THOMAS","Médecin ","MSD France","27/06/2014","HÉBERGEMENT ",190]
["Thierry THOMAS","Médecin ","AMGEN SAS","2014-09-12","REPAS REUNION ",56]
["Thierry THOMAS","Médecin ","AMGEN SAS","2014-09-12","TRANSPORT ",150]
["Thierry THOMAS","Médecin ","AMGEN SAS","2014-09-12","TRANSPORT ",836]
["Thierry THOMAS","Médecin ","AMGEN SAS","2014-09-12","TRANSPORT ",260]
["Thierry THOMAS","Médecin ","AMGEN SAS","2014-09-12","REPAS REUNION ",56]
["Thierry THOMAS","Médecin ","AMGEN SAS","2014-09-12","AUTRE [FRAIS D INSCRIPTION] ",308]
["Thierry THOMAS","Médecin ","AMGEN SAS","2014-09-12","HEBERGEMENT ",175]
["Thierry THOMAS","Médecin ","AMGEN SAS","2014-09-12","TRANSPORT ",260]
["Thierry THOMAS","Médecin ","AMGEN SAS","2014-09-12","TRANSPORT ",836]
["Thierry THOMAS","Médecin ","AMGEN SAS","2014-09-12","TRANSPORT ",150]
["Thierry THOMAS","Médecin ","AMGEN SAS","2014-09-12","REPAS REUNION ",56]
["Thierry THOMAS","Médecin ","AMGEN SAS","2014-09-12","TRANSPORT ",68]
["Thierry THOMAS","Médecin ","AMGEN SAS","2014-09-12","HEBERGEMENT ",175]
["Thierry THOMAS","Médecin ","AMGEN SAS","2014-09-12","TRANSPORT ",68]
["Thierry THOMAS","Médecin ","AMGEN SAS","13/09/2014","REPAS REUNION ",54]
["Thierry THOMAS","Médecin ","AMGEN SAS","13/09/2014","HEBERGEMENT ",175]
["Thierry THOMAS","Médecin ","AMGEN SAS","13/09/2014","HEBERGEMENT ",175]
["Thierry THOMAS","Médecin ","AMGEN SAS","13/09/2014","REPAS REUNION ",54]
["Thierry THOMAS","Médecin ","AMGEN SAS","14/09/2014","HEBERGEMENT ",175]
["Thierry THOMAS","Médecin ","AMGEN SAS","14/09/2014","HEBERGEMENT ",175]
["Thierry THOMAS","Médecin ","AbbVie","25/09/2014","REPAS ",47]
["Thierry THOMAS","Médecin ","AMGEN SAS","26/09/2014","TRANSPORT ",611]
["Thierry THOMAS","Médecin ","AMGEN SAS","26/09/2014","HEBERGEMENT ",180]
["Thierry THOMAS","Médecin ","AMGEN SAS","26/09/2014","REPAS REUNION ",45]
["Thierry THOMAS","Médecin ","AMGEN SAS","26/09/2014","AUTRE [PAUSE] ",10]
["Thierry THOMAS","Médecin ","AMGEN SAS","26/09/2014","REPAS REUNION ",60]
["Thierry THOMAS","Médecin ","AMGEN SAS","26/09/2014","REPAS REUNION ",60]
["Thierry THOMAS","Médecin ","AMGEN SAS","26/09/2014","HEBERGEMENT ",179]
["Thierry THOMAS","Médecin ","AMGEN SAS","27/09/2014","AUTRE [PAUSE] ",10]
["Thierry THOMAS","Médecin ","AMGEN SAS","27/09/2014","REPAS REUNION ",60]
["Thierry THOMAS","Médecin ","AMGEN SAS","27/09/2014","REPAS REUNION ",58]
["Thierry THOMAS","Médecin ","AMGEN SAS","2014-10-02","REPAS REUNION ",60]
["Thierry THOMAS","Médecin ","AMGEN SAS","2014-10-02","REPAS REUNION ",60]
["Thierry THOMAS","Médecin ","AMGEN SAS","13/10/2014","TRANSPORT ",405]
["Thierry THOMAS","Médecin ","AbbVie","13/10/2014","REPAS ",12]
["Thierry THOMAS","Médecin ","AbbVie","14/10/2014","REPAS ",14]
["Thierry THOMAS","Médecin ","AMGEN SAS","21/10/2014","REPAS REUNION ",60]
["Thierry THOMAS","Médecin ","AMGEN SAS","21/10/2014","REPAS REUNION ",54]
["Thierry THOMAS","Médecin ","AMGEN SAS","21/10/2014","TRANSPORT ",207]
["Thierry THOMAS","Médecin ","AMGEN SAS","23/10/2014","REPAS IMPROMPTU ",23]
["Thierry THOMAS","Médecin ","AMGEN SAS","13/11/2014","REPAS REUNION ",55]
["Thierry THOMAS","Médecin ","Lilly France SAS","18/11/2014","AUTRE : [REMBOURSEMENT FRAIS LOGISTIQUE] ",411]
["Thierry THOMAS","Médecin ","THE BINDING SITE GROUP LTD","2014-12-02","REPAS ",22]
["Thierry THOMAS","Médecin ","BRISTOL-MYERS SQUIBB","2014-12-03","Repas ",21]
["Thierry THOMAS","Médecin ","Lilly France SAS","2014-12-09","AUTRE : [INSCRIPTION CONGRÈS SCIENTIFIQUE] ",450]
["Thierry THOMAS","Médecin ","MSD France","2014-12-12","TRANSPORT ",270]
["Thierry THOMAS","Médecin ","AMGEN SAS","2015-02-10","TRANSPORT ",355]
["Thierry THOMAS","Médecin ","MSD France","18/02/2015","REPAS ",112]
["Thierry THOMAS","Médecin ","BIOGARAN","2015-03-11","Repas ",19]
["Thierry THOMAS","Médecin ","AMGEN SAS","18/03/2015","TRANSPORT ",278]
["Thierry THOMAS","Médecin ","AMGEN SAS","26/03/2015","REPAS REUNION ",40]
["Thierry THOMAS","Médecin ","AMGEN SAS","26/03/2015","TRANSPORT ",269]
["Thierry THOMAS","Médecin ","AMGEN SAS","26/03/2015","TRANSPORT ",49]
["Thierry THOMAS","Médecin ","AMGEN SAS","26/03/2015","HEBERGEMENT ",214]
["Thierry THOMAS","Médecin ","AMGEN SAS","26/03/2015","REPAS REUNION ",40]
["Thierry THOMAS","Médecin ","AMGEN SAS","26/03/2015","TRANSPORT ",458]
["Thierry THOMAS","Médecin ","AMGEN SAS","26/03/2015","TRANSPORT ",37]
["Thierry THOMAS","Médecin ","Lilly France SAS","2015-04-01","REPAS ",20]
["Thierry THOMAS","Médecin ","MYLAN MEDICAL SAS","2015-04-08","REPAS ",24]
["Thierry THOMAS","Médecin ","PFIZER SAS","27/04/2015","Repas ",23]
["Thierry THOMAS","Médecin ","MSD France","29/04/2015","REPAS ",25]
["Thierry THOMAS","Médecin ","BIOGARAN","2015-05-06","Repas ",18]
["Thierry THOMAS","Médecin ","Lilly France SAS","29/05/2015","TRANSPORT ",137]
["Thierry THOMAS","Médecin ","Lilly France SAS","29/05/2015","REPAS ",10]
["Thierry THOMAS","Médecin ","Lilly France SAS","30/05/2015","REPAS ",10]
["Thierry THOMAS","Médecin ","Lilly France SAS","30/05/2015","HÉBERGEMENT ",215]
["Thierry THOMAS","Médecin ","Lilly France SAS","30/05/2015","TRANSPORT ",137]
["Thierry THOMAS","Médecin ","Actelion Pharmaceuticals France","2015-06-10","AUTRE [RESTAURATION STAFF] ",21]
["Thierry THOMAS","Médecin ","UCB Pharma SA","24/06/2015","Repas ",23]
["Thierry THOMAS","Médecin ","CHUGAI PHARMA FRANCE","30/06/2015","REPAS ",58]
["Thierry THOMAS","Médecin ","Lilly France SAS","15/07/2015","REPAS ",60]
["Thierry THOMAS","Médecin ","UCB Pharma SA","24/09/2015","REPAS ",67]
["Thierry THOMAS","Médecin ","UCB Pharma SA","24/09/2015","HÉBERGEMENT ",160]
["Thierry THOMAS","Médecin ","UCB Pharma SA","24/09/2015","REPAS ",66]
["Thierry THOMAS","Médecin ","UCB Pharma SA","24/09/2015","TRANSPORT ",153]
["Thierry THOMAS","Médecin ","THE BINDING SITE GROUP LTD","2015-10-09","REPAS ",26]
["Thierry THOMAS","Médecin ","THE BINDING SITE GROUP LTD","21/10/2015","REPAS ",22]
["Thierry THOMAS","Médecin ","MSD France","2015-11-04","REPAS ",24]
["Thierry THOMAS","Médecin ","AMGEN SAS","2015-11-06","TRANSPORT ",274]
["Thierry THOMAS","Médecin ","AMGEN SAS","18/11/2015","TRANSPORT ",745]
["Thierry THOMAS","Médecin ","AMGEN SAS","18/11/2015","HEBERGEMENT ",117]
["Thierry THOMAS","Médecin ","LES LABORATOIRES SERVIER","26/11/2015","Repas ",65]
["Thierry THOMAS","Médecin ","LES LABORATOIRES SERVIER","26/11/2015","Hébergement ",227]
["Thierry THOMAS","Médecin ","MSD France","27/11/2015","REPAS ",10]
["Thierry THOMAS","Médecin ","MSD France","27/11/2015","HÉBERGEMENT ",227]
["Thierry THOMAS","Médecin ","MSD France","27/11/2015","TRANSPORT ",274]
["Thierry THOMAS","Médecin ","MSD France","28/11/2015","REPAS ",10]
["Thierry THOMAS","Médecin ","MSD France","28/11/2015","REPAS ",55]
["Thierry THOMAS","Médecin ","AMGEN SAS","2015-12-01","TRANSPORT ",746]
["Thierry THOMAS","Médecin ","AMGEN SAS","2015-12-01","HEBERGEMENT ",121]
["Thierry THOMAS","Médecin ","JANSSEN-CILAG","2015-12-02","REPAS ",20]
["Thierry THOMAS","Médecin ","AMGEN SAS","2015-12-09","REPAS REUNION ",23]
["Thierry THOMAS","Médecin ","BRISTOL-MYERS SQUIBB","16/12/2015","Hospitalité ",33]
["Pascal CLAUDEPIERRE","Médecin ","AbbVie","2012-10-09","AUTRE : [HOSPITALITE] ",60]
["Pascal CLAUDEPIERRE","Médecin ","AbbVie","28/11/2012","AUTRE : [HOSPITALITE] ",60]
["Pascal CLAUDEPIERRE","Médecin ","AbbVie","15/01/2013","AUTRE : [HOSPITALITE] ",20]
["Pascal CLAUDEPIERRE","Médecin ","AbbVie","15/02/2013","AUTRE : [HOSPITALITE] ",10]
["Pascal CLAUDEPIERRE","Médecin ","LABORATOIRE GLAXOSMITHKLINE","25/02/2013","Hospitalite ",20]
["Pascal CLAUDEPIERRE","Médecin ","MSD France","2013-04-09","HOSPITALITÉ ",24]
["Pascal CLAUDEPIERRE","Médecin ","AbbVie","25/04/2013","AUTRE : [HOSPITALITE] ",199]
["Pascal CLAUDEPIERRE","Médecin ","MSD France","30/05/2013","REPAS ",24]
["Pascal CLAUDEPIERRE","Médecin ","MSD France","30/05/2013","REPAS ",24]
["Pascal CLAUDEPIERRE","Médecin ","ASTELLAS PHARMA","24/06/2013","REPAS ",12]
["Pascal CLAUDEPIERRE","Médecin ","AbbVie","27/06/2013","AUTRE : [HOSPITALITE] ",63]
["Pascal CLAUDEPIERRE","Médecin ","PFIZER SAS","29/06/2013","HEBERGEMENT ",130]
["Pascal CLAUDEPIERRE","Médecin ","PFIZER SAS","29/06/2013","REPAS ",51]
["Pascal CLAUDEPIERRE","Médecin ","PFIZER SAS","29/06/2013","TRANSPORT ",221]
["Pascal CLAUDEPIERRE","Médecin ","MSD France","2013-09-06","HOSPITALITÉ ",79]
["Pascal CLAUDEPIERRE","Médecin ","MSD France","17/09/2013","REPAS ",33]
["Pascal CLAUDEPIERRE","Médecin ","PFIZER SAS","21/09/2013","TRANSPORT ",241]
["Pascal CLAUDEPIERRE","Médecin ","UCB Pharma SA","27/09/2013","Repas ",13]
["Pascal CLAUDEPIERRE","Médecin ","MSD France","30/09/2013","REPAS ",14]
["Pascal CLAUDEPIERRE","Médecin ","AbbVie","2013-10-11","HOSPITALITE ",23]
["Pascal CLAUDEPIERRE","Médecin ","AbbVie","2013-10-11","REPAS ",42]
["Pascal CLAUDEPIERRE","Médecin ","AbbVie","2013-10-11","TRANSPORT ",239]
["Pascal CLAUDEPIERRE","Médecin ","AbbVie","2013-10-11","REPAS ",60]
["Pascal CLAUDEPIERRE","Médecin ","AbbVie","2013-10-11","HOSPITALITE ",23]
["Pascal CLAUDEPIERRE","Médecin ","NOVARTIS PHARMA SAS","15/10/2013","Autre : [Hospitalité Evenement Scientifique] ",10]
["Pascal CLAUDEPIERRE","Médecin ","PFIZER SAS","30/10/2013","HEBERGEMENT ",1084]
["Pascal CLAUDEPIERRE","Médecin ","PFIZER SAS","30/10/2013","AUTRES: INSCRIPTION ",472]
["Pascal CLAUDEPIERRE","Médecin ","PFIZER SAS","30/10/2013","REPAS ",261]
["Pascal CLAUDEPIERRE","Médecin ","PFIZER SAS","30/10/2013","TRANSPORT ",7759]
["Pascal CLAUDEPIERRE","Médecin ","MSD France","2013-11-12","REPAS ",34]
["Pascal CLAUDEPIERRE","Médecin ","MSD France","2013-11-12","TRANSPORT ",79]
["Pascal CLAUDEPIERRE","Médecin ","MSD France","2013-11-12","REPAS ",33]
["Pascal CLAUDEPIERRE","Médecin ","PFIZER SAS","2013-12-03","AUTRE: INSCRIPTION ",290]
["Pascal CLAUDEPIERRE","Médecin ","AbbVie","2013-12-12","REPAS ",59]
["Pascal CLAUDEPIERRE","Médecin ","AbbVie","2014-01-10","REPAS ",12]
["Pascal CLAUDEPIERRE","Médecin ","MSD France","14/01/2014","REPAS ",23]
["Pascal CLAUDEPIERRE","Médecin ","AbbVie","17/01/2014","REPAS ",10]
["Pascal CLAUDEPIERRE","Médecin ","UCB Pharma SA","30/01/2014","Repas ",12]
["Pascal CLAUDEPIERRE","Médecin ","PFIZER SAS","2014-02-08","REPAS ",152]
["Pascal CLAUDEPIERRE","Médecin ","MSD France","2014-03-11","REPAS ",25]
["Pascal CLAUDEPIERRE","Médecin ","MSD France","2014-05-04","HÉBERGEMENT ",105]
["Pascal CLAUDEPIERRE","Médecin ","MSD France","2014-05-04","TRANSPORT ",550]
["Pascal CLAUDEPIERRE","Médecin ","MSD France","2014-05-04","REPAS ",53]
["Pascal CLAUDEPIERRE","Médecin ","MSD France","2014-05-05","HÉBERGEMENT ",105]
["Pascal CLAUDEPIERRE","Médecin ","MSD France","2014-05-06","REPAS ",90]
["Pascal CLAUDEPIERRE","Médecin ","MSD France","2014-05-06","REPAS ",53]
["Pascal CLAUDEPIERRE","Médecin ","MSD France","2014-05-06","HÉBERGEMENT ",105]
["Pascal CLAUDEPIERRE","Médecin ","PFIZER SAS","16/05/2014","REPAS ",76]
["Pascal CLAUDEPIERRE","Médecin ","AbbVie","23/05/2014","REPAS ",60]
["Pascal CLAUDEPIERRE","Médecin ","AbbVie","23/05/2014","HEBERGEMENT ",200]
["Pascal CLAUDEPIERRE","Médecin ","AbbVie","23/05/2014","AUTRE : [PAUSE] ",10]
["Pascal CLAUDEPIERRE","Médecin ","AbbVie","23/05/2014","TRANSPORT ",120]
["Pascal CLAUDEPIERRE","Médecin ","AbbVie","24/05/2014","REPAS ",42]
["Pascal CLAUDEPIERRE","Médecin ","AbbVie","24/05/2014","TRANSPORT ",210]
["Pascal CLAUDEPIERRE","Médecin ","AbbVie","24/05/2014","AUTRE : [PAUSE] ",10]
["Pascal CLAUDEPIERRE","Médecin ","BRISTOL-MYERS SQUIBB","2014-06-11","Hospitalité ",700]
["Pascal CLAUDEPIERRE","Médecin ","MSD France","2014-07-07","REPAS ",31]
["Pascal CLAUDEPIERRE","Médecin ","AbbVie","2014-07-08","REPAS ",59]
["Pascal CLAUDEPIERRE","Médecin ","AbbVie","2014-07-08","AUTRE : [PAUSE] ",10]
["Pascal CLAUDEPIERRE","Médecin ","AbbVie","16/09/2014","REPAS ",29]
["Pascal CLAUDEPIERRE","Médecin ","ROCHE SAS","2014-10-08","Repas ",29]
["Pascal CLAUDEPIERRE","Médecin ","MSD France","15/10/2014","REPAS ",13]
["Pascal CLAUDEPIERRE","Médecin ","ROCHE SAS","23/10/2014","Repas ",30]
["Pascal CLAUDEPIERRE","Médecin ","Laboratoires Grünenthal SAS","2014-11-07","REPAS ",17]
["Pascal CLAUDEPIERRE","Médecin ","ROCHE SAS","2014-12-02","Repas ",18]
["Pascal CLAUDEPIERRE","Médecin ","MSD France","2014-12-11","TRANSPORT ",72]
["Pascal CLAUDEPIERRE","Médecin ","MSD France","2014-12-11","TRANSPORT ",66]
["Pascal CLAUDEPIERRE","Médecin ","MSD France","2014-12-11","TRANSPORT ",55]
["Pascal CLAUDEPIERRE","Médecin ","MSD France","27/01/2015","TRANSPORT ",24]
["Pascal CLAUDEPIERRE","Médecin ","MSD France","27/01/2015","TRANSPORT ",65]
["Pascal CLAUDEPIERRE","Médecin ","MSD France","2015-02-02","REPAS ",90]
["Pascal CLAUDEPIERRE","Médecin ","MSD France","2015-02-03","REPAS ",1469]
["Pascal CLAUDEPIERRE","Médecin ","PFIZER SAS","2015-02-06","Hebergement ",195]
["Pascal CLAUDEPIERRE","Médecin ","PFIZER SAS","2015-02-06","Transport ",67]
["Pascal CLAUDEPIERRE","Médecin ","PFIZER SAS","2015-02-06","Repas ",182]
["Pascal CLAUDEPIERRE","Médecin ","UCB Pharma SA","16/02/2015","Autre : [ Forfait journée d\u0092étude ou forfait congrès ] ",53]
["Pascal CLAUDEPIERRE","Médecin ","NOVARTIS PHARMA SAS","2015-03-03","Repas ",11]
["Pascal CLAUDEPIERRE","Médecin ","NOVARTIS PHARMA SAS","2015-04-02","REPAS ",59]
["Pascal CLAUDEPIERRE","Médecin ","PFIZER SAS","2015-04-03","Repas ",67]
["Pascal CLAUDEPIERRE","Médecin ","PFIZER SAS","2015-04-03","Transport ",77]
["Pascal CLAUDEPIERRE","Médecin ","MSD France","2015-04-09","TRANSPORT ",37]
["Pascal CLAUDEPIERRE","Médecin ","MSD France","2015-04-09","TRANSPORT ",27]
["Pascal CLAUDEPIERRE","Médecin ","MSD France","2015-04-10","REPAS ",60]
["Pascal CLAUDEPIERRE","Médecin ","AbbVie","14/04/2015","REPAS ",27]
["Pascal CLAUDEPIERRE","Médecin ","HOSPIRA FRANCE","14/04/2015","HOSPITALITE ",30]
["Pascal CLAUDEPIERRE","Médecin ","MSD France","2015-05-05","REPAS ",10]
["Pascal CLAUDEPIERRE","Médecin ","MSD France","2015-05-05","REPAS ",16]
["Pascal CLAUDEPIERRE","Médecin ","MSD France","2015-05-12","REPAS ",21]
["Pascal CLAUDEPIERRE","Médecin ","BRISTOL-MYERS SQUIBB","2015-06-10","Repas ",60]
["Pascal CLAUDEPIERRE","Médecin ","BRISTOL-MYERS SQUIBB","2015-06-10","Hospitalité ",760]
["Pascal CLAUDEPIERRE","Médecin ","BRISTOL-MYERS SQUIBB","2015-06-10","Hébergement ",789]
["Pascal CLAUDEPIERRE","Médecin ","BRISTOL-MYERS SQUIBB","2015-06-10","Transport ",312]
["Pascal CLAUDEPIERRE","Médecin ","PFIZER SAS","2015-09-11","Transport ",108]
["Pascal CLAUDEPIERRE","Médecin ","PFIZER SAS","2015-09-11","Hébergement ",171]
["Pascal CLAUDEPIERRE","Médecin ","PFIZER SAS","2015-09-11","Repas ",139]
["Pascal CLAUDEPIERRE","Médecin ","HOSPIRA FRANCE","14/09/2015","[HOSPITALITE] ",19]
["Pascal CLAUDEPIERRE","Médecin ","AbbVie","15/09/2015","REPAS ",55]
["Pascal CLAUDEPIERRE","Médecin ","UCB Pharma SA","18/09/2015","REPAS ",140]
["Pascal CLAUDEPIERRE","Médecin ","UCB Pharma SA","18/09/2015","REPAS ",140]
["Pascal CLAUDEPIERRE","Médecin ","HOSPIRA FRANCE","14/10/2015","[HOSPITALITE] ",29]
["Pascal CLAUDEPIERRE","Médecin ","NOVARTIS PHARMA SAS","14/10/2015","REPAS ",59]
["Pascal CLAUDEPIERRE","Médecin ","MSD France","28/10/2015","REPAS ",224]
["Pascal CLAUDEPIERRE","Médecin ","JANSSEN-CILAG","20/11/2015","AUTRE : REMBOURSEMENT DE FRAIS ",80]
["Pascal CLAUDEPIERRE","Médecin ","MSD France","27/11/2015","REPAS ",10]
["Pascal CLAUDEPIERRE","Médecin ","MSD France","28/11/2015","REPAS ",10]
["Pascal CLAUDEPIERRE","Médecin ","MSD France","28/11/2015","REPAS ",55]
["Pascal CLAUDEPIERRE","Médecin ","BRISTOL-MYERS SQUIBB","13/12/2015","Hospitalité ",290]
["Philippe GOUPILLE","Médecin ","LABORATOIRE GLAXOSMITHKLINE","14/06/2012","Hospitalité ",50]
["Philippe GOUPILLE","Médecin ","AbbVie","28/11/2012","AUTRE : [HOSPITALITE] ",54]
["Philippe GOUPILLE","Médecin ","AbbVie","2013-01-04","AUTRE : [HOSPITALITE] ",116]
["Philippe GOUPILLE","Médecin ","AbbVie","18/01/2013","AUTRE : [HOSPITALITE] ",168]
["Philippe GOUPILLE","Médecin ","AbbVie","2013-02-06","AUTRE : [HOSPITALITE] ",32]
["Philippe GOUPILLE","Médecin ","AbbVie","13/02/2013","AUTRE : [HOSPITALITE] ",55]
["Philippe GOUPILLE","Médecin ","AbbVie","25/04/2013","AUTRE : [HOSPITALITE] ",729]
["Philippe GOUPILLE","Médecin ","JANSSEN-CILAG","16/05/2013","REPAS ",53]
["Philippe GOUPILLE","Médecin ","AbbVie","29/05/2013","REPAS ",50]
["Philippe GOUPILLE","Médecin ","AbbVie","2013-06-06","AUTRE : [HOSPITALITE] ",23]
["Philippe GOUPILLE","Médecin ","AbbVie","27/06/2013","AUTRE : [HOSPITALITE] ",278]
["Philippe GOUPILLE","Médecin ","PFIZER SAS","27/06/2013","Repas ",47]
["Philippe GOUPILLE","Médecin ","BRISTOL-MYERS SQUIBB","2013-07-09","Repas ",70]
["Philippe GOUPILLE","Médecin ","BRISTOL-MYERS SQUIBB","2013-07-09","Transport ",188]
["Philippe GOUPILLE","Médecin ","PFIZER SAS","14/09/2013","REPAS ",176]
["Philippe GOUPILLE","Médecin ","PFIZER SAS","14/09/2013","HEBERGEMENT ",180]
["Philippe GOUPILLE","Médecin ","PFIZER SAS","14/09/2013","TRANSPORT ",55]
["Philippe GOUPILLE","Médecin ","JANSSEN-CILAG","16/09/2013","TRANSPORT ",145]
["Philippe GOUPILLE","Médecin ","JANSSEN-CILAG","16/09/2013","AUTRE : REMBOURSEMENT DE FRAIS ",12]
["Philippe GOUPILLE","Médecin ","MSD France","25/09/2013","REPAS ",36]
["Philippe GOUPILLE","Médecin ","NORDIC PHARMA SAS","25/09/2013","Repas ",29]
["Philippe GOUPILLE","Médecin ","ROCHE SAS","2013-10-09","Repas ",19]
["Philippe GOUPILLE","Médecin ","BRISTOL-MYERS SQUIBB","2013-10-10","Transport ",188]
["Philippe GOUPILLE","Médecin ","BRISTOL-MYERS SQUIBB","2013-10-10","Repas ",70]
["Philippe GOUPILLE","Médecin ","AbbVie","2013-10-11","REPAS ",60]
["Philippe GOUPILLE","Médecin ","AbbVie","2013-10-11","HÉBERGEMENT ",182]
["Philippe GOUPILLE","Médecin ","AbbVie","2013-10-11","HOSPITALITE ",23]
["Philippe GOUPILLE","Médecin ","AbbVie","2013-10-11","TRANSPORT ",254]
["Philippe GOUPILLE","Médecin ","AbbVie","2013-10-11","REPAS ",42]
["Philippe GOUPILLE","Médecin ","PFIZER SAS","30/10/2013","HEBERGEMENT ",1084]
["Philippe GOUPILLE","Médecin ","MSD France","2013-11-06","REPAS ",25]
["Philippe GOUPILLE","Médecin ","AbbVie","19/11/2013","REPAS ",40]
["Philippe GOUPILLE","Médecin ","AbbVie","19/11/2013","TRANSPORT ",190]
["Philippe GOUPILLE","Médecin ","UCB Pharma SA","22/11/2013","Autre : [ Forfait journée d\u0092étude ] ",50]
["Philippe GOUPILLE","Médecin ","PFIZER SAS","2013-12-03","AUTRE: INSCRIPTION ",290]
["Philippe GOUPILLE","Médecin ","PFIZER SAS","2013-12-03","TRANSPORT ",184]
["Philippe GOUPILLE","Médecin ","UCB Pharma SA","2013-12-06","Transport ",108]
["Philippe GOUPILLE","Médecin ","AbbVie","2013-12-10","Repas ",53]
["Philippe GOUPILLE","Médecin ","UCB Pharma SA","2013-12-10","Repas ",57]
["Philippe GOUPILLE","Médecin ","MSD France","13/12/2013","HOSPITALITÉ ",294]
["Philippe GOUPILLE","Médecin ","AbbVie","18/12/2013","TRANSPORT ",89]
["Philippe GOUPILLE","Médecin ","AbbVie","18/12/2013","TRANSPORT ",89]
["Philippe GOUPILLE","Médecin ","UCB Pharma SA","2014-01-07","Transport ",41]
["Philippe GOUPILLE","Médecin ","BRISTOL-MYERS SQUIBB","2014-02-11","Transport ",184]
["Philippe GOUPILLE","Médecin ","BRISTOL-MYERS SQUIBB","2014-02-11","Repas ",68]
["Philippe GOUPILLE","Médecin ","MSD France","18/03/2014","TRANSPORT ",30]
["Philippe GOUPILLE","Médecin ","MSD France","2014-04-11","REPAS ",144]
["Philippe GOUPILLE","Médecin ","BRISTOL-MYERS SQUIBB","2014-04-11","Transport ",460]
["Philippe GOUPILLE","Médecin ","BRISTOL-MYERS SQUIBB","2014-04-11","Repas ",22]
["Philippe GOUPILLE","Médecin ","BRISTOL-MYERS SQUIBB","16/04/2014","Repas ",51]
["Philippe GOUPILLE","Médecin ","ROCHE SAS","20/05/2014","Repas ",44]
["Philippe GOUPILLE","Médecin ","JANSSEN-CILAG","21/05/2014","REPAS ",30]
["Philippe GOUPILLE","Médecin ","AbbVie","2014-06-03","REPAS ",55]
["Philippe GOUPILLE","Médecin ","BRISTOL-MYERS SQUIBB","2014-07-01","Transport ",184]
["Philippe GOUPILLE","Médecin ","BRISTOL-MYERS SQUIBB","2014-07-01","Repas ",69]
["Philippe GOUPILLE","Médecin ","MSD France","2014-07-02","REPAS ",32]
["Philippe GOUPILLE","Médecin ","AbbVie","2014-07-04","REPAS ",51]
["Philippe GOUPILLE","Médecin ","AbbVie","2014-07-04","AUTRE : [PAUSE] ",10]
["Philippe GOUPILLE","Médecin ","AbbVie","2014-07-04","TRANSPORT ",205]
["Philippe GOUPILLE","Médecin ","AbbVie","2014-07-08","REPAS ",59]
["Philippe GOUPILLE","Médecin ","AbbVie","2014-07-08","TRANSPORT ",193]
["Philippe GOUPILLE","Médecin ","AbbVie","2014-07-08","AUTRE : [PAUSE] ",10]
["Philippe GOUPILLE","Médecin ","SWEDISH ORPHAN BIOVITRUM","23/09/2014","REPAS ",25]
["Philippe GOUPILLE","Médecin ","BRISTOL-MYERS SQUIBB","2014-10-03","Hébergement ",231]
["Philippe GOUPILLE","Médecin ","BRISTOL-MYERS SQUIBB","2014-10-03","Repas ",90]
["Philippe GOUPILLE","Médecin ","UCB Pharma SA","2014-10-07","Repas ",37]
["Philippe GOUPILLE","Médecin ","BRISTOL-MYERS SQUIBB","2014-10-07","Transport ",184]
["Philippe GOUPILLE","Médecin ","BRISTOL-MYERS SQUIBB","2014-10-07","Repas ",72]
["Philippe GOUPILLE","Médecin ","AMGEN SAS","2014-10-11","REPAS REUNION ",60]
["Philippe GOUPILLE","Médecin ","AMGEN SAS","2014-10-11","TRANSPORT ",30]
["Philippe GOUPILLE","Médecin ","MSD France","14/10/2014","TRANSPORT ",30]
["Philippe GOUPILLE","Médecin ","MSD France","16/10/2014","REPAS ",50]
["Philippe GOUPILLE","Médecin ","Lilly France SAS","27/10/2014","REPAS ",10]
["Philippe GOUPILLE","Médecin ","Lilly France SAS","27/10/2014","REPAS ",60]
["Philippe GOUPILLE","Médecin ","AbbVie","2014-11-12","REPAS ",36]
["Philippe GOUPILLE","Médecin ","AMGEN SAS","22/11/2014","REPAS REUNION ",10]
["Philippe GOUPILLE","Médecin ","AMGEN SAS","22/11/2014","REPAS REUNION ",10]
["Philippe GOUPILLE","Médecin ","AbbVie","2014-12-01","REPAS ",27]
["Philippe GOUPILLE","Médecin ","ROCHE SAS","2014-12-02","Repas ",55]
["Philippe GOUPILLE","Médecin ","UCB Pharma SA","2014-12-05","Autre : [ Forfait journée d\u0092étude ou forfait congrès ] ",43]
["Philippe GOUPILLE","Médecin ","BIOGARAN","16/12/2014","REPAS ",10]
["Philippe GOUPILLE","Médecin ","Lilly France SAS","18/12/2014","REPAS ",37]
["Philippe GOUPILLE","Médecin ","AbbVie","22/01/2015","REPAS ",46]
["Philippe GOUPILLE","Médecin ","MSD France","30/01/2015","REPAS ",43]
["Philippe GOUPILLE","Médecin ","MSD France","30/01/2015","TRANSPORT ",222]
["Philippe GOUPILLE","Médecin ","PFIZER SAS","2015-02-06","Transport ",198]
["Philippe GOUPILLE","Médecin ","PFIZER SAS","2015-02-06","Hebergement ",195]
["Philippe GOUPILLE","Médecin ","PFIZER SAS","2015-02-06","Repas ",182]
["Philippe GOUPILLE","Médecin ","JANSSEN-CILAG","2015-03-03","TRANSPORT ",188]
["Philippe GOUPILLE","Médecin ","JANSSEN-CILAG","2015-03-03","AUTRE : REMBOURSEMENT DE FRAIS ",17]
["Philippe GOUPILLE","Médecin ","BIOGARAN","2015-03-10","HOSPITALITE ",10]
["Philippe GOUPILLE","Médecin ","BIOGARAN","2015-03-12","Repas ",58]
["Philippe GOUPILLE","Médecin ","AbbVie","18/03/2015","REPAS ",28]
["Philippe GOUPILLE","Médecin ","MSD France","26/03/2015","TRANSPORT ",111]
["Philippe GOUPILLE","Médecin ","MSD France","26/03/2015","HÉBERGEMENT ",189]
["Philippe GOUPILLE","Médecin ","ROCHE SAS","26/03/2015","Repas ",84]
["Philippe GOUPILLE","Médecin ","AbbVie","27/03/2015","REPAS ",57]
["Philippe GOUPILLE","Médecin ","BRISTOL-MYERS SQUIBB","2015-04-07","Repas ",60]
["Philippe GOUPILLE","Médecin ","BRISTOL-MYERS SQUIBB","2015-04-07","Transport ",188]
["Philippe GOUPILLE","Médecin ","MSD France","2015-04-10","TRANSPORT ",154]
["Philippe GOUPILLE","Médecin ","MSD France","2015-04-10","REPAS ",60]
["Philippe GOUPILLE","Médecin ","BIOGARAN","30/04/2015","Transport ",74]
["Philippe GOUPILLE","Médecin ","NORDIC PHARMA SAS","2015-05-01","Repas ",45]
["Philippe GOUPILLE","Médecin ","NORDIC PHARMA SAS","2015-05-01","Hébergement ",172]
["Philippe GOUPILLE","Médecin ","NORDIC PHARMA SAS","2015-05-01","Transport ",571]
["Philippe GOUPILLE","Médecin ","ICOMED","20/05/2015","Autre: [Enquête] ",29]
["Philippe GOUPILLE","Médecin ","BRISTOL-MYERS SQUIBB","28/05/2015","Transport ",188]
["Philippe GOUPILLE","Médecin ","BRISTOL-MYERS SQUIBB","28/05/2015","Repas ",55]
["Philippe GOUPILLE","Médecin ","UCB Pharma SA","29/05/2015","Transport ",30]
["Philippe GOUPILLE","Médecin ","UCB Pharma SA","29/05/2015","Autre : [ Forfait journée d\u0092étude ou forfait congrès ] ",79]
["Philippe GOUPILLE","Médecin ","BRISTOL-MYERS SQUIBB","2015-06-02","Repas ",35]
["Philippe GOUPILLE","Médecin ","BRISTOL-MYERS SQUIBB","2015-06-04","Repas ",60]
["Philippe GOUPILLE","Médecin ","BRISTOL-MYERS SQUIBB","2015-06-04","Transport ",260]
["Philippe GOUPILLE","Médecin ","BRISTOL-MYERS SQUIBB","2015-06-04","Hébergement ",109]
["Philippe GOUPILLE","Médecin ","MSD France","2015-06-11","REPAS ",112]
["Philippe GOUPILLE","Médecin ","ROCHE SAS","23/06/2015","Repas ",60]
["Philippe GOUPILLE","Médecin ","Lilly France SAS","24/06/2015","TRANSPORT ",94]
["Philippe GOUPILLE","Médecin ","Lilly France SAS","24/06/2015","TRANSPORT ",94]
["Philippe GOUPILLE","Médecin ","AbbVie","2015-07-07","AUTRE : [PAUSE] ",10]
["Philippe GOUPILLE","Médecin ","AbbVie","2015-07-07","TRANSPORT ",197]
["Philippe GOUPILLE","Médecin ","AbbVie","2015-07-07","REPAS ",59]
["Philippe GOUPILLE","Médecin ","PFIZER SAS","18/09/2015","Hébergement ",180]
["Philippe GOUPILLE","Médecin ","PFIZER SAS","18/09/2015","Transport ",439]
["Philippe GOUPILLE","Médecin ","PFIZER SAS","18/09/2015","Repas ",128]
["Philippe GOUPILLE","Médecin ","MSD France","22/09/2015","TRANSPORT ",21]
["Philippe GOUPILLE","Médecin ","AbbVie","24/09/2015","REPAS ",41]
["Philippe GOUPILLE","Médecin ","BIOGARAN","30/09/2015","HOSPITALITE ",10]
["Philippe GOUPILLE","Médecin ","MSD France","13/10/2015","TRANSPORT ",21]
["Philippe GOUPILLE","Médecin ","NOVARTIS PHARMA SAS","14/10/2015","TRANSPORT ",10]
["Philippe GOUPILLE","Médecin ","MSD France","20/10/2015","REPAS ",45]
["Philippe GOUPILLE","Médecin ","MSD France","28/10/2015","REPAS ",224]
["Philippe GOUPILLE","Médecin ","MSD France","2015-11-04","REPAS ",185]
["Philippe GOUPILLE","Médecin ","ROCHE SAS","25/11/2015","Repas ",76]
["Philippe GOUPILLE","Médecin ","BRISTOL-MYERS SQUIBB","27/11/2015","Repas ",57]
["Philippe GOUPILLE","Médecin ","BRISTOL-MYERS SQUIBB","28/11/2015","Repas ",45]
["Philippe GOUPILLE","Médecin ","BIOGARAN","2015-12-10","HOSPITALITE ",10]
["Philippe GOUPILLE","Médecin ","MSD France","13/12/2015","TRANSPORT ",113]
["Françoise DEBIAIS","Médecin ","LABORATOIRE GLAXOSMITHKLINE","19/06/2012","Hospitalité ",50]
["Françoise DEBIAIS","Médecin ","Lilly France SAS","2013-09-12","REPAS ",55]
["Françoise DEBIAIS","Médecin ","MSD France","24/09/2013","HOSPITALITÉ ",598]
["Françoise DEBIAIS","Médecin ","NOVARTIS PHARMA SAS","2013-10-04","Hébergement ",920]
["Françoise DEBIAIS","Médecin ","NOVARTIS PHARMA SAS","2013-10-04","Transport ",3314]
["Françoise DEBIAIS","Médecin ","NOVARTIS PHARMA SAS","2013-10-04","Autre : [Inscription Evenement Scientifique] ",525]
["Françoise DEBIAIS","Médecin ","CELGENE","16/10/2013","REPAS MANIFESTATION DE FORMATION ",15]
["Françoise DEBIAIS","Médecin ","MSD France","17/10/2013","REPAS ",39]
["Françoise DEBIAIS","Médecin ","MSD France","19/10/2013","REPAS ",51]
["Françoise DEBIAIS","Médecin ","JANSSEN-CILAG","22/11/2013","REPAS ",30]
["Françoise DEBIAIS","Médecin ","PFIZER SAS","2013-12-10","Repas ",14]
["Françoise DEBIAIS","Médecin ","Lilly France SAS","27/12/2013","AUTRE : [REMBOURSEMENT FRAIS LOGISTIQUE] ",133]
["Françoise DEBIAIS","Médecin ","AMGEN SAS","16/01/2014","REPAS IMPROMPTU ",15]
["Françoise DEBIAIS","Médecin ","MSD France","29/01/2014","REPAS ",22]
["Françoise DEBIAIS","Médecin ","AMGEN SAS","2014-04-11","AUTRE [PAUSE] ",10]
["Françoise DEBIAIS","Médecin ","AMGEN SAS","2014-04-11","AUTRE [PAUSE] ",10]
["Françoise DEBIAIS","Médecin ","AMGEN SAS","2014-04-11","TRANSPORT ",155]
["Françoise DEBIAIS","Médecin ","AMGEN SAS","2014-04-11","REPAS REUNION ",48]
["Françoise DEBIAIS","Médecin ","PFIZER SAS","2014-04-12","REPAS ",121]
["Françoise DEBIAIS","Médecin ","PFIZER SAS","2014-04-12","HEBERGEMENT ",180]
["Françoise DEBIAIS","Médecin ","JANSSEN-CILAG","16/04/2014","REPAS ",19]
["Françoise DEBIAIS","Médecin ","PFIZER SAS","13/07/2014","Repas ",31]
["Françoise DEBIAIS","Médecin ","BRISTOL-MYERS SQUIBB","2014-09-10","Repas ",46]
["Françoise DEBIAIS","Médecin ","PFIZER SAS","14/09/2014","Repas ",27]
["Françoise DEBIAIS","Médecin ","AbbVie","16/10/2014","REPAS ",45]
["Françoise DEBIAIS","Médecin ","AbbVie","30/10/2014","REPAS ",47]
["Françoise DEBIAIS","Médecin ","Lilly France SAS","2014-11-06","REPAS ",24]
["Françoise DEBIAIS","Médecin ","AbbVie","13/11/2014","TRANSPORT ",184]
["Françoise DEBIAIS","Médecin ","AbbVie","13/11/2014","HEBERGEMENT ",185]
["Françoise DEBIAIS","Médecin ","AbbVie","14/11/2014","TRANSPORT ",4988]
["Françoise DEBIAIS","Médecin ","AbbVie","14/11/2014","TRANSPORT ",17]
["Françoise DEBIAIS","Médecin ","AbbVie","14/11/2014","TRANSPORT ",14]
["Françoise DEBIAIS","Médecin ","AbbVie","14/11/2014","HEBERGEMENT ",240]
["Françoise DEBIAIS","Médecin ","AbbVie","14/11/2014","REPAS ",60]
["Françoise DEBIAIS","Médecin ","AbbVie","14/11/2014","TRANSPORT ",39]
["Françoise DEBIAIS","Médecin ","AbbVie","15/11/2014","REPAS ",14]
["Françoise DEBIAIS","Médecin ","AbbVie","15/11/2014","TRANSPORT ",14]
["Françoise DEBIAIS","Médecin ","AbbVie","15/11/2014","REPAS ",60]
["Françoise DEBIAIS","Médecin ","AbbVie","15/11/2014","HEBERGEMENT ",240]
["Françoise DEBIAIS","Médecin ","AbbVie","15/11/2014","INSCRIPTION ",783]
["Françoise DEBIAIS","Médecin ","AbbVie","16/11/2014","HEBERGEMENT ",240]
["Françoise DEBIAIS","Médecin ","AbbVie","16/11/2014","REPAS ",60]
["Françoise DEBIAIS","Médecin ","AbbVie","16/11/2014","TRANSPORT ",14]
["Françoise DEBIAIS","Médecin ","AbbVie","17/11/2014","REPAS ",18]
["Françoise DEBIAIS","Médecin ","AbbVie","17/11/2014","TRANSPORT ",14]
["Françoise DEBIAIS","Médecin ","AbbVie","17/11/2014","HEBERGEMENT ",240]
["Françoise DEBIAIS","Médecin ","AbbVie","17/11/2014","REPAS ",60]
["Françoise DEBIAIS","Médecin ","AbbVie","18/11/2014","REPAS ",23]
["Françoise DEBIAIS","Médecin ","AbbVie","18/11/2014","HEBERGEMENT ",240]
["Françoise DEBIAIS","Médecin ","AbbVie","19/11/2014","TRANSPORT ",39]
["Françoise DEBIAIS","Médecin ","AbbVie","19/11/2014","REPAS ",33]
["Françoise DEBIAIS","Médecin ","ROCHE SAS","2014-12-04","Repas ",52]
["Françoise DEBIAIS","Médecin ","PFIZER SAS","25/01/2015","Repas ",21]
["Françoise DEBIAIS","Médecin ","AbbVie","28/01/2015","REPAS ",19]
["Françoise DEBIAIS","Médecin ","AbbVie","2015-02-12","REPAS ",45]
["Françoise DEBIAIS","Médecin ","AMGEN SAS","2015-02-12","REPAS IMPROMPTU ",37]
["Françoise DEBIAIS","Médecin ","AMGEN SAS","27/02/2015","HEBERGEMENT ",136]
["Françoise DEBIAIS","Médecin ","AMGEN SAS","27/02/2015","REPAS REUNION ",60]
["Françoise DEBIAIS","Médecin ","AMGEN SAS","27/02/2015","REPAS REUNION ",22]
["Françoise DEBIAIS","Médecin ","AMGEN SAS","27/02/2015","TRANSPORT ",899]
["Françoise DEBIAIS","Médecin ","AMGEN SAS","27/02/2015","TRANSPORT ",18]
["Françoise DEBIAIS","Médecin ","AMGEN SAS","27/02/2015","HEBERGEMENT ",140]
["Françoise DEBIAIS","Médecin ","AMGEN SAS","27/02/2015","TRANSPORT ",21]
["Françoise DEBIAIS","Médecin ","AMGEN SAS","27/02/2015","REPAS REUNION ",30]
["Françoise DEBIAIS","Médecin ","AMGEN SAS","28/02/2015","REPAS REUNION ",30]
["Françoise DEBIAIS","Médecin ","CELGENE","18/03/2015","REPAS RÉUNION HOSPITALIÈRE ",19]
["Françoise DEBIAIS","Médecin ","PFIZER SAS","17/04/2015","Repas ",137]
["Françoise DEBIAIS","Médecin ","PFIZER SAS","17/04/2015","Hebergement ",180]
["Françoise DEBIAIS","Médecin ","AMGEN SAS","23/04/2015","REPAS REUNION ",60]
["Françoise DEBIAIS","Médecin ","AMGEN SAS","24/04/2015","HEBERGEMENT ",116]
["Françoise DEBIAIS","Médecin ","AMGEN SAS","24/04/2015","INSCRIPTION CONGRES ",880]
["Françoise DEBIAIS","Médecin ","AMGEN SAS","25/04/2015","TRANSPORT ",535]
["Françoise DEBIAIS","Médecin ","AMGEN SAS","25/04/2015","TRANSPORT ",21]
["Françoise DEBIAIS","Médecin ","AMGEN SAS","25/04/2015","HEBERGEMENT ",116]
["Françoise DEBIAIS","Médecin ","AMGEN SAS","25/04/2015","TRANSPORT ",17]
["Françoise DEBIAIS","Médecin ","AMGEN SAS","26/04/2015","HEBERGEMENT ",143]
["Françoise DEBIAIS","Médecin ","AMGEN SAS","26/04/2015","TRANSPORT ",28]
["Françoise DEBIAIS","Médecin ","AMGEN SAS","26/04/2015","REPAS REUNION ",59]
["Françoise DEBIAIS","Médecin ","BRISTOL-MYERS SQUIBB","21/05/2015","Repas ",34]
["Françoise DEBIAIS","Médecin ","Genzyme","24/06/2015","Repas ",15]
["Françoise DEBIAIS","Médecin ","MSD France","22/09/2015","REPAS ",50]
["Françoise DEBIAIS","Médecin ","UCB Pharma SA","23/09/2015","REPAS ",20]
["Françoise DEBIAIS","Médecin ","JANSSEN-CILAG","22/10/2015","REPAS ",23]
["Françoise DEBIAIS","Médecin ","Alexion Pharma France","30/10/2015","Transport ",1039]
["Françoise DEBIAIS","Médecin ","Alexion Pharma France","30/10/2015","Repas ",110]
["Françoise DEBIAIS","Médecin ","Alexion Pharma France","30/10/2015","Repas ",20]
["Françoise DEBIAIS","Médecin ","Alexion Pharma France","30/10/2015","Hébergement ",302]
["Françoise DEBIAIS","Médecin ","AbbVie","2015-11-04","REPAS ",52]
["Françoise DEBIAIS","Médecin ","HOSPIRA FRANCE","18/11/2015","[HOSPITALITE] ",20]
["Françoise DEBIAIS","Médecin ","AMGEN SAS","25/11/2015","REPAS REUNION ",21]
["Thierry SCHAEVERBEKE","Médecin ","MSD France","2012-02-01","REPAS ",28]
["Thierry SCHAEVERBEKE","Médecin ","Qiagen France SAS","2012-02-10","TRANSPORT ",204]
["Thierry SCHAEVERBEKE","Médecin ","MSD France","20/09/2012","HOSPITALITÉ ",52]
["Thierry SCHAEVERBEKE","Médecin ","AbbVie","2012-10-03","AUTRE : [HOSPITALITE] ",26]
["Thierry SCHAEVERBEKE","Médecin ","MSD France","16/10/2012","HOSPITALITÉ ",59]
["Thierry SCHAEVERBEKE","Médecin ","AbbVie","28/11/2012","AUTRE : [HOSPITALITE] ",38]
["Thierry SCHAEVERBEKE","Médecin ","BRISTOL-MYERS SQUIBB","2013-01-09","Hospitalité ",293]
["Thierry SCHAEVERBEKE","Médecin ","AbbVie","2013-01-09","AUTRE : [HOSPITALITE] ",35]
["Thierry SCHAEVERBEKE","Médecin ","AbbVie","18/01/2013","AUTRE : [HOSPITALITE] ",168]
["Thierry SCHAEVERBEKE","Médecin ","LABORATOIRE GLAXOSMITHKLINE","23/01/2013","Hospitalite ",20]
["Thierry SCHAEVERBEKE","Médecin ","PFIZER SAS","2013-02-06","HOSPITALITE ",535]
["Thierry SCHAEVERBEKE","Médecin ","AbbVie","13/02/2013","AUTRE : [HOSPITALITE] ",58]
["Thierry SCHAEVERBEKE","Médecin ","PFIZER SAS","29/04/2013","HOSPITALITE ",514]
["Thierry SCHAEVERBEKE","Médecin ","AbbVie","23/05/2013","AUTRE : [HOSPITALITE] ",64]
["Thierry SCHAEVERBEKE","Médecin ","AbbVie","23/05/2013","AUTRE : [HOSPITALITE] ",60]
["Thierry SCHAEVERBEKE","Médecin ","ROCHE SAS","30/05/2013","Hébergement ",105]
["Thierry SCHAEVERBEKE","Médecin ","ROCHE SAS","30/05/2013","Restauration ",60]
["Thierry SCHAEVERBEKE","Médecin ","ROCHE SAS","31/05/2013","Hébergement ",105]
["Thierry SCHAEVERBEKE","Médecin ","AbbVie","2013-06-06","AUTRE : [HOSPITALITE] ",60]
["Thierry SCHAEVERBEKE","Médecin ","ROCHE SAS","15/06/2013","Hébergement ",226]
["Thierry SCHAEVERBEKE","Médecin ","ROCHE SAS","15/06/2013","Restauration ",60]
["Thierry SCHAEVERBEKE","Médecin ","AbbVie","27/06/2013","AUTRE : [HOSPITALITE] ",677]
["Thierry SCHAEVERBEKE","Médecin ","BRISTOL-MYERS SQUIBB","2013-07-09","Repas ",70]
["Thierry SCHAEVERBEKE","Médecin ","BRISTOL-MYERS SQUIBB","2013-07-09","Transport ",532]
["Thierry SCHAEVERBEKE","Médecin ","AbbVie","29/08/2013","Repas ",40]
["Thierry SCHAEVERBEKE","Médecin ","NOVARTIS PHARMA SAS","2013-09-09","Transport ",428]
["Thierry SCHAEVERBEKE","Médecin ","AbbVie","2013-09-10","TRANSPORT ",54]
["Thierry SCHAEVERBEKE","Médecin ","AbbVie","2013-09-10","TRANSPORT ",274]
["Thierry SCHAEVERBEKE","Médecin ","AbbVie","2013-09-10","TRANSPORT ",274]
["Thierry SCHAEVERBEKE","Médecin ","PFIZER SAS","2013-09-11","Repas ",60]
["Thierry SCHAEVERBEKE","Médecin ","BRISTOL-MYERS SQUIBB","27/09/2013","Transport ",491]
["Thierry SCHAEVERBEKE","Médecin ","BRISTOL-MYERS SQUIBB","27/09/2013","Repas ",20]
["Thierry SCHAEVERBEKE","Médecin ","AbbVie","2013-10-11","TRANSPORT ",359]
["Thierry SCHAEVERBEKE","Médecin ","AbbVie","2013-10-11","REPAS ",42]
["Thierry SCHAEVERBEKE","Médecin ","AbbVie","2013-10-11","REPAS ",60]
["Thierry SCHAEVERBEKE","Médecin ","AbbVie","2013-10-11","HOSPITALITE ",23]
["Thierry SCHAEVERBEKE","Médecin ","AbbVie","2013-10-11","HÉBERGEMENT ",207]
["Thierry SCHAEVERBEKE","Médecin ","BRISTOL-MYERS SQUIBB","13/10/2013","Repas ",70]
["Thierry SCHAEVERBEKE","Médecin ","BRISTOL-MYERS SQUIBB","13/10/2013","Transport ",652]
["Thierry SCHAEVERBEKE","Médecin ","AbbVie","16/10/2013","Repas ",38]
["Thierry SCHAEVERBEKE","Médecin ","PFIZER SAS","30/10/2013","TRANSPORT ",7789]
["Thierry SCHAEVERBEKE","Médecin ","PFIZER SAS","30/10/2013","REPAS ",158]
["Thierry SCHAEVERBEKE","Médecin ","PFIZER SAS","30/10/2013","HEBERGEMENT ",1084]
["Thierry SCHAEVERBEKE","Médecin ","PFIZER SAS","30/10/2013","AUTRES: INSCRIPTION ",324]
["Thierry SCHAEVERBEKE","Médecin ","PFIZER SAS","2013-11-07","Repas ",24]
["Thierry SCHAEVERBEKE","Médecin ","MSD France","2013-11-12","TRANSPORT ",38]
["Thierry SCHAEVERBEKE","Médecin ","Biomarin Europe Ltd.","20/11/2013","REPAS ",22]
["Thierry SCHAEVERBEKE","Médecin ","PFIZER SAS","22/11/2013","HOSPITALITE ",561]
["Thierry SCHAEVERBEKE","Médecin ","MSD France","2013-12-01","HOSPITALITÉ ",60]
["Thierry SCHAEVERBEKE","Médecin ","PFIZER SAS","2013-12-03","TRANSPORT ",564]
["Thierry SCHAEVERBEKE","Médecin ","PFIZER SAS","2013-12-03","AUTRE: INSCRIPTION ",290]
["Thierry SCHAEVERBEKE","Médecin ","UCB Pharma SA","2013-12-10","Repas ",57]
["Thierry SCHAEVERBEKE","Médecin ","Actelion Pharmaceuticals France","17/12/2013","REPAS ",43]
["Thierry SCHAEVERBEKE","Médecin ","MSD France","18/12/2013","REPAS ",14]
["Thierry SCHAEVERBEKE","Médecin ","PRECIPHAR","19/12/2013","REPAS ",20]
["Thierry SCHAEVERBEKE","Médecin ","AbbVie","2014-01-09","REPAS ",54]
["Thierry SCHAEVERBEKE","Médecin ","AbbVie","2014-01-10","REPAS ",59]
["Thierry SCHAEVERBEKE","Médecin ","AbbVie","2014-01-10","REPAS ",40]
["Thierry SCHAEVERBEKE","Médecin ","AbbVie","2014-01-10","TRANSPORT ",85]
["Thierry SCHAEVERBEKE","Médecin ","AbbVie","2014-01-10","HEBERGEMENT ",101]
["Thierry SCHAEVERBEKE","Médecin ","AbbVie","2014-01-11","TRANSPORT ",17]
["Thierry SCHAEVERBEKE","Médecin ","AbbVie","17/01/2014","REPAS ",51]
["Thierry SCHAEVERBEKE","Médecin ","AbbVie","17/01/2014","REPAS ",27]
["Thierry SCHAEVERBEKE","Médecin ","AbbVie","18/01/2014","REPAS ",60]
["Thierry SCHAEVERBEKE","Médecin ","PFIZER SAS","2014-02-08","TRANSPORT ",305]
["Thierry SCHAEVERBEKE","Médecin ","PFIZER SAS","2014-02-08","HEBERGEMENT ",199]
["Thierry SCHAEVERBEKE","Médecin ","PFIZER SAS","2014-02-08","REPAS ",212]
["Thierry SCHAEVERBEKE","Médecin ","SWEDISH ORPHAN BIOVITRUM","2014-02-11","REPAS ",22]
["Thierry SCHAEVERBEKE","Médecin ","ROCHE SAS","2014-02-11","Repas ",11]
["Thierry SCHAEVERBEKE","Médecin ","UCB Pharma SA","13/02/2014","Repas ",19]
["Thierry SCHAEVERBEKE","Médecin ","ROCHE SAS","2014-03-06","Repas ",24]
["Thierry SCHAEVERBEKE","Médecin ","BRISTOL-MYERS SQUIBB","2014-03-12","Hébergement ",103]
["Thierry SCHAEVERBEKE","Médecin ","BRISTOL-MYERS SQUIBB","2014-03-12","Transport ",1106]
["Thierry SCHAEVERBEKE","Médecin ","BRISTOL-MYERS SQUIBB","2014-03-12","Repas ",179]
["Thierry SCHAEVERBEKE","Médecin ","MSD France","18/03/2014","TRANSPORT ",28]
["Thierry SCHAEVERBEKE","Médecin ","MSD France","18/03/2014","TRANSPORT ",42]
["Thierry SCHAEVERBEKE","Médecin ","MSD France","18/03/2014","TRANSPORT ",12]
["Thierry SCHAEVERBEKE","Médecin ","BRISTOL-MYERS SQUIBB","25/03/2014","Transport ",119]
["Thierry SCHAEVERBEKE","Médecin ","BRISTOL-MYERS SQUIBB","25/03/2014","Hébergement ",108]
["Thierry SCHAEVERBEKE","Médecin ","BRISTOL-MYERS SQUIBB","25/03/2014","Repas ",40]
["Thierry SCHAEVERBEKE","Médecin ","BRISTOL-MYERS SQUIBB","2014-04-03","Transport ",598]
["Thierry SCHAEVERBEKE","Médecin ","NOVARTIS PHARMA SAS","2014-04-07","Transport ",320]
["Thierry SCHAEVERBEKE","Médecin ","BRISTOL-MYERS SQUIBB","2014-04-09","Repas ",16]
["Thierry SCHAEVERBEKE","Médecin ","NORDIC PHARMA SAS","2014-04-10","Hébergement ",1240]
["Thierry SCHAEVERBEKE","Médecin ","NORDIC PHARMA SAS","2014-04-10","Transport ",1200]
["Thierry SCHAEVERBEKE","Médecin ","MSD France","2014-04-11","REPAS ",144]
["Thierry SCHAEVERBEKE","Médecin ","PFIZER SAS","2014-04-12","REPAS ",51]
["Thierry SCHAEVERBEKE","Médecin ","PFIZER SAS","2014-04-12","HEBERGEMENT ",180]
["Thierry SCHAEVERBEKE","Médecin ","PFIZER SAS","2014-04-12","TRANSPORT ",814]
["Thierry SCHAEVERBEKE","Médecin ","BRISTOL-MYERS SQUIBB","18/04/2014","Repas ",25]
["Thierry SCHAEVERBEKE","Médecin ","NORDIC PHARMA SAS","28/04/2014","Inscription ",700]
["Thierry SCHAEVERBEKE","Médecin ","MSD France","29/04/2014","TRANSPORT ",385]
["Thierry SCHAEVERBEKE","Médecin ","MSD France","29/04/2014","HÉBERGEMENT ",163]
["Thierry SCHAEVERBEKE","Médecin ","NORDIC PHARMA SAS","2014-05-07","Repas ",56]
["Thierry SCHAEVERBEKE","Médecin ","SWEDISH ORPHAN BIOVITRUM","15/05/2014","REPAS ",50]
["Thierry SCHAEVERBEKE","Médecin ","AbbVie","15/05/2014","REPAS ",51]
["Thierry SCHAEVERBEKE","Médecin ","AbbVie","16/05/2014","TRANSPORT ",81]
["Thierry SCHAEVERBEKE","Médecin ","AbbVie","16/05/2014","TRANSPORT ",878]
["Thierry SCHAEVERBEKE","Médecin ","AbbVie","16/05/2014","TRANSPORT ",878]
["Thierry SCHAEVERBEKE","Médecin ","AbbVie","16/05/2014","REPAS ",34]
["Thierry SCHAEVERBEKE","Médecin ","AbbVie","16/05/2014","REPAS ",45]
["Thierry SCHAEVERBEKE","Médecin ","AbbVie","16/05/2014","REPAS ",40]
["Thierry SCHAEVERBEKE","Médecin ","AbbVie","17/05/2014","TRANSPORT ",133]
["Thierry SCHAEVERBEKE","Médecin ","AbbVie","17/05/2014","REPAS ",34]
["Thierry SCHAEVERBEKE","Médecin ","BRISTOL-MYERS SQUIBB","21/05/2014","Repas ",21]
["Thierry SCHAEVERBEKE","Médecin ","BRISTOL-MYERS SQUIBB","23/05/2014","Repas ",129]
["Thierry SCHAEVERBEKE","Médecin ","BRISTOL-MYERS SQUIBB","23/05/2014","Transport ",493]
["Thierry SCHAEVERBEKE","Médecin ","BRISTOL-MYERS SQUIBB","23/05/2014","Hébergement ",250]
["Thierry SCHAEVERBEKE","Médecin ","AbbVie","2014-06-12","REPAS ",40]
["Thierry SCHAEVERBEKE","Médecin ","AMGEN SAS","13/06/2014","REPAS IMPROMPTU ",12]
["Thierry SCHAEVERBEKE","Médecin ","AMGEN SAS","13/06/2014","REPAS IMPROMPTU ",55]
["Thierry SCHAEVERBEKE","Médecin ","ROCHE SAS","19/06/2014","Repas ",28]
["Thierry SCHAEVERBEKE","Médecin ","ROCHE SAS","20/06/2014","Repas ",16]
["Thierry SCHAEVERBEKE","Médecin ","MSD France","27/06/2014","TRANSPORT ",25]
["Thierry SCHAEVERBEKE","Médecin ","MSD France","27/06/2014","TRANSPORT ",104]
["Thierry SCHAEVERBEKE","Médecin ","MSD France","27/06/2014","TRANSPORT ",38]
["Thierry SCHAEVERBEKE","Médecin ","MSD France","27/06/2014","REPAS ",60]
["Thierry SCHAEVERBEKE","Médecin ","MSD France","27/06/2014","HÉBERGEMENT ",190]
["Thierry SCHAEVERBEKE","Médecin ","MSD France","27/06/2014","REPAS ",30]
["Thierry SCHAEVERBEKE","Médecin ","MSD France","2014-07-01","REPAS ",48]
["Thierry SCHAEVERBEKE","Médecin ","BRISTOL-MYERS SQUIBB","2014-07-01","Repas ",69]
["Thierry SCHAEVERBEKE","Médecin ","BRISTOL-MYERS SQUIBB","2014-07-01","Transport ",688]
["Thierry SCHAEVERBEKE","Médecin ","ROCHE SAS","2014-07-03","Transport ",472]
["Thierry SCHAEVERBEKE","Médecin ","ROCHE SAS","2014-07-03","H‚bergement ",180]
["Thierry SCHAEVERBEKE","Médecin ","ROCHE SAS","2014-07-03","Repas ",131]
["Thierry SCHAEVERBEKE","Médecin ","ROCHE SAS","2014-07-04","H‚bergement ",180]
["Thierry SCHAEVERBEKE","Médecin ","ROCHE SAS","2014-07-04","Repas ",131]
["Thierry SCHAEVERBEKE","Médecin ","ROCHE SAS","2014-07-05","H‚bergement ",180]
["Thierry SCHAEVERBEKE","Médecin ","ROCHE SAS","2014-07-05","Repas ",131]
["Thierry SCHAEVERBEKE","Médecin ","AbbVie","2014-07-08","TRANSPORT ",36]
["Thierry SCHAEVERBEKE","Médecin ","AbbVie","2014-07-08","TRANSPORT ",570]
["Thierry SCHAEVERBEKE","Médecin ","AbbVie","2014-07-08","AUTRE : [PAUSE] ",10]
["Thierry SCHAEVERBEKE","Médecin ","AbbVie","2014-07-08","REPAS ",59]
["Thierry SCHAEVERBEKE","Médecin ","AMGEN SAS","2014-07-10","REPAS IMPROMPTU ",30]
["Thierry SCHAEVERBEKE","Médecin ","BRISTOL-MYERS SQUIBB","25/07/2014","Transport ",77]
["Thierry SCHAEVERBEKE","Médecin ","PRECIPHAR","2014-09-04","Repas ",20]
["Thierry SCHAEVERBEKE","Médecin ","AbbVie","2014-09-05","TRANSPORT ",55]
["Thierry SCHAEVERBEKE","Médecin ","AbbVie","2014-09-05","REPAS ",31]
["Thierry SCHAEVERBEKE","Pharmacien ","AbbVie","2014-09-05","HEBERGEMENT ",125]
["Thierry SCHAEVERBEKE","Médecin ","AbbVie","2014-09-06","TRANSPORT ",12]
["Thierry SCHAEVERBEKE","Médecin ","AMGEN SAS","2014-09-10","REPAS IMPROMPTU ",25]
["Thierry SCHAEVERBEKE","Médecin ","AbbVie","16/09/2014","REPAS ",58]
["Thierry SCHAEVERBEKE","Médecin ","AbbVie","16/09/2014","TRANSPORT ",60]
["Thierry SCHAEVERBEKE","Médecin ","AbbVie","16/09/2014","HEBERGEMENT ",163]
["Thierry SCHAEVERBEKE","Médecin ","AbbVie","17/09/2014","TRANSPORT ",57]
["Thierry SCHAEVERBEKE","Médecin ","BRISTOL-MYERS SQUIBB","17/09/2014","Repas ",23]
["Thierry SCHAEVERBEKE","Médecin ","IMPACT MEDICOM","19/09/2014","Droits d'auteur pris en charge par UCB ",1200]
["Thierry SCHAEVERBEKE","Médecin ","OVERCOME","19/09/2014","Transport pris en charge par UCB ",247]
["Thierry SCHAEVERBEKE","Médecin ","ROCHE SAS","25/09/2014","Repas ",60]
["Thierry SCHAEVERBEKE","Médecin ","ROCHE SAS","25/09/2014","Hébergement ",170]
["Thierry SCHAEVERBEKE","Médecin ","BRISTOL-MYERS SQUIBB","25/09/2014","Repas ",60]
["Thierry SCHAEVERBEKE","Médecin ","BRISTOL-MYERS SQUIBB","30/09/2014","Repas ",60]
["Thierry SCHAEVERBEKE","Médecin ","BRISTOL-MYERS SQUIBB","30/09/2014","Repas ",60]
["Thierry SCHAEVERBEKE","Médecin ","BRISTOL-MYERS SQUIBB","2014-10-07","Transport ",493]
["Thierry SCHAEVERBEKE","Médecin ","BRISTOL-MYERS SQUIBB","2014-10-07","Repas ",10]
["Thierry SCHAEVERBEKE","Médecin ","BRISTOL-MYERS SQUIBB","2014-10-07","Transport ",566]
["Thierry SCHAEVERBEKE","Médecin ","BRISTOL-MYERS SQUIBB","2014-10-07","Repas ",72]
["Thierry SCHAEVERBEKE","Médecin ","AMGEN SAS","2014-10-09","REPAS REUNION ",60]
["Thierry SCHAEVERBEKE","Médecin ","AMGEN SAS","2014-10-09","REPAS REUNION ",60]
["Thierry SCHAEVERBEKE","Médecin ","GILEAD SCIENCES","2014-10-10","REPAS ",56]
["Thierry SCHAEVERBEKE","Médecin ","MSD France","13/10/2014","TRANSPORT ",458]
["Thierry SCHAEVERBEKE","Médecin ","MSD France","14/10/2014","TRANSPORT ",13]
["Thierry SCHAEVERBEKE","Médecin ","MSD France","14/10/2014","TRANSPORT ",45]
["Thierry SCHAEVERBEKE","Médecin ","MSD France","14/10/2014","TRANSPORT ",32]
["Thierry SCHAEVERBEKE","Médecin ","MSD France","15/10/2014","REPAS ",45]
["Thierry SCHAEVERBEKE","Médecin ","UCB Pharma SA","22/10/2014","Repas ",57]
["Thierry SCHAEVERBEKE","Médecin ","Lilly France SAS","27/10/2014","REPAS ",60]
["Thierry SCHAEVERBEKE","Médecin ","Lilly France SAS","27/10/2014","REPAS ",10]
["Thierry SCHAEVERBEKE","Médecin ","AbbVie","2014-12-04","REPAS ",31]
["Thierry SCHAEVERBEKE","Médecin ","Actelion Pharmaceuticals France","16/12/2014","REPAS ",35]
["Thierry SCHAEVERBEKE","Médecin ","UCB Pharma SA","2015-01-07","Transport ",46]
["Thierry SCHAEVERBEKE","Médecin ","CSL BEHRING SA","2015-01-07","[REPAS] ",30]
["Thierry SCHAEVERBEKE","Médecin ","BRISTOL-MYERS SQUIBB","2015-01-08","Repas ",52]
["Thierry SCHAEVERBEKE","Médecin ","BRISTOL-MYERS SQUIBB","2015-01-09","Transport ",86]
["Thierry SCHAEVERBEKE","Médecin ","AbbVie","16/01/2015","TRANSPORT ",17]
["Thierry SCHAEVERBEKE","Médecin ","AbbVie","17/01/2015","TRANSPORT ",11]
["Thierry SCHAEVERBEKE","Médecin ","AMGEN SAS","21/01/2015","REPAS IMPROMPTU ",24]
["Thierry SCHAEVERBEKE","Médecin ","AbbVie","2015-02-05","REPAS ",46]
["Thierry SCHAEVERBEKE","Médecin ","GILEAD SCIENCES","2015-02-09","REPAS ",38]
["Thierry SCHAEVERBEKE","Médecin ","ROCHE SAS","2015-03-03","Repas ",11]
["Thierry SCHAEVERBEKE","Médecin ","BIOGARAN","2015-03-04","Repas ",11]
["Thierry SCHAEVERBEKE","Médecin ","PFIZER SAS","2015-03-06","Hebergement ",102]
["Thierry SCHAEVERBEKE","Médecin ","PFIZER SAS","2015-03-06","Repas ",96]
["Thierry SCHAEVERBEKE","Médecin ","GILEAD SCIENCES","2015-03-09","REPAS ",25]
["Thierry SCHAEVERBEKE","Médecin ","ROCHE SAS","2015-03-12","Repas ",30]
["Thierry SCHAEVERBEKE","Médecin ","ROCHE SAS","19/03/2015","Repas ",65]
["Thierry SCHAEVERBEKE","Médecin ","BRISTOL-MYERS SQUIBB","2015-04-07","Transport ",650]
["Thierry SCHAEVERBEKE","Médecin ","BRISTOL-MYERS SQUIBB","2015-04-07","Repas ",60]
["Thierry SCHAEVERBEKE","Médecin ","ROCHE SAS","2015-04-09","Repas ",55]
["Thierry SCHAEVERBEKE","Médecin ","ROCHE SAS","15/04/2015","Repas ",55]
["Thierry SCHAEVERBEKE","Médecin ","PFIZER SAS","17/04/2015","Repas ",24]
["Thierry SCHAEVERBEKE","Médecin ","NORDIC PHARMA SAS","2015-05-01","Repas ",45]
["Thierry SCHAEVERBEKE","Médecin ","NORDIC PHARMA SAS","2015-05-01","Transport ",493]
["Thierry SCHAEVERBEKE","Médecin ","NORDIC PHARMA SAS","2015-05-01","Hébergement ",172]
["Thierry SCHAEVERBEKE","Médecin ","ROCHE SAS","2015-05-05","Repas ",11]
["Thierry SCHAEVERBEKE","Médecin ","MSD France","2015-05-06","REPAS ",15]
["Thierry SCHAEVERBEKE","Médecin ","MSD France","2015-05-06","REPAS ",57]
["Thierry SCHAEVERBEKE","Médecin ","MSD France","2015-05-06","REPAS ",21]
["Thierry SCHAEVERBEKE","Médecin ","MSD France","2015-05-06","REPAS ",15]
["Thierry SCHAEVERBEKE","Médecin ","MSD France","2015-05-06","REPAS ",15]
["Thierry SCHAEVERBEKE","Médecin ","MSD France","2015-05-06","REPAS ",48]
["Thierry SCHAEVERBEKE","Médecin ","MSD France","19/05/2015","TRANSPORT ",435]
["Thierry SCHAEVERBEKE","Médecin ","BRISTOL-MYERS SQUIBB","28/05/2015","Transport ",500]
["Thierry SCHAEVERBEKE","Médecin ","BRISTOL-MYERS SQUIBB","28/05/2015","Repas ",55]
["Thierry SCHAEVERBEKE","Médecin ","ROCHE SAS","2015-06-03","Repas ",14]
["Thierry SCHAEVERBEKE","Médecin ","ROCHE SAS","2015-06-04","Repas ",20]
["Thierry SCHAEVERBEKE","Médecin ","NORDIC PHARMA SAS","2015-06-11","Repas ",48]
["Thierry SCHAEVERBEKE","Médecin ","PRECIPHAR","18/06/2015","Repas ",46]
["Thierry SCHAEVERBEKE","Médecin ","Lilly France SAS","24/06/2015","TRANSPORT ",280]
["Thierry SCHAEVERBEKE","Médecin ","AbbVie","29/06/2015","REPAS ",55]
["Thierry SCHAEVERBEKE","Médecin ","BRISTOL-MYERS SQUIBB","30/06/2015","Repas ",77]
["Thierry SCHAEVERBEKE","Médecin ","BRISTOL-MYERS SQUIBB","30/06/2015","Transport ",90]
["Thierry SCHAEVERBEKE","Médecin ","BRISTOL-MYERS SQUIBB","30/06/2015","Transport ",580]
["Thierry SCHAEVERBEKE","Médecin ","AbbVie","2015-07-07","TRANSPORT ",579]
["Thierry SCHAEVERBEKE","Médecin ","AbbVie","2015-07-07","AUTRE : [PAUSE] ",10]
["Thierry SCHAEVERBEKE","Médecin ","AbbVie","2015-07-07","TRANSPORT ",53]
["Thierry SCHAEVERBEKE","Médecin ","AbbVie","2015-07-07","REPAS ",59]
["Thierry SCHAEVERBEKE","Médecin ","NORDIC PHARMA SAS","13/07/2015","Hébergement ",564]
["Thierry SCHAEVERBEKE","Médecin ","NORDIC PHARMA SAS","13/07/2015","Repas ",60]
["Thierry SCHAEVERBEKE","Médecin ","NORDIC PHARMA SAS","13/07/2015","Inscription ",700]
["Thierry SCHAEVERBEKE","Médecin ","NORDIC PHARMA SAS","13/07/2015","Transport ",1542]
["Thierry SCHAEVERBEKE","Médecin ","MSD France","23/07/2015","REPAS ",112]
["Thierry SCHAEVERBEKE","Médecin ","AMGEN SAS","2015-09-03","REPAS REUNION ",25]
["Thierry SCHAEVERBEKE","Médecin ","AMGEN SAS","18/09/2015","REPAS IMPROMPTU ",46]
["Thierry SCHAEVERBEKE","Médecin ","BRISTOL-MYERS SQUIBB","25/09/2015","Transport ",362]
["Thierry SCHAEVERBEKE","Médecin ","BRISTOL-MYERS SQUIBB","25/09/2015","Hébergement ",150]
["Thierry SCHAEVERBEKE","Médecin ","BRISTOL-MYERS SQUIBB","25/09/2015","Repas ",80]
["Thierry SCHAEVERBEKE","Médecin ","MSD France","13/10/2015","TRANSPORT ",499]
["Thierry SCHAEVERBEKE","Médecin ","CHUGAI PHARMA FRANCE","14/10/2015","REPAS ",37]
["Thierry SCHAEVERBEKE","Médecin ","NOVARTIS PHARMA SAS","30/10/2015","REPAS ",59]
["Thierry SCHAEVERBEKE","Médecin ","NOVARTIS PHARMA SAS","30/10/2015","TRANSPORT ",617]
["Thierry SCHAEVERBEKE","Médecin ","MSD France","2015-11-04","REPAS ",185]
["Thierry SCHAEVERBEKE","Médecin ","BIOGEN FRANCE SAS","2015-11-04","REPAS ",11]
["Thierry SCHAEVERBEKE","Médecin ","NORDIC PHARMA SAS","2015-11-09","Repas ",37]
["Thierry SCHAEVERBEKE","Médecin ","JANSSEN-CILAG","18/11/2015","REPAS ",26]
["Thierry SCHAEVERBEKE","Médecin ","ROCHE SAS","19/11/2015","Repas ",13]
["Thierry SCHAEVERBEKE","Médecin ","ROCHE SAS","24/11/2015","Repas ",11]
["Thierry SCHAEVERBEKE","Médecin ","JANSSEN-CILAG","25/11/2015","REPAS ",18]
["Thierry SCHAEVERBEKE","Médecin ","JANSSEN-CILAG","13/12/2015","REPAS ",50]
["Thierry SCHAEVERBEKE","Médecin ","JANSSEN-CILAG","13/12/2015","TRANSPORT ",417]
["Catherine REILLAT","Médecin ","AbbVie","2015-03-12","REPAS ",26]
["Henri LELLOUCHE","Médecin ","MSD France","29/03/2012","HOSPITALITÉ ",60]
["Henri LELLOUCHE","Médecin ","AbbVie","2012-12-10","AUTRE : [HOSPITALITE] ",31]
["Henri LELLOUCHE","Médecin ","AbbVie","18/12/2012","AUTRE : [HOSPITALITE] ",60]
["Henri LELLOUCHE","Médecin ","AbbVie","2013-05-06","AUTRE : [HOSPITALITE] ",34]
["Henri LELLOUCHE","Médecin ","ICOMED","13/05/2013","Autre: [Enquête] ",29]
["Henri LELLOUCHE","Médecin ","Laboratoires Expanscience","20/06/2013","Transport ",722]
["Henri LELLOUCHE","Médecin ","Laboratoires Expanscience","20/06/2013","Hospitalité ",529]
["Henri LELLOUCHE","Médecin ","Laboratoires Expanscience","20/06/2013","Repas ",247]
["Henri LELLOUCHE","Médecin ","Laboratoires Expanscience","20/06/2013","Hébergement ",602]
["Henri LELLOUCHE","Médecin ","AbbVie","2013-07-01","Repas ",30]
["Henri LELLOUCHE","Médecin ","ROTTAPHARM SAS","15/07/2013","EPU/DINER ",55]
["Henri LELLOUCHE","Médecin ","CROMA","23/07/2013","Restauration ",46]
["Henri LELLOUCHE","Médecin ","AbbVie","2013-09-02","Repas ",16]
["Henri LELLOUCHE","Médecin ","AbbVie","2013-09-05","Repas ",60]
["Henri LELLOUCHE","Médecin ","LABORATOIRES GENEVRIER","2013-09-10","REPAS ",45]
["Henri LELLOUCHE","Médecin ","AMGEN SAS","16/09/2013","REPAS IMPROMPTU ",34]
["Henri LELLOUCHE","Médecin ","BIOCODEX","14/11/2013","REPAS ",60]
["Henri LELLOUCHE","Médecin ","AbbVie","20/01/2014","REPAS ",38]
["Henri LELLOUCHE","Médecin ","CROMA","2014-02-05","Restauration ",29]
["Henri LELLOUCHE","Médecin ","CROMA","2014-02-09","Restauration ",35]
["Henri LELLOUCHE","Médecin ","BRACCO IMAGING FRANCE","13/02/2014","REPAS ",45]
["Henri LELLOUCHE","Médecin ","BIOCODEX","27/02/2014","REPAS ",75]
["Henri LELLOUCHE","Médecin ","TRB CHEMEDICA","18/03/2014","AUTRE : REUNION ",96]
["Henri LELLOUCHE","Médecin ","BRISTOL-MYERS SQUIBB","27/03/2014","Repas ",53]
["Henri LELLOUCHE","Médecin ","ABBOTT PRODUCTS SAS","2014-04-10","REPAS ",57]
["Henri LELLOUCHE","Médecin ","NORDIC PHARMA SAS","2014-04-10","Hébergement ",113]
["Henri LELLOUCHE","Médecin ","NORDIC PHARMA SAS","2014-04-10","Transport ",100]
["Henri LELLOUCHE","Médecin ","NORDIC PHARMA SAS","2014-05-07","Repas ",56]
["Henri LELLOUCHE","Médecin ","SANOFI AVENTIS FRANCE","16/05/2014","Hébergement ",378]
["Henri LELLOUCHE","Médecin ","SANOFI AVENTIS FRANCE","16/05/2014","Repas ",247]
["Henri LELLOUCHE","Médecin ","SANOFI AVENTIS FRANCE","16/05/2014","Transport ",159]
["Henri LELLOUCHE","Médecin ","ICOMED","2014-06-05","Autre: [Enquête] ",25]
["Henri LELLOUCHE","Médecin ","AbbVie","2014-06-05","REPAS ",60]
["Henri LELLOUCHE","Médecin ","AbbVie","2014-06-11","INSCRIPTION ",592]
["Henri LELLOUCHE","Médecin ","NORDIC PHARMA SAS","23/07/2014","Transport ",25]
["Henri LELLOUCHE","Médecin ","NORDIC PHARMA SAS","23/07/2014","Repas ",84]
["Henri LELLOUCHE","Médecin ","ROTTAPHARM SAS","2014-09-11","EPU ",49]
["Henri LELLOUCHE","Médecin ","PFIZER SAS","30/09/2014","Repas ",60]
["Henri LELLOUCHE","Médecin ","ROTTAPHARM SAS","2014-10-06","DEJEUNER ",36]
["Henri LELLOUCHE","Médecin ","TRB CHEMEDICA","2014-12-04","REPAS ",60]
["Henri LELLOUCHE","Médecin ","SANOFI AVENTIS FRANCE","2014-12-07","Inscription ",870]
["Henri LELLOUCHE","Médecin ","SANOFI AVENTIS FRANCE","2014-12-07","Transport ",234]
["Henri LELLOUCHE","Médecin ","LABORATOIRES GENEVRIER","2014-12-08","REPAS ",35]
["Henri LELLOUCHE","Médecin ","AbbVie","2014-12-09","REPAS ",25]
["Henri LELLOUCHE","Médecin ","ABBOTT PRODUCTS SAS","16/12/2014","REPAS ",57]
["Henri LELLOUCHE","Médecin ","AbbVie","18/12/2014","REPAS ",60]
["Henri LELLOUCHE","Médecin ","Laboratoires Expanscience","2015-02-02","Repas ",197]
["Henri LELLOUCHE","Médecin ","Laboratoires Expanscience","2015-02-02","Transport ",142]
["Henri LELLOUCHE","Médecin ","Laboratoires Expanscience","2015-02-02","Hébergement ",787]
["Henri LELLOUCHE","Médecin ","Laboratoires Expanscience","2015-02-02","Hospitalité ",524]
["Henri LELLOUCHE","Médecin ","BIOCODEX","2015-02-10","REPAS ",58]
["Henri LELLOUCHE","Médecin ","AbbVie","2015-02-12","REPAS ",60]
["Henri LELLOUCHE","Médecin ","CROMA","24/02/2015","Repas ",55]
["Henri LELLOUCHE","Médecin ","LABORATOIRES GENEVRIER","2015-03-05","TRANSPORT ",316]
["Henri LELLOUCHE","Médecin ","LABORATOIRES GENEVRIER","2015-03-06","HEBERGEMENT ",131]
["Henri LELLOUCHE","Médecin ","AbbVie","27/03/2015","REPAS ",40]
["Henri LELLOUCHE","Médecin ","AbbVie","21/05/2015","REPAS ",60]
["Henri LELLOUCHE","Médecin ","Arthrex SAS","28/05/2015","REPAS ",60]
["Henri LELLOUCHE","Médecin ","CROMA","2015-06-10","Repas ",60]
["Henri LELLOUCHE","Médecin ","CROMA","2015-06-12","Repas ",58]
["Henri LELLOUCHE","Médecin ","ROCHE SAS","2015-09-10","Repas ",32]
["Henri LELLOUCHE","Médecin ","PFIZER SAS","22/09/2015","Repas ",60]
["Henri LELLOUCHE","Médecin ","SANOFI AVENTIS FRANCE","2015-10-06","Repas ",40]
["Henri LELLOUCHE","Médecin ","BIOCODEX","2015-12-03","REPAS ",62]
["Jérémy MAILLET","Médecin ","Actelion Pharmaceuticals France","31/10/2013","AUTRE [RESTAURATION STAFF] ",30]
["Jérémy MAILLET","Médecin ","AbbVie","26/11/2013","Repas ",29]
["Jérémy MAILLET","Médecin ","AbbVie","2013-12-02","Repas ",61]
["Jérémy MAILLET","Médecin ","AbbVie","13/02/2014","REPAS ",36]
["Jérémy MAILLET","Médecin ","ROCHE SAS","19/03/2014","Repas ",33]
["Jérémy MAILLET","Médecin ","AbbVie","25/06/2014","REPAS ",25]
["Jérémy MAILLET","Médecin ","AbbVie","2014-12-08","REPAS ",59]
["Jérémy MAILLET","Médecin ","UCB Pharma SA","20/05/2015","Repas ",50]
["Jérémy MAILLET","Médecin ","BRISTOL-MYERS SQUIBB","2015-12-03","Hospitalité ",17]
["Jérémy MAILLET","Médecin ","AbbVie","14/12/2015","REPAS ",60]

{"sheet":"Conventions signées","index":1,"n_rows":1009,"n_cols":6,"rows_kept":1009,"cut":false,"hidden":false,"merged":[]}
["Bénéficiaire","Type de bénéficiaire","Entreprise","Date","Période","Objet"]
["Daniel WENDLING","Médecin ","LABORATOIRE GLAXOSMITHKLINE","19/05/2012","19/05/2012 - ","Autre : [Convention d hospitalite] "]
["Daniel WENDLING","Médecin ","MSD France","21/06/2012","21/06/2012 - ","CONVENTION D HOSPITALITE "]
["Daniel WENDLING","Médecin ","ROCHE SAS","05/09/2012","05/09/2012 - ","EXPERT "]
["Daniel WENDLING","Médecin ","MSD France","07/02/2013","07/02/2013 - 07/02/2013 ","EXPERT "]
["Daniel WENDLING","Médecin ","PFIZER SAS","11/02/2013","11/02/2013 - ","ORATEUR RP/CONGRES/SYMPOSIUM "]
["Daniel WENDLING","Médecin ","MSD France","19/03/2013","19/03/2013 - ","EXPERT "]
["Daniel WENDLING","Médecin ","MSD France","19/03/2013","19/03/2013 - 19/03/2013 ","EXPERT "]
["Daniel WENDLING","Médecin ","AbbVie","22/04/2013","22/04/2013 - ","AUTRE : [CONTRAT DE COLLABORATION SCIENTIFIQUE] "]
["Daniel WENDLING","Médecin ","MSD France","12/06/2013","12/06/2013 - 15/06/2013 ","CONVENTION D HOSPITALITE "]
["Daniel WENDLING","Médecin ","MSD France","15/06/2013","15/06/2013 - 17/06/2013 ","CONVENTION D HOSPITALITE "]
["Daniel WENDLING","Médecin ","MSD France","27/06/2013","27/06/2013 - ","ORATEUR "]
["Daniel WENDLING","Médecin ","PFIZER SAS","27/08/2013","27/08/2013 - ","ORATEUR RP/CONGRES/SYMPOSIUM "]
["Daniel WENDLING","Médecin ","PFIZER SAS","13/09/2013","13/09/2013 - 14/09/2013 ","Orateur RP/Congres/Sympo "]
["Daniel WENDLING","Médecin ","AbbVie","17/09/2013","17/09/2013 - ","AUTRE: [CONVENTION HOSPITALITE] "]
["Daniel WENDLING","Médecin ","ROCHE SAS","17/09/2013","01/10/2013 - 01/10/2013 ","Autre : [ Réunion professionnelle ] "]
["Daniel WENDLING","Médecin ","MSD France","24/09/2013","24/09/2013 - 25/09/2013 ","CONVENTION D HOSPITALITE "]
["Daniel WENDLING","Médecin ","Laboratoires Grünenthal SAS","03/10/2013","03/10/2013 - ","AUTRE "]
["Daniel WENDLING","Médecin ","PFIZER SAS","01/12/2013","01/12/2013 - 03/12/2013 ","HOSPITALITE RP/CONGRES / SYMPO "]
["Daniel WENDLING","Médecin ","Laboratoires Grünenthal SAS","09/01/2014","09/01/2014 - ","REUNION SCIENTIFIQUE "]
["Daniel WENDLING","Médecin ","Laboratoires Expanscience","10/01/2014","10/01/2014 - 10/01/2014 ","Autre : [STAFF]"]
["Daniel WENDLING","Médecin ","AMGEN SAS","14/01/2014","11/02/2014 - 11/02/2014 ","AUTRE [CONVENTION D EXPERT] "]
["Daniel WENDLING","Médecin ","CHUGAI PHARMA FRANCE","31/01/2014","31/01/2014 - ","CONVENTION DE COLLABORATION "]
["Daniel WENDLING","Médecin ","PFIZER SAS","07/02/2014","07/02/2014 - 08/02/2014 ","HOSPITALITE RP/CONGRES / SYMPO "]
["Daniel WENDLING","Médecin ","PFIZER SAS","07/02/2014","07/02/2014 - 08/02/2014 ","HOSPITALITE RP/CONGRES / SYMPO "]
["Daniel WENDLING","Médecin ","AMGEN SAS","18/03/2014","18/03/2014 - 19/03/2014 ","AUTRE [CONVENTION D ORATEUR] "]
["Daniel WENDLING","Médecin ","BRISTOL-MYERS SQUIBB","24/03/2014","27/03/2014 - ","Autre : [Orateur] "]
["Daniel WENDLING","Médecin ","ROCHE SAS","09/04/2014","14/05/2014 - 31/12/2014 ","Autre : [ Expert ] "]
["Daniel WENDLING","Médecin ","MSD France","04/05/2014","04/05/2014 - ","CONVENTION D’HOSPITALITÉ "]
["Daniel WENDLING","Médecin ","PFIZER SAS","15/05/2014","15/05/2014 - 16/05/2014 ","ORATEUR RP/CONGRES/SYMPOSIUM "]
["Daniel WENDLING","Médecin ","MSD France","19/05/2014","19/06/2014 - 19/06/2014 ","ORATEUR "]
["Daniel WENDLING","Médecin ","AbbVie","20/05/2014","20/05/2014 - ","AUTRE: [CONVENTION HOSPITALITE] "]
["Daniel WENDLING","Médecin ","CONGRES COLLOQUES CONVENTIONS","24/05/2014","24/05/2014 - 24/05/2014 ","CONGRES SYMPOSIUM "]
["Daniel WENDLING","Médecin ","MSD France","11/06/2014","11/06/2014 - ","CONVENTION D HOSPITALITE "]
["Daniel WENDLING","Médecin ","LABORATOIRES MAYOLY SPINDLER","26/06/2014","26/06/2014 - ","Conseil Relations professionnelles "]
["Daniel WENDLING","Médecin ","AbbVie","02/07/2014","02/07/2014 - ","AUTRE : [CONVENTION D HOSPITALITE] "]
["Daniel WENDLING","Médecin ","MSD France","15/07/2014","25/08/2014 - 24/08/2015 ","EXPERT "]
["Daniel WENDLING","Médecin ","MSD France","06/08/2014","10/10/2014 - 11/10/2014 ","EXPERT "]
["Daniel WENDLING","Médecin ","UCB Pharma SA","02/09/2014","02/09/2014 - 30/11/2014 ","Conseil "]
["Daniel WENDLING","Médecin ","PFIZER SAS","02/09/2014","02/09/2014 - ","CONSEIL "]
["Daniel WENDLING","Médecin ","AbbVie","07/10/2014","07/10/2014 - ","AUTRE : [CONVENTION D HOSPITALITE]"]
["Daniel WENDLING","Médecin ","Laboratoires Expanscience","21/10/2014","21/10/2014 - 21/10/2014 ","Formation "]
["Daniel WENDLING","Médecin ","PFIZER SAS","21/10/2014","12/12/2014 - 30/06/2015 ","Autre : Contrat consultant "]
["Daniel WENDLING","Médecin ","PFIZER SAS","23/10/2014","23/10/2014 - 25/10/2014 ","Congrès / Symposium "]
["Daniel WENDLING","Médecin ","UCB Pharma SA","13/11/2014","01/01/2014 - 31/12/2014 ","Autre : [ Collaboration Scientifique ] "]
["Daniel WENDLING","Médecin ","MSD France","18/11/2014","18/11/2014 - ","CONVENTION D HOSPITALITE "]
["Daniel WENDLING","Médecin ","ROCHE SAS","27/11/2014","27/11/2014 - 27/11/2014 ","Autre : [ Réunion professionnelle ] "]
["Daniel WENDLING","Médecin ","UCB Pharma SA","13/12/2014","13/12/2014 - 14/12/2014 ","Autre : [ hospitalité liée à une manifestation scientifique ] "]
["Daniel WENDLING","Médecin ","MSD France","30/01/2015","30/01/2015 - ","CONVENTION D’HOSPITALITE "]
["Daniel WENDLING","Médecin ","BRISTOL-MYERS SQUIBB","03/02/2015","03/02/2015 - ","Autre : [Orateur] "]
["Daniel WENDLING","Médecin ","UCB Pharma SA","12/02/2015","12/02/2015 - 12/02/2015 ","Formation "]
["Daniel WENDLING","Médecin ","UCB Pharma SA","12/02/2015","01/05/2015 - 01/05/2015 ","Autre : [ Collaboration Scientifique ] "]
["Daniel WENDLING","Médecin ","CHUGAI PHARMA FRANCE","12/02/2015","12/02/2015 - ","CONVENTION DE COLLABORATION "]
["Daniel WENDLING","Médecin ","MSD France","18/02/2015","26/03/2015 - 27/03/2015 ","EXPERT "]
["Daniel WENDLING","Médecin ","BIOGARAN","19/02/2015","19/02/2015 - ","Autre : Manifestation scientifique "]
["Daniel WENDLING","Médecin ","PFIZER SAS","23/02/2015","03/04/2015 - 03/04/2015 ","Congres / Symposium "]
["Daniel WENDLING","Médecin ","NOVARTIS PHARMA SAS","24/02/2015","24/02/2015 - 31/12/2015 ","AUTRE : [CONTRAT DE CONSEIL & PRESTATION] "]
["Daniel WENDLING","Médecin ","UCB Pharma SA","09/03/2015","19/05/2015 - 19/05/2015 ","Autre : [ Collaboration Scientifique ] "]
["Daniel WENDLING","Médecin ","AbbVie","10/03/2015","10/03/2015 - ","AUTRE: [CONVENTION HOSPITALITE] "]
["Daniel WENDLING","Médecin ","UCB Pharma SA","12/03/2015","02/06/2015 - 02/06/2015 ","Autre : [ Collaboration Scientifique ] "]
["Daniel WENDLING","Médecin ","Laboratoires Grünenthal SAS","19/03/2015","19/03/2015 - ","REUNION SCIENTIFIQUE "]
["Daniel WENDLING","Médecin ","SWEDISH ORPHAN BIOVITRUM","23/03/2015","23/03/2015 - 23/03/2015 ","Autre : [CONVENTION D'HOSPITALITE] "]
["Daniel WENDLING","Médecin ","SWEDISH ORPHAN BIOVITRUM","23/03/2015","23/03/2015 - 23/03/2015 ","Autre : [ORATEUR] "]
["Daniel WENDLING","Médecin ","MSD France","26/03/2015","26/03/2015 - ","CONVENTION D’HOSPITALITÉ "]
["Daniel WENDLING","Médecin ","PFIZER SAS","03/04/2015","03/04/2015 - 03/04/2015 ","Autre : Reunion professionnelle ou scientifique "]
["Daniel WENDLING","Médecin ","ROCHE SAS","10/04/2015","10/04/2015 - 11/04/2015 ","Autre : [ R\u0082union professionnelle ] "]
["Daniel WENDLING","Médecin ","BRISTOL-MYERS SQUIBB","21/04/2015","21/04/2015 - ","Autre : [Orateur] "]
["Daniel WENDLING","Médecin ","NORDIC PHARMA SAS","22/04/2015","30/04/2015 - 02/05/2015 ","Autre : [ Orateur ] "]
["Daniel WENDLING","Médecin ","Laboratoires Expanscience","28/04/2015","28/04/2015 - 28/04/2015 ","Formation "]
["Daniel WENDLING","Médecin ","MSD France","28/04/2015","18/06/2015 - 18/06/2015 ","ORATEUR "]
["Daniel WENDLING","Médecin ","MSD France","06/05/2015","20/06/2015 - 20/06/2015 ","ORATEUR "]
["Daniel WENDLING","Médecin ","UCB Pharma SA","19/05/2015","19/05/2015 - 19/05/2015 ","Autre : [ hospitalité liée à une manifestation scientifique ] "]
["Daniel WENDLING","Médecin ","MSD France","20/05/2015","27/06/2015 - 27/06/2015 ","EXPERT "]
["Daniel WENDLING","Médecin ","AbbVie","21/05/2015","21/05/2015 - ","AUTRE: [CONVENTION HOSPITALITE] "]
["Daniel WENDLING","Médecin ","ROCHE SAS","01/06/2015","01/06/2015 - 01/06/2015 ","Autre : [ R\u0082union professionnelle ] "]
["Daniel WENDLING","Médecin ","UCB Pharma SA","02/06/2015","02/06/2015 - 02/06/2015 ","Autre : [ hospitalité liée à une manifestation scientifique ] "]
["Daniel WENDLING","Médecin ","CONGRES COLLOQUES CONVENTIONS","06/06/2015","06/06/2015 - 06/06/2015 ","CONGRES SYMPOSIUM "]
["Daniel WENDLING","Médecin ","MSD France","10/06/2015","10/06/2015 - ","CONVENTION D’HOSPITALITÉ "]
["Daniel WENDLING","Médecin ","MSD France","20/06/2015","20/06/2015 - ","CONVENTION D’HOSPITALITÉ "]
["Daniel WENDLING","Médecin ","MSD France","27/06/2015","27/06/2015 - ","CONVENTION D’HOSPITALITÉ"]
["Daniel WENDLING","Médecin ","PFIZER SAS","30/06/2015","30/06/2015 - 30/06/2015 ","Autre : Reunion professionnelle ou scientifique "]
["Daniel WENDLING","Médecin ","MSD France","29/07/2015","22/09/2015 - 22/09/2015 ","EXPERT "]
["Daniel WENDLING","Médecin ","PFIZER SAS","27/08/2015","11/09/2015 - 12/09/2015 ","Congrès / Symposium "]
["Daniel WENDLING","Médecin ","ROCHE SAS","10/09/2015","10/09/2015 - 10/09/2015 ","Autre : [ Réunion professionnelle ] "]
["Daniel WENDLING","Médecin ","PFIZER SAS","11/09/2015","23/09/2015 - 23/09/2015 ","Congrès / Symposium "]
["Daniel WENDLING","Médecin ","PFIZER SAS","11/09/2015","11/09/2015 - 12/09/2015 ","Autre : Réunion professionnelle ou scientifique "]
["Daniel WENDLING","Médecin ","PFIZER SAS","23/09/2015","23/09/2015 - 23/09/2015 ","Autre : Réunion professionnelle ou scientifique "]
["Daniel WENDLING","Médecin ","ROCHE SAS","26/11/2015","26/11/2015 - 26/11/2015 ","Autre : [ Reunion professionnelle ] "]
["Daniel WENDLING","Médecin ","MSD France","27/11/2015","27/11/2015 - ","CONVENTION D’HOSPITALITÉ "]
["Daniel WENDLING","Médecin ","PFIZER SAS","13/12/2015","13/12/2015 - 15/12/2015 ","Congrès / Symposium "]
["Daniel WENDLING","Médecin ","NOVARTIS PHARMA SAS","14/12/2015","14/12/2015 - 14/12/2015 ","AUTRE : [CONTRAT DE CONSEIL & PRESTATION]"]
["Francis BERENBAUM","Médecin ","ROCHE SAS","20/04/2012","20/04/2012 - ","EXPERT "]
["Francis BERENBAUM","Médecin ","PFIZER SAS","13/05/2013","13/05/2013 - ","CONSEIL "]
["Francis BERENBAUM","Médecin ","ROCHE SAS","30/05/2013","30/05/2013 - 31/05/2013 ","Congrès / Symposium "]
["Francis BERENBAUM","Médecin ","PFIZER SAS","20/06/2013","20/06/2013 - ","CONSEIL "]
["Francis BERENBAUM","Médecin ","PFIZER SAS","28/06/2013","28/06/2013 - 29/06/2013 ","Orateur RP/Congres/Sympo "]
["Francis BERENBAUM","Médecin ","BRISTOL-MYERS SQUIBB","12/08/2013","26/09/2013 - ","Autre : [Orateur] "]
["Francis BERENBAUM","Médecin ","DIAXONHIT","21/08/2013","21/08/2013 - 31/12/2013 ","Conseil "]
["Francis BERENBAUM","Médecin ","AbbVie","28/08/2013","08/10/2013 - ","AUTRE: [CONTRAT DE COLLABORATION SCENTIFIQUE] "]
["Francis BERENBAUM","Médecin ","PFIZER SAS","25/10/2013","25/10/2013 - 30/10/2013 ","Hospitalite RP/Congres / Sympo "]
["Francis BERENBAUM","Médecin ","MSD France","31/12/2013","26/09/2013 - ","RECHERCHE BIOMEDICALE "]
["Francis BERENBAUM","Médecin ","UCB Pharma SA","07/03/2014","01/01/2014 - 31/12/2014 ","Autre : [ Collaboration Scientifique ] "]
["Francis BERENBAUM","Médecin ","AbbVie","10/04/2014","10/04/2014 - ","AUTRE: [CONVENTION HOSPITALITE] "]
["Francis BERENBAUM","Médecin ","UCB Pharma SA","05/05/2014","05/05/2014 - 07/05/2014 ","Congrès / symposium "]
["Francis BERENBAUM","Médecin ","AbbVie","13/05/2014","13/05/2014 - ","AUTRE : [CONVENTION D HOSPITALITE] "]
["Francis BERENBAUM","Médecin ","AbbVie","24/06/2014","24/06/2014 - ","AUTRE: [CONTRAT DE COLLABORATION SCIENTIFIQUE] "]
["Francis BERENBAUM","Médecin ","AbbVie","24/06/2014","24/06/2014 - ","AUTRE: [CONTRAT DE COLLABORATION SCIENTIFIQUE] "]
["Francis BERENBAUM","Médecin ","Arthritis Fondation Courtin","25/07/2014","25/07/2014 - ","CONVENTION RECHERCHE "]
["Francis BERENBAUM","Médecin ","Arthritis Fondation Courtin","17/09/2014","17/09/2014 - ","CONVENTION RECHERCHE "]
["Francis BERENBAUM","Médecin ","Arthritis Fondation Courtin","17/09/2014","17/09/2014 - ","CONVENTION RECHERCHE "]
["Francis BERENBAUM","Médecin ","UCB Pharma SA","02/10/2014","02/10/2014 - 02/10/2014 ","Congrès / symposium"]
["Francis BERENBAUM","Médecin ","PFIZER SAS","15/11/2014","15/11/2014 - 19/11/2014 ","Congrès / Symposium "]
["Francis BERENBAUM","Médecin ","UCB Pharma SA","19/11/2014","01/01/2015 - 31/12/2015 ","Autre : [ Collaboration Scientifique ] "]
["Francis BERENBAUM","Médecin ","BIOGARAN","01/12/2014","13/12/2014 - 17/06/2015 ","AUTRE [EXPERT] "]
["Francis BERENBAUM","Médecin ","ROCHE SAS","04/12/2014","04/12/2014 - 04/12/2014 ","Autre : [ Réunion professionnelle ] "]
["Francis BERENBAUM","Médecin ","UCB Pharma SA","11/02/2015","11/02/2015 - 11/02/2015 ","CONVENTION D'HOSPITALITÉ "]
["Francis BERENBAUM","Médecin ","Laboratoires Expanscience","17/02/2015","01/01/2015 - 31/12/2015 ","Evaluation "]
["Francis BERENBAUM","Médecin ","MSD France","18/02/2015","26/03/2015 - 27/03/2015 ","EXPERT "]
["Francis BERENBAUM","Médecin ","MSD France","26/03/2015","26/03/2015 - ","CONVENTION D’HOSPITALITÉ "]
["Francis BERENBAUM","Médecin ","PFIZER SAS","21/04/2015","26/06/2015 - 27/06/2015 ","Congres / Symposium "]
["Francis BERENBAUM","Médecin ","PFIZER SAS","08/06/2015","08/06/2015 - 27/06/2015 ","Conseil "]
["Francis BERENBAUM","Médecin ","NORDIC PHARMA SAS","10/06/2015","10/06/2015 - 13/06/2015 ","congrès / symposium "]
["Francis BERENBAUM","Médecin ","PFIZER SAS","25/06/2015","25/06/2015 - 25/06/2015 ","Autre : Reunion professionnelle ou scientifique "]
["Francis BERENBAUM","Médecin ","PFIZER SAS","26/06/2015","26/06/2015 - 27/06/2015 ","Autre : Reunion professionnelle ou scientifique "]
["Francis BERENBAUM","Médecin ","PFIZER SAS","30/06/2015","30/06/2015 - 30/06/2015 ","Autre : Reunion professionnelle ou scientifique "]
["Francis BERENBAUM","Médecin ","PFIZER SAS","07/11/2015","07/11/2015 - 11/11/2015 ","Congrès / Symposium "]
["Francis BERENBAUM","Médecin ","ROCHE SAS","01/12/2015","01/12/2015 - 01/12/2015 ","Autre : [ Reunion professionnelle ] "]
["Francis BERENBAUM","Médecin ","Laboratoires Expanscience","01/12/2015","01/02/2016 - 31/01/2017 ","Evaluation "]
["Francis BERENBAUM","Médecin ","Regeneron Pharmaceuticals, Inc.","23/12/2015","23/12/2015 - ","conseil"]
["René Marc FLIPO","Médecin ","MSD France","09/02/2012","09/02/2012 - ","CONVENTION D’HOSPITALITÉ "]
["René Marc FLIPO","Médecin ","ROCHE SAS","28/02/2012","28/02/2012 - ","ORATEUR INTERVENANT "]
["René Marc FLIPO","Médecin ","ROCHE SAS","23/03/2012","23/03/2012 - ","EXPERT "]
["René Marc FLIPO","Médecin ","ROCHE SAS","31/05/2012","31/05/2012 - ","ORATEUR INTERVENANT "]
["René Marc FLIPO","Médecin ","ROCHE SAS","18/06/2012","18/06/2012 - ","EXPERT "]
["René Marc FLIPO","Médecin ","ROCHE SAS","05/07/2012","05/07/2012 - ","ORATEUR INTERVENANT "]
["René Marc FLIPO","Médecin ","ROCHE SAS","10/08/2012","10/08/2012 - ","ORATEUR INTERVENANT "]
["René Marc FLIPO","Médecin ","MSD France","24/10/2012","04/06/2012 - 31/12/2012 ","EXPERT "]
["René Marc FLIPO","Médecin ","MSD France","25/10/2012","25/10/2012 - ","CONVENTION D HOSPITALITE "]
["René Marc FLIPO","Médecin ","AbbVie","07/12/2012","07/12/2012 - ","AUTRE : [CONTRAT DE COLLABORATION SCIENTIFIQUE] "]
["René Marc FLIPO","Médecin ","PFIZER SAS","05/01/2013","05/01/2013 - ","ORATEUR RP/CONGRES/SYMPOSIUM "]
["René Marc FLIPO","Médecin ","MSD France","07/02/2013","07/02/2013 - 07/02/2013 ","EXPERT "]
["René Marc FLIPO","Médecin ","AbbVie","20/02/2013","20/02/2013 - ","AUTRE: [CONTRAT DE COLLABORATION SCIENTIFIQUE] "]
["René Marc FLIPO","Médecin ","ROCHE SAS","19/03/2013","19/03/2013 - ","Orateur intervenant "]
["René Marc FLIPO","Médecin ","PFIZER SAS","20/03/2013","20/03/2013 - ","ORATEUR RP/CONGRES/SYMPOSIUM "]
["René Marc FLIPO","Médecin ","MSD France","22/03/2013","21/05/2013 - 21/05/2013 ","CONVENTION D HOSPITALITE "]
["René Marc FLIPO","Médecin ","MSD France","26/04/2013","26/04/2013 - 26/04/2013 ","ORATEUR "]
["René Marc FLIPO","Médecin ","ROCHE SAS","26/04/2013","26/04/2013 - ","Expert "]
["René Marc FLIPO","Médecin ","MSD France","26/04/2013","06/09/2013 - ","ORATEUR "]
["René Marc FLIPO","Médecin ","MSD France","26/04/2013","26/04/2013 - ","ORATEUR"]
["René Marc FLIPO","Médecin ","ROCHE SAS","29/04/2013","29/04/2013 - ","Orateur intervenant "]
["René Marc FLIPO","Médecin ","PFIZER SAS","02/05/2013","02/05/2013 - 02/05/2013 ","CONSEIL "]
["René Marc FLIPO","Médecin ","MSD France","21/05/2013","21/05/2013 - ","CONVENTION D HOSPITALITE "]
["René Marc FLIPO","Médecin ","ROCHE SAS","30/05/2013","30/05/2013 - 31/05/2013 ","Congrès / Symposium "]
["René Marc FLIPO","Médecin ","PFIZER SAS","06/06/2013","06/06/2013 - ","ORATEUR RP/CONGRES/SYMPOSIUM "]
["René Marc FLIPO","Médecin ","ROCHE SAS","12/06/2013","12/06/2013 - 16/06/2013 ","Congrès / Symposium "]
["René Marc FLIPO","Médecin ","MSD France","30/06/2013","06/06/2013 - ","RECHERCHE BIOMEDICALE "]
["René Marc FLIPO","Médecin ","ROCHE SAS","03/07/2013","03/07/2013 - 06/07/2013 ","Autre : [ Orateur / Intervenant ] "]
["René Marc FLIPO","Médecin ","JANSSEN-CILAG","20/07/2013","16/09/2013 - 16/09/2013 ","CONSEIL "]
["René Marc FLIPO","Médecin ","BRISTOL-MYERS SQUIBB","30/07/2013","27/09/2013 - ","Autre : [Orateur] "]
["René Marc FLIPO","Médecin ","AbbVie","19/08/2013","04/10/2013 - ","AUTRE : [CONVENTION SANS REMUNERATION]. "]
["René Marc FLIPO","Médecin ","AbbVie","21/08/2013","01/10/2013 - ","AUTRE: [CONTRAT DE COLLABORATION SCENTIFIQUE] "]
["René Marc FLIPO","Médecin ","MSD France","05/09/2013","05/09/2013 - ","ORATEUR "]
["René Marc FLIPO","Médecin ","PFIZER SAS","06/09/2013","06/09/2013 - 06/09/2013 ","ORATEUR RP/CONGRES/SYMPOSIUM "]
["René Marc FLIPO","Médecin ","MSD France","06/09/2013","06/09/2013 - 07/09/2013 ","CONVENTION D HOSPITALITE "]
["René Marc FLIPO","Médecin ","PFIZER SAS","13/09/2013","13/09/2013 - 14/09/2013 ","Orateur RP/Congres/Sympo "]
["René Marc FLIPO","Médecin ","MSD France","16/09/2013","16/09/2013 - ","EXPERT "]
["René Marc FLIPO","Médecin ","MSD France","16/09/2013","02/10/2013 - 02/10/2013 ","EXPERT "]
["René Marc FLIPO","Médecin ","UCB Pharma SA","17/09/2013","17/09/2013 - 17/09/2013 ","Autre : [ hospitalité liée à une manifestation scientifique ] "]
["René Marc FLIPO","Médecin ","MSD France","19/09/2013","19/09/2013 - ","ORATEUR"]
["René Marc FLIPO","Médecin ","MSD France","26/09/2013","26/09/2013 - ","CONVENTION D HOSPITALITE "]
["René Marc FLIPO","Médecin ","MSD France","26/09/2013","26/09/2013 - ","CONVENTION D HOSPITALITE "]
["René Marc FLIPO","Médecin ","MSD France","02/10/2013","02/10/2013 - 02/10/2013 ","EXPERT "]
["René Marc FLIPO","Médecin ","MSD France","07/10/2013","07/10/2013 - ","ORATEUR "]
["René Marc FLIPO","Médecin ","MSD France","07/10/2013","07/11/2013 - 07/11/2013 ","ORATEUR "]
["René Marc FLIPO","Médecin ","LABORATOIRES MAYOLY SPINDLER","09/10/2013","09/10/2013 - ","AUTRE : [RP Table ronde actu Rhumatologie] "]
["René Marc FLIPO","Médecin ","PFIZER SAS","10/10/2013","10/10/2013 - 10/10/2013 ","ORATEUR RP/CONGRES/SYMPOSIUM "]
["René Marc FLIPO","Médecin ","MSD France","15/10/2013","15/10/2013 - ","CONVENTION D HOSPITALITE "]
["René Marc FLIPO","Médecin ","NORDIC PHARMA SAS","15/10/2013","19/11/2013 - 19/11/2013 ","Autre : [ Orateur ] "]
["René Marc FLIPO","Médecin ","MSD France","16/10/2013","15/10/2013 - 15/10/2013 ","ORATEUR "]
["René Marc FLIPO","Médecin ","MSD France","16/10/2013","16/10/2013 - ","ORATEUR "]
["René Marc FLIPO","Médecin ","MENARINI FRANCE","22/10/2013","22/10/2013 - ","CONSEIL "]
["René Marc FLIPO","Médecin ","MSD France","24/10/2013","24/10/2013 - ","EXPERT "]
["René Marc FLIPO","Médecin ","MSD France","24/10/2013","25/11/2013 - 31/12/2014 ","EXPERT "]
["René Marc FLIPO","Médecin ","PFIZER SAS","25/10/2013","25/10/2013 - 30/10/2013 ","Hospitalite RP/Congres / Sympo "]
["René Marc FLIPO","Médecin ","NORDIC PHARMA SAS","29/10/2013","02/12/2013 - 02/12/2013 ","Autre : [ Orateur ] "]
["René Marc FLIPO","Médecin ","MSD France","31/10/2013","31/10/2013 - ","EXPERT "]
["René Marc FLIPO","Médecin ","MSD France","31/10/2013","02/12/2013 - 02/12/2013 ","EXPERT "]
["René Marc FLIPO","Médecin ","MSD France","07/11/2013","07/11/2013 - ","CONVENTION D HOSPITALITE "]
["René Marc FLIPO","Médecin ","UCB Pharma SA","12/11/2013","12/11/2013 - 12/11/2013 ","Autre : [ Collaboration Scientifique ]"]
["René Marc FLIPO","Médecin ","MSD France","13/11/2013","13/12/2013 - 13/12/2013 ","EXPERT "]
["René Marc FLIPO","Médecin ","MSD France","13/11/2013","13/11/2013 - ","EXPERT "]
["René Marc FLIPO","Médecin ","ROCHE SAS","14/11/2013","14/11/2013 - 14/11/2013 ","Autre : [ Orateur / Intervenant ] "]
["René Marc FLIPO","Médecin ","MSD France","19/11/2013","19/11/2013 - ","EXPERT "]
["René Marc FLIPO","Médecin ","HOSPIRA FRANCE","25/11/2013","01/02/2014 - ","AUTRE[EXPERTISE] "]
["René Marc FLIPO","Médecin ","ROCHE SAS","01/12/2013","01/12/2013 - 03/12/2013 ","Autre : [ Orateur / Intervenant ] "]
["René Marc FLIPO","Médecin ","MSD France","01/12/2013","01/12/2013 - 03/12/2013 ","CONVENTION D HOSPITALITE "]
["René Marc FLIPO","Médecin ","MSD France","13/12/2013","13/12/2013 - ","CONVENTION D HOSPITALITE "]
["René Marc FLIPO","Médecin ","AMGEN SAS","20/12/2013","06/02/2014 - 06/02/2014 ","AUTRE [CONVENTION D HOSPITALITE] "]
["René Marc FLIPO","Médecin ","MSD France","13/01/2014","13/02/2014 - 17/10/2014 ","EXPERT "]
["René Marc FLIPO","Médecin ","MENARINI FRANCE","13/01/2014","13/01/2014 - ","prestation scientifique "]
["René Marc FLIPO","Médecin ","Bristol-Myers Squibb EMEA","18/01/2014","18/01/2014 - ","Autre : [Recherche biomédicale] "]
["René Marc FLIPO","Médecin ","PFIZER SAS","20/01/2014","20/01/2014 - 20/01/2014 ","CONSEIL "]
["René Marc FLIPO","Médecin ","BRISTOL-MYERS SQUIBB","22/01/2014","23/01/2014 - ","Autre : [Consultant] "]
["René Marc FLIPO","Médecin ","CONGRES COLLOQUES CONVENTIONS","25/01/2014","25/01/2014 - 25/01/2014 ","CONGRES SYMPOSIUM "]
["René Marc FLIPO","Médecin ","PFIZER SAS","30/01/2014","30/01/2014 - 30/01/2014 ","ORATEUR RP/CONGRES/SYMPOSIUM "]
["René Marc FLIPO","Médecin ","AbbVie","06/02/2014","06/02/2014 - ","AUTRE: [CONTRAT DE COLLABORATION SCIENTIFIQUE] "]
["René Marc FLIPO","Médecin ","CHUGAI PHARMA FRANCE","10/02/2014","10/02/2014 - ","CONVENTION DE COLLABORATION "]
["René Marc FLIPO","Médecin ","BRISTOL-MYERS SQUIBB","11/02/2014","11/02/2014 - ","Autre : [Consultant (HCP)] "]
["René Marc FLIPO","Médecin ","MSD France","13/02/2014","13/02/2014 - ","CONVENTION D HOSPITALITE"]
["René Marc FLIPO","Médecin ","MSD France","13/02/2014","18/03/2014 - 18/03/2014 ","EXPERT "]
["René Marc FLIPO","Médecin ","JANSSEN-CILAG","15/02/2014","10/03/2014 - 31/05/2014 ","CONSEIL "]
["René Marc FLIPO","Médecin ","AbbVie","27/02/2014","27/02/2014 - ","AUTRE: [CONTRAT DE COLLABORATION SCIENTIFIQUE] "]
["René Marc FLIPO","Médecin ","AMGEN SAS","11/03/2014","14/03/2014 - 01/01/2020 ","CONVENTION DE RECHERCHE "]
["René Marc FLIPO","Médecin ","ROCHE SAS","18/03/2014","14/05/2014 - 31/12/2014 ","Autre : [ Expert ] "]
["René Marc FLIPO","Médecin ","BRISTOL-MYERS SQUIBB","18/03/2014","18/03/2014 - ","Autre : [Orateur] "]
["René Marc FLIPO","Médecin ","AbbVie","21/03/2014","21/03/2014 - ","AUTRE: [CONVENTION HOSPITALITE] "]
["René Marc FLIPO","Médecin ","BRISTOL-MYERS SQUIBB","01/04/2014","01/04/2014 - ","Autre : [Orateur] "]
["René Marc FLIPO","Médecin ","MSD France","03/04/2014","03/05/2014 - 04/05/2014 ","EXPERT "]
["René Marc FLIPO","Médecin ","PFIZER SAS","11/04/2014","11/04/2014 - 12/04/2014 ","HOSPITALITE RP/CONGRES / SYMPO "]
["René Marc FLIPO","Médecin ","PFIZER SAS","11/04/2014","11/04/2014 - 12/04/2014 ","HOSPITALITE RP/CONGRES / SYMPO "]
["René Marc FLIPO","Médecin ","BRISTOL-MYERS SQUIBB","15/04/2014","24/05/2014 - ","Autre : [Orateur] "]
["René Marc FLIPO","Médecin ","BRISTOL-MYERS SQUIBB","28/04/2014","05/05/2014 - ","Autre : [Orateur] "]
["René Marc FLIPO","Médecin ","BRISTOL-MYERS SQUIBB","28/04/2014","16/05/2014 - ","Autre : [Orateur] "]
["René Marc FLIPO","Médecin ","MSD France","04/05/2014","04/05/2014 - ","CONVENTION D’HOSPITALITÉ "]
["René Marc FLIPO","Médecin ","MSD France","07/05/2014","07/05/2014 - ","ORATEUR "]
["René Marc FLIPO","Médecin ","PFIZER SAS","12/05/2014","12/05/2014 - 12/05/2014 ","HOSPITALITE RP/CONGRES / SYMPO "]
["René Marc FLIPO","Médecin ","MSD France","16/05/2014","27/06/2014 - 28/06/2014 ","EXPERT "]
["René Marc FLIPO","Médecin ","MSD France","19/05/2014","24/06/2014 - 24/06/2014 ","EXPERT "]
["René Marc FLIPO","Médecin ","MSD France","22/05/2014","22/05/2014 - ","CONVENTION D HOSPITALITE"]
["René Marc FLIPO","Médecin ","ROCHE SAS","26/05/2014","26/05/2014 - 26/05/2014 ","Autre : [ R‚union professionnelle ] "]
["René Marc FLIPO","Médecin ","SWEDISH ORPHAN BIOVITRUM","26/05/2014","26/05/2014 - 26/05/2014 ","Autre : [ORATEUR] "]
["René Marc FLIPO","Médecin ","ROCHE SAS","26/05/2014","26/05/2014 - 26/05/2014 ","Autre : [ Orateur / Intervenant ] "]
["René Marc FLIPO","Médecin ","ROCHE SAS","02/06/2014","16/06/2014 - 05/07/2014 ","Autre : [ Expert ] "]
["René Marc FLIPO","Médecin ","ROCHE SAS","02/06/2014","02/06/2014 - 02/06/2014 ","Autre : [ Orateur / Intervenant ] "]
["René Marc FLIPO","Médecin ","ROCHE SAS","02/06/2014","02/06/2014 - 02/06/2014 ","Autre : [ R‚union professionnelle ] "]
["René Marc FLIPO","Médecin ","AbbVie","10/06/2014","10/06/2014 - ","AUTRE: [CONTRAT DE COLLABORATION SCIENTIFIQUE] "]
["René Marc FLIPO","Médecin ","NORDIC PHARMA SAS","11/06/2014","11/06/2014 - 14/06/2014 ","congrès / symposium "]
["René Marc FLIPO","Médecin ","MSD France","12/06/2014","12/06/2014 - ","CONVENTION D HOSPITALITE "]
["René Marc FLIPO","Médecin ","Arthritis Fondation Courtin","16/06/2014","16/06/2014 - ","CONVENTION RECHERCHE "]
["René Marc FLIPO","Médecin ","MSD France","24/06/2014","24/06/2014 - 24/06/2014 ","CONVENTION D HOSPITALITE "]
["René Marc FLIPO","Médecin ","AbbVie","24/06/2014","24/06/2014 - ","AUTRE: [CONTRAT DE COLLABORATION SCIENTIFIQUE] "]
["René Marc FLIPO","Médecin ","MSD France","27/06/2014","27/06/2014 - ","CONVENTION D HOSPITALITE "]
["René Marc FLIPO","Médecin ","ASTRAZENECA","02/07/2014","07/04/2014 - ","Conseil "]
["René Marc FLIPO","Médecin ","ROCHE SAS","03/07/2014","03/07/2014 - 05/07/2014 ","Congrès / Symposium "]
["René Marc FLIPO","Médecin ","PFIZER SAS","08/07/2014","04/11/2014 - ","ORATEUR RP/CONGRES/SYMPOSIUM "]
["René Marc FLIPO","Médecin ","BRISTOL-MYERS SQUIBB","15/07/2014","24/10/2014 - ","Autre : [Orateur] "]
["René Marc FLIPO","Médecin ","MSD France","23/07/2014","02/09/2014 - 01/09/2015 ","EXPERT "]
["René Marc FLIPO","Médecin ","MSD France","08/08/2014","08/09/2014 - 31/12/2014 ","EXPERT "]
["René Marc FLIPO","Médecin ","BRISTOL-MYERS SQUIBB","18/08/2014","29/09/2014 - ","Autre : [Orateur]"]
["René Marc FLIPO","Médecin ","AbbVie","19/08/2014","19/08/2014 - ","AUTRE: [CONTRAT DE COLLABORATION SCIENTIFIQUE] "]
["René Marc FLIPO","Médecin ","AbbVie","19/08/2014","19/08/2014 - ","AUTRE: [CONTRAT DE COLLABORATION SCIENTIFIQUE] "]
["René Marc FLIPO","Médecin ","MSD France","27/08/2014","14/10/2014 - 14/10/2014 ","EXPERT "]
["René Marc FLIPO","Médecin ","MSD France","19/09/2014","28/10/2014 - 05/11/2014 ","EXPERT "]
["René Marc FLIPO","Médecin ","UCB Pharma SA","19/09/2014","19/09/2014 - 20/09/2014 ","Congrès / symposium "]
["René Marc FLIPO","Médecin ","UCB Pharma SA","30/09/2014","30/09/2014 - 30/09/2014 ","Autre : [ hospitalité liée à une manifestation scientifique ] "]
["René Marc FLIPO","Médecin ","MSD France","03/10/2014","24/11/2014 - 08/04/2015 ","EXPERT "]
["René Marc FLIPO","Médecin ","PFIZER SAS","07/10/2014","05/08/2014 - ","ORATEUR RP/CONGRES/SYMPOSIUM "]
["René Marc FLIPO","Médecin ","AbbVie","10/10/2014","10/10/2014 - 10/10/2014 ","AUTRE: [CONTRAT DE COLLABORATION SCIENTIFIQUE] "]
["René Marc FLIPO","Médecin ","Genzyme","16/10/2014","16/10/2014 - 16/10/2014 ","Autre : [Communication scientifique] "]
["René Marc FLIPO","Médecin ","PFIZER SAS","17/10/2014","05/12/2014 - 30/06/2016 ","Autre : Contrat consultant "]
["René Marc FLIPO","Médecin ","PFIZER SAS","21/10/2014","28/11/2014 - 09/12/2014 ","Autre : Contrat intervenant "]
["René Marc FLIPO","Médecin ","CELGENE","22/10/2014","16/11/2014 - 26/11/2014 ","CONSEIL "]
["René Marc FLIPO","Médecin ","MSD France","03/11/2014","08/12/2014 - 08/12/2014 ","EXPERT "]
["René Marc FLIPO","Médecin ","AbbVie","07/11/2014","07/11/2014 - ","AUTRE : [CONVENTION D HOSPITALITE] "]
["René Marc FLIPO","Médecin ","BRISTOL-MYERS SQUIBB","13/11/2014","28/11/2014 - ","Autre : [Orateur] "]
["René Marc FLIPO","Médecin ","AbbVie","14/11/2014","14/11/2014 - ","AUTRE : [CONVENTION D HOSPITALITE] "]
["René Marc FLIPO","Médecin ","UCB Pharma SA","25/11/2014","01/01/2015 - 31/12/2015 ","Autre : [ Collaboration Scientifique ] "]
["René Marc FLIPO","Médecin ","ROCHE SAS","27/11/2014","27/11/2014 - 27/11/2014 ","Autre : [ Réunion professionnelle ] "]
["René Marc FLIPO","Médecin ","MSD France","03/12/2014","08/12/2014 - 08/12/2014 ","EXPERT"]
["René Marc FLIPO","Médecin ","NORDIC PHARMA SAS","05/12/2014","22/12/2014 - ","RECHERCHE "]
["René Marc FLIPO","Médecin ","CHUGAI PHARMA FRANCE","09/12/2014","09/12/2014 - ","CONVENTION DE COLLABORATION "]
["René Marc FLIPO","Médecin ","PFIZER SAS","12/12/2014","06/02/2015 - 07/02/2015 ","Autre : Contrat intervenant "]
["René Marc FLIPO","Médecin ","PFIZER SAS","19/12/2014","05/02/2015 - 30/06/2015 ","Autre : Contrat consultant "]
["René Marc FLIPO","Médecin ","MSD France","23/01/2015","06/03/2015 - 07/03/2015 ","EXPERT "]
["René Marc FLIPO","Médecin ","BRISTOL-MYERS SQUIBB","23/01/2015","30/06/2015 - ","Autre : [Consultant (HCP)] "]
["René Marc FLIPO","Médecin ","BRISTOL-MYERS SQUIBB","23/01/2015","07/04/2015 - ","Autre : [Consultant (HCP)] "]
["René Marc FLIPO","Médecin ","JANSSEN-CILAG","25/01/2015","26/02/2015 - 26/02/2015 ","CONSEIL "]
["René Marc FLIPO","Médecin ","MSD France","30/01/2015","30/01/2015 - ","CONVENTION D’HOSPITALITE "]
["René Marc FLIPO","Médecin ","ROCHE SAS","05/02/2015","05/02/2015 - 05/02/2015 ","Autre : [ Manifestation professionnelle ] "]
["René Marc FLIPO","Médecin ","PFIZER SAS","06/02/2015","06/02/2015 - 07/02/2015 ","Autre : Reunion professionnelle ou scientifique "]
["René Marc FLIPO","Médecin ","MSD France","06/02/2015","09/03/2015 - 15/03/2015 ","EXPERT "]
["René Marc FLIPO","Médecin ","MSD France","09/02/2015","23/03/2015 - 30/11/2015 ","EXPERT "]
["René Marc FLIPO","Médecin ","AbbVie","19/02/2015","19/02/2015 - ","AUTRE : [CONTRAT DE COLLABORATION SCIENTIFIQUE] "]
["René Marc FLIPO","Médecin ","MSD France","27/02/2015","16/04/2015 - 16/10/2015 ","EXPERT "]
["René Marc FLIPO","Médecin ","PFIZER SAS","27/02/2015","02/06/2015 - 02/06/2015 ","Congres / Symposium "]
["René Marc FLIPO","Médecin ","BRISTOL-MYERS SQUIBB","04/03/2015","17/04/2015 - ","Autre : [Orateur] "]
["René Marc FLIPO","Médecin ","MSD France","06/03/2015","06/03/2015 - ","CONVENTION D’HOSPITALITÉ "]
["René Marc FLIPO","Médecin ","MSD France","13/03/2015","09/04/2015 - 10/04/2015 ","EXPERT "]
["René Marc FLIPO","Médecin ","CHUGAI PHARMA FRANCE","16/03/2015","16/03/2015 - ","CONVENTION DE COLLABORATION"]
["René Marc FLIPO","Médecin ","ROCHE SAS","17/03/2015","17/03/2015 - 17/03/2015 ","Autre : [ R\u0082union professionnelle ] "]
["René Marc FLIPO","Médecin ","NOVARTIS PHARMA SAS","31/03/2015","31/03/2015 - 31/12/2015 ","Autre : [Contrat de conseil & prestation] "]
["René Marc FLIPO","Médecin ","MSD France","03/04/2015","28/04/2015 - 31/12/2015 ","EXPERT "]
["René Marc FLIPO","Médecin ","BRISTOL-MYERS SQUIBB","09/04/2015","09/04/2015 - ","Autre : [Orateur] "]
["René Marc FLIPO","Médecin ","MSD France","10/04/2015","10/04/2015 - ","CONVENTION D’HOSPITALITÉ "]
["René Marc FLIPO","Médecin ","NOVARTIS PHARMA SAS","13/04/2015","13/04/2015 - 13/04/2015 ","Autre : [Hospitalité Evenement Scientifique] "]
["René Marc FLIPO","Médecin ","NOVARTIS PHARMA SAS","13/04/2015","13/04/2015 - 13/04/2015 ","AUTRE : [HOSPITALITÉ EVENEMENT SCIENTIFIQUE] "]
["René Marc FLIPO","Médecin ","MSD France","16/04/2015","16/04/2015 - ","CONVENTION D’HOSPITALITÉ "]
["René Marc FLIPO","Médecin ","ASTRAZENECA","27/04/2015","01/06/2015 - ","Conseil "]
["René Marc FLIPO","Médecin ","MSD France","29/04/2015","19/05/2015 - 13/10/2015 ","EXPERT "]
["René Marc FLIPO","Médecin ","NORDIC PHARMA SAS","30/04/2015","30/04/2015 - 02/05/2015 ","Autre : [ Orateur ] "]
["René Marc FLIPO","Médecin ","BRISTOL-MYERS SQUIBB","06/05/2015","29/05/2015 - ","Autre : [Orateur] "]
["René Marc FLIPO","Médecin ","MSD France","18/05/2015","30/05/2015 - 30/05/2015 ","EXPERT "]
["René Marc FLIPO","Médecin ","AbbVie","25/05/2015","20/05/2015 - 20/05/2015 ","AUTRE: [CONVENTION HOSPITALITE] "]
["René Marc FLIPO","Médecin ","BOEHRINGER INGELHEIM FRANCE","27/05/2015","27/05/2015 - 31/12/2015 ","AUTRE : PARTICIPATION A MANIFESTATION SCIENTIFIQUE "]
["René Marc FLIPO","Médecin ","BRISTOL-MYERS SQUIBB","28/05/2015","29/05/2015 - ","Autre : [Orateur] "]
["René Marc FLIPO","Médecin ","AbbVie","01/06/2015","01/06/2015 - ","AUTRE: [CONVENTION HOSPITALITE] "]
["René Marc FLIPO","Médecin ","BRISTOL-MYERS SQUIBB","01/06/2015","01/06/2015 - ","Autre : [Consultant (HCP)] "]
["René Marc FLIPO","Médecin ","PFIZER SAS","02/06/2015","02/06/2015 - 02/06/2015 ","Autre : Reunion professionnelle ou scientifique "]
["René Marc FLIPO","Médecin ","NORDIC PHARMA SAS","10/06/2015","10/06/2015 - 13/06/2015 ","congrès / symposium "]
["René Marc FLIPO","Médecin ","PFIZER SAS","25/06/2015","25/06/2015 - 25/06/2015 ","Autre : Reunion professionnelle ou scientifique "]
["René Marc FLIPO","Médecin ","ROCHE SAS","01/07/2015","01/07/2015 - 04/07/2015 ","Autre : [ Reunion professionnelle ] "]
["René Marc FLIPO","Médecin ","AbbVie","10/07/2015","10/07/2015 - 10/07/2015 ","AUTRE: [CONTRAT DE COLLABORATION SCIENTIFIQUE] "]
["René Marc FLIPO","Médecin ","RE-IMAGINE Health Agency","20/07/2015","20/07/2015 - 24/07/2015 ","AUTRE : REFLEXION SCIENTFIQUE EVENEMENT INTERDISCIPLINAIRE "]
["René Marc FLIPO","Médecin ","MSD France","11/08/2015","29/09/2015 - 29/09/2015 ","ORATEUR "]
["René Marc FLIPO","Médecin ","AbbVie","17/08/2015","17/08/2015 - 17/08/2015 ","AUTRE: [CONTRAT DE COLLABORATION SCIENTIFIQUE] "]
["René Marc FLIPO","Médecin ","JANSSEN-CILAG","01/09/2015","01/09/2015 - 10/09/2015 ","CONGRES / SYMPOSIUM "]
["René Marc FLIPO","Médecin ","NORDIC PHARMA SAS","01/09/2015","01/09/2015 - 31/12/2015 ","Autre : [ Prestation ] "]
["René Marc FLIPO","Médecin ","ROCHE SAS","10/09/2015","10/09/2015 - 10/09/2015 ","Autre : [ Reunion professionnelle ] "]
["René Marc FLIPO","Médecin ","PFIZER SAS","10/09/2015","11/09/2015 - 12/09/2015 ","Congrès / Symposium "]
["René Marc FLIPO","Médecin ","PFIZER SAS","11/09/2015","11/09/2015 - 12/09/2015 ","Autre : Réunion professionnelle ou scientifique "]
["René Marc FLIPO","Médecin ","BRISTOL-MYERS SQUIBB","14/09/2015","23/09/2015 - ","Autre : [Recherche/Développement] "]
["René Marc FLIPO","Médecin ","UCB Pharma SA","15/09/2015","15/09/2015 - 15/09/2015 ","CONTRAT DE PRESTATION DE SERVICE "]
["René Marc FLIPO","Médecin ","UCB Pharma SA","15/09/2015","15/09/2015 - 15/09/2015 ","CONVENTION D'HOSPITALITÉ "]
["René Marc FLIPO","Médecin ","AbbVie","24/09/2015","24/09/2015 - ","AUTRE: [CONVENTION HOSPITALITE] "]
["René Marc FLIPO","Médecin ","MSD France","29/09/2015","29/09/2015 - ","CONVENTION D’HOSPITALITÉ "]
["René Marc FLIPO","Médecin ","LABORATOIRES MAYOLY SPINDLER","01/10/2015","01/10/2015 - 01/10/2015 ","COLLABORATION SCIENTIFIQUE ET PROFESSIONNELLE "]
["René Marc FLIPO","Médecin ","MSD France","15/10/2015","15/10/2015 - ","CONVENTION D’HOSPITALITÉ "]
["René Marc FLIPO","Médecin ","PFIZER SAS","16/10/2015","01/10/2015 - 30/10/2015 ","Conseil "]
["René Marc FLIPO","Médecin ","MSD France","20/10/2015","27/11/2015 - 28/11/2015 ","EXPERT"]
["René Marc FLIPO","Médecin ","MSD France","20/10/2015","23/11/2015 - 30/11/2015 ","EXPERT "]
["René Marc FLIPO","Médecin ","NORDIC PHARMA SAS","22/10/2015","11/12/2015 - 11/12/2015 ","Autre : [ Prestation ] "]
["René Marc FLIPO","Médecin ","MSD France","29/10/2015","14/12/2015 - 14/12/2015 ","EXPERT "]
["René Marc FLIPO","Médecin ","MSD France","06/11/2015","06/11/2015 - ","CONVENTION D’HOSPITALITÉ "]
["René Marc FLIPO","Médecin ","MENARINI FRANCE","24/11/2015","24/11/2015 - 24/11/2015 ","Autre : Prestation de service "]
["René Marc FLIPO","Médecin ","MSD France","27/11/2015","27/11/2015 - ","CONVENTION D’HOSPITALITÉ "]
["René Marc FLIPO","Médecin ","ROCHE SAS","03/12/2015","03/12/2015 - 03/12/2015 ","Autre : [ Reunion professionnelle ] "]
["René Marc FLIPO","Médecin ","JANSSEN-CILAG","08/12/2015","08/12/2015 - 12/12/2015 ","CONGRES / SYMPOSIUM "]
["René Marc FLIPO","Médecin ","JANSSEN-CILAG","11/12/2015","11/12/2015 - 11/12/2015 ","CONGRES / SYMPOSIUM "]
["René Marc FLIPO","Médecin ","MSD France","13/12/2015","13/12/2015 - ","CONVENTION D’HOSPITALITÉ"]
["Alain CANTAGREL","Médecin ","ROCHE SAS","24/05/2012","24/05/2012 - ","EXPERT "]
["Alain CANTAGREL","Médecin ","ROCHE SAS","18/06/2012","18/06/2012 - ","ORATEUR INTERVENANT "]
["Alain CANTAGREL","Médecin ","MSD France","18/09/2012","18/09/2012 - ","CONVENTION D’HOSPITALITÉ "]
["Alain CANTAGREL","Médecin ","AbbVie","10/10/2012","10/10/2012 - ","AUTRE : [CONTRAT DE COLLABORATION SCIENTIFIQUE] "]
["Alain CANTAGREL","Médecin ","AbbVie","10/10/2012","10/10/2012 - ","AUTRE : [CONTRAT DE COLLABORATION SCIENTIFIQUE] "]
["Alain CANTAGREL","Médecin ","ROCHE SAS","20/11/2012","20/11/2012 - ","RECHERCHE "]
["Alain CANTAGREL","Médecin ","A+A","04/01/2013","04/01/2013 - ","ETUDE DE MARCHE "]
["Alain CANTAGREL","Médecin ","PFIZER SAS","24/01/2013","24/01/2013 - ","ORATEUR RP/CONGRES/SYMPOSIUM "]
["Alain CANTAGREL","Médecin ","PFIZER SAS","25/01/2013","25/01/2013 - ","CONSEIL "]
["Alain CANTAGREL","Médecin ","MSD France","23/05/2013","23/05/2013 - 24/05/2013 ","CONVENTION D’HOSPITALITÉ "]
["Alain CANTAGREL","Médecin ","A+A","29/05/2013","28/05/2013 - ","ETUDE DE MARCHE "]
["Alain CANTAGREL","Médecin ","NORDIC PHARMA SAS","02/07/2013","02/07/2013 - 02/07/2013 ","Autre : [ EPU ] "]
["Alain CANTAGREL","Médecin ","MSD France","02/07/2013","02/07/2013 - ","CONVENTION D’HOSPITALITÉ "]
["Alain CANTAGREL","Médecin ","NORDIC PHARMA SAS","12/07/2013","02/07/2013 - 02/07/2013 ","Autre : [ Orateur ] "]
["Alain CANTAGREL","Médecin ","MSD France","18/07/2013","02/04/2013 - ","EXPERT "]
["Alain CANTAGREL","Médecin ","AbbVie","19/08/2013","01/10/2013 - ","AUTRE: [CONTRAT DE COLLABORATION SCENTIFIQUE] "]
["Alain CANTAGREL","Médecin ","AbbVie","28/08/2013","08/10/2013 - ","AUTRE: [CONTRAT DE COLLABORATION SCENTIFIQUE] "]
["Alain CANTAGREL","Médecin ","MSD France","16/09/2013","02/10/2013 - 02/10/2013 ","EXPERT "]
["Alain CANTAGREL","Médecin ","MSD France","16/09/2013","16/09/2013 - ","EXPERT "]
["Alain CANTAGREL","Médecin ","ROCHE SAS","19/09/2013","03/10/2013 - 04/10/2013 ","Autre : [ Réunion professionnelle ]"]
["Alain CANTAGREL","Médecin ","MSD France","24/09/2013","24/09/2013 - 25/09/2013 ","CONVENTION D’HOSPITALITÉ "]
["Alain CANTAGREL","Médecin ","MSD France","02/10/2013","02/10/2013 - 02/10/2013 ","EXPERT "]
["Alain CANTAGREL","Médecin ","ROCHE SAS","03/10/2013","03/10/2013 - 04/10/2013 ","Autre : [ Orateur / Intervenant ] "]
["Alain CANTAGREL","Médecin ","PIERRE FABRE MEDICAMENT","04/10/2013","04/10/2013 - ","CONTRAT DE CONSULTANT "]
["Alain CANTAGREL","Médecin ","AbbVie","08/10/2013","08/10/2013 - ","AUTRE: [CONVENTION HOSPITALITE] "]
["Alain CANTAGREL","Médecin ","MSD France","10/10/2013","05/11/2013 - 01/03/2014 ","EXPERT "]
["Alain CANTAGREL","Médecin ","MSD France","10/10/2013","10/10/2013 - ","EXPERT "]
["Alain CANTAGREL","Médecin ","MSD France","24/10/2013","24/10/2013 - ","EXPERT "]
["Alain CANTAGREL","Médecin ","MSD France","24/10/2013","12/11/2013 - 12/11/2013 ","EXPERT "]
["Alain CANTAGREL","Médecin ","PFIZER SAS","25/10/2013","25/10/2013 - 30/10/2013 ","Hospitalite RP/Congres / Sympo "]
["Alain CANTAGREL","Médecin ","MSD France","31/10/2013","02/12/2013 - 02/12/2013 ","EXPERT "]
["Alain CANTAGREL","Médecin ","MSD France","31/10/2013","31/10/2013 - ","EXPERT "]
["Alain CANTAGREL","Médecin ","AbbVie","13/11/2013","17/12/2013 - ","AUTRE: [CONTRAT DE COLLABORATION SCENTIFIQUE] "]
["Alain CANTAGREL","Médecin ","Actelion Pharmaceuticals France","21/11/2013","21/11/2013 - 21/11/2013 ","AUTRE [CONNEXION] "]
["Alain CANTAGREL","Médecin ","MSD France","01/12/2013","01/12/2013 - 03/12/2013 ","CONVENTION D’HOSPITALITÉ "]
["Alain CANTAGREL","Médecin ","AbbVie","13/12/2013","13/12/2013 - ","AUTRE: [CONTRAT DE COLLABORATION SCIENTIFIQUE] "]
["Alain CANTAGREL","Médecin ","AbbVie","17/12/2013","17/12/2013 - ","AUTRE: [CONVENTION HOSPITALITE] "]
["Alain CANTAGREL","Médecin ","AbbVie","17/12/2013","17/12/2013 - ","AUTRE: [CONVENTION HOSPITALITE] "]
["Alain CANTAGREL","Médecin ","AbbVie","10/01/2014","09/01/2014 - ","AUTRE: [CONVENTION HOSPITALITE] "]
["Alain CANTAGREL","Médecin ","AbbVie","30/01/2014","30/01/2014 - ","AUTRE: [CONTRAT DE COLLABORATION SCIENTIFIQUE]"]
["Alain CANTAGREL","Médecin ","PFIZER SAS","07/02/2014","07/02/2014 - 08/02/2014 ","ORATEUR RP/CONGRES/SYMPO "]
["Alain CANTAGREL","Médecin ","PFIZER SAS","07/02/2014","07/02/2014 - 08/02/2014 ","ORATEUR RP/CONGRES/SYMPO "]
["Alain CANTAGREL","Médecin ","MSD France","17/02/2014","18/03/2014 - 18/03/2014 ","EXPERT "]
["Alain CANTAGREL","Médecin ","AbbVie","27/02/2014","27/02/2014 - ","AUTRE: [CONVENTION HOSPITALITE] "]
["Alain CANTAGREL","Médecin ","MSD France","03/03/2014","03/04/2014 - 03/04/2014 ","ORATEUR "]
["Alain CANTAGREL","Médecin ","BRISTOL-MYERS SQUIBB","08/03/2014","11/02/2014 - ","Autre : [Consultant (HCP)] "]
["Alain CANTAGREL","Médecin ","MSD France","20/03/2014","22/04/2014 - 29/10/2014 ","EXPERT "]
["Alain CANTAGREL","Médecin ","AbbVie","21/03/2014","20/03/2014 - ","AUTRE: [CONVENTION HOSPITALITE] "]
["Alain CANTAGREL","Médecin ","MSD France","03/04/2014","03/04/2014 - ","CONVENTION D’HOSPITALITÉ "]
["Alain CANTAGREL","Médecin ","AbbVie","08/04/2014","08/04/2014 - ","AUTRE: [CONTRAT DE COLLABORATION SCIENTIFIQUE] "]
["Alain CANTAGREL","Médecin ","PFIZER SAS","11/04/2014","11/04/2014 - 12/04/2014 ","HOSPITALITE RP/CONGRES / SYMPO "]
["Alain CANTAGREL","Médecin ","PFIZER SAS","11/04/2014","11/04/2014 - 12/04/2014 ","HOSPITALITE RP/CONGRES / SYMPO "]
["Alain CANTAGREL","Médecin ","AbbVie","23/04/2014","23/04/2014 - ","AUTRE: [CONVENTION HOSPITALITE] "]
["Alain CANTAGREL","Médecin ","BRISTOL-MYERS SQUIBB","24/04/2014","24/04/2014 - ","Autre : [Orateur] "]
["Alain CANTAGREL","Médecin ","BRISTOL-MYERS SQUIBB","29/04/2014","23/05/2014 - ","Autre : [Orateur] "]
["Alain CANTAGREL","Médecin ","NORDIC PHARMA SAS","04/05/2014","04/05/2014 - 08/05/2014 ","congrès / symposium "]
["Alain CANTAGREL","Médecin ","AMGEN SAS","13/05/2014","05/06/2014 - 05/06/2019 ","CONVENTION DE RECHERCHE "]
["Alain CANTAGREL","Médecin ","IMS Medical Radar","23/05/2014","23/05/2014 - 23/05/2014 ","autre: ETUDE "]
["Alain CANTAGREL","Médecin ","BRISTOL-MYERS SQUIBB","04/06/2014","04/06/2014 - ","Autre : [Orateur] "]
["Alain CANTAGREL","Médecin ","ROCHE SAS","05/06/2014","05/06/2014 - 05/06/2014 ","Autre : [ R‚union professionnelle ]"]
["Alain CANTAGREL","Médecin ","NORDIC PHARMA SAS","11/06/2014","11/06/2014 - 14/06/2014 ","congrès / symposium "]
["Alain CANTAGREL","Médecin ","UCB Pharma SA","27/06/2014","27/06/2014 - 27/06/2014 ","Formation "]
["Alain CANTAGREL","Médecin ","MSD France","03/07/2014","03/07/2014 - ","CONVENTION D’HOSPITALITÉ "]
["Alain CANTAGREL","Médecin ","PRECIPHAR","03/07/2014","03/07/2014 - 03/07/2014 ","Autre[ORATEUR REUNION POST EULAR TOULOUSE] "]
["Alain CANTAGREL","Médecin ","PFIZER SAS","29/07/2014","29/07/2014 - ","ORATEUR RP/CONGRES/SYMPOSIUM "]
["Alain CANTAGREL","Médecin ","PFIZER SAS","30/07/2014","30/07/2014 - 30/07/2014 ","ORATEUR RP/CONGRES/SYMPOSIUM "]
["Alain CANTAGREL","Médecin ","AbbVie","07/08/2014","07/08/2014 - ","AUTRE: [CONTRAT DE COLLABORATION SCIENTIFIQUE] "]
["Alain CANTAGREL","Médecin ","MSD France","27/08/2014","14/10/2014 - 14/10/2014 ","EXPERT "]
["Alain CANTAGREL","Médecin ","BRISTOL-MYERS SQUIBB","09/09/2014","03/10/2014 - ","Autre : [Orateur] "]
["Alain CANTAGREL","Médecin ","PRECIPHAR","23/09/2014","23/09/2014 - 23/09/2014 ","Autre[ORATEUR REUNION POST EULAR AGEN] "]
["Alain CANTAGREL","Médecin ","MSD France","23/09/2014","23/09/2014 - ","CONVENTION D’HOSPITALITÉ "]
["Alain CANTAGREL","Médecin ","ROCHE SAS","26/09/2014","26/09/2014 - 26/09/2014 ","Autre : [ Réunion professionnelle ] "]
["Alain CANTAGREL","Médecin ","BRISTOL-MYERS SQUIBB","12/10/2014","24/10/2014 - ","Autre : [Orateur] "]
["Alain CANTAGREL","Médecin ","AbbVie","13/10/2014","13/10/2014 - ","AUTRE: [CONTRAT DE COLLABORATION SCIENTIFIQUE] "]
["Alain CANTAGREL","Médecin ","AbbVie","14/10/2014","14/10/2014 - ","AUTRE : [CONVENTION D HOSPITALITE] "]
["Alain CANTAGREL","Médecin ","AbbVie","14/10/2014","14/10/2014 - ","AUTRE : [CONVENTION D HOSPITALITE] "]
["Alain CANTAGREL","Médecin ","AbbVie","15/10/2014","15/10/2014 - ","AUTRE : [CONVENTION D HOSPITALITE] "]
["Alain CANTAGREL","Médecin ","PFIZER SAS","17/10/2014","05/12/2014 - 30/06/2016 ","Autre : Contrat consultant "]
["Alain CANTAGREL","Médecin ","PFIZER SAS","21/10/2014","21/10/2014 - ","ORATEUR RP/CONGRES/SYMPOSIUM "]
["Alain CANTAGREL","Médecin ","PFIZER SAS","21/10/2014","21/10/2014 - ","ORATEUR RP/CONGRES/SYMPOSIUM "]
["Alain CANTAGREL","Médecin ","UCB Pharma SA","22/10/2014","22/10/2014 - 22/10/2014 ","Autre : [ hospitalité liée à une manifestation scientifique ] "]
["Alain CANTAGREL","Médecin ","Lilly France SAS","27/10/2014","27/10/2014 - 27/10/2014 ","AUTRE : [PARTICIPATION R�ION SCIENTIFIQUE] "]
["Alain CANTAGREL","Médecin ","MSD France","03/11/2014","09/12/2014 - 09/12/2014 ","EXPERT "]
["Alain CANTAGREL","Médecin ","PFIZER SAS","15/11/2014","15/11/2014 - 19/11/2014 ","Congrès / Symposium "]
["Alain CANTAGREL","Médecin ","UCB Pharma SA","24/11/2014","01/01/2015 - 31/12/2015 ","Autre : [ Collaboration Scientifique ] "]
["Alain CANTAGREL","Médecin ","AbbVie","25/11/2014","25/11/2014 - ","AUTRE : [CONVENTION D HOSPITALITE] "]
["Alain CANTAGREL","Médecin ","BRISTOL-MYERS SQUIBB","27/11/2014","08/12/2014 - ","Autre : [Orateur] "]
["Alain CANTAGREL","Médecin ","UCB Pharma SA","27/11/2014","27/11/2014 - 27/11/2014 ","Formation "]
["Alain CANTAGREL","Médecin ","CONGRES COLLOQUES CONVENTIONS","29/11/2014","29/11/2014 - 29/11/2014 ","CONGRES SYMPOSIUM "]
["Alain CANTAGREL","Médecin ","PFIZER SAS","12/12/2014","06/02/2015 - 07/02/2015 ","Autre : Contrat intervenant "]
["Alain CANTAGREL","Médecin ","AbbVie","17/12/2014","17/12/2014 - ","AUTRE : [CONVENTION D HOSPITALITE] "]
["Alain CANTAGREL","Médecin ","PFIZER SAS","19/12/2014","12/02/2015 - 30/06/2015 ","Autre : Contrat consultant "]
["Alain CANTAGREL","Médecin ","PFIZER SAS","20/12/2014","06/03/2015 - 07/03/2015 ","Autre : Contrat intervenant "]
["Alain CANTAGREL","Médecin ","MSD France","22/12/2014","27/01/2015 - 26/01/2016 ","EXPERT "]
["Alain CANTAGREL","Médecin ","A+A","30/12/2014","30/12/2014 - ","ETUDE DE MARCHE "]
["Alain CANTAGREL","Médecin ","AbbVie","06/01/2015","06/01/2015 - ","AUTRE : [CONTRAT DE COLLABORATION SCIENTIFIQUE] "]
["Alain CANTAGREL","Médecin ","CELGENE","26/01/2015","01/02/2015 - 28/02/2015 ","CONSEIL "]
["Alain CANTAGREL","Médecin ","MSD France","30/01/2015","30/01/2015 - ","CONVENTION D’HOSPITALITÉ "]
["Alain CANTAGREL","Médecin ","ROCHE SAS","05/02/2015","05/02/2015 - 05/02/2015 ","Autre : [ Manifestation professionnelle ] "]
["Alain CANTAGREL","Médecin ","PFIZER SAS","06/02/2015","06/02/2015 - 07/02/2015 ","Autre : Reunion professionnelle ou scientifique"]
["Alain CANTAGREL","Médecin ","PFIZER SAS","20/02/2015","21/05/2015 - 21/05/2015 ","Formation "]
["Alain CANTAGREL","Médecin ","BRISTOL-MYERS SQUIBB","23/02/2015","13/03/2015 - ","Autre : [Orateur] "]
["Alain CANTAGREL","Médecin ","JANSSEN-CILAG","26/02/2015","30/03/2015 - 30/03/2015 ","FORMATION "]
["Alain CANTAGREL","Médecin ","PFIZER SAS","06/03/2015","06/03/2015 - 07/03/2015 ","Autre : Reunion professionnelle ou scientifique "]
["Alain CANTAGREL","Médecin ","BRISTOL-MYERS SQUIBB","10/03/2015","05/05/2015 - ","Autre : [Consultant (HCP)] "]
["Alain CANTAGREL","Médecin ","NOVARTIS PHARMA SAS","18/03/2015","18/03/2015 - 31/12/2015 ","AUTRE : [CONTRAT DE CONSEIL & PRESTATION] "]
["Alain CANTAGREL","Médecin ","ROCHE SAS","19/03/2015","19/03/2015 - 19/03/2015 ","Autre : [ R\u0082union professionnelle ] "]
["Alain CANTAGREL","Médecin ","AbbVie","26/03/2015","26/03/2015 - ","AUTRE : [CONTRAT DE COLLABORATION SCIENTIFIQUE] "]
["Alain CANTAGREL","Médecin ","AbbVie","01/04/2015","01/04/2015 - ","AUTRE: [CONVENTION HOSPITALITE] "]
["Alain CANTAGREL","Médecin ","NOVARTIS PHARMA SAS","10/04/2015","10/04/2015 - 10/04/2015 ","Autre : [Hospitalité Evenement] "]
["Alain CANTAGREL","Médecin ","BRISTOL-MYERS SQUIBB","15/04/2015","29/05/2015 - ","Autre : [Orateur] "]
["Alain CANTAGREL","Médecin ","AMGEN SAS","15/04/2015","15/04/2015 - ","CONVENTION DE RECHERCHE "]
["Alain CANTAGREL","Médecin ","JANSSEN-CILAG","15/04/2015","24/03/2015 - 24/03/2015 ","FORMATION "]
["Alain CANTAGREL","Médecin ","MSD France","17/04/2015","19/05/2015 - 13/10/2015 ","EXPERT "]
["Alain CANTAGREL","Médecin ","QualWorld","28/04/2015","28/04/2015 - ","AUTRE: ETUDES DE MARCHE SONDAGES "]
["Alain CANTAGREL","Médecin ","UCB Pharma SA","30/04/2015","30/04/2015 - 02/05/2015 ","Congrès / symposium "]
["Alain CANTAGREL","Médecin ","AbbVie","05/05/2015","05/05/2015 - ","AUTRE: [CONVENTION HOSPITALITE] "]
["Alain CANTAGREL","Médecin ","PFIZER SAS","21/05/2015","21/05/2015 - 21/05/2015 ","Autre : Reunion professionnelle ou scientifique "]
["Alain CANTAGREL","Médecin ","BRISTOL-MYERS SQUIBB","28/05/2015","29/05/2015 - ","Autre : [Orateur] "]
["Alain CANTAGREL","Médecin ","BRISTOL-MYERS SQUIBB","01/06/2015","01/06/2015 - ","Autre : [Consultant (HCP)]"]
["Alain CANTAGREL","Médecin ","NORDIC PHARMA SAS","10/06/2015","10/06/2015 - 13/06/2015 ","congrès / symposium "]
["Alain CANTAGREL","Médecin ","UCB Pharma SA","19/06/2015","19/06/2015 - 19/06/2015 ","Formation "]
["Alain CANTAGREL","Médecin ","ROCHE SAS","10/09/2015","10/09/2015 - 10/09/2015 ","Autre : [ Reunion professionnelle ] "]
["Alain CANTAGREL","Médecin ","INC RESEARCH, LLC","29/09/2015","29/09/2015 - ","research "]
["Alain CANTAGREL","Médecin ","INC RESEARCH, LLC","30/09/2015","30/09/2015 - ","research "]
["Alain CANTAGREL","Médecin ","PFIZER SAS","16/10/2015","01/10/2015 - 30/10/2015 ","Conseil "]
["Alain CANTAGREL","Médecin ","ROCHE SAS","05/11/2015","05/11/2015 - 05/11/2015 ","Autre : [ Reunion professionnelle ] "]
["Alain CANTAGREL","Médecin ","MSD France","26/11/2015","15/12/2015 - 15/12/2015 ","ORATEUR "]
["Alain CANTAGREL","Médecin ","PFIZER SAS","02/12/2015","30/11/2015 - 31/12/2015 ","Autre : [Contrat autre] "]
["Alain CANTAGREL","Médecin ","ROCHE SAS","08/12/2015","08/12/2015 - 08/12/2015 ","Autre : [ Reunion professionnelle ] "]
["Alain CANTAGREL","Médecin ","MSD France","15/12/2015","15/12/2015 - ","CONVENTION D’HOSPITALITÉ"]
["Thierry THOMAS","Médecin ","Bone Therapeutics","27/08/2012","27/08/2012 - ","Convention de recherche biomédicale Investigateur-Coordinateur "]
["Thierry THOMAS","Médecin ","MSD France","14/02/2013","14/02/2013 - 14/02/2013 ","EXPERT "]
["Thierry THOMAS","Médecin ","Bone Therapeutics","25/02/2013","25/02/2013 - ","Convention de recherche biomédicale /Annexe: Roles et responsabilites des differentes parties impliquees "]
["Thierry THOMAS","Médecin ","MSD France","25/04/2013","23/05/2013 - 23/05/2013 ","CONVENTION D HOSPITALITE "]
["Thierry THOMAS","Médecin ","MSD France","23/05/2013","23/05/2013 - ","CONVENTION D’HOSPITALITÉ "]
["Thierry THOMAS","Médecin ","ROCHE SAS","30/05/2013","30/05/2013 - 31/05/2013 ","Congrès / Symposium "]
["Thierry THOMAS","Médecin ","MSD France","04/07/2013","04/07/2013 - ","CONVENTION D’HOSPITALITÉ "]
["Thierry THOMAS","Médecin ","MSD France","06/08/2013","06/09/2013 - 07/09/2013 ","EXPERT "]
["Thierry THOMAS","Médecin ","MSD France","06/08/2013","06/08/2013 - ","EXPERT "]
["Thierry THOMAS","Médecin ","Lilly France SAS","02/09/2013","14/10/2013 - 14/10/2013 ","CONVENTION DE CONSULTANT "]
["Thierry THOMAS","Médecin ","Lilly France SAS","03/09/2013","03/09/2013 - 03/09/2013 ","CONVENTION D'ORATEUR RÉUNION PROFESSIONNELLE "]
["Thierry THOMAS","Médecin ","MSD France","06/09/2013","06/09/2013 - 07/09/2013 ","CONVENTION D’HOSPITALITÉ "]
["Thierry THOMAS","Médecin ","AMGEN SAS","10/09/2013","10/10/2013 - 12/10/2013 ","AUTRE [CONVENTION D ORATEUR] "]
["Thierry THOMAS","Médecin ","MSD France","24/09/2013","24/09/2013 - 25/09/2013 ","CONVENTION D’HOSPITALITÉ "]
["Thierry THOMAS","Médecin ","NOVARTIS PHARMA SAS","04/10/2013","04/10/2013 - 07/10/2013 ","Autre : [Hospitalité] "]
["Thierry THOMAS","Médecin ","AMGEN SAS","10/10/2013","27/11/2013 - 30/11/2013 ","AUTRE [CONVENTION D EXPERT] "]
["Thierry THOMAS","Médecin ","AMGEN SAS","15/10/2013","27/05/2014 - 27/05/2014 ","AUTRE [CONVENTION D EXPERT] "]
["Thierry THOMAS","Médecin ","AMGEN SAS","24/10/2013","01/12/2013 - 04/12/2013 ","AUTRE [CONVENTION D ORATEUR] "]
["Thierry THOMAS","Médecin ","BRISTOL-MYERS SQUIBB","28/10/2013","10/01/2014 - ","Autre : [Consultant] "]
["Thierry THOMAS","Médecin ","AMGEN SAS","12/11/2013","15/12/2013 - 18/12/2013 ","AUTRE [CONVENTION D ORATEUR]"]
["Thierry THOMAS","Médecin ","MSD France","19/11/2013","09/12/2013 - 09/12/2013 ","EXPERT "]
["Thierry THOMAS","Médecin ","MSD France","19/11/2013","19/11/2013 - ","EXPERT "]
["Thierry THOMAS","Médecin ","Lilly France SAS","18/12/2013","18/12/2013 - 16/11/2013 ","INVITATION "]
["Thierry THOMAS","Médecin ","LIVE ! BY GL EVENTS","20/12/2013","17/01/2014 - 17/01/2014 ","CONGRES "]
["Thierry THOMAS","Médecin ","LIVE ! BY GL EVENTS","24/12/2013","17/01/2014 - 17/01/2014 ","CONGRES "]
["Thierry THOMAS","Médecin ","AMGEN SAS","21/01/2014","04/03/2014 - 07/03/2014 ","AUTRE [CONVENTION D ORATEUR] "]
["Thierry THOMAS","Médecin ","AMGEN SAS","21/01/2014","04/03/2014 - 07/03/2014 ","AUTRE [CONVENTION D ORATEUR] "]
["Thierry THOMAS","Médecin ","AMGEN SAS","12/02/2014","02/04/2014 - 05/04/2014 ","AUTRE [CONVENTION D ORATEUR] "]
["Thierry THOMAS","Médecin ","AMGEN SAS","26/02/2014","26/03/2014 - 29/03/2014 ","AUTRE [CONVENTION D ORATEUR] "]
["Thierry THOMAS","Médecin ","AMGEN SAS","26/02/2014","26/03/2014 - 29/03/2014 ","AUTRE [CONVENTION D ORATEUR] "]
["Thierry THOMAS","Médecin ","AMGEN SAS","27/02/2014","29/04/2014 - 29/04/2014 ","AUTRE [CONVENTION D EXPERT] "]
["Thierry THOMAS","Médecin ","AMGEN SAS","27/02/2014","25/03/2014 - 25/03/2014 ","AUTRE [CONVENTION D EXPERT] "]
["Thierry THOMAS","Médecin ","Lilly France SAS","05/03/2014","28/03/2014 - 29/03/2014 ","AUTRE : [CONTRAT D'ORATEUR] "]
["Thierry THOMAS","Médecin ","AMGEN SAS","06/03/2014","09/04/2014 - 12/04/2014 ","AUTRE [CONVENTION D EXPERT] "]
["Thierry THOMAS","Médecin ","AMGEN SAS","06/03/2014","09/04/2014 - 12/04/2014 ","AUTRE [CONVENTION D EXPERT] "]
["Thierry THOMAS","Médecin ","MSD France","07/03/2014","10/04/2014 - 10/04/2014 ","EXPERT "]
["Thierry THOMAS","Médecin ","AMGEN SAS","18/03/2014","18/03/2014 - 19/03/2014 ","AUTRE [CONVENTION D ORATEUR] "]
["Thierry THOMAS","Médecin ","Genzyme","26/03/2014","26/03/2014 - 26/03/2014 ","Autre : [Hospitalité Genzyme] "]
["Thierry THOMAS","Médecin ","MSD France","27/03/2014","27/03/2014 - ","CONVENTION D’HOSPITALITÉ "]
["Thierry THOMAS","Médecin ","MSD France","16/05/2014","27/06/2014 - 28/06/2014 ","EXPERT"]
["Thierry THOMAS","Médecin ","AMGEN SAS","23/05/2014","02/07/2014 - 02/07/2014 ","AUTRE [CONVENTION D EXPERT] "]
["Thierry THOMAS","Médecin ","Lilly France SAS","25/05/2014","24/05/2014 - 25/05/2014 ","AUTRE : [PARTICIPATION RÉUNION SCIENTIFIQUE] "]
["Thierry THOMAS","Médecin ","SWEDISH ORPHAN BIOVITRUM","03/06/2014","03/06/2014 - 03/06/2014 ","Autre : [CONVENTION D'HOSPITALITE] "]
["Thierry THOMAS","Médecin ","UCB Pharma SA","03/06/2014","03/06/2014 - 03/06/2014 ","Autre : [ hospitalité liée à une manifestation scientifique ] "]
["Thierry THOMAS","Médecin ","MSD France","27/06/2014","27/06/2014 - ","CONVENTION D’HOSPITALITÉ "]
["Thierry THOMAS","Médecin ","AMGEN SAS","08/07/2014","30/09/2014 - 03/10/2014 ","AUTRE [CONTRAT D ORATEUR] "]
["Thierry THOMAS","Médecin ","MSD France","16/07/2014","03/10/2014 - 03/10/2014 ","EXPERT "]
["Thierry THOMAS","Médecin ","AMGEN SAS","17/07/2014","19/10/2014 - 22/10/2014 ","AUTRE [CONTRAT D ORATEUR] "]
["Thierry THOMAS","Médecin ","AMGEN SAS","29/07/2014","02/10/2014 - 02/10/2014 ","AUTRE [CONVENTION D HOSPITALITE] "]
["Thierry THOMAS","Médecin ","AbbVie","07/08/2014","07/08/2014 - ","AUTRE: [CONTRAT DE COLLABORATION SCIENTIFIQUE] "]
["Thierry THOMAS","Médecin ","AMGEN SAS","25/08/2014","25/09/2014 - 28/09/2014 ","AUTRE [CONTRAT D ORATEUR] "]
["Thierry THOMAS","Médecin ","AMGEN SAS","01/09/2014","26/09/2014 - 27/09/2014 ","AUTRE [CONVENTION D HOSPITALITE] "]
["Thierry THOMAS","Médecin ","AMGEN SAS","11/09/2014","21/10/2014 - 21/10/2014 ","AUTRE [CONVENTION D HOSPITALITE] "]
["Thierry THOMAS","Médecin ","AMGEN SAS","12/09/2014","13/11/2014 - 13/11/2014 ","AUTRE [CONVENTION D HOSPITALITE] "]
["Thierry THOMAS","Médecin ","AbbVie","25/09/2014","25/09/2014 - ","AUTRE : [CONVENTION D HOSPITALITE] "]
["Thierry THOMAS","Médecin ","AMGEN SAS","29/09/2014","29/10/2014 - 29/10/2014 ","AUTRE [CONTRAT D ORATEUR] "]
["Thierry THOMAS","Médecin ","AMGEN SAS","06/10/2014","07/12/2014 - 10/12/2014 ","AUTRE [CONTRAT D ORATEUR] "]
["Thierry THOMAS","Médecin ","AMGEN SAS","10/10/2014","13/11/2014 - 13/11/2014 ","AUTRE [CONVENTION D EXPERT] "]
["Thierry THOMAS","Médecin ","AMGEN SAS","04/11/2014","08/12/2014 - 22/12/2014 ","AUTRE [CONVENTION D EXPERT] "]
["Thierry THOMAS","Médecin ","MSD France","10/11/2014","12/12/2014 - 12/12/2014 ","EXPERT"]
["Thierry THOMAS","Médecin ","AMGEN SAS","26/11/2014","10/02/2015 - 10/02/2015 ","AUTRE [CONVENTION D EXPERT] "]
["Thierry THOMAS","Médecin ","H.A.C.Pharma","02/12/2014","02/12/2014 - 20/01/2015 ","RECHERCHE "]
["Thierry THOMAS","Médecin ","Lilly France SAS","08/12/2014","08/12/2014 - 08/12/2014 ","AUTRE : [CONTRAT D'ORATEUR] "]
["Thierry THOMAS","Médecin ","AMGEN SAS","09/12/2014","14/01/2015 - 17/01/2015 ","AUTRE [CONTRAT D ORATEUR] "]
["Thierry THOMAS","Médecin ","Lilly France SAS","09/12/2014","07/12/2014 - 09/12/2014 ","AUTRE : [PARTICIPATION R�ION SCIENTIFIQUE] "]
["Thierry THOMAS","Médecin ","NOVARTIS PHARMA SAS","15/12/2014","15/12/2014 - 05/05/2015 ","Recherche "]
["Thierry THOMAS","Médecin ","AMGEN SAS","29/01/2015","18/03/2015 - 18/03/2015 ","AUTRE [CONTRAT ORATEUR] "]
["Thierry THOMAS","Médecin ","AMGEN SAS","02/02/2015","06/03/2015 - 22/05/2015 ","AUTRE [CONTRAT ORATEUR] "]
["Thierry THOMAS","Médecin ","AMGEN SAS","06/02/2015","26/03/2015 - 29/03/2015 ","AUTRE [CONVENTION D HOSPITALITE] "]
["Thierry THOMAS","Médecin ","AMGEN SAS","06/02/2015","26/03/2015 - 29/03/2015 ","AUTRE [CONVENTION D HOSPITALITE] "]
["Thierry THOMAS","Médecin ","MSD France","09/02/2015","23/03/2015 - 30/11/2015 ","EXPERT "]
["Thierry THOMAS","Médecin ","AMGEN SAS","24/02/2015","29/03/2015 - 01/04/2015 ","AUTRE [CONVENTION D EXPERT] "]
["Thierry THOMAS","Médecin ","CHUGAI PHARMA FRANCE","04/03/2015","04/03/2015 - ","CONVENTION DE COLLABORATION "]
["Thierry THOMAS","Médecin ","BIOGARAN","11/03/2015","11/03/2015 - ","Autre : Manifestation scientifique "]
["Thierry THOMAS","Médecin ","AMGEN SAS","05/05/2015","06/06/2015 - 06/06/2015 ","AUTRE [CONTRAT ORATEUR] "]
["Thierry THOMAS","Médecin ","BIOGARAN","06/05/2015","06/05/2015 - ","Autre : Manifestation scientifique "]
["Thierry THOMAS","Médecin ","CHUGAI PHARMA FRANCE","23/06/2015","23/06/2015 - ","CONVENTION DE COLLABORATION "]
["Thierry THOMAS","Médecin ","AMGEN SAS","02/07/2015","19/09/2015 - 19/09/2015 ","Autre [CONVENTION D ORATEUR] "]
["Thierry THOMAS","Médecin ","AMGEN SAS","17/07/2015","15/09/2015 - 18/09/2015 ","AUTRE [CONVENTION D EXPERT] "]
["Thierry THOMAS","Médecin ","AMGEN SAS","01/08/2015","22/09/2015 - 22/09/2015 ","AUTRE [CONTRAT D ORATEUR]"]
["Thierry THOMAS","Médecin ","AMGEN SAS","01/08/2015","22/09/2015 - 22/09/2015 ","Autre [CONVENTION D ORATEUR] "]
["Thierry THOMAS","Médecin ","AMGEN SAS","10/09/2015","02/10/2015 - 31/12/2015 ","AUTRE [CONTRAT D ORATEUR] "]
["Thierry THOMAS","Médecin ","TEVA SANTE SAS","16/09/2015","20/11/2015 - 20/11/2015 ","PRESTATION CONSEIL SCIENTIF/ PARTICIPATION BOARD "]
["Thierry THOMAS","Médecin ","AMGEN SAS","12/10/2015","30/11/2015 - 04/12/2015 ","AUTRE [CONVENTION D EXPERT] "]
["Thierry THOMAS","Médecin ","AMGEN SAS","20/10/2015","01/12/2015 - 01/12/2015 ","Autre [CONVENTION D ORATEUR] "]
["Thierry THOMAS","Médecin ","MSD France","04/11/2015","04/11/2015 - ","CONVENTION D’HOSPITALITÉ "]
["Thierry THOMAS","Médecin ","AMGEN SAS","09/11/2015","12/12/2015 - 16/12/2015 ","AUTRE [CONTRAT D ORATEUR] "]
["Thierry THOMAS","Médecin ","AMGEN SAS","17/11/2015","18/11/2015 - 18/11/2015 ","Autre [CONVENTION D ORATEUR] "]
["Thierry THOMAS","Médecin ","AMGEN SAS","17/11/2015","18/11/2015 - 18/11/2015 ","AUTRE [CONTRAT D ORATEUR] "]
["Thierry THOMAS","Médecin ","AMGEN SAS","19/11/2015","12/01/2016 - 16/01/2016 ","AUTRE [CONTRAT D ORATEUR] "]
["Thierry THOMAS","Médecin ","LES LABORATOIRES SERVIER","23/11/2015","23/11/2015 - ","Autre : Intervenant (Orateur/ Modérateur/ Président...) "]
["Thierry THOMAS","Médecin ","MSD France","27/11/2015","27/11/2015 - ","CONVENTION D’HOSPITALITÉ "]
["Thierry THOMAS","Médecin ","AMGEN SAS","08/12/2015","12/01/2016 - 16/01/2016 ","AUTRE [CONTRAT D ORATEUR]"]
["Pascal CLAUDEPIERRE","Médecin ","PFIZER SAS","27/08/2012","27/08/2012 - ","CONSEIL "]
["Pascal CLAUDEPIERRE","Médecin ","PFIZER SAS","08/02/2013","08/02/2013 - ","CONSEIL "]
["Pascal CLAUDEPIERRE","Médecin ","MSD France","09/04/2013","09/04/2013 - ","CONVENTION D HOSPITALITE "]
["Pascal CLAUDEPIERRE","Médecin ","PFIZER SAS","13/05/2013","13/05/2013 - ","ORATEUR RP/CONGRES/SYMPOSIUM "]
["Pascal CLAUDEPIERRE","Médecin ","GNM Healthcare Consulting Ltd","10/06/2013","01/07/2013 - 30/06/2015 ","REDACTEUR SCIENTIFIQUE "]
["Pascal CLAUDEPIERRE","Médecin ","PFIZER SAS","28/06/2013","28/06/2013 - 29/06/2013 ","Orateur RP/Congres/Sympo "]
["Pascal CLAUDEPIERRE","Médecin ","MSD France","02/07/2013","07/09/2013 - ","EXPERT "]
["Pascal CLAUDEPIERRE","Médecin ","JANSSEN-CILAG","02/08/2013","16/09/2013 - 16/09/2013 ","CONSEIL "]
["Pascal CLAUDEPIERRE","Médecin ","AbbVie","28/08/2013","08/10/2013 - ","AUTRE: [CONTRAT DE COLLABORATION SCENTIFIQUE] "]
["Pascal CLAUDEPIERRE","Médecin ","MSD France","06/09/2013","06/09/2013 - 07/09/2013 ","CONVENTION D HOSPITALITE "]
["Pascal CLAUDEPIERRE","Médecin ","MSD France","11/09/2013","11/09/2013 - ","EXPERT "]
["Pascal CLAUDEPIERRE","Médecin ","MSD France","17/09/2013","17/09/2013 - ","CONVENTION D HOSPITALITE "]
["Pascal CLAUDEPIERRE","Médecin ","PFIZER SAS","20/09/2013","20/09/2013 - 21/09/2013 ","Orateur RP/Congres/Sympo "]
["Pascal CLAUDEPIERRE","Médecin ","PFIZER SAS","23/09/2013","23/09/2013 - ","ORATEUR RP/CONGRES/SYMPOSIUM "]
["Pascal CLAUDEPIERRE","Médecin ","MSD France","25/09/2013","11/12/2013 - 11/12/2013 ","EXPERT "]
["Pascal CLAUDEPIERRE","Médecin ","MSD France","25/09/2013","25/09/2013 - ","EXPERT "]
["Pascal CLAUDEPIERRE","Médecin ","MSD France","23/10/2013","23/10/2013 - ","EXPERT "]
["Pascal CLAUDEPIERRE","Médecin ","MSD France","23/10/2013","12/11/2013 - 12/11/2013 ","EXPERT "]
["Pascal CLAUDEPIERRE","Médecin ","PFIZER SAS","25/10/2013","25/10/2013 - 30/10/2013 ","Hospitalite RP/Congres / Sympo "]
["Pascal CLAUDEPIERRE","Médecin ","MSD France","31/10/2013","31/10/2013 - ","EXPERT"]
["Pascal CLAUDEPIERRE","Médecin ","MSD France","31/10/2013","02/12/2013 - 02/12/2013 ","EXPERT "]
["Pascal CLAUDEPIERRE","Médecin ","AbbVie","08/11/2013","08/11/2013 - ","RECHERCHE "]
["Pascal CLAUDEPIERRE","Médecin ","MSD France","12/11/2013","12/11/2013 - ","CONVENTION D HOSPITALITE "]
["Pascal CLAUDEPIERRE","Médecin ","MSD France","12/11/2013","12/11/2013 - ","CONVENTION D HOSPITALITE "]
["Pascal CLAUDEPIERRE","Médecin ","AbbVie","14/11/2013","14/11/2013 - ","AUTRE: [CONTRAT DE COLLABORATION SCIENTIFIQUE] "]
["Pascal CLAUDEPIERRE","Médecin ","PFIZER SAS","26/11/2013","26/11/2013 - ","ORATEUR RP/CONGRES/SYMPOSIUM "]
["Pascal CLAUDEPIERRE","Médecin ","PFIZER SAS","01/12/2013","01/12/2013 - 03/12/2013 ","HOSPITALITE RP/CONGRES / SYMPO "]
["Pascal CLAUDEPIERRE","Médecin ","MSD France","14/01/2014","14/01/2014 - ","CONVENTION D HOSPITALITE "]
["Pascal CLAUDEPIERRE","Médecin ","PFIZER SAS","07/02/2014","07/02/2014 - 08/02/2014 ","ORATEUR RP/CONGRES/SYMPO "]
["Pascal CLAUDEPIERRE","Médecin ","PFIZER SAS","07/02/2014","07/02/2014 - 08/02/2014 ","ORATEUR RP/CONGRES/SYMPO "]
["Pascal CLAUDEPIERRE","Médecin ","MSD France","11/03/2014","11/03/2014 - ","CONVENTION D HOSPITALITE "]
["Pascal CLAUDEPIERRE","Médecin ","MSD France","20/03/2014","22/04/2014 - 29/10/2014 ","EXPERT "]
["Pascal CLAUDEPIERRE","Médecin ","AbbVie","24/04/2014","24/04/2014 - ","AUTRE: [CONTRAT DE COLLABORATION SCIENTIFIQUE] "]
["Pascal CLAUDEPIERRE","Médecin ","MSD France","04/05/2014","04/05/2014 - ","CONVENTION D’HOSPITALITÉ "]
["Pascal CLAUDEPIERRE","Médecin ","MSD France","13/05/2014","13/05/2014 - ","CONVENTION D HOSPITALITE "]
["Pascal CLAUDEPIERRE","Médecin ","PFIZER SAS","16/05/2014","16/05/2014 - 16/05/2014 ","ORATEUR RP/CONGRES/SYMPOSIUM "]
["Pascal CLAUDEPIERRE","Médecin ","MSD France","19/05/2014","26/06/2014 - 26/06/2014 ","EXPERT "]
["Pascal CLAUDEPIERRE","Médecin ","AbbVie","23/05/2014","23/05/2014 - ","AUTRE : [CONVENTION D HOSPITALITE] "]
["Pascal CLAUDEPIERRE","Médecin ","AbbVie","22/06/2014","22/06/2014 - ","AUTRE: [CONTRAT DE COLLABORATION SCIENTIFIQUE] "]
["Pascal CLAUDEPIERRE","Médecin ","NOVARTIS PHARMA SAS","26/06/2014","26/06/2014 - 31/12/2016 ","Recherche"]
["Pascal CLAUDEPIERRE","Médecin ","MSD France","07/07/2014","07/07/2014 - ","CONVENTION D HOSPITALITE "]
["Pascal CLAUDEPIERRE","Médecin ","UCB Pharma SA","15/07/2014","15/07/2014 - 31/12/2014 ","Conseil "]
["Pascal CLAUDEPIERRE","Médecin ","PFIZER SAS","15/07/2014","04/11/2014 - ","ORATEUR RP/CONGRES/SYMPOSIUM "]
["Pascal CLAUDEPIERRE","Médecin ","MSD France","15/07/2014","25/08/2014 - 24/08/2015 ","EXPERT "]
["Pascal CLAUDEPIERRE","Médecin ","MSD France","18/07/2014","26/08/2014 - 26/08/2014 ","EXPERT "]
["Pascal CLAUDEPIERRE","Médecin ","PFIZER SAS","22/07/2014","12/08/2014 - ","ORATEUR RP/CONGRES/SYMPOSIUM "]
["Pascal CLAUDEPIERRE","Médecin ","AbbVie","24/07/2014","24/07/2014 - ","AUTRE: [CONTRAT DE COLLABORATION SCIENTIFIQUE] "]
["Pascal CLAUDEPIERRE","Médecin ","PFIZER SAS","12/08/2014","26/08/2014 - ","ORATEUR RP/CONGRES/SYMPOSIUM "]
["Pascal CLAUDEPIERRE","Médecin ","ROCHE SAS","08/10/2014","08/10/2014 - 08/10/2014 ","Autre : [ Réunion professionnelle ] "]
["Pascal CLAUDEPIERRE","Médecin ","MSD France","09/10/2014","11/12/2014 - 10/12/2015 ","EXPERT "]
["Pascal CLAUDEPIERRE","Médecin ","PFIZER SAS","21/10/2014","12/12/2014 - 30/06/2015 ","Autre : Contrat consultant "]
["Pascal CLAUDEPIERRE","Médecin ","PFIZER SAS","27/10/2014","29/11/2014 - 08/12/2014 ","Autre : Contrat intervenant "]
["Pascal CLAUDEPIERRE","Médecin ","PFIZER SAS","04/11/2014","11/12/2014 - 15/01/2015 ","Autre : Contrat consultant "]
["Pascal CLAUDEPIERRE","Médecin ","Laboratoires Grünenthal SAS","07/11/2014","07/11/2014 - ","REUNION SCIENTIFIQUE "]
["Pascal CLAUDEPIERRE","Médecin ","PFIZER SAS","15/11/2014","15/11/2014 - 19/11/2014 ","Congrès / Symposium "]
["Pascal CLAUDEPIERRE","Médecin ","UCB Pharma SA","24/11/2014","01/01/2015 - 31/12/2015 ","Autre : [ Collaboration Scientifique ] "]
["Pascal CLAUDEPIERRE","Médecin ","ROCHE SAS","02/12/2014","02/12/2014 - 02/12/2014 ","Autre : [ Réunion professionnelle ] "]
["Pascal CLAUDEPIERRE","Médecin ","PFIZER SAS","07/12/2014","07/12/2014 - 09/12/2014 ","Congrès / Symposium "]
["Pascal CLAUDEPIERRE","Médecin ","PFIZER SAS","12/12/2014","06/02/2015 - 07/02/2015 ","Autre : Contrat intervenant "]
["Pascal CLAUDEPIERRE","Médecin ","PFIZER SAS","19/12/2014","12/02/2015 - 30/06/2015 ","Autre : Contrat consultant"]
["Pascal CLAUDEPIERRE","Médecin ","MSD France","22/12/2014","27/01/2015 - 26/01/2016 ","EXPERT "]
["Pascal CLAUDEPIERRE","Médecin ","UCB Pharma SA","13/01/2015","20/02/2015 - 31/12/2015 ","Conseil "]
["Pascal CLAUDEPIERRE","Médecin ","UCB Pharma SA","20/01/2015","27/02/2015 - 31/12/2015 ","Conseil "]
["Pascal CLAUDEPIERRE","Médecin ","Arthritis Fondation Courtin","23/01/2015","23/01/2015 - ","CONVENTION RECHERCHE "]
["Pascal CLAUDEPIERRE","Médecin ","PFIZER SAS","06/02/2015","06/02/2015 - 07/02/2015 ","Autre : Reunion professionnelle ou scientifique "]
["Pascal CLAUDEPIERRE","Médecin ","MSD France","09/03/2015","09/04/2015 - 10/04/2015 ","EXPERT "]
["Pascal CLAUDEPIERRE","Médecin ","ROCHE SAS","18/03/2015","18/03/2015 - 18/03/2015 ","Autre : [ Orateur / Intervenant ] "]
["Pascal CLAUDEPIERRE","Médecin ","NOVARTIS PHARMA SAS","20/03/2015","20/03/2015 - 31/12/2015 ","AUTRE : [CONTRAT DE CONSEIL & PRESTATION] "]
["Pascal CLAUDEPIERRE","Médecin ","NOVARTIS PHARMA SAS","02/04/2015","02/04/2015 - 02/04/2015 ","Autre : [Hospitalité Evenement] "]
["Pascal CLAUDEPIERRE","Médecin ","PFIZER SAS","03/04/2015","03/04/2015 - 03/04/2015 ","Congres / Symposium "]
["Pascal CLAUDEPIERRE","Médecin ","PFIZER SAS","03/04/2015","03/04/2015 - 03/04/2015 ","Autre : Reunion professionnelle ou scientifique "]
["Pascal CLAUDEPIERRE","Médecin ","MSD France","10/04/2015","10/04/2015 - ","CONVENTION D’HOSPITALITÉ "]
["Pascal CLAUDEPIERRE","Médecin ","AbbVie","14/04/2015","14/04/2015 - ","AUTRE: [CONVENTION HOSPITALITE] "]
["Pascal CLAUDEPIERRE","Médecin ","PFIZER SAS","21/04/2015","26/06/2015 - 27/06/2015 ","Congres / Symposium "]
["Pascal CLAUDEPIERRE","Médecin ","UCB Pharma SA","30/04/2015","30/04/2015 - 02/05/2015 ","Congrès / symposium "]
["Pascal CLAUDEPIERRE","Médecin ","MSD France","05/05/2015","05/05/2015 - ","CONVENTION D’HOSPITALITÉ "]
["Pascal CLAUDEPIERRE","Médecin ","MSD France","12/05/2015","12/05/2015 - ","CONVENTION D’HOSPITALITÉ "]
["Pascal CLAUDEPIERRE","Médecin ","BRISTOL-MYERS SQUIBB","10/06/2015","10/06/2015 - ","Autre : [Consultant (HCP)] "]
["Pascal CLAUDEPIERRE","Médecin ","MSD France","16/06/2015","01/07/2015 - 01/07/2016 ","EXPERT "]
["Pascal CLAUDEPIERRE","Médecin ","PFIZER SAS","26/06/2015","26/06/2015 - 27/06/2015 ","Autre : Reunion professionnelle ou scientifique"]
["Pascal CLAUDEPIERRE","Médecin ","PFIZER SAS","30/06/2015","30/06/2015 - 30/06/2015 ","Autre : Reunion professionnelle ou scientifique "]
["Pascal CLAUDEPIERRE","Médecin ","AbbVie","23/07/2015","23/07/2015 - 23/07/2015 ","AUTRE: [CONTRAT DE COLLABORATION SCIENTIFIQUE] "]
["Pascal CLAUDEPIERRE","Médecin ","MSD France","29/07/2015","22/09/2015 - 22/09/2015 ","EXPERT "]
["Pascal CLAUDEPIERRE","Médecin ","PFIZER SAS","08/09/2015","11/09/2015 - 12/09/2015 ","Congrès / Symposium "]
["Pascal CLAUDEPIERRE","Médecin ","PFIZER SAS","11/09/2015","11/09/2015 - 12/09/2015 ","Autre : Réunion professionnelle ou scientifique "]
["Pascal CLAUDEPIERRE","Médecin ","AbbVie","15/09/2015","15/09/2015 - ","AUTRE: [CONVENTION HOSPITALITE] "]
["Pascal CLAUDEPIERRE","Médecin ","JANSSEN-CILAG","06/10/2015","20/10/2015 - 20/10/2015 ","CONGRES / SYMPOSIUM "]
["Pascal CLAUDEPIERRE","Médecin ","JANSSEN-CILAG","30/10/2015","20/11/2015 - 20/11/2015 ","CONGRES / SYMPOSIUM "]
["Pascal CLAUDEPIERRE","Médecin ","MSD France","02/11/2015","19/11/2015 - 19/11/2015 ","ORATEUR "]
["Pascal CLAUDEPIERRE","Médecin ","MSD France","05/11/2015","27/11/2015 - 28/11/2015 ","EXPERT "]
["Pascal CLAUDEPIERRE","Médecin ","PFIZER SAS","07/11/2015","07/11/2015 - 11/11/2015 ","Congrès / Symposium "]
["Pascal CLAUDEPIERRE","Médecin ","MSD France","12/11/2015","15/12/2015 - 15/12/2015 ","EXPERT "]
["Pascal CLAUDEPIERRE","Médecin ","MSD France","27/11/2015","27/11/2015 - ","CONVENTION D’HOSPITALITÉ "]
["Pascal CLAUDEPIERRE","Médecin ","ROCHE SAS","02/12/2015","02/12/2015 - 02/12/2015 ","Autre : [ Reunion professionnelle ]"]
["Philippe GOUPILLE","Médecin ","ROCHE SAS","26/08/2012","26/08/2012 - ","ORATEUR INTERVENANT "]
["Philippe GOUPILLE","Médecin ","AbbVie","05/10/2012","05/10/2012 - ","AUTRE : [CONTRAT DE COLLABORATION SCIENTIFIQUE] "]
["Philippe GOUPILLE","Médecin ","AbbVie","07/12/2012","07/12/2012 - ","AUTRE : [CONTRAT DE COLLABORATION SCIENTIFIQUE] "]
["Philippe GOUPILLE","Médecin ","AbbVie","21/12/2012","21/12/2012 - ","AUTRE: [CONTRAT DE COLLABORATION SCIENTIFIQUE] "]
["Philippe GOUPILLE","Médecin ","AbbVie","20/02/2013","20/02/2013 - ","AUTRE: [CONTRAT DE COLLABORATION SCIENTIFIQUE] "]
["Philippe GOUPILLE","Médecin ","AbbVie","12/03/2013","12/03/2013 - ","AUTRE : [CONTRAT DE COLLABORATION SCIENTIFIQUE] "]
["Philippe GOUPILLE","Médecin ","JANSSEN-CILAG","04/04/2013","16/05/2013 - 16/05/2013 ","CONGRES / SYMPOSIUM "]
["Philippe GOUPILLE","Médecin ","MSD France","25/07/2013","25/09/2013 - 25/09/2013 ","ORATEUR "]
["Philippe GOUPILLE","Médecin ","MSD France","25/07/2013","25/07/2013 - ","ORATEUR "]
["Philippe GOUPILLE","Médecin ","ICON CLINICAL RESEARCH SARL","28/07/2013","28/07/2013 - ","recherche biomédicale "]
["Philippe GOUPILLE","Médecin ","JANSSEN-CILAG","31/07/2013","16/09/2013 - 16/09/2013 ","CONSEIL "]
["Philippe GOUPILLE","Médecin ","ICON CLINICAL RESEARCH SARL","28/08/2013","28/08/2013 - ","recherche biomédicale "]
["Philippe GOUPILLE","Médecin ","PFIZER SAS","29/08/2013","29/08/2013 - ","ORATEUR RP/CONGRES/SYMPOSIUM "]
["Philippe GOUPILLE","Médecin ","PFIZER SAS","13/09/2013","13/09/2013 - 14/09/2013 ","Orateur RP/Congres/Sympo "]
["Philippe GOUPILLE","Médecin ","MSD France","16/09/2013","16/09/2013 - ","EXPERT "]
["Philippe GOUPILLE","Médecin ","NORDIC PHARMA SAS","25/09/2013","25/09/2013 - 25/09/2013 ","Autre : [ EPU ] "]
["Philippe GOUPILLE","Médecin ","MSD France","02/10/2013","02/10/2013 - 02/10/2013 ","EXPERT "]
["Philippe GOUPILLE","Médecin ","PFIZER SAS","25/10/2013","25/10/2013 - 30/10/2013 ","Hospitalite RP/Congres / Sympo "]
["Philippe GOUPILLE","Médecin ","MSD France","06/11/2013","06/11/2013 - ","CONVENTION D HOSPITALITE "]
["Philippe GOUPILLE","Médecin ","MSD France","06/11/2013","06/11/2013 - ","CONVENTION D HOSPITALITE"]
["Philippe GOUPILLE","Médecin ","AbbVie","08/11/2013","08/11/2013 - ","RECHERCHE "]
["Philippe GOUPILLE","Médecin ","MSD France","13/11/2013","13/12/2013 - 13/12/2013 ","EXPERT "]
["Philippe GOUPILLE","Médecin ","MSD France","13/11/2013","13/11/2013 - ","EXPERT "]
["Philippe GOUPILLE","Médecin ","PFIZER SAS","26/11/2013","26/11/2013 - ","ORATEUR RP/CONGRES/SYMPOSIUM "]
["Philippe GOUPILLE","Médecin ","PFIZER SAS","01/12/2013","01/12/2013 - 03/12/2013 ","HOSPITALITE RP/CONGRES / SYMPO "]
["Philippe GOUPILLE","Médecin ","AbbVie","10/12/2013","10/12/2013 - ","AUTRE: [CONVENTION HOSPITALITE] "]
["Philippe GOUPILLE","Médecin ","MSD France","13/12/2013","13/12/2013 - ","CONVENTION D HOSPITALITE "]
["Philippe GOUPILLE","Médecin ","BRISTOL-MYERS SQUIBB","16/01/2014","11/02/2014 - ","Autre : [Consultant (HCP)] "]
["Philippe GOUPILLE","Médecin ","MSD France","17/02/2014","18/03/2014 - 18/03/2014 ","EXPERT "]
["Philippe GOUPILLE","Médecin ","AbbVie","07/04/2014","07/04/2014 - ","AUTRE: [CONTRAT DE COLLABORATION SCIENTIFIQUE] "]
["Philippe GOUPILLE","Médecin ","BRISTOL-MYERS SQUIBB","16/04/2014","16/04/2014 - ","Autre : [Orateur] "]
["Philippe GOUPILLE","Médecin ","AbbVie","17/04/2014","17/04/2014 - ","AUTRE: [CONTRAT DE COLLABORATION SCIENTIFIQUE] "]
["Philippe GOUPILLE","Médecin ","AMGEN SAS","09/05/2014","13/05/2014 - 13/05/2014 ","AUTRE [CONVENTION D EXPERT] "]
["Philippe GOUPILLE","Médecin ","Lilly France SAS","12/05/2014","14/05/2014 - 14/05/2014 ","CONSEIL "]
["Philippe GOUPILLE","Médecin ","TBWA\\ADELPHI","16/05/2014","16/05/2014 - ","Conseil "]
["Philippe GOUPILLE","Médecin ","ROCHE SAS","20/05/2014","20/05/2014 - 20/05/2014 ","Autre : [ Orateur / Intervenant ] "]
["Philippe GOUPILLE","Médecin ","ROCHE SAS","20/05/2014","20/05/2014 - 20/05/2014 ","Autre : [ R‚union professionnelle ] "]
["Philippe GOUPILLE","Médecin ","AbbVie","03/06/2014","03/06/2014 - ","AUTRE: [CONVENTION HOSPITALITE] "]
["Philippe GOUPILLE","Médecin ","MSD France","03/06/2014","03/06/2014 - ","CONVENTION D HOSPITALITE "]
["Philippe GOUPILLE","Médecin ","PRECIPHAR","04/06/2014","02/07/2014 - 02/07/2014 ","Autre[ORATEUR REUNION POST EULAR TOURS]"]
["Philippe GOUPILLE","Médecin ","ROCHE SAS","04/06/2014","04/06/2014 - 04/06/2014 ","Autre : [ R‚union professionnelle ] "]
["Philippe GOUPILLE","Médecin ","AbbVie","19/06/2014","19/06/2014 - ","AUTRE: [CONTRAT DE COLLABORATION SCIENTIFIQUE] "]
["Philippe GOUPILLE","Médecin ","MSD France","02/07/2014","02/07/2014 - ","CONVENTION D HOSPITALITE "]
["Philippe GOUPILLE","Médecin ","MSD France","15/07/2014","25/08/2014 - 24/08/2015 ","EXPERT "]
["Philippe GOUPILLE","Médecin ","AMGEN SAS","19/08/2014","09/10/2014 - 12/10/2014 ","AUTRE [CONTRAT D ORATEUR] "]
["Philippe GOUPILLE","Médecin ","MSD France","27/08/2014","14/10/2014 - 14/10/2014 ","EXPERT "]
["Philippe GOUPILLE","Médecin ","BRISTOL-MYERS SQUIBB","02/09/2014","03/10/2014 - ","Autre : [Orateur] "]
["Philippe GOUPILLE","Médecin ","MSD France","16/09/2014","16/10/2014 - 16/10/2014 ","ORATEUR "]
["Philippe GOUPILLE","Médecin ","SWEDISH ORPHAN BIOVITRUM","23/09/2014","23/09/2014 - 27/09/2014 ","conseil "]
["Philippe GOUPILLE","Médecin ","MSD France","03/10/2014","24/11/2014 - 08/04/2015 ","EXPERT "]
["Philippe GOUPILLE","Médecin ","UCB Pharma SA","07/10/2014","07/10/2014 - 07/10/2014 ","Autre : [ hospitalité liée à une manifestation scientifique ] "]
["Philippe GOUPILLE","Médecin ","MSD France","16/10/2014","16/10/2014 - ","CONVENTION D’HOSPITALITE "]
["Philippe GOUPILLE","Médecin ","Lilly France SAS","27/10/2014","27/10/2014 - 27/10/2014 ","AUTRE : [PARTICIPATION R�ION SCIENTIFIQUE] "]
["Philippe GOUPILLE","Médecin ","MSD France","05/11/2014","05/11/2014 - ","RECHERCHE BIOMEDICALE "]
["Philippe GOUPILLE","Médecin ","AMGEN SAS","22/11/2014","22/11/2014 - 22/11/2014 ","AUTRE [CONVENTION D HOSPITALITE] "]
["Philippe GOUPILLE","Médecin ","AMGEN SAS","22/11/2014","22/11/2014 - 22/11/2014 ","AUTRE [CONVENTION D HOSPITALITE] "]
["Philippe GOUPILLE","Médecin ","UCB Pharma SA","25/11/2014","01/01/2015 - 31/12/2015 ","Autre : [ Collaboration Scientifique ] "]
["Philippe GOUPILLE","Médecin ","ROCHE SAS","02/12/2014","02/12/2014 - 02/12/2014 ","Autre : [ Réunion professionnelle ] "]
["Philippe GOUPILLE","Médecin ","PFIZER SAS","12/12/2014","06/02/2015 - 07/02/2015 ","Autre : Contrat intervenant "]
["Philippe GOUPILLE","Médecin ","BIOGARAN","12/12/2014","13/12/2014 - 17/06/2015 ","AUTRE [EXPERT]"]
["Philippe GOUPILLE","Médecin ","Lilly France SAS","18/12/2014","18/12/2014 - 18/12/2014 ","AUTRE : [CONTRAT D'ORATEUR] "]
["Philippe GOUPILLE","Médecin ","AMGEN SAS","26/01/2015","26/01/2015 - ","CONVENTION DE RECHERCHE "]
["Philippe GOUPILLE","Médecin ","BRISTOL-MYERS SQUIBB","27/01/2015","27/01/2015 - ","Autre : [Consultant (HCP)] "]
["Philippe GOUPILLE","Médecin ","JANSSEN-CILAG","28/01/2015","26/02/2015 - 26/02/2015 ","CONSEIL "]
["Philippe GOUPILLE","Médecin ","MSD France","30/01/2015","30/01/2015 - ","CONVENTION D’HOSPITALITE "]
["Philippe GOUPILLE","Médecin ","PR EDITIONS SAS","02/02/2015","02/02/2015 - 30/06/2016 ","autre: REDACTION D'ARTICLES "]
["Philippe GOUPILLE","Médecin ","PR EDITIONS SAS","02/02/2015","02/02/2015 - 31/12/2015 ","autre: REDACTION D'ARTICLES "]
["Philippe GOUPILLE","Médecin ","PFIZER SAS","06/02/2015","06/02/2015 - 07/02/2015 ","Autre : Reunion professionnelle ou scientifique "]
["Philippe GOUPILLE","Médecin ","BIOGARAN","10/02/2015","12/03/2015 - 13/03/2015 ","CONSEIL "]
["Philippe GOUPILLE","Médecin ","MSD France","18/02/2015","26/03/2015 - 27/03/2015 ","EXPERT "]
["Philippe GOUPILLE","Médecin ","MSD France","09/03/2015","09/04/2015 - 10/04/2015 ","EXPERT "]
["Philippe GOUPILLE","Médecin ","BIOGARAN","12/03/2015","12/03/2015 - ","Autre : Intervenant (Orateur/ ModÃ©rateur/ PrÃ©sident...) "]
["Philippe GOUPILLE","Médecin ","NOVARTIS PHARMA SAS","18/03/2015","18/03/2015 - 31/12/2015 ","AUTRE : [CONTRAT DE CONSEIL & PRESTATION] "]
["Philippe GOUPILLE","Médecin ","ROCHE SAS","26/03/2015","26/03/2015 - 26/03/2015 ","Autre : [ Orateur / Intervenant ] "]
["Philippe GOUPILLE","Médecin ","ROCHE SAS","26/03/2015","26/03/2015 - 26/03/2015 ","Autre : [ R\u0082union professionnelle ] "]
["Philippe GOUPILLE","Médecin ","MSD France","26/03/2015","26/03/2015 - ","CONVENTION D’HOSPITALITÉ "]
["Philippe GOUPILLE","Médecin ","AbbVie","27/03/2015","27/03/2015 - ","AUTRE: [CONVENTION HOSPITALITE] "]
["Philippe GOUPILLE","Médecin ","MSD France","10/04/2015","10/04/2015 - ","CONVENTION D’HOSPITALITÉ "]
["Philippe GOUPILLE","Médecin ","BRISTOL-MYERS SQUIBB","11/04/2015","29/05/2015 - ","Autre : [Orateur] "]
["Philippe GOUPILLE","Médecin ","MSD France","17/04/2015","19/05/2015 - 13/10/2015 ","EXPERT"]
["Philippe GOUPILLE","Médecin ","NORDIC PHARMA SAS","22/04/2015","30/04/2015 - 02/05/2015 ","Autre : [ Orateur ] "]
["Philippe GOUPILLE","Médecin ","BIOGARAN","30/04/2015","30/04/2015 - ","Autre : Manifestation scientifique "]
["Philippe GOUPILLE","Médecin ","MSD France","15/05/2015","20/06/2015 - 20/06/2015 ","EXPERT "]
["Philippe GOUPILLE","Médecin ","MSD France","22/05/2015","09/07/2015 - 09/07/2015 ","ORATEUR "]
["Philippe GOUPILLE","Médecin ","BOEHRINGER INGELHEIM FRANCE","27/05/2015","27/05/2015 - 31/12/2015 ","AUTRE : PARTICIPATION A MANIFESTATION SCIENTIFIQUE "]
["Philippe GOUPILLE","Médecin ","BRISTOL-MYERS SQUIBB","27/05/2015","02/06/2015 - ","Autre : [Orateur] "]
["Philippe GOUPILLE","Médecin ","BRISTOL-MYERS SQUIBB","27/05/2015","04/06/2015 - ","Autre : [Orateur] "]
["Philippe GOUPILLE","Médecin ","BRISTOL-MYERS SQUIBB","28/05/2015","29/05/2015 - ","Autre : [Orateur] "]
["Philippe GOUPILLE","Médecin ","AMGEN SAS","29/05/2015","29/05/2015 - 29/05/2015 ","CONVENTION DE RECHERCHE "]
["Philippe GOUPILLE","Médecin ","BIOGARAN","03/06/2015","27/04/2015 - 02/05/2015 ","CONSEIL "]
["Philippe GOUPILLE","Médecin ","AbbVie","19/06/2015","20/05/2015 - 20/05/2015 ","AUTRE: [CONVENTION HOSPITALITE] "]
["Philippe GOUPILLE","Médecin ","ROCHE SAS","25/06/2015","25/06/2015 - 25/06/2015 ","Autre : [ R\u0082union professionnelle ] "]
["Philippe GOUPILLE","Médecin ","RE-IMAGINE Health Agency","20/07/2015","20/07/2015 - 24/07/2015 ","AUTRE : REFLEXION SCIENTFIQUE EVENEMENT INTERDISCIPLINAIRE "]
["Philippe GOUPILLE","Médecin ","JANSSEN-CILAG","28/07/2015","29/09/2015 - 29/09/2015 ","CONGRES / SYMPOSIUM "]
["Philippe GOUPILLE","Médecin ","MSD France","29/07/2015","22/09/2015 - 22/09/2015 ","EXPERT "]
["Philippe GOUPILLE","Médecin ","BRISTOL-MYERS SQUIBB","12/08/2015","15/09/2015 - ","Autre : [Orateur] "]
["Philippe GOUPILLE","Médecin ","PFIZER SAS","18/09/2015","18/09/2015 - 19/09/2015 ","Autre : Réunion professionnelle ou scientifique "]
["Philippe GOUPILLE","Médecin ","PFIZER SAS","18/09/2015","18/09/2015 - 19/09/2015 ","Congrès / Symposium "]
["Philippe GOUPILLE","Médecin ","MSD France","21/09/2015","20/10/2015 - 20/11/2015 ","ORATEUR "]
["Philippe GOUPILLE","Médecin ","AbbVie","24/09/2015","24/09/2015 - 24/09/2015 ","AUTRE: [CONTRAT DE COLLABORATION SCIENTIFIQUE]"]
["Philippe GOUPILLE","Médecin ","MSD France","24/09/2015","02/11/2015 - 02/11/2015 ","EXPERT "]
["Philippe GOUPILLE","Médecin ","AbbVie","24/09/2015","24/09/2015 - ","AUTRE: [CONVENTION HOSPITALITE] "]
["Philippe GOUPILLE","Médecin ","JANSSEN-CILAG","29/09/2015","29/09/2015 - 29/09/2015 ","CONGRES / SYMPOSIUM "]
["Philippe GOUPILLE","Médecin ","ROCHE SAS","13/10/2015","13/10/2015 - 13/10/2015 ","Autre : [ Réunion professionnelle ] "]
["Philippe GOUPILLE","Médecin ","INC RESEARCH, LLC","19/10/2015","19/10/2015 - ","research "]
["Philippe GOUPILLE","Médecin ","INC RESEARCH, LLC","19/10/2015","19/10/2015 - ","research "]
["Philippe GOUPILLE","Médecin ","MSD France","20/10/2015","20/10/2015 - ","CONVENTION D’HOSPITALITÉ "]
["Philippe GOUPILLE","Médecin ","MSD France","04/11/2015","20/10/2015 - 20/10/2015 ","ORATEUR "]
["Philippe GOUPILLE","Médecin ","PFIZER SAS","24/11/2015","30/11/2015 - 31/12/2015 ","Autre : [Contrat autre] "]
["Philippe GOUPILLE","Médecin ","ROCHE SAS","25/11/2015","25/11/2015 - 25/11/2015 ","Autre : [ Reunion professionnelle ] "]
["Philippe GOUPILLE","Médecin ","MSD France","25/11/2015","07/12/2015 - 07/12/2015 ","EXPERT "]
["Philippe GOUPILLE","Médecin ","BIOGARAN","09/12/2015","10/12/2015 - 10/12/2015 ","CONGRES / SYMPOSIUM "]
["Philippe GOUPILLE","Médecin ","MSD France","13/12/2015","13/12/2015 - ","CONVENTION D’HOSPITALITÉ"]
["Françoise DEBIAIS","Médecin ","AbbVie","27/11/2012","27/11/2012 - ","AUTRE : [CONTRAT DE COLLABORATION SCIENTIFIQUE] "]
["Françoise DEBIAIS","Médecin ","Lilly France SAS","12/09/2013","12/09/2013 - 12/09/2013 ","CONVENTION D'ORATEUR RÉUNION PROFESSIONNELLE "]
["Françoise DEBIAIS","Médecin ","MSD France","20/09/2013","20/09/2013 - ","ORATEUR "]
["Françoise DEBIAIS","Médecin ","MSD France","24/09/2013","24/09/2013 - 25/09/2013 ","CONVENTION D HOSPITALITE "]
["Françoise DEBIAIS","Médecin ","NOVARTIS PHARMA SAS","04/10/2013","04/10/2013 - 07/10/2013 ","Autre : [Hospitalité] "]
["Françoise DEBIAIS","Médecin ","AMGEN SAS","10/10/2013","27/11/2013 - 30/11/2013 ","AUTRE [CONVENTION D EXPERT] "]
["Françoise DEBIAIS","Médecin ","MSD France","19/10/2013","19/10/2013 - ","CONVENTION D HOSPITALITE "]
["Françoise DEBIAIS","Médecin ","MSD France","19/10/2013","19/10/2013 - ","CONVENTION D HOSPITALITE "]
["Françoise DEBIAIS","Médecin ","PFIZER SAS","23/10/2013","23/10/2013 - ","ORATEUR RP/CONGRES/SYMPOSIUM "]
["Françoise DEBIAIS","Médecin ","Lilly France SAS","14/11/2013","14/11/2013 - 09/11/2013 ","INVITATION "]
["Françoise DEBIAIS","Médecin ","JANSSEN-CILAG","22/11/2013","22/11/2013 - 22/11/2013 ","CONGRES / SYMPOSIUM "]
["Françoise DEBIAIS","Médecin ","CONGRES COLLOQUES CONVENTIONS","23/11/2013","23/11/2013 - 23/11/2013 ","CONGRES SYMPOSIUM "]
["Françoise DEBIAIS","Médecin ","AMGEN SAS","06/03/2014","09/04/2014 - 12/04/2014 ","AUTRE [CONVENTION D EXPERT] "]
["Françoise DEBIAIS","Médecin ","AMGEN SAS","06/03/2014","09/04/2014 - 12/04/2014 ","AUTRE [CONVENTION D EXPERT] "]
["Françoise DEBIAIS","Médecin ","PFIZER SAS","11/04/2014","11/04/2014 - 12/04/2014 ","ORATEUR RP/CONGRES/SYMPO "]
["Françoise DEBIAIS","Médecin ","PFIZER SAS","11/04/2014","11/04/2014 - 12/04/2014 ","ORATEUR RP/CONGRES/SYMPO "]
["Françoise DEBIAIS","Médecin ","ROCHE SAS","04/06/2014","04/06/2014 - 05/06/2014 ","Autre : [ R‚union professionnelle ] "]
["Françoise DEBIAIS","Médecin ","AbbVie","30/09/2014","30/09/2014 - ","AUTRE: [CONTRAT DE COLLABORATION SCIENTIFIQUE] "]
["Françoise DEBIAIS","Médecin ","AMGEN SAS","06/10/2014","07/12/2014 - 10/12/2014 ","AUTRE [CONTRAT D ORATEUR] "]
["Françoise DEBIAIS","Médecin ","AbbVie","16/10/2014","16/10/2014 - ","AUTRE : [CONVENTION D HOSPITALITE]"]
["Françoise DEBIAIS","Médecin ","AbbVie","30/10/2014","30/10/2014 - ","AUTRE : [CONVENTION D HOSPITALITE] "]
["Françoise DEBIAIS","Médecin ","AbbVie","14/11/2014","14/11/2014 - ","AUTRE : [CONVENTION D HOSPITALITE] "]
["Françoise DEBIAIS","Médecin ","CONGRES COLLOQUES CONVENTIONS","22/11/2014","22/11/2014 - 22/11/2014 ","CONGRES SYMPOSIUM "]
["Françoise DEBIAIS","Médecin ","ROCHE SAS","04/12/2014","04/12/2014 - 04/12/2014 ","Autre : [ Réunion professionnelle ] "]
["Françoise DEBIAIS","Médecin ","AMGEN SAS","18/12/2014","20/01/2015 - 20/01/2015 ","AUTRE [CONVENTION D EXPERT] "]
["Françoise DEBIAIS","Médecin ","AMGEN SAS","21/01/2015","27/02/2015 - 28/02/2015 ","AUTRE [CONVENTION D HOSPITALITE] "]
["Françoise DEBIAIS","Médecin ","AMGEN SAS","28/01/2015","20/01/2015 - 20/01/2015 ","AUTRE [CONTRAT ORATEUR] "]
["Françoise DEBIAIS","Médecin ","AbbVie","12/02/2015","12/02/2015 - ","AUTRE: [CONVENTION HOSPITALITE] "]
["Françoise DEBIAIS","Médecin ","AMGEN SAS","01/03/2015","25/04/2015 - 28/04/2015 ","AUTRE [CONVENTION D HOSPITALITE] "]
["Françoise DEBIAIS","Médecin ","PFIZER SAS","10/03/2015","17/04/2015 - 18/04/2015 ","Congres / Symposium "]
["Françoise DEBIAIS","Médecin ","AMGEN SAS","09/04/2015","23/04/2015 - 23/04/2015 ","Autre [CONVENTION D ORATEUR] "]
["Françoise DEBIAIS","Médecin ","AMGEN SAS","09/04/2015","23/04/2015 - 23/04/2015 ","AUTRE [CONTRAT ORATEUR] "]
["Françoise DEBIAIS","Médecin ","AMGEN SAS","17/04/2015","23/04/2015 - 23/04/2015 ","AUTRE [CONVENTION D HOSPITALITE] "]
["Françoise DEBIAIS","Médecin ","PFIZER SAS","17/04/2015","17/04/2015 - 18/04/2015 ","Autre : Reunion professionnelle ou scientifique "]
["Françoise DEBIAIS","Médecin ","AMGEN SAS","17/07/2015","15/09/2015 - 18/09/2015 ","AUTRE [CONVENTION D EXPERT] "]
["Françoise DEBIAIS","Médecin ","MSD France","22/09/2015","22/09/2015 - ","CONVENTION D’HOSPITALITÉ "]
["Françoise DEBIAIS","Médecin ","MSD France","23/09/2015","22/09/2015 - 22/09/2015 ","ORATEUR "]
["Françoise DEBIAIS","Médecin ","Alexion Pharma France","30/10/2015","30/10/2015 - 31/10/2015 ","Congrès / Symposium "]
["Françoise DEBIAIS","Médecin ","AbbVie","04/11/2015","04/11/2015 - ","AUTRE: [CONVENTION HOSPITALITE] "]
["Françoise DEBIAIS","Médecin ","AMGEN SAS","17/12/2015","26/01/2016 - 31/01/2016 ","AUTRE [CONTRAT D ORATEUR]"]
["Thierry SCHAEVERBEKE","Médecin ","ROCHE SAS","04/01/2012","04/01/2012 - ","EXPERT "]
["Thierry SCHAEVERBEKE","Médecin ","ROCHE SAS","28/02/2012","28/02/2012 - ","ORATEUR INTERVENANT "]
["Thierry SCHAEVERBEKE","Médecin ","ROCHE SAS","15/03/2012","15/03/2012 - ","EXPERT "]
["Thierry SCHAEVERBEKE","Médecin ","A+A","26/03/2012","26/03/2012 - ","ETUDE DE MARCHE "]
["Thierry SCHAEVERBEKE","Médecin ","ROCHE SAS","10/05/2012","10/05/2012 - ","ORATEUR INTERVENANT "]
["Thierry SCHAEVERBEKE","Médecin ","MSD France","20/09/2012","20/09/2012 - ","CONVENTION D HOSPITALITE "]
["Thierry SCHAEVERBEKE","Médecin ","AbbVie","10/10/2012","10/10/2012 - ","AUTRE : [CONTRAT DE COLLABORATION SCIENTIFIQUE] "]
["Thierry SCHAEVERBEKE","Médecin ","MSD France","16/10/2012","16/10/2012 - ","CONVENTION D HOSPITALITE "]
["Thierry SCHAEVERBEKE","Médecin ","ROCHE SAS","22/10/2012","22/10/2012 - ","EXPERT "]
["Thierry SCHAEVERBEKE","Médecin ","AbbVie","13/11/2012","13/11/2012 - ","AUTRE : [CONTRAT DE COLLABORATION SCIENTIFIQUE] "]
["Thierry SCHAEVERBEKE","Médecin ","A+A","03/12/2012","03/12/2012 - ","ETUDE DE MARCHE "]
["Thierry SCHAEVERBEKE","Médecin ","ROCHE SAS","19/03/2013","19/03/2013 - ","Orateur intervenant "]
["Thierry SCHAEVERBEKE","Médecin ","AbbVie","08/04/2013","08/04/2013 - ","AUTRE: [CONTRAT DE COLLABORATION SCIENTIFIQUE]"]
["Thierry SCHAEVERBEKE","Médecin ","ROCHE SAS","26/04/2013","26/04/2013 - ","Expert "]
["Thierry SCHAEVERBEKE","Médecin ","PFIZER SAS","28/04/2013","28/04/2013 - ","ORATEUR RP/CONGRES/SYMPOSIUM "]
["Thierry SCHAEVERBEKE","Médecin ","PFIZER SAS","08/05/2013","08/05/2013 - ","CONSEIL "]
["Thierry SCHAEVERBEKE","Médecin ","ROCHE SAS","30/05/2013","30/05/2013 - 31/05/2013 ","Congrès / Symposium "]
["Thierry SCHAEVERBEKE","Médecin ","ROCHE SAS","15/06/2013","15/06/2013 - 15/06/2013 ","Congrès / Symposium "]
["Thierry SCHAEVERBEKE","Médecin ","ROCHE SAS","03/07/2013","03/07/2013 - 06/07/2013 ","Autre : [ Orateur / Intervenant ] "]
["Thierry SCHAEVERBEKE","Médecin ","AbbVie","19/08/2013","10/09/2013 - ","AUTRE: [CONTRAT DE COLLABORATION SCENTIFIQUE] "]
["Thierry SCHAEVERBEKE","Médecin ","AbbVie","19/08/2013","19/08/2013 - ","AUTRE: [CONTRAT DE COLLABORATION SCIENTIFIQUE] "]
["Thierry SCHAEVERBEKE","Médecin ","BRISTOL-MYERS SQUIBB","26/08/2013","27/09/2013 - ","Autre : [Orateur] "]
["Thierry SCHAEVERBEKE","Médecin ","AbbVie","29/08/2013","29/08/2013 - ","AUTRE: [CONVENTION HOSPITALITE] "]
["Thierry SCHAEVERBEKE","Médecin ","NOVARTIS PHARMA SAS","09/09/2013","09/09/2013 - 09/09/2013 ","Autre : [Hospitalité] "]
["Thierry SCHAEVERBEKE","Médecin ","MSD France","26/09/2013","26/09/2013 - ","EXPERT "]
["Thierry SCHAEVERBEKE","Médecin ","MSD France","02/10/2013","02/10/2013 - 02/10/2013 ","EXPERT "]
["Thierry SCHAEVERBEKE","Médecin ","PFIZER SAS","08/10/2013","08/10/2013 - ","ORATEUR RP/CONGRES/SYMPOSIUM "]
["Thierry SCHAEVERBEKE","Médecin ","MENARINI FRANCE","22/10/2013","22/10/2013 - ","CONSEIL "]
["Thierry SCHAEVERBEKE","Médecin ","PFIZER SAS","25/10/2013","25/10/2013 - 30/10/2013 ","Hospitalite RP/Congres / Sympo "]
["Thierry SCHAEVERBEKE","Médecin ","PFIZER SAS","30/11/2013","30/11/2013 - 03/12/2013 ","HOSPITALITE RP/CONGRES / SYMPO "]
["Thierry SCHAEVERBEKE","Médecin ","MSD France","01/12/2013","01/12/2013 - 03/12/2013 ","CONVENTION D HOSPITALITE "]
["Thierry SCHAEVERBEKE","Médecin ","MSD France","10/12/2013","06/01/2012 - ","EXPERT "]
["Thierry SCHAEVERBEKE","Médecin ","AbbVie","13/12/2013","13/12/2013 - ","AUTRE: [CONTRAT DE COLLABORATION SCIENTIFIQUE] "]
["Thierry SCHAEVERBEKE","Médecin ","NORDIC PHARMA SAS","23/12/2013","02/12/2013 - 02/12/2013 ","Autre : [ Orateur ] "]
["Thierry SCHAEVERBEKE","Médecin ","AbbVie","09/01/2014","09/01/2014 - ","AUTRE: [CONVENTION HOSPITALITE] "]
["Thierry SCHAEVERBEKE","Médecin ","AbbVie","10/01/2014","09/01/2014 - ","AUTRE: [CONVENTION HOSPITALITE] "]
["Thierry SCHAEVERBEKE","Médecin ","BRISTOL-MYERS SQUIBB","03/02/2014","03/02/2014 - ","Autre : [Recherche/Développement] "]
["Thierry SCHAEVERBEKE","Médecin ","PFIZER SAS","07/02/2014","07/02/2014 - 08/02/2014 ","ORATEUR RP/CONGRES/SYMPO "]
["Thierry SCHAEVERBEKE","Médecin ","PFIZER SAS","07/02/2014","07/02/2014 - 08/02/2014 ","ORATEUR RP/CONGRES/SYMPO "]
["Thierry SCHAEVERBEKE","Médecin ","GLOBAL MEDIA SANTE","10/02/2014","10/02/2014 - ","CONGRES "]
["Thierry SCHAEVERBEKE","Médecin ","BRISTOL-MYERS SQUIBB","11/02/2014","11/02/2014 - ","Autre : [Consultant (HCP)] "]
["Thierry SCHAEVERBEKE","Médecin ","ROCHE SAS","11/02/2014","11/02/2014 - 11/02/2014 ","Autre : [ R‚union professionnelle ] "]
["Thierry SCHAEVERBEKE","Médecin ","UCB Pharma SA","13/02/2014","13/02/2014 - 13/02/2014 ","Autre : [ hospitalité liée à une manifestation scientifique ] "]
["Thierry SCHAEVERBEKE","Médecin ","MSD France","17/02/2014","18/03/2014 - 31/12/2014 ","EXPERT"]
["Thierry SCHAEVERBEKE","Médecin ","MSD France","17/02/2014","18/03/2014 - 31/12/2014 ","EXPERT "]
["Thierry SCHAEVERBEKE","Médecin ","NOVARTIS PHARMA SAS","21/02/2014","21/02/2014 - 07/04/2014 ","Autre : [Contrat de conseil & prestation] "]
["Thierry SCHAEVERBEKE","Médecin ","AMGEN SAS","26/02/2014","05/03/2014 - 01/01/2020 ","CONVENTION DE RECHERCHE "]
["Thierry SCHAEVERBEKE","Médecin ","ROCHE SAS","06/03/2014","06/03/2014 - 06/03/2014 ","Autre : [ R‚union professionnelle ] "]
["Thierry SCHAEVERBEKE","Médecin ","CONGRES COLLOQUES CONVENTIONS","08/03/2014","08/03/2014 - 08/03/2014 ","CONGRES SYMPOSIUM "]
["Thierry SCHAEVERBEKE","Médecin ","MSD France","17/03/2014","29/04/2014 - 29/04/2014 ","EXPERT "]
["Thierry SCHAEVERBEKE","Médecin ","BRISTOL-MYERS SQUIBB","25/03/2014","25/03/2014 - ","Autre : [Orateur] "]
["Thierry SCHAEVERBEKE","Médecin ","BRISTOL-MYERS SQUIBB","03/04/2014","03/04/2014 - ","Autre : [Orateur] "]
["Thierry SCHAEVERBEKE","Médecin ","NOVARTIS PHARMA SAS","07/04/2014","07/04/2014 - 07/04/2014 ","Autre : [Hospitalité Evenement] "]
["Thierry SCHAEVERBEKE","Médecin ","PFIZER SAS","11/04/2014","11/04/2014 - 12/04/2014 ","ORATEUR RP/CONGRES/SYMPO "]
["Thierry SCHAEVERBEKE","Médecin ","PFIZER SAS","11/04/2014","11/04/2014 - 12/04/2014 ","ORATEUR RP/CONGRES/SYMPO "]
["Thierry SCHAEVERBEKE","Médecin ","MSD France","15/04/2014","15/05/2014 - 15/05/2015 ","EXPERT "]
["Thierry SCHAEVERBEKE","Médecin ","AbbVie","24/04/2014","24/04/2014 - ","AUTRE: [CONTRAT DE COLLABORATION SCIENTIFIQUE]"]
["Thierry SCHAEVERBEKE","Médecin ","NOVARTIS PHARMA SAS","30/04/2014","30/04/2014 - 29/06/2018 ","Recherche "]
["Thierry SCHAEVERBEKE","Médecin ","NORDIC PHARMA SAS","04/05/2014","04/05/2014 - 08/05/2014 ","congrès / symposium "]
["Thierry SCHAEVERBEKE","Médecin ","AbbVie","12/05/2014","12/05/2014 - ","AUTRE: [CONTRAT DE COLLABORATION SCIENTIFIQUE] "]
["Thierry SCHAEVERBEKE","Médecin ","AbbVie","15/05/2014","15/05/2014 - ","AUTRE: [CONVENTION HOSPITALITE] "]
["Thierry SCHAEVERBEKE","Médecin ","AbbVie","16/05/2014","15/05/2014 - ","AUTRE: [CONVENTION HOSPITALITE] "]
["Thierry SCHAEVERBEKE","Médecin ","MSD France","16/05/2014","27/06/2014 - 28/06/2014 ","EXPERT "]
["Thierry SCHAEVERBEKE","Médecin ","AbbVie","16/05/2014","16/05/2014 - ","AUTRE: [CONVENTION HOSPITALITE] "]
["Thierry SCHAEVERBEKE","Médecin ","AbbVie","17/05/2014","17/05/2014 - ","AUTRE: [CONVENTION HOSPITALITE] "]
["Thierry SCHAEVERBEKE","Médecin ","BRISTOL-MYERS SQUIBB","23/05/2014","23/05/2014 - ","Autre : [Orateur] "]
["Thierry SCHAEVERBEKE","Médecin ","ROCHE SAS","26/05/2014","14/05/2014 - 31/12/2014 ","Autre : [ Expert ] "]
["Thierry SCHAEVERBEKE","Médecin ","ROCHE SAS","30/05/2014","16/06/2014 - 05/07/2014 ","Autre : [ Expert ] "]
["Thierry SCHAEVERBEKE","Médecin ","NORDIC PHARMA SAS","11/06/2014","11/06/2014 - 14/06/2014 ","congrès / symposium "]
["Thierry SCHAEVERBEKE","Médecin ","Arthritis Fondation Courtin","17/06/2014","17/06/2014 - ","CONVENTION RECHERCHE "]
["Thierry SCHAEVERBEKE","Médecin ","ROCHE SAS","19/06/2014","19/06/2014 - 19/06/2014 ","Autre : [ R‚union professionnelle ] "]
["Thierry SCHAEVERBEKE","Médecin ","PRECIPHAR","26/06/2014","01/07/2014 - 01/07/2014 ","Autre[ORATEUR REUNION POST EULAR BORDEAUX] "]
["Thierry SCHAEVERBEKE","Médecin ","MSD France","27/06/2014","27/06/2014 - ","CONVENTION D HOSPITALITE "]
["Thierry SCHAEVERBEKE","Médecin ","MSD France","01/07/2014","01/07/2014 - ","CONVENTION D HOSPITALITE "]
["Thierry SCHAEVERBEKE","Médecin ","ROCHE SAS","03/07/2014","03/07/2014 - 05/07/2014 ","Congrès / Symposium"]
["Thierry SCHAEVERBEKE","Médecin ","AbbVie","08/07/2014","08/07/2014 - ","AUTRE: [CONTRAT DE COLLABORATION SCIENTIFIQUE] "]
["Thierry SCHAEVERBEKE","Médecin ","AMGEN SAS","16/07/2014","07/10/2014 - 10/10/2014 ","AUTRE [CONTRAT D ORATEUR] "]
["Thierry SCHAEVERBEKE","Médecin ","AbbVie","24/07/2014","24/07/2014 - ","AUTRE: [CONTRAT DE COLLABORATION SCIENTIFIQUE] "]
["Thierry SCHAEVERBEKE","Médecin ","AMGEN SAS","29/07/2014","09/10/2014 - 09/10/2014 ","AUTRE [CONVENTION D HOSPITALITE] "]
["Thierry SCHAEVERBEKE","Médecin ","PFIZER SAS","29/07/2014","04/11/2014 - ","ORATEUR RP/CONGRES/SYMPOSIUM "]
["Thierry SCHAEVERBEKE","Médecin ","MSD France","27/08/2014","14/10/2014 - 14/10/2014 ","EXPERT "]
["Thierry SCHAEVERBEKE","Médecin ","AbbVie","27/08/2014","27/08/2014 - ","AUTRE: [CONTRAT DE COLLABORATION SCIENTIFIQUE] "]
["Thierry SCHAEVERBEKE","Pharmacien ","AbbVie","05/09/2014","05/09/2014 - ","AUTRE : [CONVENTION D HOSPITALITE] "]
["Thierry SCHAEVERBEKE","Médecin ","AbbVie","16/09/2014","16/09/2014 - ","AUTRE : [CONVENTION D HOSPITALITE] "]
["Thierry SCHAEVERBEKE","Médecin ","AbbVie","16/09/2014","16/09/2014 - ","AUTRE : [CONVENTION D HOSPITALITE] "]
["Thierry SCHAEVERBEKE","Médecin ","UCB Pharma SA","19/09/2014","19/09/2014 - 20/09/2014 ","Congrès / symposium "]
["Thierry SCHAEVERBEKE","Médecin ","PFIZER SAS","23/09/2014","29/07/2014 - ","ORATEUR RP/CONGRES/SYMPOSIUM "]
["Thierry SCHAEVERBEKE","Médecin ","BRISTOL-MYERS SQUIBB","25/09/2014","25/09/2014 - ","Autre : [Orateur] "]
["Thierry SCHAEVERBEKE","Médecin ","ROCHE SAS","26/09/2014","26/09/2014 - 26/09/2014 ","Autre : [ Réunion professionnelle ] "]
["Thierry SCHAEVERBEKE","Médecin ","BRISTOL-MYERS SQUIBB","30/09/2014","30/09/2014 - ","Autre : [Orateur] "]
["Thierry SCHAEVERBEKE","Médecin ","PFIZER SAS","30/09/2014","02/09/2014 - ","ORATEUR RP/CONGRES/SYMPOSIUM "]
["Thierry SCHAEVERBEKE","Médecin ","UCB Pharma SA","16/10/2014","16/10/2014 - 16/10/2014 ","Autre : [ hospitalité liée à une manifestation scientifique ]"]
["Thierry SCHAEVERBEKE","Médecin ","PFIZER SAS","17/10/2014","05/12/2014 - 30/06/2016 ","Autre : Contrat consultant "]
["Thierry SCHAEVERBEKE","Médecin ","UCB Pharma SA","22/10/2014","22/10/2014 - 22/10/2014 ","Autre : [ hospitalité liée à une manifestation scientifique ] "]
["Thierry SCHAEVERBEKE","Médecin ","Lilly France SAS","27/10/2014","27/10/2014 - 27/10/2014 ","AUTRE : [PARTICIPATION R�ION SCIENTIFIQUE] "]
["Thierry SCHAEVERBEKE","Médecin ","MSD France","28/10/2014","18/03/2014 - 18/03/2014 ","EXPERT "]
["Thierry SCHAEVERBEKE","Médecin ","MSD France","28/10/2014","14/10/2014 - 14/10/2014 ","EXPERT "]
["Thierry SCHAEVERBEKE","Médecin ","ROCHE SAS","07/11/2014","15/12/2014 - 19/12/2014 ","Autre : [ Expert ] "]
["Thierry SCHAEVERBEKE","Médecin ","BRISTOL-MYERS SQUIBB","12/11/2014","08/12/2014 - ","Autre : [Orateur] "]
["Thierry SCHAEVERBEKE","Médecin ","PFIZER SAS","15/11/2014","15/11/2014 - 19/11/2014 ","Congrès / Symposium "]
["Thierry SCHAEVERBEKE","Médecin ","UCB Pharma SA","27/11/2014","27/11/2014 - 27/11/2014 ","Formation "]
["Thierry SCHAEVERBEKE","Médecin ","MSD France","03/12/2014","08/12/2014 - 08/12/2014 ","EXPERT "]
["Thierry SCHAEVERBEKE","Médecin ","AbbVie","04/12/2014","04/12/2014 - ","AUTRE : [CONVENTION D HOSPITALITE] "]
["Thierry SCHAEVERBEKE","Médecin ","PFIZER SAS","15/12/2014","06/02/2015 - 07/02/2015 ","Autre : Contrat intervenant "]
["Thierry SCHAEVERBEKE","Médecin ","Actelion Pharmaceuticals France","16/12/2014","16/12/2014 - 16/12/2014 ","AUTRE [CONNEXION] "]
["Thierry SCHAEVERBEKE","Médecin ","PFIZER SAS","19/12/2014","12/02/2015 - 30/06/2015 ","Autre : Contrat consultant "]
["Thierry SCHAEVERBEKE","Médecin ","PFIZER SAS","20/12/2014","06/03/2015 - 07/03/2015 ","Autre : Contrat intervenant"]
["Thierry SCHAEVERBEKE","Médecin ","AbbVie","06/01/2015","06/01/2015 - ","AUTRE : [CONTRAT DE COLLABORATION SCIENTIFIQUE] "]
["Thierry SCHAEVERBEKE","Médecin ","BRISTOL-MYERS SQUIBB","02/02/2015","07/04/2015 - ","Autre : [Consultant (HCP)] "]
["Thierry SCHAEVERBEKE","Médecin ","BRISTOL-MYERS SQUIBB","02/02/2015","30/06/2015 - ","Autre : [Consultant (HCP)] "]
["Thierry SCHAEVERBEKE","Médecin ","ROCHE SAS","05/02/2015","05/02/2015 - 05/02/2015 ","Autre : [ Manifestation professionnelle ] "]
["Thierry SCHAEVERBEKE","Médecin ","AbbVie","05/02/2015","05/02/2015 - ","AUTRE: [CONVENTION HOSPITALITE] "]
["Thierry SCHAEVERBEKE","Médecin ","PFIZER SAS","06/02/2015","06/02/2015 - 07/02/2015 ","Autre : Reunion professionnelle ou scientifique "]
["Thierry SCHAEVERBEKE","Médecin ","MSD France","09/02/2015","23/03/2015 - 30/11/2015 ","EXPERT "]
["Thierry SCHAEVERBEKE","Médecin ","PFIZER SAS","13/02/2015","17/04/2015 - 18/04/2015 ","Congres / Symposium "]
["Thierry SCHAEVERBEKE","Médecin ","ROCHE SAS","03/03/2015","03/03/2015 - 03/03/2015 ","Autre : [ R\u0082union professionnelle ] "]
["Thierry SCHAEVERBEKE","Médecin ","BIOGARAN","04/03/2015","04/03/2015 - ","Autre : Manifestation scientifique "]
["Thierry SCHAEVERBEKE","Médecin ","PFIZER SAS","06/03/2015","06/03/2015 - 07/03/2015 ","Autre : Reunion professionnelle ou scientifique "]
["Thierry SCHAEVERBEKE","Médecin ","BRISTOL-MYERS SQUIBB","11/03/2015","02/04/2015 - ","Autre : [Orateur] "]
["Thierry SCHAEVERBEKE","Médecin ","ROCHE SAS","12/03/2015","12/03/2015 - 12/03/2015 ","Autre : [ R\u0082union professionnelle ] "]
["Thierry SCHAEVERBEKE","Médecin ","NOVARTIS PHARMA SAS","18/03/2015","18/03/2015 - 31/12/2015 ","AUTRE : [CONTRAT DE CONSEIL & PRESTATION]"]
["Thierry SCHAEVERBEKE","Médecin ","ROCHE SAS","19/03/2015","19/03/2015 - 19/03/2015 ","Autre : [ R\u0082union professionnelle ] "]
["Thierry SCHAEVERBEKE","Médecin ","PFIZER SAS","24/03/2015","22/05/2015 - 23/05/2015 ","Congres / Symposium "]
["Thierry SCHAEVERBEKE","Médecin ","MSD France","30/03/2015","23/03/2015 - 30/11/2015 ","EXPERT "]
["Thierry SCHAEVERBEKE","Médecin ","ROCHE SAS","09/04/2015","09/04/2015 - 09/04/2015 ","Autre : [ R\u0082union professionnelle ] "]
["Thierry SCHAEVERBEKE","Médecin ","ROCHE SAS","15/04/2015","15/04/2015 - 15/04/2015 ","Autre : [ R\u0082union professionnelle ] "]
["Thierry SCHAEVERBEKE","Médecin ","PFIZER SAS","17/04/2015","17/04/2015 - 18/04/2015 ","Autre : Reunion professionnelle ou scientifique "]
["Thierry SCHAEVERBEKE","Médecin ","MSD France","17/04/2015","19/05/2015 - 13/10/2015 ","EXPERT "]
["Thierry SCHAEVERBEKE","Médecin ","MSD France","20/04/2015","06/05/2015 - 07/05/2015 ","EXPERT "]
["Thierry SCHAEVERBEKE","Médecin ","MSD France","27/04/2015","18/06/2015 - 18/06/2015 ","ORATEUR "]
["Thierry SCHAEVERBEKE","Médecin ","BIOGARAN","27/04/2015","27/04/2015 - 02/05/2015 ","CONSEIL "]
["Thierry SCHAEVERBEKE","Médecin ","NORDIC PHARMA SAS","30/04/2015","30/04/2015 - 02/05/2015 ","Autre : [ Orateur ] "]
["Thierry SCHAEVERBEKE","Médecin ","ROCHE SAS","05/05/2015","05/05/2015 - 05/05/2015 ","Autre : [ R\u0082union professionnelle ] "]
["Thierry SCHAEVERBEKE","Médecin ","AbbVie","18/05/2015","18/05/2015 - ","AUTRE : [CONTRAT DE COLLABORATION SCIENTIFIQUE] "]
["Thierry SCHAEVERBEKE","Médecin ","PFIZER SAS","22/05/2015","22/05/2015 - 23/05/2015 ","Autre : Reunion professionnelle ou scientifique "]
["Thierry SCHAEVERBEKE","Médecin ","BRISTOL-MYERS SQUIBB","27/05/2015","29/05/2015 - ","Autre : [Orateur] "]
["Thierry SCHAEVERBEKE","Médecin ","BRISTOL-MYERS SQUIBB","28/05/2015","29/05/2015 - ","Autre : [Orateur] "]
["Thierry SCHAEVERBEKE","Médecin ","PFIZER SAS","29/05/2015","29/05/2015 - 30/05/2015 ","Congres / Symposium"]
["Thierry SCHAEVERBEKE","Médecin ","MSD France","03/06/2015","22/06/2015 - 21/06/2016 ","EXPERT "]
["Thierry SCHAEVERBEKE","Médecin ","ROCHE SAS","04/06/2015","04/06/2015 - 04/06/2015 ","Autre : [ R\u0082union professionnelle ] "]
["Thierry SCHAEVERBEKE","Médecin ","NORDIC PHARMA SAS","10/06/2015","10/06/2015 - 13/06/2015 ","congrès / symposium "]
["Thierry SCHAEVERBEKE","Médecin ","MSD France","18/06/2015","18/06/2015 - ","CONVENTION D’HOSPITALITÉ "]
["Thierry SCHAEVERBEKE","Médecin ","AbbVie","29/06/2015","29/06/2015 - ","AUTRE: [CONVENTION HOSPITALITE] "]
["Thierry SCHAEVERBEKE","Médecin ","ROCHE SAS","01/07/2015","01/07/2015 - 04/07/2015 ","Autre : [ Reunion professionnelle ] "]
["Thierry SCHAEVERBEKE","Médecin ","AbbVie","06/07/2015","20/05/2015 - 20/05/2015 ","AUTRE: [CONVENTION HOSPITALITE] "]
["Thierry SCHAEVERBEKE","Médecin ","MSD France","10/07/2015","09/09/2015 - 09/09/2015 ","EXPERT "]
["Thierry SCHAEVERBEKE","Médecin ","MSD France","21/07/2015","01/09/2015 - 31/12/2015 ","EXPERT "]
["Thierry SCHAEVERBEKE","Médecin ","PFIZER SAS","10/09/2015","01/10/2015 - 30/10/2015 ","Conseil "]
["Thierry SCHAEVERBEKE","Médecin ","BRISTOL-MYERS SQUIBB","25/09/2015","25/09/2015 - ","Autre : [Orateur] "]
["Thierry SCHAEVERBEKE","Médecin ","PFIZER SAS","09/10/2015","09/10/2015 - 10/10/2015 ","Autre : Réunion professionnelle ou scientifique "]
["Thierry SCHAEVERBEKE","Médecin ","PFIZER SAS","07/11/2015","07/11/2015 - 11/11/2015 ","Congrès / Symposium "]
["Thierry SCHAEVERBEKE","Médecin ","ROCHE SAS","19/11/2015","19/11/2015 - 19/11/2015 ","Autre : [ Reunion professionnelle ] "]
["Thierry SCHAEVERBEKE","Médecin ","ROCHE SAS","24/11/2015","24/11/2015 - 24/11/2015 ","Autre : [ Reunion professionnelle ] "]
["Thierry SCHAEVERBEKE","Médecin ","PFIZER SAS","02/12/2015","30/11/2015 - 31/12/2015 ","Autre : [Contrat autre] "]
["Thierry SCHAEVERBEKE","Médecin ","BRISTOL-MYERS SQUIBB","03/12/2015","03/12/2015 - ","Autre : [Orateur] "]
["Thierry SCHAEVERBEKE","Médecin ","JANSSEN-CILAG","13/12/2015","13/12/2015 - 15/12/2015 ","CONGRES / SYMPOSIUM "]
["Thierry SCHAEVERBEKE","Médecin ","PFIZER SAS","13/12/2015","13/12/2015 - 15/12/2015 ","Congrès / Symposium "]
["Thierry SCHAEVERBEKE","Médecin ","NOVARTIS PHARMA SAS","14/12/2015","14/12/2015 - 14/12/2015 ","AUTRE : [ORATEUR]"]
["Henri LELLOUCHE","Médecin ","MSD France","29/03/2012","29/03/2012 - ","CONVENTION D’HOSPITALITÉ "]
["Henri LELLOUCHE","Médecin ","AbbVie","07/12/2012","07/12/2012 - ","AUTRE : [CONTRAT DE COLLABORATION SCIENTIFIQUE] "]
["Henri LELLOUCHE","Médecin ","AbbVie","09/12/2012","09/12/2012 - ","AUTRE : [CONTRAT DE COLLABORATION SCIENTIFIQUE] "]
["Henri LELLOUCHE","Médecin ","CROMA","01/03/2013","01/03/2013 - 31/12/2013 ","Formation, Conseil et Congrès "]
["Henri LELLOUCHE","Médecin ","Laboratoires Expanscience","18/04/2013","18/04/2013 - 21/04/2013 ","Congrès / Symposium "]
["Henri LELLOUCHE","Médecin ","LABORATOIRES GENEVRIER","23/05/2013","05/08/2013 - 19/08/2013 ","CONSEIL "]
["Henri LELLOUCHE","Médecin ","LABORATOIRES GENEVRIER","09/08/2013","30/09/2013 - 30/09/2014 ","CONSEIL "]
["Henri LELLOUCHE","Médecin ","AbbVie","05/09/2013","05/09/2013 - ","AUTRE: [CONVENTION HOSPITALITE] "]
["Henri LELLOUCHE","Médecin ","BIOCODEX","04/10/2013","14/11/2013 - 14/11/2013 ","AUTRE "]
["Henri LELLOUCHE","Médecin ","LABORATOIRES GENEVRIER","07/11/2013","20/12/2013 - 20/01/2014 ","CONSEIL "]
["Henri LELLOUCHE","Médecin ","CROMA","01/01/2014","01/01/2014 - 31/12/2014 ","Formation, Conseil et Congrès "]
["Henri LELLOUCHE","Médecin ","LABORATOIRES GENEVRIER","06/02/2014","27/03/2014 - 31/12/2014 ","CONSEIL "]
["Henri LELLOUCHE","Médecin ","LABORATOIRES GENEVRIER","10/02/2014","28/03/2014 - 31/12/2014 ","CONSEIL "]
["Henri LELLOUCHE","Médecin ","MSD France","20/03/2014","20/03/2014 - ","CONVENTION D’HOSPITALITÉ "]
["Henri LELLOUCHE","Médecin ","SANOFI AVENTIS FRANCE","26/03/2014","15/04/2014 - 31/12/2014 ","Autre : [Expertise] "]
["Henri LELLOUCHE","Médecin ","SANOFI AVENTIS FRANCE","07/04/2014","29/04/2014 - 30/06/2014 ","Autre : [Communication scientifique] "]
["Henri LELLOUCHE","Médecin ","NORDIC PHARMA SAS","04/05/2014","04/05/2014 - 08/05/2014 ","congrès / symposium "]
["Henri LELLOUCHE","Médecin ","SANOFI AVENTIS FRANCE","16/05/2014","16/05/2014 - 18/05/2014 ","Congrès / Symposium "]
["Henri LELLOUCHE","Médecin ","SANOFI AVENTIS FRANCE","16/05/2014","16/05/2014 - 18/05/2014 ","Congrès / Symposium "]
["Henri LELLOUCHE","Médecin ","AbbVie","05/06/2014","11/06/2014 - ","AUTRE: [CONVENTION HOSPITALITE]"]
["Henri LELLOUCHE","Médecin ","AbbVie","05/06/2014","05/06/2014 - ","AUTRE: [CONVENTION HOSPITALITE] "]
["Henri LELLOUCHE","Médecin ","PFIZER SAS","15/09/2014","15/09/2014 - 15/09/2014 ","Autre : Réunion professionnelle ou scientifique "]
["Henri LELLOUCHE","Médecin ","Laboratoires Expanscience","15/11/2014","15/11/2014 - 19/11/2014 ","Congrès / Symposium "]
["Henri LELLOUCHE","Médecin ","LABORATOIRES GENEVRIER","20/11/2014","08/01/2015 - 31/12/2015 ","CONSEIL "]
["Henri LELLOUCHE","Médecin ","SANOFI AVENTIS FRANCE","07/12/2014","07/12/2014 - 09/12/2014 ","Congrès / Symposium "]
["Henri LELLOUCHE","Médecin ","AbbVie","18/12/2014","18/12/2014 - ","AUTRE : [CONVENTION D HOSPITALITE] "]
["Henri LELLOUCHE","Médecin ","LABORATOIRES GENEVRIER","05/01/2015","23/02/2015 - 31/12/2015 ","CONSEIL "]
["Henri LELLOUCHE","Médecin ","LABORATOIRES GENEVRIER","14/01/2015","05/03/2015 - 06/03/2015 ","FORMATION "]
["Henri LELLOUCHE","Médecin ","BIOCODEX","10/02/2015","10/02/2015 - 10/02/2015 ","FORMATION "]
["Henri LELLOUCHE","Médecin ","AbbVie","12/02/2015","12/02/2015 - ","AUTRE: [CONVENTION HOSPITALITE] "]
["Henri LELLOUCHE","Médecin ","AbbVie","21/05/2015","21/05/2015 - ","AUTRE: [CONVENTION HOSPITALITE] "]
["Henri LELLOUCHE","Médecin ","PFIZER SAS","08/09/2015","08/09/2015 - 08/09/2015 ","Autre : Réunion professionnelle ou scientifique "]
["Henri LELLOUCHE","Médecin ","ROCHE SAS","10/09/2015","10/09/2015 - 10/09/2015 ","Autre : [ Reunion professionnelle ] "]
["Henri LELLOUCHE","Médecin ","LABORATOIRES GENEVRIER","17/11/2015","17/11/2015 - 17/11/2015 ","Formation "]
["Henri LELLOUCHE","Médecin ","SANOFI AVENTIS FRANCE","18/11/2015","10/12/2015 - 31/12/2016 ","Autre : [Communication scientifique] "]
["Henri LELLOUCHE","Médecin ","BIOCODEX","03/12/2015","03/12/2015 - 03/12/2015 ","FORMATION"]
["Jérémy MAILLET","Médecin ","AbbVie","14/12/2015","14/12/2015 - ","AUTRE: [CONVENTION HOSPITALITE] "]
["Jérémy MAILLET","Médecin ","AbbVie","08/12/2014","08/12/2014 - ","AUTRE : [CONVENTION D HOSPITALITE] "]
["Jérémy MAILLET","Médecin ","UCB Pharma SA","20/05/2015","20/05/2015 - 20/05/2015 ","Formation "]
["Jérémy MAILLET","Médecin ","AbbVie","02/12/2013","02/12/2013 - ","AUTRE: [CONVENTION HOSPITALITE] "]
["Jérémy MAILLET","Médecin ","ROCHE SAS","19/03/2014","19/03/2014 - 19/03/2014 ","Autre : [ R‚union professionnelle ]"]

{"sheet":"FIRMES","index":2,"n_rows":1915,"n_cols":2,"rows_kept":1915,"cut":false,"hidden":false,"merged":[]}
["FIRME dans Transparence.sante.gouv.fr","FIRME (libellé de regroupement)"]
["22 Juillet Conseil","22 Juillet Conseil"]
["3-D Matrix Europe SAS","3-D Matrix Europe SAS"]
["3M Belgium bvba/sprl","3M Belgium bvba/sprl"]
["3M Deutschland GmbH","3M Deutschland GmbH"]
["3M France","3M France"]
["3M MAROC","3M MAROC"]
["3M United Kingdom PLC","3M United Kingdom PLC"]
["3S ORTHO","3S ORTHO"]
["4Tech Cardio Ltd","4Tech Cardio Ltd"]
["7 MED INDUSTRIE","7 MED INDUSTRIE"]
["A a Z SANTE","A a Z SANTE"]
["A DEC INTERNATIONAL INC","A DEC INTERNATIONAL INC"]
["A.I.R.","A.I.R."]
["A.MENARINI diagnostics","A.MENARINI diagnostics"]
["A.R.C. Pharma","A.R.C. Pharma"]
["A+A","A+A"]
["a2m rehateam","a2m rehateam"]
["AADAIRC","AADAIRC"]
["ABBOTT FRANCE","ABBOTT"]
["ABBOTT HEALTHCARE SAS","ABBOTT"]
["ABBOTT PRODUCTS SAS","ABBOTT"]
["AbbVie","AbbVie"]
["ABENA-FRANTEX","ABENA-FRANTEX"]
["Abiomed GmbH","Abiomed GmbH"]
["ABM","ABM"]
["abmedica","abmedica"]
["ABS-Bolton Medical","ABS-Bolton Medical"]
["accomed","accomed"]
["ACCOVION SARL","ACCOVION SARL"]
["Accuray Europe","Accuray Europe"]
["ACIST Europe BV","ACIST Europe BV"]
["ACM","ACM"]
["Acorda Therapeutics, Inc.","Acorda Therapeutics, Inc."]
["ACOUSTIQUE MEDICAL DU LITTORAL","ACOUSTIQUE MEDICAL DU LITTORAL"]
["ACS-Agence Conseil Santé","ACS-Agence Conseil Santé"]
["ACT+ Consulting","ACT+ Consulting"]
["ACTAVIS GROUP PTC EHF","ACTAVIS GROUP PTC EHF"]
["Actelion Pharmaceuticals France","Actelion"]
["Actelion Pharmaceuticals Ltd","Actelion"]
["ACTION D'ECLAT","ACTION D'ECLAT"]
["ADAIR","ADAIR"]
["ADAPSIA","ADAPSIA"]
["ADDMEDICA","ADDMEDICA"]
["ADEP ASSISTANCE","ADEP ASSISTANCE"]
["Adept Field Solutions","Adept Field Solutions"]
["ADIR ASSISTANCE","ADIR ASSISTANCE"]
["Adiral Assistance","Adiral Assistance"]
["ADIRAL Association d'Aide aux Traitements Ã  Domicile","ADIRAL Association d'Aide aux Traitements Ã  Domicile"]
["ADLER ORTHO France","ADLER ORTHO France"]
["Adler Ortho srl","Adler Ortho srl"]
["ADS ALSACE","ADS ALSACE"]
["ADS CHAMPAGNE ARDENNE","ADS CHAMPAGNE ARDENNE"]
["ADS LORRAINE","ADS LORRAINE"]
["ADVANCE SAS","ADVANCE SAS"]
["Advanced Accelerator Applications","Advanced Accelerator Applications"]
["Advanced Accelerator Applications International SA","Advanced Accelerator Applications International SA"]
["ADVANCED BIONICS SARL","ADVANCED BIONICS SARL"]
["Advanced Medical Services, AMS GmbH","Advanced Medical Services, AMS GmbH"]
["ADVICENNE","ADVICENNE"]
["Aegerion Pharmaceuticals","Aegerion Pharmaceuticals"]
["AERIS Medical SAS","AERIS Medical SAS"]
["AEROGEN","AEROGEN"]
["AFFINITES SANTE","AFFINITES SANTE"]
["Agence Conseil 3P","Agence Conseil 3P"]
["Agfa HealthCare France SA","Agfa HealthCare France SA"]
["AGFA Healthcare Imaging Agents France","AGFA Healthcare Imaging Agents France"]
["AGILENT TECHNOLOGIES FRANCE","AGILENT TECHNOLOGIES FRANCE"]
["AGIR Ã  dom Assistance","AGIR Ã  dom Assistance"]
["Aide aux Insuffisants Respiratoires de la Région Auvergne (A.I.R.R.A.)","Aide aux Insuffisants Respiratoires de la Région Auvergne (A.I.R.R.A.)"]
["AIR A DOMICILE","AIR A DOMICILE"]
["AIR DE BRETAGNE","AIR DE BRETAGNE"]
["AIR DOMICILE SANTE ALPES","AIR DOMICILE SANTE ALPES"]
["AIR DOMICILE VALLEE DU RHONE","AIR DOMICILE VALLEE DU RHONE"]
["Air Liquide European Homecare Operations Services","Air Liquide European Homecare Operations Services"]
["AIR LIQUIDE MEDICAL SYSTEMS","AIR LIQUIDE MEDICAL SYSTEMS"]
["AIR LIQUIDE SANTE (INTERNATIONAL)","AIR LIQUIDE SANTE (INTERNATIONAL)"]
["AIR LIQUIDE SANTE FRANCE","AIR LIQUIDE SANTE FRANCE"]
["AIR SANTE","AIR SANTE"]
["AIRE","AIRE"]
["AIREL","AIREL"]
["AIXPER'F","AIXPER'F"]
["AJ4MED","AJ4MED"]
["ALAIN AFFLELOU FRANCHISEUR","ALAIN AFFLELOU FRANCHISEUR"]
["ALAIR & AVD","ALAIR & AVD"]
["Alcimed GmbH","Alcimed GmbH"]
["Alcimed Inc","Alcimed Inc"]
["Alcimed SARL","Alcimed SARL"]
["Alcimed SAS","Alcimed SAS"]
["Alcimed Sprl","Alcimed Sprl"]
["Alcura France","Alcura France"]
["ALERE E-SANTE SAS","ALERE E-SANTE SAS"]
["ALERE SAS","ALERE SAS"]
["Alexion Pharma France","Alexion Pharma France"]
["ALFA WASSERMANN PHARMA","ALFA WASSERMANN PHARMA"]
["Align Technology SAS","Align Technology SAS"]
["Alimera Sciences France","Alimera Sciences France"]
["ALISEO","ALISEO"]
["Alizé Pharma SAS","Alizé Pharma SAS"]
["Alizé Santé","Alizé Santé"]
["ALK-Abelló","ALK-Abelló"]
["ALKAPHARM","ALKAPHARM"]
["All Global","All Global"]
["ALLERGAN FRANCE","ALLERGAN FRANCE"]
["alliance healthcare repartition","alliance healthcare repartition"]
["ALLIANCE'PERF","ALLIANCE'PERF"]
["ALLP MEDITEC","ALLP MEDITEC"]
["ALMIRALL SAS","ALMIRALL SAS"]
["ALMUS","ALMUS"]
["ALPHATEC SPINE INC","ALPHATEC SPINE INC"]
["ALPHEGA","ALPHEGA"]
["ALPINE SCIENTIFIC","ALPINE SCIENTIFIC"]
["ALSANZA sarl","ALSANZA sarl"]
["ALTEOR","ALTEOR"]
["alveol'air","alveol'air"]
["ALVIMEDICA Medical Technologie France","ALVIMEDICA Medical Technologie France"]
["AM AUDITION","AM AUDITION"]
["AMADEUS SANTE","AMADEUS SANTE"]
["AMC APPAREILLAGE ET MATERIEL DE CARDIOLOGIE","AMC APPAREILLAGE ET MATERIEL DE CARDIOLOGIE"]
["American Medical Systems France","American Medical Systems France"]
["American Orthodontics","American Orthodontics"]
["AMGEN SAS","Amgen"]
["AMICUS THERAPEUTICS SAS","AMICUS THERAPEUTICS SAS"]
["AMO FRANCE SAS","AMO FRANCE SAS"]
["AMO Germany GmbH","AMO Germany GmbH"]
["AMO INC USA","AMO INC USA"]
["Amplifon Groupe France","Amplifon Groupe France"]
["AMPLITUDE","AMPLITUDE"]
["AMS 25","AMS 25"]
["AMS 70","AMS 70"]
["AMS 88","AMS 88"]
["ANERA","ANERA"]
["ANNAYAKE","ANNAYAKE"]
["ANTADIR","ANTADIR"]
["Antadir Assistance SAS","Antadir Assistance SAS"]
["ANTHOGYR","ANTHOGYR"]
["ANTILLES AUDITION GUADELOUPE","ANTILLES AUDITION GUADELOUPE"]
["AOTI Ltd","AOTI Ltd"]
["APARD","APARD"]
["apol","apol"]
["APOLLO ENDOSURGERY UK LTD","APOLLO ENDOSURGERY UK LTD"]
["Applied Medical France","Applied Medical France"]
["APROVA","APROVA"]
["APTALIS PHARMA SAS","APTALIS PHARMA SAS"]
["Aptiv Solutions","Aptiv Solutions"]
["AQUILAB","AQUILAB"]
["ARAIR Assistance","ARAIR Assistance"]
["ARAIR Assistance S.A.","ARAIR Assistance S.A."]
["ARAIRCHAR","ARAIRCHAR"]
["arard","arard"]
["ARCHIMEDES PHARMA France","ARCHIMEDES PHARMA France"]
["ARCOS","ARCOS"]
["ARGON MEDICAL DEVICES","ARGON MEDICAL DEVICES"]
["ARIAD Pharmaceuticals (France)","ARIAD Pharmaceuticals (France)"]
["ARJOHUNTLEIGH","ARJOHUNTLEIGH"]
["ARROW GENERIQUES SAS","ARROW GENERIQUES SAS"]
["ARSENAL-CDM","ARSENAL-CDM"]
["ART&COS","ART&COS"]
["ARTHES","ARTHES"]
["Arthrex SAS","Arthrex SAS"]
["Arthritis Fondation Courtin","Arthritis Fondation Courtin"]
["ArthroCare France","ArthroCare France"]
["Artialis","Artialis"]
["ARX SAS","ARX SAS"]
["ASAHI INTECC CO., LTD.","ASAHI INTECC CO., LTD."]
["ASDIA","ASDIA"]
["Asept InMed","Asept InMed"]
["ASKLE SANTE","ASKLE SANTE"]
["ASPEN FRANCE","ASPEN FRANCE"]
["ASPIDE AESTHETIC","ASPIDE AESTHETIC"]
["ASPIDE MEDICAL","ASPIDE MEDICAL"]
["ASSISTANCE DU GRAND EST","ASSISTANCE DU GRAND EST"]
["ASSISTANCES MEDICALES SPECIALISEES","ASSISTANCES MEDICALES SPECIALISEES"]
["Association Françoise et Eugène MINKOWSKI pour la santé mentale des migrants","Association Françoise et Eugène MINKOWSKI pour la santé mentale des migrants"]
["Association pour le Développement de lâ€™Enseignement et des Recherches auprès des universités des centres de recherches et des entreprises dâ€™Aquitaine (ADERA)","Association pour le Développement de lâ€™Enseignement et des Recherches auprès des universités des centres de recherches et des entreprises dâ€™Aquitaine (ADERA)"]
["ASTELLAS PHARMA","ASTELLAS PHARMA"]
["ASTELLAS PHARMA B.V.","ASTELLAS PHARMA B.V."]
["ASTELLAS PHARMA GLOBAL DEVELOPMENT","ASTELLAS PHARMA GLOBAL DEVELOPMENT"]
["ASTELLAS PHARMA GmbH","ASTELLAS PHARMA GmbH"]
["ASTELLAS PHARMA Inc","ASTELLAS PHARMA Inc"]
["ASTELLAS PHARMA Ltd","ASTELLAS PHARMA Ltd"]
["ASTELLAS PHARMA S.A.","ASTELLAS PHARMA S.A."]
["Astellas Pharma Singapore Pte. Ltd.","Astellas Pharma Singapore Pte. Ltd."]
["ASTELLAS PHARMACEUTICALS AE","ASTELLAS PHARMACEUTICALS AE"]
["ASTON MEDICAL Anciennement SOCIETE DE GENIE MEDICAL - S.G.M.","ASTON MEDICAL Anciennement SOCIETE DE GENIE MEDICAL - S.G.M."]
["ASTRAZENECA","ASTRAZENECA"]
["Athersys, Inc.","Athersys, Inc."]
["Atlantic Pharmacetuicals Ltd","Atlantic Pharmacetuicals Ltd"]
["ATLANTIC SURDITE","ATLANTIC SURDITE"]
["ATLANTIS DIFFUSION","ATLANTIS DIFFUSION"]
["ATLANTIS DIFFUSION SAM","ATLANTIS DIFFUSION SAM"]
["ATOS MEDICAL SAS","ATOS MEDICAL SAS"]
["AtriCure, Inc.","AtriCure, Inc."]
["AUDARMOR","AUDARMOR"]
["Audika Groupe SA","Audika Groupe SA"]
["audio acoustique sud","audio acoustique sud"]
["AUDIOCONSULTING","AUDIOCONSULTING"]
["AUDIOELYSCAU","AUDIOELYSCAU"]
["AUDIOMEDI SAS","AUDIOMEDI SAS"]
["AudioNova France SAS","AudioNova France SAS"]
["AUDIOPTIC TRADE SERVICES","AUDIOPTIC TRADE SERVICES"]
["AUDITION 50","AUDITION 50"]
["AUDITION B&H","AUDITION B&H"]
["AUDITION BOULEVARD MARIE","AUDITION BOULEVARD MARIE"]
["AUDITION CONSEIL FRANCE","AUDITION CONSEIL FRANCE"]
["Audition DEBRUILLE","Audition DEBRUILLE"]
["AUDITION DEBRUILLE BEZANNES","AUDITION DEBRUILLE BEZANNES"]
["AUDITION FISMES","AUDITION FISMES"]
["AUDITION GAMBETTA","AUDITION GAMBETTA"]
["AUDITION LYON EST","AUDITION LYON EST"]
["AUDITION MARIE SIRVEN","AUDITION MARIE SIRVEN"]
["Audition Martin","Audition Martin"]
["AUDITION OUTRE MER","AUDITION OUTRE MER"]
["AUDITION PARIS EST","AUDITION PARIS EST"]
["AUDITION REMI LAMOINE","AUDITION REMI LAMOINE"]
["AUDITION SANTE","AUDITION SANTE"]
["AUDITION TRIBUT VERJUS","AUDITION TRIBUT VERJUS"]
["AUXESIA","AUXESIA"]
["AVANTEC","AVANTEC"]
["AX'AIR MEDICAL","AX'AIR MEDICAL"]
["AXDOM VAR","AXDOM VAR"]
["Axess Research","Axess Research"]
["AXIS biodental SA","AXIS biodental SA"]
["AXIS Dental Sarl","AXIS Dental Sarl"]
["AXIS Santé","AXIS Santé"]
["AXONAL","AXONAL"]
["Axonics Modulation Technologies, Inc.","Axonics Modulation Technologies, Inc."]
["AX'PERF MEDICAL","AX'PERF MEDICAL"]
["AZ MEDICAL","AZ MEDICAL"]
["B. Braun Avitum France SAS","B. Braun Avitum France SAS"]
["B.BRAUN MEDICAL SAS","B.BRAUN MEDICAL SAS"]
["B.R.A. SAS","B.R.A. SAS"]
["B3TSI","B3TSI"]
["BAC OPTIQUE","BAC OPTIQUE"]
["BALJO","BALJO"]
["BALT EXTRUSION SAS","BALT EXTRUSION SAS"]
["BALT INTERNATIONAL","BALT INTERNATIONAL"]
["BARD FRANCE SAS","BARD FRANCE SAS"]
["Bastide Le Confort Médical","Bastide Le Confort Médical"]
["BAUERFEIND FRANCE","BAUERFEIND FRANCE"]
["Baxter SAS","Baxter SAS"]
["Bayer HealthCare SAS","Bayer HealthCare SAS"]
["BAYER SANTE FAMILIALE","BAYER SANTE FAMILIALE"]
["BBGR SAS","BBGR SAS"]
["BEAUFOUR IPSEN INDUSTRIE","BEAUFOUR IPSEN INDUSTRIE"]
["BEAUTE PRESTIGE INTERNATIONAL","BEAUTE PRESTIGE INTERNATIONAL"]
["Beaver-Visitec Int'l Sales Ltd","Beaver-Visitec Int'l Sales Ltd"]
["BECKMAN COULTER FRANCE","BECKMAN COULTER FRANCE"]
["Becton Dickinson France SAS","Becton Dickinson France SAS"]
["Beiersdorf s.a.s","Beiersdorf s.a.s"]
["BELLCO FRANCE","BELLCO FRANCE"]
["BEST OF OPTIMIZERS","BEST OF OPTIMIZERS"]
["Bien-Air France","Bien-Air France"]
["BIO COMPOSANTS MEDICAUX","BIO COMPOSANTS MEDICAUX"]
["BIOCODEX","BIOCODEX"]
["BIOCORP PRODUCTION","BIOCORP PRODUCTION"]
["BioCryst Pharmaceuticals Inc.","BioCryst Pharmaceuticals Inc."]
["BIOCYTEX","BIOCYTEX"]
["Biofortis SAS","Biofortis SAS"]
["BIOGARAN","BIOGARAN"]
["BIOGEN FRANCE SAS","BIOGEN FRANCE SAS"]
["BioHorizons Iberica S.R.L.","BioHorizons Iberica S.R.L."]
["Biomarin Europe Ltd.","Biomarin Europe Ltd."]
["BIOMATLANTE SA","BIOMATLANTE SA"]
["bioMérieux","bioMérieux"]
["BIOMET","BIOMET"]
["BIOMET 3i","BIOMET 3i"]
["BIOMET BELGIUM BVBA","BIOMET BELGIUM BVBA"]
["BIOMET CHINA","BIOMET CHINA"]
["Biomet France","Biomet France"]
["BIOMET GLOBAL SUPPLY CHAIN CENTER B.V.","BIOMET GLOBAL SUPPLY CHAIN CENTER B.V."]
["Biomet Inc","Biomet Inc"]
["Biomet Japan, Inc.","Biomet Japan, Inc."]
["Biomet Orthopaedics Sweeden","Biomet Orthopaedics Sweeden"]
["Biomet Spain Orthopaedics S.L.","Biomet Spain Orthopaedics S.L."]
["BIOMET UK Limited","BIOMET UK Limited"]
["BIOM'UP","BIOM'UP"]
["Bioprojet","Bioprojet"]
["BIOPROJET PHARMA","BIOPROJET PHARMA"]
["BIO-RAD","BIO-RAD"]
["BIO-RAD AbD Serotec Ltd","BIO-RAD AbD Serotec Ltd"]
["BIO-RAD Innovations","BIO-RAD Innovations"]
["BIO-RAD Laboratories Inc.","BIO-RAD Laboratories Inc."]
["BIO-RAD Laboratories Limited","BIO-RAD Laboratories Limited"]
["BIO-RAD Laboratories S.A.S.","BIO-RAD Laboratories S.A.S."]
["Biosensors Europe SA","Biosensors Europe SA"]
["Biosensors France SAS","Biosensors France SAS"]
["Biosphere Medical, Inc.","Biosphere Medical, Inc."]
["Biosphere Medical, S.A.","Biosphere Medical, S.A."]
["BIOSPINE IMPLANTS","BIOSPINE IMPLANTS"]
["BIOTECH DENTAL","BIOTECH DENTAL"]
["BIOTECH ORTHO","BIOTECH ORTHO"]
["BIOTEST AG","BIOTEST AG"]
["BIOTEST FRANCE SAS","BIOTEST FRANCE SAS"]
["BIOTEST HUNGARIA KFT.","BIOTEST HUNGARIA KFT."]
["BIOTRIAL","BIOTRIAL"]
["BIOTRONIK AG","BIOTRONIK AG"]
["BIOTRONIK Belgium","BIOTRONIK Belgium"]
["BIOTRONIK FRANCE SAS","BIOTRONIK FRANCE SAS"]
["BIOTRONIK SE & Co. KG","BIOTRONIK SE & Co. KG"]
["BIOVENTUS","BIOVENTUS"]
["Bisico","Bisico"]
["BLOCKADE MEDICAL, LLC","BLOCKADE MEDICAL, LLC"]
["BLUE-REG PHARMA CONSULT","BLUE-REG PHARMA CONSULT"]
["BLUESOM","BLUESOM"]
["BOEHRINGER INGELHEIM FRANCE","BOEHRINGER INGELHEIM FRANCE"]
["BOIRON","BOIRON"]
["BOIRON CARAIBES","BOIRON CARAIBES"]
["BOIRON OCEAN INDIEN","BOIRON OCEAN INDIEN"]
["Bone Therapeutics","Bone Therapeutics"]
["BONNET SOUYRIS PROSPECTIVE","BONNET SOUYRIS PROSPECTIVE"]
["Boston Healthcare International","Boston Healthcare International"]
["BOSTON SCIENTIFIC SAS","BOSTON SCIENTIFIC SAS"]
["BRACCO DIAGNOSTICS INC","BRACCO DIAGNOSTICS INC"]
["BRACCO IMAGING FRANCE","BRACCO IMAGING FRANCE"]
["BRACCO IMAGING ITALIA SRL","BRACCO IMAGING ITALIA SRL"]
["BRACCO IMAGING SPA","BRACCO IMAGING SPA"]
["BRACCO SUISSE SA","BRACCO SUISSE SA"]
["BRAHMS FRANCE SAS","BRAHMS FRANCE SAS"]
["BRAHMS GmbH","BRAHMS GmbH"]
["Brainlab","Brainlab"]
["Brand Institute","Brand Institute"]
["Branding Science (UK) Ltd","Branding Science (UK) Ltd"]
["BREAS MEDICAL","BREAS MEDICAL"]
["Bristol -Myers Squibb GmbH & Co. KGaA","Bristol -Myers Squibb"]
["BRISTOL-MYERS SQUIBB","Bristol -Myers Squibb"]
["Bristol-Myers Squibb Australia Pty Limited","Bristol -Myers Squibb"]
["BRISTOL-MYERS SQUIBB COMPANY","Bristol -Myers Squibb"]
["Bristol-Myers Squibb EMEA","Bristol -Myers Squibb"]
["BRISTOL-MYERS SQUIBB PHARMACEUTICALS LTD","Bristol -Myers Squibb"]
["BRISTOL-MYERS SQUIBB SA","Bristol -Myers Squibb"]
["Bruker Daltonique","Bruker Daltonique"]
["bruneau","bruneau"]
["BSN medical SAS","BSN medical SAS"]
["BSN-RADIANTE SAS","BSN-RADIANTE SAS"]
["Buhlmann France","Buhlmann France"]
["Bull's Eye Innovations","Bull's Eye Innovations"]
["BVA","BVA"]
["BY AGENCY GROUP","BY AGENCY GROUP"]
["C.F.E.B. SISLEY","C.F.E.B. SISLEY"]
["C@RDISTIM","C@RDISTIM"]
["C2F IMPLANTS","C2F IMPLANTS"]
["C2R SAS","C2R SAS"]
["CAB","CAB"]
["CAIR LGL","CAIR LGL"]
["CANAL 55 COMMUNICATION","CANAL 55 COMMUNICATION"]
["CAPIDEL SANTE SARL","CAPIDEL SANTE SARL"]
["CAPRON PODOLOGIE","CAPRON PODOLOGIE"]
["carco","carco"]
["Cardiac Dimensions, Pty LTD","Cardiac Dimensions, Pty LTD"]
["Cardial SAS","Cardial SAS"]
["CardiAQ Valve Technologies, Inc.","CardiAQ Valve Technologies, Inc."]
["CARDIF ASSISTANCE","CARDIF ASSISTANCE"]
["Cardim@t","Cardim@t"]
["CARDINAL HEALTH FRANCE 506 SAS","CARDINAL HEALTH FRANCE 506 SAS"]
["cardipulse","cardipulse"]
["CAREFUSION FRANCE 309 SAS","CAREFUSION FRANCE 309 SAS"]
["CAREFUSION SWITZERLAND 317 SÃ rl","CAREFUSION SWITZERLAND 317 SÃ rl"]
["CARESTREAM HEALTH FRANCE","CARESTREAM HEALTH FRANCE"]
["CARL ZEISS MEDITEC AG","CARL ZEISS MEDITEC AG"]
["Carl Zeiss Meditec France","Carl Zeiss Meditec France"]
["CARL ZEISS MEDITEC SAS","CARL ZEISS MEDITEC SAS"]
["Carl Zeiss Vision France","Carl Zeiss Vision France"]
["CARMAT","CARMAT"]
["CAROLINE ROBIN AUDITION","CAROLINE ROBIN AUDITION"]
["CARPENTER SAS","CARPENTER SAS"]
["Carvadys S.A.S","Carvadys S.A.S"]
["CBPartners","CBPartners"]
["CDL OPTIQUE","CDL OPTIQUE"]
["CECS","CECS"]
["CELGENE","CELGENE"]
["Celldex Therapeutics","Celldex Therapeutics"]
["CELLforCURE","CELLforCURE"]
["CELONOVA BIOSCIENCES OF EUROPE B.V","CELONOVA BIOSCIENCES OF EUROPE B.V"]
["cemka","cemka"]
["CENDRES+METAUX FRANCE SAS","CENDRES+METAUX FRANCE SAS"]
["CENTRALE DES OPTICIENS","CENTRALE DES OPTICIENS"]
["CENTRALE DES PEELINGS","CENTRALE DES PEELINGS"]
["CENTRALE DES PHARMACIENS","CENTRALE DES PHARMACIENS"]
["Centre d'Audition Bruant","Centre d'Audition Bruant"]
["Centre de stomathérapie","Centre de stomathérapie"]
["Centre d'Etudes et de Recherches cosmétologiques CERCO","Centre d'Etudes et de Recherches cosmétologiques CERCO"]
["centre d'optique et d'audition","centre d'optique et d'audition"]
["Cepheid Europe SAS","Cepheid Europe SAS"]
["Ceramconcept France","Ceramconcept France"]
["CERC","CERC"]
["CERECARE","CERECARE"]
["CEREDAS","CEREDAS"]
["CEREPLAS","CEREPLAS"]
["CERI MEDICAL","CERI MEDICAL"]
["CERMAVEIN","CERMAVEIN"]
["CERP RHIN RHONE MEDITERRANEE","CERP RHIN RHONE MEDITERRANEE"]
["CERP ROUEN","CERP ROUEN"]
["Cerus Corporation","Cerus Corporation"]
["Cerus Europe B.V.","Cerus Europe B.V."]
["Cezanne","Cezanne"]
["CHEMO S.A. FRANCE","CHEMO S.A. FRANCE"]
["CHIESI SAS","CHIESI SAS"]
["Chiltern International SARL","Chiltern International SARL"]
["CHOC","CHOC"]
["chris eyes","chris eyes"]
["CHRISTEYNS FRANCE","CHRISTEYNS FRANCE"]
["CHUGAI PHARMA FRANCE","CHUGAI"]
["CID","CID"]
["CIDELEC","CIDELEC"]
["Cido Research GmbH","Cido Research GmbH"]
["CIS BIO INTERNATIONAL","CIS BIO INTERNATIONAL"]
["Cisbio Bioassays","Cisbio Bioassays"]
["CIZETA MEDICALI France","CIZETA MEDICALI France"]
["CLARIANCE","CLARIANCE"]
["CLARIANCE INC","CLARIANCE INC"]
["CLARIPHARM","CLARIPHARM"]
["CLCA consulting","CLCA consulting"]
["CLIN DATA MANAGEMENT","CLIN DATA MANAGEMENT"]
["Clinical Trial Consulting","Clinical Trial Consulting"]
["CLINICPROSPORT SAS","CLINICPROSPORT SAS"]
["CLINSEARCH","CLINSEARCH"]
["CLS Paris","CLS Paris"]
["Cochlear France","Cochlear France"]
["Codexial Dermatologie","Codexial Dermatologie"]
["colgate palmolive","colgate palmolive"]
["COLGATE PALMOLIVE EUROPE SARL","COLGATE PALMOLIVE EUROPE SARL"]
["COLLIN","COLLIN"]
["COLOPLAST A/S","COLOPLAST A/S"]
["Coloplast Manufacturing France","Coloplast Manufacturing France"]
["COMM Santé","COMM Santé"]
["COMMUNICATION GLOBALE SANTE","COMMUNICATION GLOBALE SANTE"]
["Conceptus SAS","Conceptus SAS"]
["CONGRES COLLOQUES CONVENTIONS","CONGRES COLLOQUES CONVENTIONS"]
["CONMED France","CONMED France"]
["Consentio","Consentio"]
["ConsuMed Research","ConsuMed Research"]
["CONVATEC Inc.","CONVATEC Inc."]
["Cook France SARL","Cook France SARL"]
["COOPERATION PHARMACEUTIQUE FRANCAISE","COOPERATION PHARMACEUTIQUE FRANCAISE"]
["COOPERVISION SAS","COOPERVISION SAS"]
["CORDIS","CORDIS"]
["CORMOVE","CORMOVE"]
["CORONA MEDICAL SAS","CORONA MEDICAL SAS"]
["CORREVIO","CORREVIO"]
["CORSE OXYGENE","CORSE OXYGENE"]
["CORTEX VISION TECH","CORTEX VISION TECH"]
["Corvia Medical Inc.","Corvia Medical Inc."]
["COSMACT","COSMACT"]
["COSMETIQUE ACTIVE FRANCE","COSMETIQUE ACTIVE FRANCE"]
["COSMETIQUE ACTIVE INTERNATIONAL","COSMETIQUE ACTIVE INTERNATIONAL"]
["Côté Audition","Côté Audition"]
["COUSIN BIOSERV","COUSIN BIOSERV"]
["COUSIN BIOTECH","COUSIN BIOTECH"]
["COUSIN ENDOSURG","COUSIN ENDOSURG"]
["Covalia Interactive","Covalia Interactive"]
["Covance Clinical And Periapproval Services SARL","Covance Clinical And Periapproval Services SARL"]
["Covidien AG","Covidien AG"]
["COVIDIEN FRANCE S.A.S.","COVIDIEN FRANCE S.A.S."]
["CREAFIRST","CREAFIRST"]
["Creativ-Ceutical France","Creativ-Ceutical France"]
["CRISTALENS SA","CRISTALENS SA"]
["CRISTERS","CRISTERS"]
["CROMA","CROMA"]
["CROMA FRANCE SASU","CROMA FRANCE SASU"]
["CRYOLIFE FRANCE","CRYOLIFE FRANCE"]
["CSA","CSA"]
["CSL BEHRING SA","CSL BEHRING SA"]
["CTI Clinical Trial and Consulting Services France SARL","CTI Clinical Trial and Consulting Services France SARL"]
["Cubist Pharmaceuticals France","Cubist Pharmaceuticals France"]
["Cutting Edge","Cutting Edge"]
["CVRx Inc.","CVRx Inc."]
["Cyberonics BVBA","Cyberonics BVBA"]
["Cyberonics SA","Cyberonics SA"]
["Cyble Marketing","Cyble Marketing"]
["DAIICHI SANKYO FRANCE SAS","DAIICHI SANKYO FRANCE SAS"]
["DAKO FRANCE SAS","DAKO FRANCE SAS"]
["Damos","Damos"]
["DÃœRR DENTAL FRANCE","DÃœRR DENTAL FRANCE"]
["Datamonitor Healthcare","Datamonitor Healthcare"]
["DATEXIM","DATEXIM"]
["DATIS NORD","DATIS NORD"]
["David Pruce","David Pruce"]
["DDB Health Paris","DDB Health Paris"]
["DDS Assistance","DDS Assistance"]
["DDSM SARL","DDSM SARL"]
["DEBREGEAS ET ASSOCIES PHARMA","DEBREGEAS ET ASSOCIES PHARMA"]
["DEDIENNE SANTE","DEDIENNE SANTE"]
["DEFI ORTHO","DEFI ORTHO"]
["DENTALINOV","DENTALINOV"]
["DENTAURUM FRANCE","DENTAURUM FRANCE"]
["DENTSPLY FRANCE","DENTSPLY FRANCE"]
["Dentsply Gac Europe","Dentsply Gac Europe"]
["DENTSPLY IH AB","DENTSPLY IH AB"]
["DENTSPLY IH K.K.","DENTSPLY IH K.K."]
["DENTSPLY IH SAS","DENTSPLY IH SAS"]
["DENTSPLY Implants","DENTSPLY Implants"]
["DENTSPLY Implants Manufacturing GmbH","DENTSPLY Implants Manufacturing GmbH"]
["DEPUY France","DEPUY France"]
["Devicor Medical","Devicor Medical"]
["Dexter","Dexter"]
["DFine Europe GmbH","DFine Europe GmbH"]
["DFINE Inc","DFINE Inc"]
["DIABSANTE","DIABSANTE"]
["DIADOM SAS","DIADOM SAS"]
["DIAGAST","DIAGAST"]
["DIAGNOSTICA STAGO","DIAGNOSTICA STAGO"]
["Diamed France SA","Diamed France SA"]
["Diamed GmbH","Diamed GmbH"]
["DIASORIN SA","DIASORIN SA"]
["DIAXONHIT","DIAXONHIT"]
["DIDACTIC","DIDACTIC"]
["DINNO SANTE","DINNO SANTE"]
["Direct Medica","Direct Medica"]
["DIS PAR","DIS PAR"]
["DISMEDIS","DISMEDIS"]
["DISTRICLASS MEDICAL SA","DISTRICLASS MEDICAL SA"]
["DIXI microtechniques","DIXI microtechniques"]
["DJO France SAS","DJO France SAS"]
["DMEDICA","DMEDICA"]
["DOM'AIR","DOM'AIR"]
["Dominique TATE","Dominique TATE"]
["DOMISANTE PROXIMED","DOMISANTE PROXIMED"]
["DON'ORTHO","DON'ORTHO"]
["DR WEIGERT FRANCE SAS","DR WEIGERT FRANCE SAS"]
["Draeger Medical Canada","Draeger Medical Canada"]
["DRÄGER MEDICAL GmbH","DRÄGER MEDICAL GmbH"]
["DRAGER MEDICAL S.A.S.","DRAGER MEDICAL S.A.S."]
["DUFLOT SANTE","DUFLOT SANTE"]
["DUNES MEDICAL","DUNES MEDICAL"]
["DUOTECH","DUOTECH"]
["DUX B.V.","DUX B.V."]
["Dynavie","Dynavie"]
["E Coach Cardio","E Coach Cardio"]
["e(ye)BRAIN","e(ye)BRAIN"]
["Echosens","Echosens"]
["Eckert & Ziegler BEBIG","Eckert & Ziegler BEBIG"]
["ECM PROXIMED","ECM PROXIMED"]
["EDAP TMS France SAS","EDAP TMS France SAS"]
["EDIMARK","EDIMARK"]
["EDITION DE L'INTERLIGNE","EDITION DE L'INTERLIGNE"]
["EDUSANTE","EDUSANTE"]
["EDWARDS LIFESCIENCES","EDWARDS LIFESCIENCES"]
["EDWARDS LIFESCIENCES ALLEMAGNE","EDWARDS LIFESCIENCES ALLEMAGNE"]
["EDWARDS LIFESCIENCES AUSTRALIE","EDWARDS LIFESCIENCES AUSTRALIE"]
["EDWARDS LIFESCIENCES AUTRICHE","EDWARDS LIFESCIENCES AUTRICHE"]
["EDWARDS LIFESCIENCES BELGIQUE","EDWARDS LIFESCIENCES BELGIQUE"]
["EDWARDS LIFESCIENCES BRESIL","EDWARDS LIFESCIENCES BRESIL"]
["EDWARDS LIFESCIENCES CANADA","EDWARDS LIFESCIENCES CANADA"]
["EDWARDS LIFESCIENCES CHINA","EDWARDS LIFESCIENCES CHINA"]
["EDWARDS LIFESCIENCES COREE DU SUD","EDWARDS LIFESCIENCES COREE DU SUD"]
["EDWARDS LIFESCIENCES CORPORATION","EDWARDS LIFESCIENCES CORPORATION"]
["Edwards Lifesciences Danemark","Edwards Lifesciences Danemark"]
["EDWARDS LIFESCIENCES ESPAGNE","EDWARDS LIFESCIENCES ESPAGNE"]
["EDWARDS LIFESCIENCES GRECE","EDWARDS LIFESCIENCES GRECE"]
["EDWARDS LIFESCIENCES IRLANDE","EDWARDS LIFESCIENCES IRLANDE"]
["EDWARDS LIFESCIENCES ISRAEL","EDWARDS LIFESCIENCES ISRAEL"]
["EDWARDS LIFESCIENCES ITALIE","EDWARDS LIFESCIENCES ITALIE"]
["EDWARDS LIFESCIENCES JAPON","EDWARDS LIFESCIENCES JAPON"]
["EDWARDS LIFESCIENCES NORDIC/FINLAND","EDWARDS LIFESCIENCES NORDIC/FINLAND"]
["EDWARDS LIFESCIENCES PAYS-BAS","EDWARDS LIFESCIENCES PAYS-BAS"]
["EDWARDS LIFESCIENCES PORTUGAL","EDWARDS LIFESCIENCES PORTUGAL"]
["EDWARDS LIFESCIENCES REPUBLIQUE TCHEQUE","EDWARDS LIFESCIENCES REPUBLIQUE TCHEQUE"]
["EDWARDS LIFESCIENCES ROYAUME-UNI","EDWARDS LIFESCIENCES ROYAUME-UNI"]
["EDWARDS LIFESCIENCES RUSSIE","EDWARDS LIFESCIENCES RUSSIE"]
["EDWARDS LIFESCIENCES SUEDE","EDWARDS LIFESCIENCES SUEDE"]
["EDWARDS LIFESCIENCES SUISSE","EDWARDS LIFESCIENCES SUISSE"]
["EDWARDS LIFESCIENCES TURQUIE","EDWARDS LIFESCIENCES TURQUIE"]
["EFFICARE SARL","EFFICARE SARL"]
["EFFIK","EFFIK"]
["EG LABO - LABORATOIRES EUROGENERICS","EG LABO - EUROGENERICS"]
["EISAI SAS","EISAI SAS"]
["ELEKTA SAS","ELEKTA SAS"]
["ELIA MEDICAL","ELIA MEDICAL"]
["ELIA MEDICAL MEDITERRANEE","ELIA MEDICAL MEDITERRANEE"]
["ELIA MEDICAL OUEST","ELIA MEDICAL OUEST"]
["ELIA MEDICAL PARIS","ELIA MEDICAL PARIS"]
["ELIA MEDICAL PARIS OUEST","ELIA MEDICAL PARIS OUEST"]
["ELIA SUD OUEST","ELIA SUD OUEST"]
["ELIAMM SARL","ELIAMM SARL"]
["ELITech France","ELITech France"]
["Elixo SAS","Elixo SAS"]
["Elma Research srl","Elma Research srl"]
["ELOI MEDICAL","ELOI MEDICAL"]
["Eloi Pernet","Eloi Pernet"]
["ELSODENT","ELSODENT"]
["EM Services","EM Services"]
["EMA SARL","EMA SARL"]
["EMETROP'","EMETROP'"]
["EMS FRANCE SARL","EMS FRANCE SARL"]
["ENDOCONTROL","ENDOCONTROL"]
["ENDOLOGIX INTERNATIONAL BV","ENDOLOGIX INTERNATIONAL BV"]
["ENTENDRE","ENTENDRE"]
["Eole santé","Eole santé"]
["EOLIS SANTE","EOLIS SANTE"]
["Eos imaging","Eos imaging"]
["EPISKIN","EPISKIN"]
["ERYTECH Pharma","ERYTECH Pharma"]
["esanum GmbH","esanum GmbH"]
["ESAOTE Medical","ESAOTE Medical"]
["ESPACE MEDICAL BOURGES","ESPACE MEDICAL BOURGES"]
["espace medical medic centre","espace medical medic centre"]
["ESPACE MEDICAL MONTLUCON","ESPACE MEDICAL MONTLUCON"]
["ESPACE MEDICAL MOULINS","ESPACE MEDICAL MOULINS"]
["espace medical nevers","espace medical nevers"]
["espace medical vichy","espace medical vichy"]
["esprimed","esprimed"]
["Essilor","Essilor"]
["ESSOR FRANCE","ESSOR FRANCE"]
["Et Si ?","Et Si ?"]
["ETHICON","ETHICON"]
["ethimedix","ethimedix"]
["ETHYPHARM","ETHYPHARM"]
["EUMEDICA s.a.","EUMEDICA s.a."]
["EURAXI PHARMA","EURAXI PHARMA"]
["EURL Antoine Durouchez Audition","EURL Antoine Durouchez Audition"]
["Eurl Chaudemanche","Eurl Chaudemanche"]
["eurl generale d'optique","eurl generale d'optique"]
["Eurl Pharmacie Cantarelli","Eurl Pharmacie Cantarelli"]
["EUROBIO","EUROBIO"]
["Eurodep Exploitant","Eurodep Exploitant"]
["EUROFINS OPTIMED","EUROFINS OPTIMED"]
["EUROFINS OPTIMED LYON","EUROFINS OPTIMED LYON"]
["EUROMEDICA IMAGING","EUROMEDICA IMAGING"]
["EUROMEDS","EUROMEDS"]
["EUROPHTA","EUROPHTA"]
["EUROS SAS","EUROS SAS"]
["EUROSAFE","EUROSAFE"]
["EUROSILICONE SAS","EUROSILICONE SAS"]
["EUROSPINE SARL","EUROSPINE SARL"]
["EUROTEKNIKA","EUROTEKNIKA"]
["EUSA Pharma (France) SAS","EUSA Pharma (France) SAS"]
["EUSA PHARMA SAS","EUSA PHARMA SAS"]
["EV3 EUROPE S.A.S.","EV3 EUROPE S.A.S."]
["EVALYS SAS","EVALYS SAS"]
["EVAUX Laboratoires","EVAUX Laboratoires"]
["EVIC FRANCE","EVIC FRANCE"]
["EVIDENCE BASED COMMUNICATION","EVIDENCE BASED COMMUNICATION"]
["EVOLUTIS","EVOLUTIS"]
["EXACTECH FRANCE SAS","EXACTECH FRANCE SAS"]
["EXACTECH INTERNATIONAL OPERATION Ltd.","EXACTECH INTERNATIONAL OPERATION Ltd."]
["EXAFIELD","EXAFIELD"]
["EXPERF AQUITAINE","EXPERF AQUITAINE"]
["EXPERF AUVERGNE","EXPERF AUVERGNE"]
["EXPERF COTE D'AZUR","EXPERF COTE D'AZUR"]
["EXPERF DROME","EXPERF DROME"]
["EXPERF ISERE","EXPERF ISERE"]
["EXPERF LANGUEDOC ROUSSILLON","EXPERF LANGUEDOC ROUSSILLON"]
["EXPERF LORRAINE","EXPERF LORRAINE"]
["EXPERF MIDI PYRENEES","EXPERF MIDI PYRENEES"]
["EXPERF NORD","EXPERF NORD"]
["EXPERF NORMANDIE","EXPERF NORMANDIE"]
["EXPERF PACA","EXPERF PACA"]
["EXPERF PYRENEES ORIENTALES","EXPERF PYRENEES ORIENTALES"]
["EXPERF RHONE ALPES","EXPERF RHONE ALPES"]
["EXPERF VAUCLUSE DROME","EXPERF VAUCLUSE DROME"]
["EXPERTISE RESEARCH","EXPERTISE RESEARCH"]
["EYETECHCARE","EYETECHCARE"]
["Fab'entech","Fab'entech"]
["FAGRON","FAGRON"]
["FARCODERM France","FARCODERM France"]
["FCI SAS","FCI SAS"]
["FeetMe","FeetMe"]
["FERRING SAS","FERRING SAS"]
["FFF AUDIO","FFF AUDIO"]
["FH ORTHOPEDICS","FH ORTHOPEDICS"]
["Field Scope Int Ltd","Field Scope Int Ltd"]
["FII","FII"]
["FIMED","FIMED"]
["FINANCIERE BATTEUR","FINANCIERE BATTEUR"]
["FINOX BIOTECH FRANCE SARL","FINOX BIOTECH FRANCE SARL"]
["Firme","Firme"]
["FISHER & PAYKEL HEALTHCARE SAS","FISHER & PAYKEL HEALTHCARE SAS"]
["FISHER SCIENTIFIC SAS","FISHER SCIENTIFIC SAS"]
["FLUOPTICS","FLUOPTICS"]
["FOVEA PHARMACEUTICALS","FOVEA PHARMACEUTICALS"]
["France Oxygène","France Oxygène"]
["FRANCHIS OPTIQUE AUDITION DE LA SCELLERIE","FRANCHIS OPTIQUE AUDITION DE LA SCELLERIE"]
["FRANCOPIA","FRANCOPIA"]
["FRESENIUS KABI FRANCE","FRESENIUS KABI FRANCE"]
["Fresenius Medical Care France S.A.S.","Fresenius Medical Care France S.A.S."]
["FRESENIUS VIAL","FRESENIUS VIAL"]
["FUJIFILM Medical Systems France","FUJIFILM Medical Systems France"]
["Fujifilm Sonosite France SARL","Fujifilm Sonosite France SARL"]
["FUJIREBIO FRANCE SARL","FUJIREBIO FRANCE SARL"]
["FUKUDA DENSHI CO., LTD","FUKUDA DENSHI CO., LTD"]
["FUMOUZE DIAGNOSTICS - SOFIBEL","FUMOUZE DIAGNOSTICS - SOFIBEL"]
["Future Thinking France","Future Thinking France"]
["FV Clinical","FV Clinical"]
["FX SOLUTIONS","FX SOLUTIONS"]
["GACD","GACD"]
["galderma international","galderma international"]
["Galderma Research & Development","Galderma Research & Development"]
["GaldermaQMed","GaldermaQMed"]
["GALLILEO BUSINESS CONSULTING","GALLILEO BUSINESS CONSULTING"]
["GAMAIN LEGROS","GAMAIN LEGROS"]
["GAMBRO HOSPAL SAS","GAMBRO HOSPAL SAS"]
["GAMBRO INDUSTRIES","GAMBRO INDUSTRIES"]
["GAMIDA","GAMIDA"]
["GC FRANCE SAS","GC FRANCE SAS"]
["GC Orthodonics Europe GmbH","GC Orthodonics Europe GmbH"]
["GC TECHNOLOGY","GC TECHNOLOGY"]
["GE HEALTHCARE SAS","GE HEALTHCARE SAS"]
["GE Medical Systems SCS","GE Medical Systems SCS"]
["GECEM","GECEM"]
["GEDEON RICHTER France - Division Santé de la Femme","GEDEON RICHTER France - Division Santé de la Femme"]
["GEISTLICH PHARMA FRANCE","GEISTLICH PHARMA FRANCE"]
["GemSeek","GemSeek"]
["Genactis SAS","Genactis SAS"]
["GENBIOTECH","GENBIOTECH"]
["Genen-Tech Inc","Genen-Tech Inc"]
["GENERIC IMPLANTS","GENERIC IMPLANTS"]
["generique international","generique international"]
["GENETHON","GENETHON"]
["GeNeuro","GeNeuro"]
["GeNeuro Innovation","GeNeuro Innovation"]
["GENEWAVE S.A.S","GENEWAVE S.A.S"]
["Genmab A/S","Genmab A/S"]
["GENOMIC HEALTH","GENOMIC HEALTH"]
["GENTICEL","GENTICEL"]
["Genzyme","Genzyme"]
["GENZYME POLYCLONALS","GENZYME POLYCLONALS"]
["GEP Santé","GEP Santé"]
["Gesellschaft für Konsumforschung (GfK SE)","Gesellschaft für Konsumforschung (GfK SE)"]
["GETINGE France","GETINGE France"]
["GFK ISL CUSTOM RESEARCH FRANCE","GFK ISL CUSTOM RESEARCH FRANCE"]
["GfK Market Access","GfK Market Access"]
["GfK NOP","GfK NOP"]
["GIBAUD","GIBAUD"]
["GIE DIALYSE SERVICES","GIE DIALYSE SERVICES"]
["GIFRER BARBEZAT","GIFRER BARBEZAT"]
["GILEAD SCIENCES","GILEAD SCIENCES"]
["GIM France","GIM France"]
["Gina","Gina"]
["GIVEN IMAGING","GIVEN IMAGING"]
["GlaxoSmithKline Biologicals","GlaxoSmithKline Biologicals"]
["GLAXOSMITHKLINE SANTE GRAND PUBLIC","GLAXOSMITHKLINE SANTE GRAND PUBLIC"]
["GLOBAL D","GLOBAL D"]
["GLOBAL MEDIA SANTE","GLOBAL MEDIA SANTE"]
["Globe Life Sciences","Globe Life Sciences"]
["GLocal Mind Inc","GLocal Mind Inc"]
["GLPTest","GLPTest"]
["gn hearing sas","gn hearing sas"]
["GN OTOMETRICS","GN OTOMETRICS"]
["GNB AUDIO 7","GNB AUDIO 7"]
["GNM Healthcare Consulting Ltd","GNM Healthcare Consulting Ltd"]
["GRAFTYS SA","GRAFTYS SA"]
["GREAT PROJECTS 66","GREAT PROJECTS 66"]
["Grey Healthcare Paris","Grey Healthcare Paris"]
["GRIFOLS France","GRIFOLS France"]
["Groupe d'Etudes pour la Chirurgie Osseuse","Groupe d'Etudes pour la Chirurgie Osseuse"]
["GROUPE LEPINE","GROUPE LEPINE"]
["GROUPE SEBBIN","GROUPE SEBBIN"]
["GROUPE WELCOOP","GROUPE WELCOOP"]
["GT Urological, LLC","GT Urological, LLC"]
["GTO","GTO"]
["Guerbet","Guerbet"]
["GUERBET France","Guerbet"]
["GUILDE DES LUNETIERS","GUILDE DES LUNETIERS"]
["GXEL MEDICAL SARL","GXEL MEDICAL SARL"]
["H.A.C.Pharma","H.A.C.Pharma"]
["H32","H32"]
["H4D","H4D"]
["HALYARD France","HALYARD France"]
["HANDI PHARM ATLANTIQUE","HANDI PHARM ATLANTIQUE"]
["HANDI PHARM CHARENTES","HANDI PHARM CHARENTES"]
["HANDI PHARM GROUPE","HANDI PHARM GROUPE"]
["HANDI PHARM LIMOUSIN","HANDI PHARM LIMOUSIN"]
["HANDI PHARM NORMANDIE","HANDI PHARM NORMANDIE"]
["HANDI PHARM OCEAN","HANDI PHARM OCEAN"]
["HANDI PHARM PERCHE","HANDI PHARM PERCHE"]
["HANDI PHARM POITOU","HANDI PHARM POITOU"]
["HANSATON","HANSATON"]
["Hansen Medical, Inc.","Hansen Medical, Inc."]
["HARD CAB'","HARD CAB'"]
["HAVAS LIFE PARIS","HAVAS LIFE PARIS"]
["HD MEDICAL","HD MEDICAL"]
["Health Advances","Health Advances"]
["HEALTHCARE COMPLIANCE CONSULTING FRANCE SAS","HEALTHCARE COMPLIANCE CONSULTING FRANCE SAS"]
["HEALTHCAREGEN COMMUNICATION","HEALTHCAREGEN COMMUNICATION"]
["HEARTWARE FRANCE","HEARTWARE FRANCE"]
["HeartWare Inc.","HeartWare Inc."]
["HELP ORTHO PRODUCTION","HELP ORTHO PRODUCTION"]
["HEMA.T MEDICAL","HEMA.T MEDICAL"]
["HEMODIA SAS","HEMODIA SAS"]
["HEMOTECH","HEMOTECH"]
["HENRY SCHEIN FRANCE SCA","HENRY SCHEIN FRANCE SCA"]
["HERAEUS","HERAEUS"]
["HERAEUS KULZER FRANCE","HERAEUS KULZER FRANCE"]
["HERINOMENJANAHARY ZAFITSARA","HERINOMENJANAHARY ZAFITSARA"]
["HEXACATH FRANCE","HEXACATH FRANCE"]
["HEXAMEDICAL SAS","HEXAMEDICAL SAS"]
["HILL-ROM S.A.S.","HILL-ROM S.A.S."]
["HITACHI MEDICAL SYSTEMS SAS","HITACHI MEDICAL SYSTEMS SAS"]
["Hogan Lovells International LLP","Hogan Lovells International LLP"]
["Holaira, Inc.","Holaira, Inc."]
["HOLLISTER FRANCE Incorporated","HOLLISTER FRANCE Incorporated"]
["HOLOGIC","HOLOGIC"]
["Hologic Deutschland GmbH","Hologic Deutschland GmbH"]
["HOME AIR","HOME AIR"]
["HOMEDIS SANTE","HOMEDIS SANTE"]
["Homeperf","Homeperf"]
["HORIBA ABX SAS","HORIBA ABX SAS"]
["HORMETA FRANCE","HORMETA FRANCE"]
["horus pharma","horus pharma"]
["HOSPIDOM","HOSPIDOM"]
["HOSPIRA FRANCE","HOSPIRA"]
["HOYA LENS FRANCE SAS","HOYA LENS FRANCE SAS"]
["HOYA Surgical Optics GmbH","HOYA Surgical Optics GmbH"]
["HRA PHARMA FRANCE","HRA PHARMA FRANCE"]
["H-research Asia","H-research Asia"]
["HUERRE ALAIN FRANCOIS","HUERRE ALAIN FRANCOIS"]
["HUMANAIR MEDICAL","HUMANAIR MEDICAL"]
["HYPHEN BIOMED SAS","HYPHEN BIOMED SAS"]
["Hyprevention sas","Hyprevention sas"]
["I.CERAM","I.CERAM"]
["ICARE","ICARE"]
["ICOMED","Icomed"]
["ICON CLINICAL RESEARCH SARL","ICON CLINICAL RESEARCH SARL"]
["ICON CLINICAL RESEARCH UK LIMITED","ICON CLINICAL RESEARCH UK LIMITED"]
["ICTA PROJECT MANAGEMENT","ICTA PROJECT MANAGEMENT"]
["Ideal Gourmet","Ideal Gourmet"]
["IDEC 56","IDEC 56"]
["ID-NEST Medical","ID-NEST Medical"]
["idrm","idrm"]
["IFOP","IFOP"]
["IHEALTHLABS","IHEALTHLABS"]
["Illumina France","Illumina France"]
["IMACCESS","IMACCESS"]
["IMACTIS","IMACTIS"]
["IMAGO RESEARCH","IMAGO RESEARCH"]
["Imaxio","Imaxio"]
["Immucor France","Immucor France"]
["ImmunoDiagnostic Systems SAS","ImmunoDiagnostic Systems SAS"]
["IMPACT MEDICOM","IMPACT MEDICOM"]
["IMPETO MEDICAL","IMPETO MEDICAL"]
["IMPLANET SA","IMPLANET SA"]
["IMPLANTS SERVICE ORTHOPEDIE","IMPLANTS SERVICE ORTHOPEDIE"]
["IMS Health Belgique","IMS Health Belgique"]
["IMS Health Cambridge","IMS Health Cambridge"]
["IMS HEALTH SAS","IMS HEALTH SAS"]
["IMS Medical Radar","IMS Medical Radar"]
["In2Bones","In2Bones"]
["INC RESEARCH, LLC","INC RESEARCH, LLC"]
["Incyte Corporation","Incyte Corporation"]
["Indigo Medical","Indigo Medical"]
["INFECO","INFECO"]
["INGEN","INGEN"]
["INNATE PHARMA","INNATE PHARMA"]
["InnOpath sarl","InnOpath sarl"]
["INNOPSYS","INNOPSYS"]
["Innothera Chouzy","Innothera Chouzy"]
["Innothera Services","Innothera Services"]
["INOVITALE","INOVITALE"]
["INRESA Sarl","INRESA Sarl"]
["Insight Research Group","Insight Research Group"]
["INSMED France SAS","INSMED France SAS"]
["INSMED INCORPORATED","INSMED INCORPORATED"]
["INSTITUT DE BIOTECHNOLOGIES J. BOY","INSTITUT DE BIOTECHNOLOGIES J. BOY"]
["INSTITUT GEORGES LOPEZ","INSTITUT GEORGES LOPEZ"]
["INSTITUT MERIEUX","INSTITUT MERIEUX"]
["INSTITUT STERLING COOPER","INSTITUT STERLING COOPER"]
["Integra LifeSciences Services (France)","Integra LifeSciences Services (France)"]
["Integra MicroFrance","Integra MicroFrance"]
["Integra NeuroSciences Implants (France)","Integra NeuroSciences Implants (France)"]
["INTEGRAL ORTHO","INTEGRAL ORTHO"]
["INTER ORTHO","INTER ORTHO"]
["Intercept Pharma France SAS","Intercept Pharma France SAS"]
["Intercept Pharmaceuticals Inc.","Intercept Pharmaceuticals Inc."]
["InterMune France SAS","InterMune France SAS"]
["InterMune International AG","InterMune International AG"]
["INTERSURGICAL SARL","INTERSURGICAL SARL"]
["Inter-View Partners France","Inter-View Partners France"]
["INTUITIVE SURGICAL SARL","INTUITIVE SURGICAL SARL"]
["INVACARE POIRIER SAS","INVACARE POIRIER SAS"]
["INVENTIVA","INVENTIVA"]
["Inventivhealthclinical","Inventivhealthclinical"]
["IP Santé domicile","IP Santé domicile"]
["IPAD Médical","IPAD Médical"]
["Ipanema Healthcare Consulting","Ipanema Healthcare Consulting"]
["IPPMed GmbH","IPPMed GmbH"]
["IPSEN INNOVATION","IPSEN INNOVATION"]
["IPSEN PHARMA","IPSEN PHARMA"]
["IPSEN PHARMA BIOTECH","IPSEN PHARMA BIOTECH"]
["Ipsos (France)","Ipsos (France)"]
["Ipsos Insight LLC","Ipsos Insight LLC"]
["Ipsos Mori UK Limited","Ipsos Mori UK Limited"]
["Ipsos Observer","Ipsos Observer"]
["Iris Pharma","Iris Pharma"]
["ISIS ADOUR","ISIS ADOUR"]
["ISIS ATLANTIQUE","ISIS ATLANTIQUE"]
["ISIS COTE D'AZUR","ISIS COTE D'AZUR"]
["ISIS DIABETE","ISIS DIABETE"]
["ISIS DIABETE EST","ISIS DIABETE EST"]
["ISIS DIABETE SERVICE","ISIS DIABETE SERVICE"]
["ISIS DIABETE SUD","ISIS DIABETE SUD"]
["ISIS GUADELOUPE","ISIS GUADELOUPE"]
["ISIS LANGUEDOC ROUSSILLON","ISIS LANGUEDOC ROUSSILLON"]
["ISIS MARTINIQUE","ISIS MARTINIQUE"]
["ISIS MÉDICAL VAR","ISIS MÉDICAL VAR"]
["Isis Méditerranée","Isis Méditerranée"]
["ISIS MIDI PYRENEES","ISIS MIDI PYRENEES"]
["ISIS NORMANDIE","ISIS NORMANDIE"]
["ISIS PARIS EST","ISIS PARIS EST"]
["ISIS PARIS NORD","ISIS PARIS NORD"]
["ISIS PARIS NORMANDIE","ISIS PARIS NORMANDIE"]
["ISIS PARIS OUEST","ISIS PARIS OUEST"]
["ISIS PARIS SUD","ISIS PARIS SUD"]
["ISIS PAYS DE LA LOIRE","ISIS PAYS DE LA LOIRE"]
["ISIS PERFUSION","ISIS PERFUSION"]
["ISIS PERFUSION NORD","ISIS PERFUSION NORD"]
["ISIS RHONE ALPES","ISIS RHONE ALPES"]
["ITEC SERVICES","ITEC SERVICES"]
["ITEM","ITEM"]
["ITENA CLINICAL","ITENA CLINICAL"]
["Ivoclar Vivadent SAS","Ivoclar Vivadent SAS"]
["IVTEC (Iol Vision Technology)","IVTEC (Iol Vision Technology)"]
["IXAIR","IXAIR"]
["IXAIR ASSISTANCE","IXAIR ASSISTANCE"]
["IXXI","IXXI"]
["JANSSEN-CILAG","Janssen-Cilag"]
["Jean-Manuel Toussaint, IHMT","Jean-Manuel Toussaint, IHMT"]
["JLM MEDICAL","JLM MEDICAL"]
["Johnson & Johnson Diabetes Institute SAS","Johnson & Johnson Diabetes Institute SAS"]
["Johnson et Johnson Santé Beauté France","Johnson et Johnson Santé Beauté France"]
["JOTEC GmbH","JOTEC GmbH"]
["Julius Zorn GmbH","Julius Zorn GmbH"]
["Junicon","Junicon"]
["Junicon Europe SL","Junicon Europe SL"]
["K. PARTICULIER","K. PARTICULIER"]
["Kadence international","Kadence international"]
["Kantar Health","Kantar Health"]
["Kappa Santé","Kappa Santé"]
["KARL STORZ ENDOSCOPIE FRANCE SAS","KARL STORZ ENDOSCOPIE FRANCE SAS"]
["Karl Storz Gmbh and co KG","Karl Storz Gmbh and co KG"]
["KARUKERA AUDITION","KARUKERA AUDITION"]
["Karyopharm Therapeutics Inc.","Karyopharm Therapeutics Inc."]
["KASIOS","KASIOS"]
["Kavo Dental SAS","Kavo Dental SAS"]
["KCI EUROPE HOLDING B.V.","KCI EUROPE HOLDING B.V."]
["KCI KK JAPAN","KCI KK JAPAN"]
["KCI MEDICAL (CHINA) CO. LTD.","KCI MEDICAL (CHINA) CO. LTD."]
["KEBOMED","KEBOMED"]
["KEOCYT","KEOCYT"]
["KEPHREN","KEPHREN"]
["KeyQuest Health Ltd","KeyQuest Health Ltd"]
["KeyQuest Health Ltd.","KeyQuest Health Ltd."]
["KEYSTONE DENTAL SAS","KEYSTONE DENTAL SAS"]
["Kimberly-Clark SAS","Kimberly-Clark SAS"]
["KINETIC CONCEPTS, INC.","KINETIC CONCEPTS, INC."]
["KISCO International","KISCO International"]
["KOELIS","KOELIS"]
["KOMET FRANCE","KOMET FRANCE"]
["KPL","KPL"]
["KRKA FRANCE EURL","KRKA FRANCE EURL"]
["Kuraray Europe France","Kuraray Europe France"]
["KYD ORTHOPEDIE","KYD ORTHOPEDIE"]
["L&L Rsourcing","L&L Rsourcing"]
["LA DIFFUSION TECHNIQUE FRANCAISE","LA DIFFUSION TECHNIQUE FRANCAISE"]
["LA FONDERIE","LA FONDERIE"]
["LA REGIE PUBLIQUE","LA REGIE PUBLIQUE"]
["LA SOLUTION AUDITIVE","LA SOLUTION AUDITIVE"]
["Lab Marketing SL","Lab Marketing SL"]
["LABCATAL","LABCATAL"]
["LABODIAL","LABODIAL"]
["Laboratoier Innotech international","Laboratoier Innotech international"]
["Laboratoire AGUETTANT, Société par Actions Simplifiée","AGUETTANT, Société par Actions Simplifiée"]
["LABORATOIRE ATO-ZIZINE","ATO-ZIZINE"]
["laboratoire audioprothèse lorrain","audioprothèse lorrain"]
["laboratoire BAUSCH&LOMB","BAUSCH&LOMB"]
["Laboratoire Bioderma","Bioderma"]
["LABORATOIRE BIODIM","BIODIM"]
["Laboratoire CAT","CAT"]
["Laboratoire CCD","CCD"]
["LABORATOIRE CORRECTION AUDITIVE DRAGUIGNAN","CORRECTION AUDITIVE DRAGUIGNAN"]
["LABORATOIRE CORRECTION AUDITIVE ST RAPHAEL-FREJUS","CORRECTION AUDITIVE ST RAPHAEL-FREJUS"]
["LABORATOIRE COSMETIQUE DE LECOUSSE","COSMETIQUE DE LECOUSSE"]
["Laboratoire de correction auditive","de correction auditive"]
["Laboratoire de correction auditive d'Aix en Provence","de correction auditive d'Aix en Provence"]
["laboratoire de correction auditive d'Aubagne","de correction auditive d'Aubagne"]
["LABORATOIRE DE CORRECTION AUDITIVE D'AVIGNON SAINT ROCH","DE CORRECTION AUDITIVE D'AVIGNON SAINT ROCH"]
["LABORATOIRE DE CORRECTION AUDITIVE DE CAVAILLON","DE CORRECTION AUDITIVE DE CAVAILLON"]
["laboratoire de correction auditive de dijon","de correction auditive de dijon"]
["LABORATOIRE DE CORRECTION AUDITIVE DE ISTRES","DE CORRECTION AUDITIVE DE ISTRES"]
["Laboratoire de correction auditive de lambesc","de correction auditive de lambesc"]
["LABORATOIRE DE CORRECTION AUDITIVE DE MARTIGUES","DE CORRECTION AUDITIVE DE MARTIGUES"]
["LABORATOIRE DE CORRECTION AUDITIVE DE TOULON","DE CORRECTION AUDITIVE DE TOULON"]
["Laboratoire de Correction Auditive de Villeneuve lez Avignon","de Correction Auditive de Villeneuve lez Avignon"]
["laboratoire de correction auditive Sylvain Chopinaud","de correction auditive Sylvain Chopinaud"]
["LABORATOIRE DE CORRECTION DE LA SURDITE","DE CORRECTION DE LA SURDITE"]
["laboratoire de correction de l'audition","de correction de l'audition"]
["Laboratoire de Dermocosmétique Active Docteur Pierre Ricaud","de Dermocosmétique Active Docteur Pierre Ricaud"]
["LABORATOIRE DE DIFFUSION DE PRODUITS DE SANTE APPLIQUEE","DE DIFFUSION DE PRODUITS DE SANTE APPLIQUEE"]
["LABORATOIRE DE LA MER","DE LA MER"]
["LABORATOIRE DENSMORE","DENSMORE"]
["Laboratoire DERMSCAN","DERMSCAN"]
["LABORATOIRE DES GRANIONS","DES GRANIONS"]
["LABORATOIRE DISSOLVUROL","DISSOLVUROL"]
["Laboratoire du Dermophil Indien","Dermophil Indien"]
["LABORATOIRE EREMPHARMA","EREMPHARMA"]
["LABORATOIRE FLORENCE VERJUS","FLORENCE VERJUS"]
["Laboratoire français du Fractionnement et des Biotechnologies","LFB"]
["Laboratoire GANDHOUR","GANDHOUR"]
["LABORATOIRE GLAXOSMITHKLINE","GSK"]
["Laboratoire HEPATOUM","HEPATOUM"]
["Laboratoire Innothera","Innothéra"]
["LABORATOIRE JALDES","JALDES"]
["LABORATOIRE KCI MEDICAL","KCI MEDICAL"]
["Laboratoire Kreussler pharma","Kreussler pharma"]
["laboratoire leblanc et associés","leblanc et associés"]
["LABORATOIRE MENE ET MOY","MENE ET MOY"]
["Laboratoire MSD Chibret","MSD France"]
["LABORATOIRE NOVEX PHARMA","NOVEX PHARMA"]
["LABORATOIRE NUXE","NUXE"]
["Laboratoire PEDIACT","PEDIACT"]
["Laboratoire PHARMASTRA","PHARMASTRA"]
["Laboratoire Protec'Som","Protec'Som"]
["LABORATOIRE RENAUDIN","RENAUDIN"]
["Laboratoire SCIENCEX","SCIENCEX"]
["LABORATOIRE SOBER","SOBER"]
["LABORATOIRE TETRA MEDICAL","TETRA MEDICAL"]
["Laboratoire TRADIPHAR","TRADIPHAR"]
["LABORATOIRE UNITHER","UNITHER"]
["LABORATOIRES ALCON","ALCON"]
["LABORATOIRES ALTER","ALTER"]
["LABORATOIRES ARION","ARION"]
["Laboratoires ARKOPHARMA","ARKOPHARMA"]
["Laboratoires AUVEX","AUVEX"]
["Laboratoires Bailleul","Bailleul"]
["Laboratoires BESINS INTERNATIONAL","BESINS INTERNATIONAL"]
["LABORATOIRES BOUCHARA - RECORDATI","BOUCHARA - RECORDATI"]
["LABORATOIRES BROTHIER","BROTHIER"]
["Laboratoires Carilène","Carilène"]
["LABORATOIRES CHAIX ET DU MARAIS","CHAIX ET DU MARAIS"]
["LABORATOIRES CLARINS","CLARINS"]
["LABORATOIRES COLOPLAST","COLOPLAST"]
["LABORATOIRES CONVATEC","CONVATEC"]
["Laboratoires Crinex","Crinex"]
["LABORATOIRES CTRS","CTRS"]
["Laboratoires CYCLOPHARMA","CYCLOPHARMA"]
["Laboratoires de Biologie Marine Daniel Jouvance","de Biologie Marine Daniel Jouvance"]
["Laboratoires de Biologie Végétale Yves Rocher","de Biologie Végétale Yves Rocher"]
["Laboratoires DELBERT","DELBERT"]
["laboratoires dermatologiques d'Uriage","dermatologiques d'Uriage"]
["Laboratoires des Réalisations Thérapeutiques ELERTE","des Réalisations Thérapeutiques ELERTE"]
["Laboratoires Doliage","Doliage"]
["Laboratoires ETHYPHARM","ETHYPHARM"]
["Laboratoires Expanscience","Expanscience"]
["LABORATOIRES GENEVRIER","GENEVRIER"]
["LABORATOIRES GERDA","GERDA"]
["LABORATOIRES GILBERT","GILBERT"]
["LABORATOIRES GRIMBERG SA","GRIMBERG SA"]
["Laboratoires Grünenthal SAS","Grünenthal"]
["Laboratoires INELDEA","INELDEA"]
["Laboratoires inneov SNC","inneov SNC"]
["Laboratoires IPRAD PHARMA","IPRAD PHARMA"]
["LABORATOIRES JOLLY-JATEL","JOLLY-JATEL"]
["Laboratoires Juva Production","Juva Production"]
["Laboratoires Juva Santé","Juva Santé"]
["LABORATOIRES JUVISE PHARMACEUTICALS","JUVISE PHARMACEUTICALS"]
["LABORATOIRES LEHNING SAS","LEHNING SAS"]
["Laboratoires Leurquin Mediolanum","Leurquin Mediolanum"]
["Laboratoires Lohmann & Rauscher","Lohmann & Rauscher"]
["LABORATOIRES M&L","M&L"]
["Laboratoires MAJORELLE","MAJORELLE"]
["LABORATOIRES MAYOLY SPINDLER","MAYOLY SPINDLER"]
["Laboratoires Moulin Royal Cosmetics","Moulin Royal Cosmetics"]
["Laboratoires NEGMA","NEGMA"]
["LABORATOIRES NIGY","NIGY"]
["LABORATOIRES NOREVA LED","NOREVA LED"]
["LABORATOIRES OMEGA PHARMA FRANCE","OMEGA PHARMA FRANCE"]
["Laboratoires PHARMA 2000","PHARMA 2000"]
["LABORATOIRES PHARMACEUTIQUES DEXO","PHARMACEUTIQUES DEXO"]
["LABORATOIRES PHARMY II","PHARMY II"]
["Laboratoires PRED","PRED"]
["LABORATOIRES SUPER DIET","SUPER DIET"]
["Laboratoires SVR France","SVR France"]
["Laboratoires TERUMO S.A","TERUMO S.A"]
["Laboratoires THEA","THEA"]
["Laboratoires TONIPHARM SARL","TONIPHARM SARL"]
["LABORATOIRES URGO","URGO"]
["Laboratoires URSAPHARM SAS","URSAPHARM SAS"]
["LABORATORY IMPLANT MEDICAL DEVICE - LIMMED","LABORATORY IMPLANT MEDICAL DEVICE - LIMMED"]
["Labvoratoire CHAUVIN","Labvoratoire CHAUVIN"]
["Lamidey Noury Medical","Lamidey Noury Medical"]
["larm-o-tec","larm-o-tec"]
["LARS","LARS"]
["LASER","LASER"]
["LASOL ROYAN","LASOL ROYAN"]
["LAUVAL","LAUVAL"]
["LCA S.A.","LCA S.A."]
["LDR Médical","LDR Médical"]
["Leica Biosystems Nussloch GmbH","Leica Biosystems Nussloch GmbH"]
["Leica Microsystèmes SAS","Leica Microsystèmes SAS"]
["Leica Microsystems Inc.","Leica Microsystems Inc."]
["LeMaitre Vascular SAS","LeMaitre Vascular SAS"]
["LEN Médical","LEN Médical"]
["LENTILLES SAS","LENTILLES SAS"]
["L'Entreprise Médicale","L'Entreprise Médicale"]
["LEO Pharma","LEO Pharma"]
["LES LABORATOIRES OSTEAL MEDICAL","LES OSTEAL MEDICAL"]
["LES LABORATOIRES SERVIER","LES SERVIER"]
["LES SALONS DU PALAIS ROYAL SHISEIDO","LES SALONS DU PALAIS ROYAL SHISEIDO"]
["LFB BIOMANUFACTURING","LFB"]
["LFB BIOMEDICAMENTS","LFB"]
["LFB BIOTECHNOLOGIES","LFB"]
["LIFE PARTNERS EUROPE","LIFE PARTNERS EUROPE"]
["Life Technologies Corporation","Life Technologies Corporation"]
["LIFE TECHNOLOGIES SAS","LIFE TECHNOLOGIES SAS"]
["LifeCell EMEA Limited","LifeCell EMEA Limited"]
["Lifescan","Lifescan"]
["Lilly France SAS","Lilly"]
["LIMA FRANCE","LIMA FRANCE"]
["LINDE FRANCE","LINDE FRANCE"]
["LINDE HOMECARE FRANCE SAS","LINDE HOMECARE FRANCE SAS"]
["LION / SENECA FRANCE AUDIO","LION / SENECA FRANCE AUDIO"]
["Lipomed GmbH","Lipomed GmbH"]
["Listening Pharma","Listening Pharma"]
["LIVE ! BY GL EVENTS","LIVE ! BY GL EVENTS"]
["LKN MEDICAL SARL","LKN MEDICAL SARL"]
["Lohmann & Rauscher International GmbH & Co KG","Lohmann & Rauscher International GmbH & Co KG"]
["LOL PHARMA","LOL PHARMA"]
["LONGUEUR D'ONDES","LONGUEUR D'ONDES"]
["L'OREAL S.A.","L'OREAL S.A."]
["LPV","LPV"]
["LUCANE PHARMA","LUCANE PHARMA"]
["LUCAS MEYER COSMETICS","LUCAS MEYER COSMETICS"]
["Lumenis Ltd.","Lumenis Ltd."]
["LUNDBECK SAS","LUNDBECK SAS"]
["LV2","LV2"]
["LVL MEDICAL CENTRE EST","LVL MEDICAL CENTRE EST"]
["LVL MEDICAL EST","LVL MEDICAL EST"]
["LVL MEDICAL GROUPE","LVL MEDICAL GROUPE"]
["LVL MEDICAL OUEST","LVL MEDICAL OUEST"]
["LVL MEDICAL PARIS ET NORD","LVL MEDICAL PARIS ET NORD"]
["LVL MEDICAL SUD","LVL MEDICAL SUD"]
["LVL MEDICAL SUD OUEST","LVL MEDICAL SUD OUEST"]
["LYON KLEBER SANTE","LYON KLEBER SANTE"]
["M3 Global Research Ltd","M3 Global Research Ltd"]
["MACO PHARMA","MACO PHARMA"]
["MACO PRODUCTIONS","MACO PRODUCTIONS"]
["MALLINCKRODT FRANCE SARL","MALLINCKRODT FRANCE SARL"]
["MANTARAY","MANTARAY"]
["MAPI SAS","MAPI SAS"]
["MAQUET SAS","MAQUET SAS"]
["MARIE AMELIE LENOIR CONSULTING - VICTA CONSEIL","MARIE AMELIE LENOIR CONSULTING - VICTA CONSEIL"]
["MARINA","MARINA"]
["mark'ennovy SARL","mark'ennovy SARL"]
["MARKET VISION","MARKET VISION"]
["MARQUAT GENIE BIOMEDICAL","MARQUAT GENIE BIOMEDICAL"]
["MARQUE VERTE WELCOOP SANTE","MARQUE VERTE WELCOOP SANTE"]
["MASIMO","MASIMO"]
["MAST THERAPEUTICS","MAST THERAPEUTICS"]
["Mathys Orthopédie","Mathys Orthopédie"]
["Mauna Kea Technologies","Mauna Kea Technologies"]
["MAVALA FRANCE SA","MAVALA FRANCE SA"]
["MCCANN HEALTHCARE","MCCANN HEALTHCARE"]
["MD HANDICAP ET SOINS","MD HANDICAP ET SOINS"]
["MD ORTHO","MD ORTHO"]
["MDC-Partners","MDC-Partners"]
["Mdoloris Medical Systems","Mdoloris Medical Systems"]
["MED OUEST","MED OUEST"]
["MED PLANET","MED PLANET"]
["med&you","med&you"]
["MEDA PHARMA","MEDA PHARMA"]
["MEDAC SAS","MEDAC SAS"]
["MEDACTA FRANCE","MEDACTA FRANCE"]
["MEDARTIS SARL","MEDARTIS SARL"]
["MEDCARE","MEDCARE"]
["medDigital","medDigital"]
["Medela France Sarl","Medela France Sarl"]
["M-Eden","M-Eden"]
["MEDEX","MEDEX"]
["MEDEXACT","MEDEXACT"]
["medi","medi"]
["MEDI SYS","MEDI SYS"]
["Median Conseil","Median Conseil"]
["MEDIAN Technologies","MEDIAN Technologies"]
["MEDIATION CONSEIL SANTE","MEDIATION CONSEIL SANTE"]
["MEDIBOUM","MEDIBOUM"]
["MEDIC CENTRE EQUIPEMENT","MEDIC CENTRE EQUIPEMENT"]
["MEDIC CENTRE INDUSTRIE","MEDIC CENTRE INDUSTRIE"]
["MEDICAL AXÃˆS","MEDICAL AXÃˆS"]
["MEDICAL BEL AIR","MEDICAL BEL AIR"]
["Medical Eye Tec","Medical Eye Tec"]
["MEDICAL IMPLANTS","MEDICAL IMPLANTS"]
["MEDICAL INNOVATION DEVELOPPEMENT","MEDICAL INNOVATION DEVELOPPEMENT"]
["Medicalo2","Medicalo2"]
["Medicals International (Off-Shore) SARL","Medicals International (Off-Shore) SARL"]
["Medicare_HTM","Medicare_HTM"]
["MEDICO FRANCE","MEDICO FRANCE"]
["MEDICONSEIL","MEDICONSEIL"]
["MEDICREA Europe Francophone","MEDICREA Europe Francophone"]
["MEDICREA INTERNATIONAL","MEDICREA INTERNATIONAL"]
["Medicys Limited","Medicys Limited"]
["Médi-Fav","Médi-Fav"]
["MEDIKEA","MEDIKEA"]
["MEDIMARK EUROPE SARL","MEDIMARK EUROPE SARL"]
["MEDIOUTREMER","MEDIOUTREMER"]
["MEDIPREMA","MEDIPREMA"]
["MEDISPORT","MEDISPORT"]
["MEDITEX","MEDITEX"]
["MEDITOR","MEDITOR"]
["MEDIVAL OUTRE-MER","MEDIVAL OUTRE-MER"]
["Mediwound Germany GmbH","Mediwound Germany GmbH"]
["Medline Assembly France SAS","Medline Assembly France SAS"]
["Medline International France SAS","Medline International France SAS"]
["Medtech","Medtech"]
["MEDTRONIC France S.A.S","MEDTRONIC France S.A.S"]
["MEDUSIMS","MEDUSIMS"]
["medwork France","medwork France"]
["MEGA DENTAL SAS","MEGA DENTAL SAS"]
["MELISANA","MELISANA"]
["MENARINI FRANCE","MENARINI"]
["MENETRIER NARD SAS","MENETRIER NARD SAS"]
["MENICON SAS","MENICON SAS"]
["MENIX GROUP","MENIX GROUP"]
["Merck Medication Familiale","Merck Medication Familiale"]
["MERCK SANTE","MERCK SANTE"]
["MERCK SERONO","MERCK SERONO"]
["Mérieux Université","Mérieux Université"]
["Merit Medical Asia Co., Ltd","Merit Medical Asia Co., Ltd"]
["Merit Medical France","Merit Medical France"]
["Merit Medical Netherlands","Merit Medical Netherlands"]
["Merit Medical Systems, Inc.","Merit Medical Systems, Inc."]
["MERZ PHARMA France","MERZ PHARMA France"]
["MERZ PHARMACEUTICALS GmbH","MERZ PHARMACEUTICALS GmbH"]
["MESSER FRANCE","MESSER FRANCE"]
["MICROGENICS GmbH","MICROGENICS GmbH"]
["MICRO-MEGA","MICRO-MEGA"]
["MICROPORT ORTHOPEDICS","MICROPORT ORTHOPEDICS"]
["MICROVAL","MICROVAL"]
["MicroVention Europe","MicroVention Europe"]
["MicroVention Inc.","MicroVention Inc."]
["MIELE SAS","MIELE SAS"]
["MILLWARD BROWN","MILLWARD BROWN"]
["MINMAXMEDICAL","MINMAXMEDICAL"]
["MINVASYS","MINVASYS"]
["ML2S","ML2S"]
["Mobidiag Oy","Mobidiag Oy"]
["Modérateur Ministère de la Santé","Modérateur Ministère de la Santé"]
["Molnlycke Health Care","Molnlycke Health Care"]
["MONATH ELECTRONIC SARL","MONATH ELECTRONIC SARL"]
["MON-EVENT.COM","MON-EVENT.COM"]
["MORIA S.A.","MORIA S.A."]
["MSD France","MSD France"]
["MULTALER & CIE","MULTALER & CIE"]
["MUNDIPHARMA","MUNDIPHARMA"]
["MV3 SAS","MV3 SAS"]
["MYLAN MEDICAL SAS","MYLAN"]
["MYLAN SAS","MYLAN"]
["NANOBIOTIX S.A.","NANOBIOTIX S.A."]
["Nanosonics Limite","Nanosonics Limite"]
["Nanostring Technologies, Inc","Nanostring Technologies, Inc"]
["NEOS","NEOS"]
["NEOSTEO","NEOSTEO"]
["NEOVACS","NEOVACS"]
["Nestlé Clinical Nutrition","Nestlé Clinical Nutrition"]
["NESTLE HOMECARE","NESTLE HOMECARE"]
["Netika SA","Netika SA"]
["NEURAVI LIMITED","NEURAVI LIMITED"]
["NEURELEC","NEURELEC"]
["NEURELEC MAROC","NEURELEC MAROC"]
["NEWCLIP INTERNATIONAL","NEWCLIP INTERNATIONAL"]
["NEWCLIP TECHNICS","NEWCLIP TECHNICS"]
["Newdeal","Newdeal"]
["NEXMED PHARMA","NEXMED PHARMA"]
["NICHROMINOX","NICHROMINOX"]
["NICOX","NICOX"]
["NIDEK SA","NIDEK SA"]
["NIHON KOHDEN","NIHON KOHDEN"]
["nile","nile"]
["NIPRO FRANCE","NIPRO FRANCE"]
["NOBEL BIOCARE FRANCE SAS","NOBEL BIOCARE FRANCE SAS"]
["Nobel Biocare Russia LLC","Nobel Biocare Russia LLC"]
["Nobel Biocare Services AG","Nobel Biocare Services AG"]
["Nobel Biocare USA LLC","Nobel Biocare USA LLC"]
["NODEA MEDICAL","NODEA MEDICAL"]
["NORAKER","NORAKER"]
["NORD IMPLANT","NORD IMPLANT"]
["NORDIC PHARMA SAS","Nordic Pharma"]
["NordiMED ApS","NordiMED ApS"]
["NORGINE PHARMA","NORGINE PHARMA"]
["Nouveal","Nouveal"]
["NOVARTIS PHARMA SAS","NOVARTIS"]
["NOVARTIS SANTE FAMILIALE SAS","NOVARTIS"]
["NOVARTIS VACCINES AND DIAGNOSTICS SAS","NOVARTIS"]
["NOVASTEP","NOVASTEP"]
["NOVATECH SA","NOVATECH SA"]
["NOVATEST","NOVATEST"]
["NOVILOIRE","NOVILOIRE"]
["NOVO NORDISK","NOVO NORDISK"]
["NPS PHARMA FRANCE","NPS PHARMA FRANCE"]
["NPS Pharma Holdings Limited","NPS Pharma Holdings Limited"]
["NPS Pharma UK Limited","NPS Pharma UK Limited"]
["NUTRICIA Nutrition Clinique","NUTRICIA Nutrition Clinique"]
["NUTRIMEDIA","NUTRIMEDIA"]
["NxStage Medical, Inc.","NxStage Medical, Inc."]
["OBJECTIF PHARMA","OBJECTIF PHARMA"]
["OBL","OBL"]
["Occurrence Healthcare","Occurrence Healthcare"]
["OCEAN TERRE BIOTECHNOLOGIE","OCEAN TERRE BIOTECHNOLOGIE"]
["Oceana Therapeutics, Ltd.","Oceana Therapeutics, Ltd."]
["Oceanide","Oceanide"]
["OCP REPARTITION","OCP REPARTITION"]
["Octapharma AG - Switzerland","Octapharma AG - Switzerland"]
["Octapharma France","Octapharma France"]
["OLEA MEDICAL S.A","OLEA MEDICAL S.A"]
["Olympus Biotech International","Olympus Biotech International"]
["Olympus Biotech International Europe","Olympus Biotech International Europe"]
["OLYMPUS CORPORATION","OLYMPUS CORPORATION"]
["OLYMPUS EUROPA SE & CO. KG","OLYMPUS EUROPA SE & CO. KG"]
["OLYMPUS France SAS","OLYMPUS France SAS"]
["OMNIS MEDICA","OMNIS MEDICA"]
["OMR Globus","OMR Globus"]
["Omron Santé France","Omron Santé France"]
["ONCommit","ONCommit"]
["ONIRIS","ONIRIS"]
["ONXEO","ONXEO"]
["OPHTACOM","OPHTACOM"]
["Ophta-France SA","Ophta-France SA"]
["Ophtalmic Compagnie","Ophtalmic Compagnie"]
["OPIA TECHNOLOGIES","OPIA TECHNOLOGIES"]
["OptiMed SARL","OptiMed SARL"]
["OPTIQUE E'CAUX","OPTIQUE E'CAUX"]
["OPTIQUE MENIVAL","OPTIQUE MENIVAL"]
["optique sebastopol","optique sebastopol"]
["Orexigen Therapeutics Ireland Limited","Orexigen Therapeutics Ireland Limited"]
["Orexigen Therapeutics, Inc.","Orexigen Therapeutics, Inc."]
["ORGENTEC SAS","ORGENTEC SAS"]
["ORIGIO France","ORIGIO France"]
["Orion Corporation Orion Pharma","Orion Corporation Orion Pharma"]
["ORION Santé","ORION Santé"]
["ORLANE","ORLANE"]
["ORMCO FRANCE SAS","ORMCO FRANCE SAS"]
["ORMIHL DANET","ORMIHL DANET"]
["Orphan Europe","Orphan Europe"]
["Orphan Synergy Europe - Pharma","Orphan Synergy Europe - Pharma"]
["OrpheliPharm","OrpheliPharm"]
["ORTHO CLINICAL DIAGNOSTICS France","ORTHO CLINICAL DIAGNOSTICS France"]
["ORTHO CONCEPT","ORTHO CONCEPT"]
["ORTHO JET","ORTHO JET"]
["ortho medic","ortho medic"]
["Ortho Union","Ortho Union"]
["ORTHO.POUHAER","ORTHO.POUHAER"]
["Ortho-Clinical Diagnostics France","Ortho-Clinical Diagnostics France"]
["Orthofix S.r.l.","Orthofix S.r.l."]
["ORTHOFIX SA","ORTHOFIX SA"]
["ORTHOPAEDIC & SPINE DEVELOPMENT (OSD)","ORTHOPAEDIC & SPINE DEVELOPMENT (OSD)"]
["ORTHOPLUS","ORTHOPLUS"]
["OrthoZ","OrthoZ"]
["Oséus","Oséus"]
["OST DEVELOPPEMENT","OST DEVELOPPEMENT"]
["OSTEOMED","OSTEOMED"]
["OSTESYS","OSTESYS"]
["OTICON MEDICAL","OTICON MEDICAL"]
["OTR3","OTR3"]
["Otsuka Novel Products GmbH","Otsuka Novel Products GmbH"]
["Otsuka Pharmaceutical France SAS","Otsuka Pharmaceutical France SAS"]
["OTTO BOCK FRANCE SNC","OTTO BOCK FRANCE SNC"]
["Ouïe Fine","Ouïe Fine"]
["OVERCOME","OVERCOME"]
["OWEN MUMFORD","OWEN MUMFORD"]
["OXOID","OXOID"]
["OXYPHARM","OXYPHARM"]
["OXYVIE S.A.S","OXYVIE S.A.S"]
["P\\S\\L Group France S.A. R. L.","P\\S\\L Group France S.A. R. L."]
["P\\S\\L Group Services","P\\S\\L Group Services"]
["PACKAGE","PACKAGE"]
["PALL FRANCE","PALL FRANCE"]
["PALLIEZ OPTIQUE","PALLIEZ OPTIQUE"]
["PALO ALTOURS","PALO ALTOURS"]
["PANPHARMA","PANPHARMA"]
["Pa-pri-K","Pa-pri-K"]
["PAREXEL International","PAREXEL International"]
["PARIS KLEBER SANTE","PARIS KLEBER SANTE"]
["PASCALEO","PASCALEO"]
["PAUL HARTMANN SA","PAUL HARTMANN SA"]
["PDL ORTHO","PDL ORTHO"]
["PECH CERCIAT","PECH CERCIAT"]
["PEGASE","PEGASE"]
["PENTAX MEDICAL","PENTAX MEDICAL"]
["Penumbra, Inc.","Penumbra, Inc."]
["PERF NUT ASSISTANCE ILE DE FRANCE","PERF NUT ASSISTANCE ILE DE FRANCE"]
["PERF NUT ASSISTANCE LANGUEDOC ROUSSILLON","PERF NUT ASSISTANCE LANGUEDOC ROUSSILLON"]
["PERF NUT ASSISTANCE MIDI PYRENEES","PERF NUT ASSISTANCE MIDI PYRENEES"]
["PERF NUT ASSISTANCE NORD","PERF NUT ASSISTANCE NORD"]
["PERF NUT ASSISTANCE SUD EST","PERF NUT ASSISTANCE SUD EST"]
["PERF.U.LOR GROUPE","PERF.U.LOR GROUPE"]
["PERFORMANCE COMMUNICATION PHARMA","PERFORMANCE COMMUNICATION PHARMA"]
["PERF-R","PERF-R"]
["perkinElmer","perkinElmer"]
["PEROUSE MEDICAL","PEROUSE MEDICAL"]
["PEROUSE PLASTIE","PEROUSE PLASTIE"]
["PERRIER SURDITE ANNECY SAS","PERRIER SURDITE ANNECY SAS"]
["PETERS SURGICAL","PETERS SURGICAL"]
["PETNET Solutions SAS","PETNET Solutions SAS"]
["PFIZER INTERNATIONAL OPERATIONS","Pfizer"]
["PFIZER PFE FRANCE","Pfizer"]
["PFIZER SANTE FAMILIALE","Pfizer"]
["PFIZER SAS","Pfizer"]
["PFM MEDICAL FRANCE","PFM MEDICAL FRANCE"]
["PGRD","PGRD"]
["PHADIA GmbH","PHADIA GmbH"]
["PHADIA NV/SA","PHADIA NV/SA"]
["PHADIA SAS","PHADIA SAS"]
["PHARMA DOM","PHARMA DOM"]
["PHARMA MAR S.A.R.L.","PHARMA MAR S.A.R.L."]
["Pharma Services","Pharma Services"]
["Pharmacie du Tholon","Pharmacie du Tholon"]
["pharmacie ramberti","pharmacie ramberti"]
["PHARMACTIV DISTRIBUTION","PHARMACTIV DISTRIBUTION"]
["PHARMATHERA","PHARMATHERA"]
["Pharm-Olam International SPRL","Pharm-Olam International SPRL"]
["PHASE 5 Editions médicales","PHASE 5 Editions médicales"]
["PHENIX CARDIOLOGIE","PHENIX CARDIOLOGIE"]
["PHILIPS FRANCE","PHILIPS FRANCE"]
["Philips France Commercial","Philips France Commercial"]
["PHOCEENNE D'ORTHOPEDIE","PHOCEENNE D'ORTHOPEDIE"]
["PHOENIX PHARMA","PHOENIX PHARMA"]
["PHONAK FRANCE","PHONAK FRANCE"]
["PhoneResearch","PhoneResearch"]
["PHYDATA","PHYDATA"]
["PHYSIDIA","PHYSIDIA"]
["Physiol","Physiol"]
["PHYSIOL FRANCE","PHYSIOL FRANCE"]
["PHYSIOMED","PHYSIOMED"]
["PHYTOCOM","PHYTOCOM"]
["Pierre Fabre Dermo-Cosmétique","Pierre Fabre Dermo-Cosmétique"]
["PIERRE FABRE MEDICAMENT","PIERRE FABRE MEDICAMENT"]
["PIERRE FABRE SA","PIERRE FABRE SA"]
["PLASMA SURGICAL SARL","PLASMA SURGICAL SARL"]
["PneumRx Ltd.","PneumRx Ltd."]
["POLARIS MANAGEMENT","POLARIS MANAGEMENT"]
["PolyNovo Biomaterials Pty Ltd","PolyNovo Biomaterials Pty Ltd"]
["Porte de l'audition","Porte de l'audition"]
["POURET MEDICAL","POURET MEDICAL"]
["PPD FRANCE SAS","PPD FRANCE SAS"]
["PR EDITIONS SAS","PR EDITIONS SAS"]
["PRA","PRA"]
["PRECIPHAR","PRECIPHAR"]
["Premier Research","Premier Research"]
["PRESSE & PAPIERS","PRESSE & PAPIERS"]
["prevor","prevor"]
["Primax","Primax"]
["PRIORITIS","PRIORITIS"]
["PRIVIUM MEDICAL","PRIVIUM MEDICAL"]
["PROBACE MEDITEC","PROBACE MEDITEC"]
["PROBACE VAR","PROBACE VAR"]
["PROBIONOV","PROBIONOV"]
["PROCLAIM","PROCLAIM"]
["PROCTER & GAMBLE FRANCE","PROCTER & GAMBLE FRANCE"]
["PROCTER & GAMBLE PHARMACEUTICALS FRANCE","PROCTER & GAMBLE PHARMACEUTICALS FRANCE"]
["PRODAREV","PRODAREV"]
["PRODIS","PRODIS"]
["Prodition","Prodition"]
["PRODUITS DENTAIRES PIERRE ROLLAND","PRODUITS DENTAIRES PIERRE ROLLAND"]
["PROFIL ORTHOPEDIE","PROFIL ORTHOPEDIE"]
["PROMOGEN","PROMOGEN"]
["PROMONET PROMEDICAL","PROMONET PROMEDICAL"]
["PROSTEEL","PROSTEEL"]
["ProStrakan Pharma","ProStrakan Pharma"]
["PROTHEOS INDUSTRIE","PROTHEOS INDUSTRIE"]
["PROTHEOS OUEST","PROTHEOS OUEST"]
["PROTHEOS SA","PROTHEOS SA"]
["PROXILIO","PROXILIO"]
["PSI CRO AG","PSI CRO AG"]
["PSI CRO FRANCE","PSI CRO FRANCE"]
["PTC THERAPEUTICS  INTERNATIONAL LIMITED","PTC THERAPEUTICS  INTERNATIONAL LIMITED"]
["PTC Therapeutics France SAS","PTC Therapeutics France SAS"]
["Publicis Consultants France","Publicis Consultants France"]
["PUBLICIS LIFE BRANDS","PUBLICIS LIFE BRANDS"]
["Pulmonx International SÃ rl","Pulmonx International SÃ rl"]
["Pulmonx International SARL","Pulmonx International SARL"]
["PURESSENTIEL","PURESSENTIEL"]
["Qiagen France SAS","Qiagen France SAS"]
["QIAGEN Marseille S.A","QIAGEN Marseille S.A"]
["QUALEES","QUALEES"]
["Qualitative & Quantitative Fieldwork Services","Qualitative & Quantitative Fieldwork Services"]
["QualWorld","QualWorld"]
["QUANTEL MEDICAL","QUANTEL MEDICAL"]
["QUERYO MEDICAL SAS","QUERYO MEDICAL SAS"]
["QUINTILES BENEFIT FRANCE SNC","QUINTILES BENEFIT FRANCE SNC"]
["RADENKOVIC SACHA","RADENKOVIC SACHA"]
["RADIANTE","RADIANTE"]
["RADIOMETER SAS","RADIOMETER SAS"]
["RANBAXY PHARMACIE GENERIQUES","RANBAXY PHARMACIE GENERIQUES"]
["RAPTOR PHARMACEUTICALS FRANCE","RAPTOR PHARMACEUTICALS FRANCE"]
["RB Pharmaceuticals France","RB Pharmaceuticals France"]
["rc - research & consulting GmbH","rc - research & consulting GmbH"]
["Reckitt Benckiser France","Reckitt Benckiser France"]
["Reckitt Benckiser Healthcare France","Reckitt Benckiser Healthcare France"]
["Reckitt Benckiser SLOUGH","Reckitt Benckiser SLOUGH"]
["Regeneron Pharmaceuticals, Inc.","Regeneron Pharma"]
["REGULUS THERAPEUTICS INC.",{"$error":"#N/A"}]
["RE-IMAGINE Health Agency","RE-IMAGINE Health Agency"]
["Renishaw Mayfield","Renishaw Mayfield"]
["RESAL","RESAL"]
["RESEARCH NOW SAS","RESEARCH NOW SAS"]
["RESMED SAS","RESMED SAS"]
["RESPI'SANTE","RESPI'SANTE"]
["ReVision Optics","ReVision Optics"]
["REVOL-BUISSON","REVOL-BUISSON"]
["RICHARD FRERES","RICHARD FRERES"]
["Richard SIMON","Richard SIMON"]
["RIVORTHO","RIVORTHO"]
["RMO EUROPE","RMO EUROPE"]
["RNP SANTE","RNP SANTE"]
["ROCHE DIABETES CARE FRANCE","ROCHE DIABETES CARE FRANCE"]
["ROCHE DIAGNOSTICS FRANCE","ROCHE DIAGNOSTICS FRANCE"]
["Roche Diagnostics GmbH","Roche Diagnostics GmbH"]
["Roche Diagnostics International Ltd","Roche Diagnostics International Ltd"]
["Roche Diagnostics Operations, Inc.","Roche Diagnostics Operations, Inc."]
["Roche Products (Pty) Ltd South Africa","Roche Products (Pty) Ltd South Africa"]
["ROCHE SAS","Roche"]
["Rodenstock France","Rodenstock France"]
["RONIN Corporation","RONIN Corporation"]
["ROTTAPHARM SAS","ROTTAPHARM"]
["R-Squared Services and Solutions, Inc.","R-Squared Services and Solutions, Inc."]
["R'SUD MEDICAL","R'SUD MEDICAL"]
["RTI SURGICAL","RTI SURGICAL"]
["RUNESCENCE","RUNESCENCE"]
["S.O.S M.A.D","S.O.S M.A.D"]
["S.O.S OXYGENE ILE DE France","S.O.S OXYGENE ILE DE France"]
["S.O.S OXYGENE SUD","S.O.S OXYGENE SUD"]
["S.O.S. OXYGENE ATLANTIQUE","S.O.S. OXYGENE ATLANTIQUE"]
["S.O.S. OXYGENE BRETAGNE","S.O.S. OXYGENE BRETAGNE"]
["S.O.S. OXYGENE GARONNE","S.O.S. OXYGENE GARONNE"]
["S.O.S. OXYGENE GRAND OUEST","S.O.S. OXYGENE GRAND OUEST"]
["S.O.S. OXYGENE NORMANDIE","S.O.S. OXYGENE NORMANDIE"]
["S.O.S. OXYGENE SUD","S.O.S. OXYGENE SUD"]
["S2A SANTE ILE DE FRANCE","S2A SANTE ILE DE FRANCE"]
["SA CERP BRETAGNE ATLANTIQUE","SA CERP BRETAGNE ATLANTIQUE"]
["SA J & B FRANCOIS","SA J & B FRANCOIS"]
["SA LANDANGER","SA LANDANGER"]
["SADIR ASSISTANCE","SADIR ASSISTANCE"]
["SAFE ORTHOPAEDICS","SAFE ORTHOPAEDICS"]
["SAFIR DENTAIRE","SAFIR DENTAIRE"]
["Sage Products LLC","Sage Products LLC"]
["SALESWAY","SALESWAY"]
["Salix Pharmaceuticals, Inc.","Salix Pharmaceuticals, Inc."]
["SAM TECHNI-PHARMA","SAM TECHNI-PHARMA"]
["SAMSUNG ELECTRONICS FRANCE","SAMSUNG ELECTRONICS FRANCE"]
["SANDOZ","SANDOZ"]
["SANOFI AVENTIS FRANCE","SANOFI AVENTIS FRANCE"]
["SANOFI CHIMIE","SANOFI CHIMIE"]
["SANOFI PASTEUR","SANOFI PASTEUR"]
["SANOFI PASTEUR MSD SNC","SANOFI PASTEUR MSD SNC"]
["SANOFI WINTHROP INDUSTRIE","SANOFI WINTHROP INDUSTRIE"]
["SANOFI-AVENTIS GROUPE","SANOFI-AVENTIS GROUPE"]
["SANOFI-AVENTIS RECHERCHE & DEVELOPPEMENT","SANOFI-AVENTIS RECHERCHE & DEVELOPPEMENT"]
["SANOTEK","SANOTEK"]
["SANTE PLUS","SANTE PLUS"]
["Santelynes","Santelynes"]
["SANTELYS ASSOCIATION","SANTELYS ASSOCIATION"]
["SANTEN","SANTEN"]
["SANTEO","SANTEO"]
["SARL ACIO","SARL ACIO"]
["SARL ACOUSTIQUE ALBIGEOISE","SARL ACOUSTIQUE ALBIGEOISE"]
["SARL ALLIANCESOINS","SARL ALLIANCESOINS"]
["SARL ASTRIAD","SARL ASTRIAD"]
["sarl ATLANTIQUE PERFUSION","sarl ATLANTIQUE PERFUSION"]
["SARL AUDIO EISENHOWER","SARL AUDIO EISENHOWER"]
["SARL AUDIO.V","SARL AUDIO.V"]
["Sarl Audioptique Conseil","Sarl Audioptique Conseil"]
["SARL AUDITION AQUITAINE","SARL AUDITION AQUITAINE"]
["SARL AUDITION JUTIER PIRON","SARL AUDITION JUTIER PIRON"]
["SARL AUNIS AUDITION","SARL AUNIS AUDITION"]
["SARL AURISSIMANS","SARL AURISSIMANS"]
["SARL AURISSIMO","SARL AURISSIMO"]
["SARL BALLAN AUDITION","SARL BALLAN AUDITION"]
["SARL BRIVE AUDITION","SARL BRIVE AUDITION"]
["SARL CENTRE DE L AUDITION","SARL CENTRE DE L AUDITION"]
["SARL Centre Val de Loire Audition","SARL Centre Val de Loire Audition"]
["SARL CLAUDE EMARD","SARL CLAUDE EMARD"]
["sarl conseil medico technique","sarl conseil medico technique"]
["SARL DLMEDICAL","SARL DLMEDICAL"]
["SARL DOMORTHO","SARL DOMORTHO"]
["SARL ETS M GRANDET","SARL ETS M GRANDET"]
["SARL GROUSEAU","SARL GROUSEAU"]
["SARL LABORATOIRE DUPONT","SARL DUPONT"]
["SARL LABORATOIRE LEMOINE AUDITION","SARL LEMOINE AUDITION"]
["SARL LABORATOIRE MICHAEL BERTOUX","SARL MICHAEL BERTOUX"]
["SARL LAUBEN","SARL LAUBEN"]
["SARL LE STRAT","SARL LE STRAT"]
["SARL LES MOUETTES OPTIQUE","SARL LES MOUETTES OPTIQUE"]
["SARL LOMACO","SARL LOMACO"]
["SARL L'OREILLETTE DU MANS","SARL L'OREILLETTE DU MANS"]
["SARL LUNODIA","SARL LUNODIA"]
["sarl msdcp","sarl msdcp"]
["SARL NIVOLET AUDITION","SARL NIVOLET AUDITION"]
["sarl optique audioprotheses roussarie","sarl optique audioprotheses roussarie"]
["sarl optique mesnard","sarl optique mesnard"]
["sarl optique mesnard auchy","sarl optique mesnard auchy"]
["SARL ORLEANS AUDIOPROTHESE","SARL ORLEANS AUDIOPROTHESE"]
["SARL OXY-PERF","SARL OXY-PERF"]
["SARL PACIMED","SARL PACIMED"]
["Sarl Parapharm France","Sarl Parapharm France"]
["SARL PEFD","SARL PEFD"]
["SARL PROTHYS","SARL PROTHYS"]
["SARL SOPHILMED","SARL SOPHILMED"]
["SARL SOPHILMED LENS","SARL SOPHILMED LENS"]
["SAS ALLIANCE MEDICALE SERVICES","SAS ALLIANCE MEDICALE SERVICES"]
["SAS AUDITION EXPERT","SAS AUDITION EXPERT"]
["SAS BIOVAS","SAS BIOVAS"]
["SAS Esprit d'Ethique","SAS Esprit d'Ethique"]
["SAS IOVIE","SAS IOVIE"]
["SAS LABORATOIRES VIVACY","SAS VIVACY"]
["SAS OPTIQUE SURDITE DESNOUES","SAS OPTIQUE SURDITE DESNOUES"]
["SAS ORTHO OUEST","SAS ORTHO OUEST"]
["SATELEC SAS","SATELEC SAS"]
["SBM","SBM"]
["Schering-Plough","Schering-Plough"]
["SCHEU DENTAL FRANCE","SCHEU DENTAL FRANCE"]
["Schulke France SARL","Schulke France SARL"]
["SCHWA-MEDICO FRANCE","SCHWA-MEDICO FRANCE"]
["SCIENCE ET MEDECINE","SCIENCE ET MEDECINE"]
["SCIENT'X SAS","SCIENT'X SAS"]
["Scope International France","Scope International France"]
["SCORPION","SCORPION"]
["SDC SOCIETE DES CENDRES","SDC SOCIETE DES CENDRES"]
["SDI Dental Limited","SDI Dental Limited"]
["SEBAC","SEBAC"]
["Sebia","Sebia"]
["Second Stage Pharma","Second Stage Pharma"]
["SEDOMA","SEDOMA"]
["SEFAM","SEFAM"]
["Segmedica","Segmedica"]
["Selarl Pharmacie Panonnaise","Selarl Pharmacie Panonnaise"]
["SELAS PHARMACIE DE LA REPUBLIQUE","SELAS PHARMACIE DE LA REPUBLIQUE"]
["SEMES","SEMES"]
["SENDAL FRANCE","SENDAL FRANCE"]
["SEPRODOM ANTILLES","SEPRODOM ANTILLES"]
["SEPRODOM REUNION","SEPRODOM REUNION"]
["SEPROPHARM INTERNATIONAL","SEPROPHARM INTERNATIONAL"]
["SEPTODONT SAS","SEPTODONT SAS"]
["Sequent Medical GmbH","Sequent Medical GmbH"]
["Sequent Medical Inc.","Sequent Medical Inc."]
["SERB","SERB"]
["SERF","SERF"]
["SERF EXTREMITY","SERF EXTREMITY"]
["Serial Creative","Serial Creative"]
["SESC","SESC"]
["SETMI","SETMI"]
["SGP AUDIO","SGP AUDIO"]
["SHAMIR FRANCE SARL","SHAMIR FRANCE SARL"]
["SHIRE France S.A.","SHIRE France S.A."]
["SHISEIDO INTERNATIONAL FRANCE SIF","SHISEIDO INTERNATIONAL FRANCE SIF"]
["SHOCKWAVE MEDICAL INC.","SHOCKWAVE MEDICAL INC."]
["SIEMENS AUDIOLOGIE","SIEMENS AUDIOLOGIE"]
["Siemens Healthcare Diagnostics SAS","Siemens Healthcare Diagnostics SAS"]
["SIEMENS HEALTHCARE SAS","SIEMENS HEALTHCARE SAS"]
["SIEMENS SAS","SIEMENS SAS"]
["Sigma-tau France","Sigma-tau France"]
["SIGVARIS","SIGVARIS"]
["Simon-Kucher & Partners","Simon-Kucher & Partners"]
["Simpson Carpenter","Simpson Carpenter"]
["SINCLAIR PHARMA","SINCLAIR PHARMA"]
["Sinclair pharmaceuticals limited french branch","Sinclair pharmaceuticals limited french branch"]
["SIRONA DENTAL SYSTEMS SAS","SIRONA DENTAL SYSTEMS SAS"]
["Sirtex Medical Europe GmbH","Sirtex Medical Europe GmbH"]
["SKY CONSULTING","SKY CONSULTING"]
["SM EUROPE","SM EUROPE"]
["Small Bone Innovations International SAS","Small Bone Innovations International SAS"]
["Smartsanté Gestion","Smartsanté Gestion"]
["Smith & Nephew FZE","Smith & Nephew FZE"]
["Smith & Nephew Inc.","Smith & Nephew Inc."]
["Smith & Nephew Orthopaedics AG","Smith & Nephew Orthopaedics AG"]
["Smith & Nephew Orthopaedics France SAS","Smith & Nephew Orthopaedics France SAS"]
["Smith & Nephew S.A.S.","Smith & Nephew S.A.S."]
["Smith & Nephew UK Limited","Smith & Nephew UK Limited"]
["Smith & Nephew US - Ortho","Smith & Nephew US - Ortho"]
["Smith & Nephew, Inc. Recon","Smith & Nephew, Inc. Recon"]
["SMITHS MEDICAL FRANCE","SMITHS MEDICAL FRANCE"]
["SNC LCA de NICE","SNC LCA de NICE"]
["Sociable Data Ltd","Sociable Data Ltd"]
["SOCIETE CARIBEENNE DE L'AUDITION","SOCIETE CARIBEENNE DE L'AUDITION"]
["Société des gaz industriels de la Guadeloupe","Société des gaz industriels de la Guadeloupe"]
["Société Française de Cardiologie","Société Française de Cardiologie"]
["SOCIETE FRANCAISE D'ORTHOPEDIE","SOCIETE FRANCAISE D'ORTHOPEDIE"]
["Société Guyanaise de l'Air Liquide","Société Guyanaise de l'Air Liquide"]
["Société Martiniquaise de l'Air Liquide","Société Martiniquaise de l'Air Liquide"]
["SOCIETES DU GROUPE TEVA HORS FRANCE","SOCIETES DU GROUPE TEVA HORS FRANCE"]
["SOFIBEL","SOFIBEL"]
["SOFIBEL Laboratoires Fumouze","SOFIBEL Fumouze"]
["SOFRADIM PRODUCTION","SOFRADIM PRODUCTION"]
["Solutions Finances","Solutions Finances"]
["SomnoMed France","SomnoMed France"]
["SONATINE","SONATINE"]
["SONY EUROPE LIMITED","SONY EUROPE LIMITED"]
["Sophysa","Sophysa"]
["SOPRO ACTEON Group","SOPRO ACTEON Group"]
["SORIN GROUP FRANCE","SORIN GROUP FRANCE"]
["SOS MEDICAL","SOS MEDICAL"]
["SOS OXYGENE","SOS OXYGENE"]
["SOS OXYGENE ALSACE","SOS OXYGENE ALSACE"]
["SOS OXYGENE ANTILLES","SOS OXYGENE ANTILLES"]
["SOS OXYGENE ATLANTIQUE CENTRE","SOS OXYGENE ATLANTIQUE CENTRE"]
["SOS OXYGENE AUVERGNE","SOS OXYGENE AUVERGNE"]
["SOS OXYGENE BASSIN PARISIEN NORD","SOS OXYGENE BASSIN PARISIEN NORD"]
["SOS OXYGENE BASSIN PARISIEN SUD","SOS OXYGENE BASSIN PARISIEN SUD"]
["SOS OXYGENE CENTRE","SOS OXYGENE CENTRE"]
["SOS OXYGENE CENTRE EST","SOS OXYGENE CENTRE EST"]
["SOS OXYGENE CENTRE OUEST","SOS OXYGENE CENTRE OUEST"]
["SOS OXYGENE CHAMPAGNE ARDENNES","SOS OXYGENE CHAMPAGNE ARDENNES"]
["SOS OXYGENE FRANCHE COMTE","SOS OXYGENE FRANCHE COMTE"]
["SOS OXYGENE GARONNE","SOS OXYGENE GARONNE"]
["SOS OXYGENE GRAND EST","SOS OXYGENE GRAND EST"]
["SOS OXYGENE GRAND SUD","SOS OXYGENE GRAND SUD"]
["SOS OXYGENE ILE DE France EST","SOS OXYGENE ILE DE France EST"]
["SOS OXYGENE ILE DE FRANCE EST Vierzon 1","SOS OXYGENE ILE DE FRANCE EST Vierzon 1"]
["SOS OXYGENE ILE DE FRANCE EST Vierzon 2","SOS OXYGENE ILE DE FRANCE EST Vierzon 2"]
["SOS OXYGENE ILE DE France NORD","SOS OXYGENE ILE DE France NORD"]
["SOS OXYGENE ILE E FRANCE EST","SOS OXYGENE ILE E FRANCE EST"]
["SOS OXYGENE LORRAINE","SOS OXYGENE LORRAINE"]
["SOS OXYGENE MEDITERRANEE","SOS OXYGENE MEDITERRANEE"]
["SOS OXYGENE MOR-BIHAN / PENN AR BEDÂ Â ","SOS OXYGENE MOR-BIHAN / PENN AR BEDÂ Â "]
["SOS OXYGENE NORD JOLY MEDICAL","SOS OXYGENE NORD JOLY MEDICAL"]
["SOS OXYGENE NORD OUEST","SOS OXYGENE NORD OUEST"]
["SOS OXYGENE NORMANDIE","SOS OXYGENE NORMANDIE"]
["SOS OXYGENE PARTICIPATIONS","SOS OXYGENE PARTICIPATIONS"]
["SOS OXYGENE PAYS DE LOIRE","SOS OXYGENE PAYS DE LOIRE"]
["SOS OXYGENE PAYS DE LOIRE NORD","SOS OXYGENE PAYS DE LOIRE NORD"]
["SOS OXYGENE PROVENCE","SOS OXYGENE PROVENCE"]
["SOS OXYGENE PYRENEES CENTRE","SOS OXYGENE PYRENEES CENTRE"]
["SOS OXYGENE REUNION","SOS OXYGENE REUNION"]
["SOS OXYGENE REUNION St Leu","SOS OXYGENE REUNION St Leu"]
["SOS OXYGENE REUNION St Paul","SOS OXYGENE REUNION St Paul"]
["SOS OXYGENE RHONE ALPES","SOS OXYGENE RHONE ALPES"]
["SOS OXYGENE RHONE ALPES Vaulx","SOS OXYGENE RHONE ALPES Vaulx"]
["SOS OXYGENE SUD ALSACE","SOS OXYGENE SUD ALSACE"]
["SOS OXYGENE SUD LOIRE","SOS OXYGENE SUD LOIRE"]
["SOS OXYGENE VAR","SOS OXYGENE VAR"]
["SOSECAT","SOSECAT"]
["SOTHYS PARIS","SOTHYS PARIS"]
["sowadio","sowadio"]
["Spector Consulting","Spector Consulting"]
["SPECTRANETICS FRANCE SARL","SPECTRANETICS FRANCE SARL"]
["SPECTRANETICS INTERNATIONAL B.V.","SPECTRANETICS INTERNATIONAL B.V."]
["SPINEART SA","SPINEART SA"]
["SPINEGUARD","SPINEGUARD"]
["SPINEVISION","SPINEVISION"]
["SPINEWAY","SPINEWAY"]
["Springer Science+Business Media France","Springer Science+Business Media France"]
["SSL HEALTHCARE ITALIA","SSL HEALTHCARE ITALIA"]
["ST AUDITION","ST AUDITION"]
["St Jude Medical France SAS","St Jude Medical France SAS"]
["STALLERGENES SA","STALLERGENES SA"]
["Stanhome International","Stanhome International"]
["STARKEY FRANCE","STARKEY FRANCE"]
["STATESIA","STATESIA"]
["STENTYS S.A","STENTYS S.A"]
["STEPHANIX","STEPHANIX"]
["sterience","sterience"]
["STERIS","STERIS"]
["STERLING COOPER","STERLING COOPER"]
["STETHOS","STETHOS"]
["STETHOS INTERNATIONAL","STETHOS INTERNATIONAL"]
["Stragen France","Stragen France"]
["STRATEGIQUE SANTE","STRATEGIQUE SANTE"]
["StratLab81","StratLab81"]
["STRAUB MEDICAL (France)","STRAUB MEDICAL (France)"]
["Straumann France","Straumann France"]
["STRYKER FRANCE SAS","STRYKER FRANCE SAS"]
["Stryker Trauma GmbH","Stryker Trauma GmbH"]
["SUBSTIPHARM DEVELOPPEMENT","SUBSTIPHARM DEVELOPPEMENT"]
["SUBSTRATHOMME","SUBSTRATHOMME"]
["SUD OUEST ORTHOPEDIE","SUD OUEST ORTHOPEDIE"]
["SUN PHARMACEUTICALS FRANCE","SUN PHARMACEUTICALS FRANCE"]
["Sunesis Pharmaceuticals","Sunesis Pharmaceuticals"]
["Sunnikan Consulting","Sunnikan Consulting"]
["SUNSTAR FRANCE","SUNSTAR FRANCE"]
["SuperSonic Imagine","SuperSonic Imagine"]
["SURGIVIEW SAS","SURGIVIEW SAS"]
["SURGIVISIO","SURGIVISIO"]
["SWEDISH ORPHAN BIOVITRUM","SWEDISH ORPHAN BIOVITRUM"]
["SWEDISH ORPHAN BIOVITRUM AB (publ)","SWEDISH ORPHAN BIOVITRUM AB (publ)"]
["SWING TECHNOLOGIES","SWING TECHNOLOGIES"]
["SYLVESTRE AUDITION","SYLVESTRE AUDITION"]
["SYMATESE","SYMATESE"]
["SYMATESE AESTHETICS","SYMATESE AESTHETICS"]
["Symbios Orthopédie SA","Symbios Orthopédie SA"]
["symbios sas","symbios sas"]
["Synageva BioPharma SAS","Synageva BioPharma SAS"]
["SYNAPSE SANTE","SYNAPSE SANTE"]
["SynteractHCR France S.A.S.","SynteractHCR France S.A.S."]
["SYNTHES","SYNTHES"]
["SYSMED ASSISTANCE","SYSMED ASSISTANCE"]
["SYSMED PAS DE CALAIS","SYSMED PAS DE CALAIS"]
["SYSMEX FRANCE","SYSMEX FRANCE"]
["SYSTAGENIX WOUND MANAGEMENT FRANCE","SYSTAGENIX WOUND MANAGEMENT FRANCE"]
["System Assistance Medical","System Assistance Medical"]
["Takeda France","Takeda France"]
["TARA SANTE","TARA SANTE"]
["TBF GENIE TISSULAIRE","TBF GENIE TISSULAIRE"]
["TBWA\\ADELPHI","TBWA\\ADELPHI"]
["TEKNIMED","TEKNIMED"]
["TELEFLEX MEDICAL SAS","TELEFLEX MEDICAL SAS"]
["TEM-France","TEM-France"]
["TEOXANE","TEOXANE"]
["TEOXANE FRANCE","TEOXANE FRANCE"]
["TERALI","TERALI"]
["TERRA FIRMA","TERRA FIRMA"]
["TERRE NEUVE","TERRE NEUVE"]
["Terumo BCT Europe SA","Terumo BCT Europe SA"]
["Test","Test"]
["TEVA SANTE SAS","TEVA SANTE SAS"]
["TEXTILE HI-TEC","TEXTILE HI-TEC"]
["TFS TRIAL FORM SUPPORT SASU","TFS TRIAL FORM SUPPORT SASU"]
["THE BINDING SITE GROUP LTD","THE BINDING SITE GROUP LTD"]
["The KOL Connection","The KOL Connection"]
["The MarkeTech Group SARL","The MarkeTech Group SARL"]
["The Medicines Company France SAS","The Medicines Company France SAS"]
["The Research Partnership","The Research Partnership"]
["The Spectranetics Corporation","The Spectranetics Corporation"]
["Theorem Clinical Research SARL","Theorem Clinical Research SARL"]
["THERABEL LUCIEN PHARMA","THERABEL LUCIEN PHARMA"]
["THERACLION","THERACLION"]
["THERADIAG SA","THERADIAG SA"]
["THERADIAL SAS","THERADIAL SAS"]
["THERAKOS UK Ltd","THERAKOS UK Ltd"]
["Theravance, Inc.","Theravance, Inc."]
["THERMO ELECTRON LED SAS","THERMO ELECTRON LED SAS"]
["THERMO ELECTRON SAS","THERMO ELECTRON SAS"]
["Think Tuvalu","Think Tuvalu"]
["THORATEC EUROPE LTD","THORATEC EUROPE LTD"]
["THUASNE","THUASNE"]
["TIME RESEARCH LIMITED","TIME RESEARCH LIMITED"]
["to the heart ltd","to the heart ltd"]
["Topcon SARL","Topcon SARL"]
["TOP-Service für Lingualtechnik GmbH","TOP-Service für Lingualtechnik GmbH"]
["TORNIER","TORNIER"]
["TOSHIBA MEDICAL FRANCE","TOSHIBA MEDICAL FRANCE"]
["TOSOH EUROPE NV","TOSOH EUROPE NV"]
["TOURS CERAM","TOURS CERAM"]
["Trame Way","Trame Way"]
["Transgene SA","Transgene SA"]
["Transystème - JMT IMPLANTS","Transystème - JMT IMPLANTS"]
["TRANSYSTEME SN","TRANSYSTEME SN"]
["TRB CHEMEDICA","TRB CHEMEDICA"]
["TROIS PRIME","TROIS PRIME"]
["TROPHOS","TROPHOS"]
["TSP","TSP"]
["Tungsten-Software","Tungsten-Software"]
["Tutogen Médical France","Tutogen Médical France"]
["TxCell","TxCell"]
["UCB Pharma SA","UCB Pharma"]
["Ugam Solutions","Ugam Solutions"]
["Ultradent Products GmbH","Ultradent Products GmbH"]
["ULURU SANTE / VIGIE Pharma","ULURU SANTE / VIGIE Pharma"]
["UNILEVER FRANCE","UNILEVER FRANCE"]
["UNITHER DEVELOPPEMENT BORDEAUX","UNITHER DEVELOPPEMENT BORDEAUX"]
["UNITHER INDUSTRIES","UNITHER INDUSTRIES"]
["UNITHER LIQUID MANUFACTURING","UNITHER LIQUID MANUFACTURING"]
["UNITHER PHARMACEUTICALS","UNITHER PHARMACEUTICALS"]
["UNIVERSAL MEDICA","UNIVERSAL MEDICA"]
["Update France Terrain d'Etudes","Update France Terrain d'Etudes"]
["UPSA SAS","UPSA SAS"]
["URGO RECHERCHE INNOVATION ET DEVELOPPEMENT","URGO RECHERCHE INNOVATION ET DEVELOPPEMENT"]
["Use-Lab GmbH","Use-Lab GmbH"]
["Varian Medical Systems France Sarl","Varian Medical Systems France Sarl"]
["Vascular Solutions, Inc.","Vascular Solutions, Inc."]
["VASCUTEK FRANCE","VASCUTEK FRANCE"]
["Vatech France","Vatech France"]
["VECTEC","VECTEC"]
["Veniti, Inc.","Veniti, Inc."]
["Ventana Medical Systems, Inc.","Ventana Medical Systems, Inc."]
["Ventiléa","Ventiléa"]
["VERBAL","VERBAL"]
["Vertex Pharmaceuticals Incorporated","Vertex Pharmaceuticals Incorporated"]
["VEXIM SA","VEXIM SA"]
["Vibrant Med-El","Vibrant Med-El"]
["VIFOR FRANCE SA","VIFOR FRANCE SA"]
["VIFOR FRESENIUS MEDICAL CARE RENAL PHARMA","VIFOR FRESENIUS MEDICAL CARE RENAL PHARMA"]
["ViiV HEALTHCARE SAS","ViiV HEALTHCARE SAS"]
["VIROPHARMA","VIROPHARMA"]
["VIROPHARMA SPRL","VIROPHARMA SPRL"]
["VISION OUTRE MER","VISION OUTRE MER"]
["Vital Images France Sarl","Vital Images France Sarl"]
["VITALAIRE","VITALAIRE"]
["VITALEA MEDICAL","VITALEA MEDICAL"]
["VITALITEC INTERNATIONAL","VITALITEC INTERNATIONAL"]
["VIVACTIS MEDICAL EDUCATION","VIVACTIS MEDICAL EDUCATION"]
["Vivactis-M2Research","Vivactis-M2Research"]
["VIVISOL France","VIVISOL France"]
["VO Medica","VO Medica"]
["VOISIN CONSULTING","VOISIN CONSULTING"]
["VOLCANO EUROPE BVBA/SPRL","VOLCANO EUROPE BVBA/SPRL"]
["VOLUNTIS","VOLUNTIS"]
["VYGON","VYGON"]
["W L GORE & ASSOCIES","W L GORE & ASSOCIES"]
["W&H FRANCE","W&H FRANCE"]
["WAM","WAM"]
["Warner Chilcott France SAS","Warner Chilcott France SAS"]
["WEINMANN EMERGENCY FRANCE","WEINMANN EMERGENCY FRANCE"]
["WEINMANN SAS","WEINMANN SAS"]
["Weleda S.A.","Weleda S.A."]
["WELLSPECT HEALTHCARE","WELLSPECT HEALTHCARE"]
["WELLSPECT HEALTHCARE/DENTSPLY IH AB","WELLSPECT HEALTHCARE/DENTSPLY IH AB"]
["WERFEN","WERFEN"]
["WIDEX","WIDEX"]
["WOO YOUNG MEDICAL FRANCE","WOO YOUNG MEDICAL FRANCE"]
["WorldOne Group B.V.","WorldOne Group B.V."]
["WR CONSEIL","WR CONSEIL"]
["WRIGHT MEDICAL FRANCE","WRIGHT MEDICAL FRANCE"]
["XENIOS","XENIOS"]
["XNOV","XNOV"]
["XNOV Distribution","XNOV Distribution"]
["YPSOMED SAS","YPSOMED SAS"]
["YSSUP RESEARCH","YSSUP RESEARCH"]
["Zambon France","Zambon France"]
["Zeste Research","Zeste Research"]
["Zimmer BVBA","Zimmer BVBA"]
["Zimmer Dental SAS","Zimmer Dental SAS"]
["Zimmer France SAS","Zimmer France SAS"]
["Zimmer GmbH","Zimmer GmbH"]
["Zimmer Spine SAS","Zimmer Spine SAS"]
["ZOLL Médical France","ZOLL Médical France"]
["ZS Associates","ZS Associates"]
["ZYDUS FRANCE","ZYDUS FRANCE"]

{"sheet":"AVANTAGES","index":3,"n_rows":96,"n_cols":2,"rows_kept":96,"cut":false,"hidden":false,"merged":[]}
["TYPE_AVTG dans Transparence.sante.gouv.fr","TYPE_AVTG (libellé de regroupement)"]
["[Autre] inscription congrès ","Inscription"]
["[HOSPITALITE] ","Hospitalité"]
["[REPAS] ","Repas"]
["AUTRE ","Autre"]
["Autre : [ Forfait journée d\u0092étude ] ","Autre"]
["Autre : [ Forfait journée d\u0092étude ou forfait congrès ] ","Congrès"]
["Autre : [ Inscription ] ","Inscription"]
["Autre : [ECHANTILLON] ","Autre"]
["Autre : [HONORAIRE] ","Autre"]
["Autre : [Hospitalité Evenement Scientifique] ","Hospitalité"]
["AUTRE : [HOSPITALITE] ","Hospitalité"]
["AUTRE : [INSCRIPTION CONGRÈS SCIENTIFIQUE] ","Inscription"]
["Autre : [Inscription Evenement Scientifique] ","Inscription"]
["Autre : [Inscription] ","Inscription"]
["Autre : [note de frais] ","Autre"]
["AUTRE : [PARTICIPATION EVENEMENT SCIENTIFIQUE] ","Congrès"]
["AUTRE : [PAUSE] ","Autre"]
["Autre : [Remboursement de frais] ","Autre"]
["AUTRE : [REMBOURSEMENT FRAIS LOGISTIQUE] ","Autre"]
["Autre : [Restauration] ","Repas"]
["AUTRE : CONGRES ","Autre"]
["Autre : Frais d'inscription Congrès ","Inscription"]
["AUTRE : HONORAIRE CONFERENCE TELEPHONIQUE ","Autre"]
["AUTRE : HONORAIRES CONFERENCE TELEPHONIQUE ","Autre"]
["Autre : Inscription ","Inscription"]
["AUTRE : REMBOURSEMENT DE FRAIS ","Autre"]
["AUTRE : REPAS PROFESSIONNEL ","Repas"]
["AUTRE : REUNION ","Autre"]
["AUTRE : RNT ","Autre"]
["AUTRE [ENQUETE] ","Autre"]
["AUTRE [FRAIS D INSCRIPTION] ","Inscription"]
["AUTRE [INSCRIPTION] ","Inscription"]
["AUTRE [PAUSE] ","Autre"]
["AUTRE [RESTAURATION STAFF] ","Repas"]
["Autre: [Enquête] ","Autre"]
["AUTRE: [INSCRIPTION] ","Inscription"]
["AUTRE: INSCRIPTION ","Inscription"]
["AUTRE: SOIREE/SOIREE ","Autre"]
["AUTRES ","Autre"]
["AUTRES: INSCRIPTION ","Inscription"]
["CADEAUX ","Autre"]
["COLLATION ","Repas"]
["conseil ","Conseil"]
["Dédommagement ","Autre"]
["DEJEUNER ","Repas"]
["DEJEUNER/DEJEUNER ","Repas"]
["Déplacement ","Transport"]
["Droits d'auteur pris en charge par UCB ","Autre"]
["EPU ","Repas"]
["EPU/DINER ","Repas"]
["FRAIS DE BOUCHE ","Repas"]
["Frais de dÃƒÂ©placement ","Transport"]
["FRAIS DE DEPLACEMENT ","Transport"]
["Frais remboursés (transport) ","Transport"]
["H‚bergement ","Hébergement"]
["HÃ©bergement ","Hébergement"]
["HÃ‰BERGEMENT ","Hébergement"]
["HEBERGEMENT ","Hébergement"]
["Hébergement ","Hébergement"]
["Hébérgement ","Hébergement"]
["HEBERGEMENT SUR TOUTE LA DUREE DU CONGRES ","Hébergement"]
["Hébergement, restauration, transport ","Hospitalité"]
["HOSPITALITE ","Hospitalité"]
["HOSPITALITÉ ","Hospitalité"]
["HOSPITALITE - RELATIONS NORMALES DE TRAVAIL ","Hospitalité"]
["INCRIPTION ","Inscription"]
["INDEMNITE ","Autre"]
["INSCRIPTION ","Inscription"]
["INSCRIPTION CONGRES ","Inscription"]
["INVITATIONS ","Autre"]
["Logement ","Hébergement"]
["Prestation en tant que formateur et orateur ","Autre"]
["Repas ","Repas"]
["REPAS CONGRES ","Repas"]
["REPAS IMPROMPTU ","Repas"]
["REPAS MANIFESTATION DE FORMATION ","Repas"]
["REPAS PROFESSIONNEL ","Repas"]
["REPAS RELATION NORMALE DE TRAVAIL ","Repas"]
["REPAS REUNION ","Repas"]
["REPAS RÉUNION HOSPITALIÈRE ","Repas"]
["REPAS REUNION SCIENTIFIQUE ","Repas"]
["REPAS SUR TOUTE LA DUREE DU CONGRES ","Repas"]
["Restauration ","Repas"]
["SOIREE ","Repas"]
["SOIREE/REPAS ","Repas"]
["SOIREE/RP ","Autre"]
["STAFF ","Autre"]
["Taxonomie EFPIA ","Autre"]
["TRANBSPORT ","Transport"]
["TRANSFERT-REPAS(DINER) ","Repas"]
["Transport ","Transport"]
["Transport pris en charge par UCB ","Transport"]
["VISITE/(2 X GO-ON 25MG) ","Autre"]
["VISITE/(3 X GO-ON 25MG) ","Autre"]
["VISITE/GO-ON 25MG ","Autre"]

{"sheet":"CONVENTIONS","index":4,"n_rows":225,"n_cols":2,"rows_kept":225,"cut":false,"hidden":false,"merged":[]}
["TYPE_CONVENTION dans Transparence.sante.gouv.fr","TYPE_CONVENTION (libellé de regroupement)"]
["[AUTRE] : [CONVENTION HOSPITALITE] ","Hospitalité"]
["[BOARD EXPERTS] ","Réunion de « Board »"]
["[MARKETING] ","Etude de marché"]
["[ORATEUR] ","Orateur"]
["[ORATEURS MODERATEURS] ","Orateur"]
["[REUNION INFORMATION MEDICALE] ","Réunion professionnelle"]
["AMERICAN COLLEGE OF RHEUMATHOLOGY ACR/ARHP ANNUAL MEETING 2012 ","Réunion professionnelle"]
["ASSISES BARCELONE ","Réunion professionnelle"]
["AUTRE","Autre"]
["AUTRE ","Autre"]
["Autre : [ Collaboration Scientifique ]","Expert"]
["Autre : [ Collaboration Scientifique ] ","Expert"]
["Autre : [ EPU ]","Réunion professionnelle"]
["Autre : [ EPU ] ","Réunion professionnelle"]
["Autre : [ Expert ]","Expert"]
["Autre : [ Expert ] ","Expert"]
["Autre : [ hospitalité liée à une manifestation scientifique ]","Hospitalité"]
["Autre : [ hospitalité liée à une manifestation scientifique ] ","Hospitalité"]
["Autre : [ Manifestation professionnelle ] ","Réunion professionnelle"]
["Autre : [ Orateur / Intervenant ] ","Orateur"]
["Autre : [ Orateur ] ","Orateur"]
["Autre : [ Prestation ] ","Conseil"]
["Autre : [ R‚union professionnelle ]","Réunion professionnelle"]
["Autre : [ R‚union professionnelle ] ","Réunion professionnelle"]
["Autre : [ R\u0082union professionnelle ]","Réunion professionnelle"]
["Autre : [ R\u0082union professionnelle ] ","Réunion professionnelle"]
["Autre : [ Reunion professionnelle ]","Réunion professionnelle"]
["Autre : [ Réunion professionnelle ]","Réunion professionnelle"]
["Autre : [ Reunion professionnelle ] ","Réunion professionnelle"]
["Autre : [ Réunion professionnelle ] ","Réunion professionnelle"]
["Autre : [collaboration scientifique] ","Expert"]
["Autre : [Communication scientifique] ","Conseil"]
["Autre : [Consultant (HCP)]","Conseil"]
["Autre : [Consultant (HCP)] ","Conseil"]
["Autre : [Consultant] ","Conseil"]
["Autre : [Contrat autre]","Autre"]
["Autre : [Contrat autre] ","Autre"]
["AUTRE : [CONTRAT DE COLLABORATION SCIENTIFIQUE]","Expert"]
["AUTRE : [CONTRAT DE COLLABORATION SCIENTIFIQUE] ","Expert"]
["AUTRE : [CONTRAT DE CONSEIL & PRESTATION]","Conseil"]
["AUTRE : [CONTRAT DE CONSEIL & PRESTATION] ","Conseil"]
["AUTRE : [CONTRAT D'ORATEUR]","Orateur"]
["AUTRE : [CONTRAT D'ORATEUR] ","Orateur"]
["Autre : [CONTRAT_DE_PRESTATIONS_DE_SERVICES] ","Conseil"]
["AUTRE : [CONVENTION D HOSPITALITE]","Hospitalité"]
["AUTRE : [CONVENTION D HOSPITALITE] ","Hospitalité"]
["Autre : [Convention d’Hospitalité] ","Hospitalité"]
["Autre : [CONVENTION D'HOSPITALITE] ","Hospitalité"]
["AUTRE : [CONVENTION SANS REMUNERATION]. ","Autre"]
["Autre : [entretien] ","Etude de marché"]
["Autre : [Expertise] ","Expert"]
["AUTRE : [HOSPITALITÉ EVENEMENT SCIENTIFIQUE] ","Hospitalité"]
["Autre : [Hospitalité Evenement]","Hospitalité"]
["Autre : [Hospitalité Evenement] ","Hospitalité"]
["Autre : [Hospitalité Genzyme] ","Hospitalité"]
["Autre : [Hospitalité] ","Hospitalité"]
["Autre : [Opération SA/Journée-Soirée] ","Autre"]
["Autre : [Opérations Genzyme] ","Autre"]
["Autre : [Orateur]","Orateur"]
["Autre : [Orateur] ","Orateur"]
["AUTRE : [PARTICIPATION RÉUNION SCIENTIFIQUE] ","Réunion professionnelle"]
["AUTRE : [PARTICIPATION R�ION SCIENTIFIQUE] ","Réunion professionnelle"]
["Autre : [Recherche biomédicale]","Recherche Clinique"]
["Autre : [Recherche biomédicale] ","Recherche Clinique"]
["Autre : [Recherche/Développement]","Recherche Clinique"]
["Autre : [Recherche/Développement] ","Recherche Clinique"]
["Autre : [Réunion] ","Réunion professionnelle"]
["AUTRE : [RP Table ronde actu Rhumatologie] ","Réunion professionnelle"]
["Autre : [STAFF]","Réunion professionnelle"]
["Autre : Auteur - rédacteur ","Rédacteur"]
["Autre : Contrat consultant","Conseil"]
["Autre : Contrat consultant ","Conseil"]
["Autre : Contrat intervenant","Orateur"]
["Autre : Contrat intervenant ","Orateur"]
["autre : enquête téléphonique ","Etude de marché"]
["autre : enquête téléphonique ","Etude de marché"]
["autre : enquête téléphonique ","Etude de marché"]
["autre : enquête web","Etude de marché"]
["autre : enquête web ","Etude de marché"]
["Autre : ETUDE DE MARCHE ","Etude de marché"]
["Autre : Etude de marché ","Etude de marché"]
["Autre : Intervenant (Orateur/ ModÃ©rateur/ PrÃ©sident...) ","Orateur"]
["Autre : Intervenant (Orateur/ Modérateur/ Président...) ","Orateur"]
["AUTRE : MANIFESTATION DE PROMOTION ","Autre"]
["Autre : Manifestation scientifique ","Réunion professionnelle"]
["Autre : ORATEUR REUNION POST EULAR MONTPELLIER ","Orateur"]
["AUTRE : PARTICIPATION A MANIFESTATION SCIENTIFIQUE ","Orateur"]
["Autre : Prestation de service","Conseil"]
["Autre : Prestation de service ","Conseil"]
["AUTRE : REFLEXION SCIENTFIQUE EVENEMENT INTERDISCIPLINAIRE ","Conseil"]
["Autre : Reunion professionnelle ou scientifique","Réunion professionnelle"]
["Autre : Réunion professionnelle ou scientifique","Réunion professionnelle"]
["Autre : Reunion professionnelle ou scientifique ","Réunion professionnelle"]
["Autre : Réunion professionnelle ou scientifique ","Réunion professionnelle"]
["Autre : RP de type EPU (2007-01) ","Réunion professionnelle"]
["AUTRE [CONNEXION] ","Autre"]
["AUTRE [CONTRAT D ORATEUR]","Orateur"]
["AUTRE [CONTRAT D ORATEUR] ","Orateur"]
["AUTRE [CONTRAT DE CONSULTANT]","Conseil"]
["AUTRE [CONTRAT DE CONSULTANT] ","Conseil"]
["AUTRE [CONTRAT ORATEUR] ","Orateur"]
["AUTRE [CONVENTION D EXPERT]","Expert"]
["AUTRE [CONVENTION D EXPERT] ","Expert"]
["AUTRE [CONVENTION D HOSPITALITE] ","Hospitalité"]
["AUTRE [CONVENTION D ORATEUR]","Orateur"]
["AUTRE [CONVENTION D ORATEUR] ","Orateur"]
["AUTRE [EXPERT]","Expert"]
["AUTRE [EXPERT] ","Expert"]
["AUTRE: [CONTRAT DE COLLABORATION SCENTIFIQUE]","Expert"]
["AUTRE: [CONTRAT DE COLLABORATION SCENTIFIQUE] ","Expert"]
["AUTRE: [CONTRAT DE COLLABORATION SCIENTIFIQUE]","Expert"]
["AUTRE: [CONTRAT DE COLLABORATION SCIENTIFIQUE] ","Expert"]
["AUTRE: [CONVENTION HOSPITALITE]","Hospitalité"]
["AUTRE: [CONVENTION HOSPITALITE] ","Hospitalité"]
["AUTRE: [ETUDE DE MARCHE] ","Etude de marché"]
["AUTRE: COLLABORATION POUR UNE ETUDE DE MARCHÉ ","Etude de marché"]
["autre: ETUDE ","Etude de marché"]
["AUTRE: ETUDES DE MARCHE SONDAGES ","Etude de marché"]
["Autre: Intervenant ","Orateur"]
["autre: REDACTION D'ARTICLES ","Rédacteur"]
["AUTRE[EXPERTISE] ","Expert"]
["Autre[ORATEUR REUNION POST EULAR AGEN] ","Orateur"]
["Autre[ORATEUR REUNION POST EULAR BORDEAUX] ","Orateur"]
["Autre[ORATEUR REUNION POST EULAR ROUEN] ","Orateur"]
["Autre[ORATEUR REUNION POST EULAR TOULOUSE] ","Orateur"]
["Autre[ORATEUR REUNION POST EULAR TOURS]","Orateur"]
["Board ","Réunion de « Board »"]
["Collaboration Editions Scientifiques ","Rédacteur"]
["Collaboration Scientifique - Conseil ","Conseil"]
["COLLABORATION SCIENTIFIQUE ET PROFESSIONNELLE ","Expert"]
["Comite Echange scientifique ","Expert"]
["Comite Expert","Expert"]
["Congr\u008as / Symposium ","Réunion professionnelle"]
["CongrÃ¨s / Symposium ","Réunion professionnelle"]
["CONGRES","Réunion professionnelle"]
["Congrès","Réunion professionnelle"]
["CONGRES ","Réunion professionnelle"]
["CONGRES / SYMPOSIUM","Réunion professionnelle"]
["Congrès / symposium","Réunion professionnelle"]
["Congres / Symposium ","Réunion professionnelle"]
["Congrès / Symposium ","Réunion professionnelle"]
["CONGRES SYMPOSIUM ","Réunion professionnelle"]
["CONGRES/SYMPOSIUM ","Réunion professionnelle"]
["congrès-symposium ","Réunion professionnelle"]
["conseil","Conseil"]
["Conseil ","Conseil"]
["CONSEIL ","Conseil"]
["Conseil et Communication Médico-Scientifique ","Conseil"]
["Conseil Relations professionnelles ","Conseil"]
["Conseil réunion d'experts ","Conseil"]
["Conseil, réunion d'experts ","Conseil"]
["Consultance ","Conseil"]
["Consultance (rhumatologie) ","Conseil"]
["Consultation Scientifique ","Conseil"]
["CONTRAT DE CONSULTANT ","Conseil"]
["CONTRAT DE PRESTATION DE SERVICE ","Conseil"]
["CONTRAT D'ORATEUR ","Orateur"]
["CONTRAT ORATEUR ","Orateur"]
["CONVENTION D HOSPITALITE","Hospitalité"]
["CONVENTION D HOSPITALITE ","Hospitalité"]
["CONVENTION D’HOSPITALITÉ","Hospitalité"]
["CONVENTION D’HOSPITALITE ","Hospitalité"]
["CONVENTION D’HOSPITALITÉ ","Hospitalité"]
["CONVENTION DE COLLABORATION","Expert"]
["CONVENTION DE COLLABORATION ","Expert"]
["CONVENTION DE CONSULTANT ","Conseil"]
["CONVENTION DE RECHERCHE","Recherche Clinique"]
["CONVENTION DE RECHERCHE ","Recherche Clinique"]
["Convention de recherche biomédicale /Annexe: Roles et responsabilites des differentes parties impliquees","Recherche Clinique"]
["Convention de recherche biomédicale /Annexe: Roles et responsabilites des differentes parties impliquees ","Recherche Clinique"]
["Convention de recherche biomédicale Investigateur-Coordinateur ","Recherche Clinique"]
["CONVENTION D'HOSPITALITE","Hospitalité"]
["CONVENTION D'HOSPITALITÉ","Hospitalité"]
["CONVENTION D'HOSPITALITE ","Hospitalité"]
["CONVENTION D'HOSPITALITÉ ","Hospitalité"]
["CONVENTION D'ORATEUR RÉUNION PROFESSIONNELLE ","Orateur"]
["CONVENTION RECHERCHE","Recherche Clinique"]
["CONVENTION RECHERCHE ","Recherche Clinique"]
["EDITION ","Rédacteur"]
["ESCEO ","Autre"]
["ETUDE DE MARCHE","Etude de marché"]
["ETUDE DE MARCHE","Etude de marché"]
["ETUDE DE MARCHE","Etude de marché"]
["ETUDE DE MARCHE ","Etude de marché"]
["Evaluation ","Autre"]
["EXPERT","Expert"]
["EXPERT ","Expert"]
["EXPERTISE SCIENTIFIQUE","Réunion professionnelle"]
["EXPERTISE SCIENTIFIQUE ","Expert"]
["FORMATION","Formateur"]
["FORMATION ","Formateur"]
["Formation, Conseil et Congrès ","Conseil"]
["HOSPITALITE RP/CONGRES / SYMPO","Hospitalité"]
["HOSPITALITE RP/CONGRES / SYMPO ","Hospitalité"]
["HOSPITALITE RP/CONGRES/SYMPO ","Hospitalité"]
["INVITATION ","Hospitalité"]
["MARKETING ","Etude de marché"]
["ORATEUR","Orateur"]
["ORATEUR ","Orateur"]
["ORATEUR INTERVENANT ","Orateur"]
["ORATEUR RP/CONGRES/SYMPO","Orateur"]
["Orateur RP/Congres/Sympo ","Orateur"]
["ORATEUR RP/CONGRES/SYMPOSIUM","Orateur"]
["ORATEUR RP/CONGRES/SYMPOSIUM ","Orateur"]
["Participation à une étude de marché ","Etude de marché"]
["PHYSIOPATHOLOGIE DE L'ARTHROSE ","Autre"]
["PRESTATION ","Conseil"]
["PRESTATION CONSEIL SCIENTIF/ PARTICIPATION BOARD ","Conseil"]
["Prestation en tant que formateur et orateur ","Formateur"]
["prestation scientifique ","Conseil"]
["Recherche","Recherche Clinique"]
["RECHERCHE ","Recherche Clinique"]
["RECHERCHE BIOMEDICALE","Recherche Clinique"]
["RECHERCHE BIOMÉDICALE","Recherche Clinique"]
["RECHERCHE BIOMEDICALE ","Recherche Clinique"]
["recherche biomédicale ","Recherche Clinique"]
["Recherche Clinique ","Recherche Clinique"]
["RECHERCHE MARKETING ","Etude de marché"]
["REDACTEUR SCIENTIFIQUE ","Rédacteur"]
["research ","Recherche Clinique"]
["Réunion de board ","Réunion de « Board »"]
["REUNION SCIENTIFIQUE","Réunion professionnelle"]
["REUNION SCIENTIFIQUE ","Réunion professionnelle"]
["SOCIETE FRANCAISE DE RHUMATOLOGIE ","Autre"]

{"sheet":"Conception","index":5,"n_rows":18,"n_cols":4,"rows_kept":18,"cut":false,"hidden":false,"merged":[[6,3,10,8],[19,3,19,14],[20,3,20,14],[21,3,21,14],[22,3,22,14],[23,3,23,14],[17,1,17,14],[13,3,13,5],[16,3,16,14],[18,3,18,14]]}
[]
[null,"Concepteur :"]
[]
[null,null,null,"François PESTY"]
[null,null,null,"Pharmacien, Ancien Interne des Hôpitaux de Paris, Institut Supérieur de Gestion,"]
[null,null,null,"Consultant indépendant, "]
[null,null,null,"Expert-Conseil en organisation et informatisation du circuit du médicament / Optimisation des approvisionnements et des stocks pharmaceutiques / Pilotage \n« médico-économique » des médicaments et dispositifs médicaux / Campagne \n« pilotes » de visites médicalisées des délégués de l’assurance maladie sur le médicament / Pertinence des traitements médicamenteux"]
[]
[]
[]
[]
[null,null,null,"2, square Gay Lussac"]
[null,null,null,"78330 Fontenay le Fleury"]
[null,null,null,"Francois.PESTY@Wanadoo.fr"]
[null,null,null,"01 30 45 03 59 / 06 88 89 53 51"]
[]
[]
[null,"François PESTY est membre de l'association FORMINDEP, "]

{"sheet":"Tableaux de synthèse","index":6,"n_rows":20,"n_cols":187,"rows_kept":20,"cut":false,"hidden":false,"merged":[[2,136,2,186],[2,2,2,4],[2,5,2,12],[2,13,2,23],[2,24,2,79],[2,80,2,135]]}
[]
[]
[null,null,"Synthèse",null,null,"Avantages perçus",null,null,null,null,null,null,null,"Conventions signées",null,null,null,null,null,null,null,null,null,null,"Montants des avantages versés par les entreprises - Montants des avantages versés par les entreprises - Montants des avantages versés par les entreprises - Montants des avantages versés ",null,null,null,null,null,null,null,null,null,null,null,null,null,null,null,null,null,null,null,null,null,null,null,null,null,null,null,null,null,null,null,null,null,null,null,null,null,null,null,null,null,null,null,null,null,null,null,null,null,null,null,null,null,null,null,"Nombres d'avantages versés par les entreprises - Nombres d'avantages versés par les entreprises - Nombres d'avantages versés par les entreprises - Nombres d'avantages versés par les entreprises - Nombres d'avantages versés par les entreprises - ",null,null,null,null,null,null,null,null,null,null,null,null,null,null,null,null,null,null,null,null,null,null,null,null,null,null,null,null,null,null,null,null,null,null,null,null,null,null,null,null,null,null,null,null,null,null,null,null,null,null,null,null,null,null,null,"Nombres de conventions signées avec les entreprises - Nombres de conventions signées avec les entreprises - Nombres de conventions signées avec les entreprises - Nombres de conventions signées avec les entreprises - Nombres de conventions signées avec les entreprises - "]
[null,"Bénéficiaire","Total avantages perçus (€)","Nombre d'avantages perçus","Nombre de conventions signées","Transport","Hébergement","Repas","Hospitalité","Inscription","Conseil","Congrès","Autre","Hospitalité","Orateur","Réunion professionnelle","Expert","Conseil","Recherche Clinique","Etude de marché","Formateur","Rédacteur","Réunion de « Board »","Autre","MSD France","Pfizer","AbbVie","Bristol -Myers Squibb","Nordic Pharma","Amgen","NOVARTIS","Roche","IMPACT MEDICOM","Lilly","UCB Pharma","Regeneron Pharma","Expanscience","Janssen-Cilag","GSK","SANOFI AVENTIS FRANCE","CHUGAI","Alexion Pharma France","SEPROPHARM INTERNATIONAL","RE-IMAGINE Health Agency","LIVE ! BY GL EVENTS","GENEVRIER","LES SERVIER","OVERCOME","MENARINI","PACKAGE","CROMA","Icomed","CELGENE","BIOGARAN","BIOCODEX","QualWorld","SWEDISH ORPHAN BIOVITRUM","Actelion","PRECIPHAR","Qiagen France SAS","MAYOLY SPINDLER","ROTTAPHARM","TRB CHEMEDICA","Genzyme","HOSPIRA","Grünenthal","GILEAD SCIENCES","ABBOTT","THE BINDING SITE GROUP LTD","MEDEXACT","Arthrex SAS","BRACCO IMAGING FRANCE","CSL BEHRING SA","ROCHE DIAGNOSTICS FRANCE","MYLAN","Biomarin Europe Ltd.","NOVEX PHARMA","GIBAUD","ASTELLAS PHARMA","BIOGEN FRANCE SAS","AbbVie","MSD France","Bristol -Myers Squibb","Pfizer","Amgen","Roche","UCB Pharma","Nordic Pharma","Lilly","Janssen-Cilag","NOVARTIS","CHUGAI","BIOGARAN","GSK","Expanscience","Icomed","SWEDISH ORPHAN BIOVITRUM","SEPROPHARM INTERNATIONAL","MAYOLY SPINDLER","Actelion","CROMA","SANOFI AVENTIS FRANCE","ROTTAPHARM","HOSPIRA","PRECIPHAR","LES SERVIER","CELGENE","Grünenthal","LIVE ! BY GL EVENTS","Genzyme","Alexion Pharma France","GENEVRIER","BIOCODEX","MEDEXACT","MENARINI","THE BINDING SITE GROUP LTD","GILEAD SCIENCES","PACKAGE","RE-IMAGINE Health Agency","IMPACT MEDICOM","OVERCOME","TRB CHEMEDICA","ABBOTT","NOVEX PHARMA","GIBAUD","Regeneron Pharma","QualWorld","ROCHE DIAGNOSTICS FRANCE","MYLAN","ASTELLAS PHARMA","Qiagen France SAS","Biomarin Europe Ltd.","CSL BEHRING SA","BIOGEN FRANCE SAS","BRACCO IMAGING FRANCE","Arthrex SAS","MSD France","Pfizer","AbbVie","Roche","Amgen","Bristol -Myers Squibb","UCB Pharma","Nordic Pharma","NOVARTIS","Janssen-Cilag","Lilly","BIOGARAN","GENEVRIER","Expanscience","CHUGAI","CONGRES COLLOQUES CONVENTIONS","Arthritis Fondation Courtin","SANOFI AVENTIS FRANCE","SWEDISH ORPHAN BIOVITRUM","A+A","Grünenthal","MENARINI","PRECIPHAR","INC RESEARCH, LLC","MAYOLY SPINDLER","BIOCODEX","ASTRAZENECA","Genzyme","CELGENE","BOEHRINGER INGELHEIM FRANCE","RE-IMAGINE Health Agency","Actelion","Bone Therapeutics","LIVE ! BY GL EVENTS","ICON CLINICAL RESEARCH SARL","PR EDITIONS SAS","CROMA","GSK","DIAXONHIT","Regeneron Pharma","HOSPIRA","PIERRE FABRE MEDICAMENT","IMS Medical Radar","QualWorld","H.A.C.Pharma","TEVA SANTE SAS","LES SERVIER","GNM Healthcare Consulting Ltd","TBWA\\ADELPHI","Alexion Pharma France","GLOBAL MEDIA SANTE"]
[null,"René Marc FLIPO",{"$f":"SUMPRODUCT(('Avantages perçus'!$A$2:$A$30000=B5)*('Avantages perçus'!$F$2:$F$30000))","v":102741},{"$f":"COUNTIFS('Avantages perçus'!$A$2:$A$30000,B5,'Avantages perçus'!$F$2:$F$30000,\">0\")","v":356},{"$f":"COUNTIFS('Conventions signées'!$A$2:$A$15000,B5,'Conventions signées'!$A$2:$A$15000,\"*\")","v":210},62968,11371,9890,5004,4276,0,401,8831,42,51,25,60,25,6,0,0,0,0,1,37077,12080,22366,8024,3347,127,478,5650,8000,0,1556,0,0,1440,35,0,901,0,0,400,0,0,93,170,397,0,0,85,243,0,0,0,24,0,0,0,148,0,0,83,0,0,0,0,0,17,0,0,0,0,0,0,0,0,0,0,85,87,41,26,3,45,16,11,0,7,4,8,0,1,0,3,1,0,5,0,0,0,0,0,0,2,3,0,0,1,0,0,0,1,3,0,0,0,1,1,1,0,0,0,0,0,0,0,0,0,0,0,0,0,0,0,73,26,20,27,2,20,7,8,3,6,0,0,0,0,3,1,1,0,1,0,0,3,0,0,2,0,2,1,1,1,1,0,0,0,0,0,0,0,0,0,1,0,0,0,0,0,0,0,0,0,0]
[null,"Thierry SCHAEVERBEKE",{"$f":"SUMPRODUCT(('Avantages perçus'!$A$2:$A$30000=B6)*('Avantages perçus'!$F$2:$F$30000))","v":49348},{"$f":"COUNTIFS('Avantages perçus'!$A$2:$A$30000,B6,'Avantages perçus'!$F$2:$F$30000,\">0\")","v":240},{"$f":"COUNTIFS('Conventions signées'!$A$2:$A$15000,B6,'Conventions signées'!$A$2:$A$15000,\"*\")","v":158},30458,6247,6106,3303,2014,0,0,1220,28,33,38,39,11,4,2,1,0,0,2,3515,13886,7362,10235,6857,337,1424,2555,1200,350,179,0,0,511,20,0,37,0,0,0,0,0,0,247,0,0,0,0,0,11,0,0,72,78,86,204,0,0,0,0,0,0,119,0,0,0,0,0,30,0,0,22,0,0,0,11,59,34,43,20,9,28,4,13,3,4,4,1,1,1,0,0,2,0,0,2,0,0,0,0,3,0,0,0,0,0,0,0,0,0,0,0,3,0,0,1,1,0,0,0,0,0,0,0,0,0,1,1,1,1,0,0,26,29,27,29,3,16,5,5,6,1,1,2,0,0,0,1,1,0,0,2,0,1,1,0,0,0,0,0,0,0,0,1,0,0,0,0,0,0,0,0,0,0,0,0,0,0,0,0,0,0,1]
[null,"Alain CANTAGREL",{"$f":"SUMPRODUCT(('Avantages perçus'!$A$2:$A$30000=B7)*('Avantages perçus'!$F$2:$F$30000))","v":46742},{"$f":"COUNTIFS('Avantages perçus'!$A$2:$A$30000,B7,'Avantages perçus'!$F$2:$F$30000,\">0\")","v":230},{"$f":"COUNTIFS('Conventions signées'!$A$2:$A$15000,B7,'Conventions signées'!$A$2:$A$15000,\"*\")","v":131},25602,4953,7189,7242,1024,0,53,679,29,25,19,30,10,5,5,6,0,0,2,9370,13351,8776,7960,2664,100,1195,533,0,117,1000,0,0,866,0,0,174,0,0,300,0,0,0,0,0,0,0,0,0,0,0,240,18,78,0,0,0,0,0,0,0,0,0,0,0,0,0,0,0,0,0,0,0,0,0,0,71,46,41,24,3,10,5,6,4,9,4,2,0,0,0,0,1,0,0,2,0,0,0,0,0,0,0,0,0,0,0,0,0,0,0,0,0,0,1,0,0,0,0,0,0,0,1,0,0,0,0,0,0,0,0,0,28,22,26,12,2,12,6,5,2,2,1,0,0,0,0,1,0,0,0,3,0,0,2,2,0,0,0,0,1,0,0,1,0,0,0,0,0,0,0,0,0,1,1,1,0,0,0,0,0,0,0]
[null,"Thierry THOMAS",{"$f":"SUMPRODUCT(('Avantages perçus'!$A$2:$A$30000=B8)*('Avantages perçus'!$F$2:$F$30000))","v":31920},{"$f":"COUNTIFS('Avantages perçus'!$A$2:$A$30000,B8,'Avantages perçus'!$F$2:$F$30000,\">0\")","v":168},{"$f":"COUNTIFS('Conventions signées'!$A$2:$A$15000,B8,'Conventions signées'!$A$2:$A$15000,\"*\")","v":93},19604,5168,3103,1755,1033,0,0,1257,21,32,7,26,3,4,0,0,0,0,0,3189,55,227,305,0,12404,4593,631,0,7860,561,0,0,20,0,0,365,0,770,0,335,0,292,0,0,0,0,54,0,37,0,0,31,21,0,0,0,0,0,47,0,0,0,0,70,0,0,0,0,29,24,0,0,0,0,0,8,19,5,2,65,5,8,0,23,1,4,3,2,0,0,2,2,7,0,1,0,0,0,0,0,2,0,0,2,2,0,0,0,0,0,3,0,0,0,0,0,0,0,0,0,0,0,1,1,0,0,0,0,0,0,0,19,0,2,1,47,1,1,0,2,0,7,2,0,0,2,0,0,0,1,0,0,0,0,0,0,0,0,1,0,0,0,0,2,2,0,0,0,0,0,0,0,0,0,0,1,1,1,0,0,0,0]
[null,"Daniel WENDLING",{"$f":"SUMPRODUCT(('Avantages perçus'!$A$2:$A$30000=B9)*('Avantages perçus'!$F$2:$F$30000))","v":27176},{"$f":"COUNTIFS('Avantages perçus'!$A$2:$A$30000,B9,'Avantages perçus'!$F$2:$F$30000,\">0\")","v":158},{"$f":"COUNTIFS('Conventions signées'!$A$2:$A$15000,B9,'Conventions signées'!$A$2:$A$15000,\"*\")","v":90},8232,4421,3947,6867,3117,0,0,592,27,14,21,18,6,0,0,3,0,0,1,13207,4045,2698,399,1214,94,59,137,0,110,591,0,54,0,3069,0,371,0,0,0,291,0,0,0,0,283,0,57,0,18,0,0,38,0,120,0,50,28,0,0,40,120,0,0,0,47,0,0,0,0,0,0,20,16,0,0,32,42,7,19,3,4,8,3,5,0,1,6,1,5,2,2,1,0,1,0,0,0,2,1,2,0,0,3,2,0,0,0,0,2,0,0,0,2,0,0,0,0,0,1,1,0,0,0,0,0,0,0,0,0,0,0,25,18,7,8,2,3,9,1,2,0,0,1,0,3,2,2,0,0,2,0,3,0,0,0,1,0,0,0,0,0,0,0,0,0,0,0,0,1,0,0,0,0,0,0,0,0,0,0,0,0,0]
[null,"Pascal CLAUDEPIERRE",{"$f":"SUMPRODUCT(('Avantages perçus'!$A$2:$A$30000=B10)*('Avantages perçus'!$F$2:$F$30000))","v":20955},{"$f":"COUNTIFS('Avantages perçus'!$A$2:$A$30000,B10,'Avantages perçus'!$F$2:$F$30000,\">0\")","v":107},{"$f":"COUNTIFS('Conventions signées'!$A$2:$A$15000,B10,'Conventions signées'!$A$2:$A$15000,\"*\")","v":94},10329,2884,4398,2419,762,0,53,110,20,15,18,26,11,3,0,0,1,0,0,3808,11743,1712,2911,0,0,139,77,0,0,358,0,0,80,20,0,0,0,0,0,0,0,0,0,0,0,0,0,0,0,0,0,0,0,0,0,0,0,0,0,78,17,0,0,0,0,0,0,0,0,0,0,0,0,12,0,26,37,6,19,0,3,5,0,0,1,4,0,0,1,0,0,0,0,0,0,0,0,0,3,0,0,0,1,0,0,0,0,0,0,0,0,0,0,0,0,0,0,0,0,0,0,0,0,0,1,0,0,0,0,0,0,34,31,10,4,0,1,5,0,3,3,0,0,0,0,0,0,1,0,0,0,1,0,0,0,0,0,0,0,0,0,0,0,0,0,0,0,0,0,0,0,0,0,0,0,0,0,0,1,0,0,0]
[null,"Françoise DEBIAIS",{"$f":"SUMPRODUCT(('Avantages perçus'!$A$2:$A$30000=B11)*('Avantages perçus'!$F$2:$F$30000))","v":19910},{"$f":"COUNTIFS('Avantages perçus'!$A$2:$A$30000,B11,'Avantages perçus'!$F$2:$F$30000,\">0\")","v":90},{"$f":"COUNTIFS('Conventions signées'!$A$2:$A$15000,B11,'Conventions signées'!$A$2:$A$15000,\"*\")","v":40},11370,3618,1913,668,2188,0,0,153,14,11,8,7,0,0,0,0,0,0,0,760,711,8027,80,0,3627,4759,52,0,212,20,0,0,72,50,0,0,1471,0,0,0,0,0,0,0,0,0,0,34,0,0,0,0,0,0,0,0,0,0,15,20,0,0,0,0,0,0,0,0,0,0,0,0,0,0,0,29,5,2,8,26,1,1,0,3,3,3,0,0,1,0,0,0,0,0,0,0,0,0,1,0,0,2,0,0,1,4,0,0,0,0,0,0,0,0,0,0,0,0,0,0,0,0,0,0,0,0,0,0,0,0,0,6,5,7,2,13,0,0,0,1,1,2,0,0,0,0,2,0,0,0,0,0,0,0,0,0,0,0,0,0,0,0,0,0,0,0,0,0,0,0,0,0,0,0,0,0,0,0,0,0,1,0]
[null,"Philippe GOUPILLE",{"$f":"SUMPRODUCT(('Avantages perçus'!$A$2:$A$30000=B12)*('Avantages perçus'!$F$2:$F$30000))","v":15014},{"$f":"COUNTIFS('Avantages perçus'!$A$2:$A$30000,B12,'Avantages perçus'!$F$2:$F$30000,\">0\")","v":137},{"$f":"COUNTIFS('Conventions signées'!$A$2:$A$15000,B12,'Conventions signées'!$A$2:$A$15000,\"*\")","v":113},6204,2522,3886,1852,290,0,122,138,21,26,17,27,11,8,0,0,2,0,1,2141,3338,3611,3188,817,110,10,338,0,295,445,0,0,445,50,0,0,0,0,0,0,0,0,0,0,0,0,29,0,172,0,0,25,0,0,0,0,0,0,0,0,0,0,0,0,0,0,0,0,0,0,0,0,0,0,0,35,21,25,13,4,6,8,4,5,6,1,0,6,1,0,1,1,0,0,0,0,0,0,0,0,0,0,0,0,0,0,0,0,0,0,0,0,0,0,0,0,0,0,0,0,0,0,0,0,0,0,0,0,0,0,0,33,10,15,10,6,9,2,2,1,5,3,6,0,0,0,0,0,0,1,0,0,0,1,2,0,0,0,0,0,1,1,0,0,0,2,2,0,0,0,0,0,0,0,0,0,0,0,0,1,0,0]
[null,"Francis BERENBAUM",{"$f":"SUMPRODUCT(('Avantages perçus'!$A$2:$A$30000=B13)*('Avantages perçus'!$F$2:$F$30000))","v":14161},{"$f":"COUNTIFS('Avantages perçus'!$A$2:$A$30000,B13,'Avantages perçus'!$F$2:$F$30000,\">0\")","v":67},{"$f":"COUNTIFS('Conventions signées'!$A$2:$A$15000,B13,'Conventions signées'!$A$2:$A$15000,\"*\")","v":38},6673,1988,2150,73,1643,0,1634,0,5,2,12,8,5,4,0,0,0,0,2,344,2489,749,583,2140,0,42,359,0,32,2178,5178,0,0,0,0,0,0,0,0,0,0,37,0,0,0,0,0,0,30,0,0,0,0,0,0,0,0,0,0,0,0,0,0,0,0,0,0,0,0,0,0,0,0,0,0,20,6,3,14,0,5,9,3,1,0,1,0,3,0,0,0,0,0,0,0,0,0,0,0,0,1,0,0,0,0,0,0,0,0,0,0,0,0,0,0,0,0,0,0,0,1,0,0,0,0,0,0,0,0,0,0,3,11,5,4,0,1,5,1,0,0,0,1,0,2,0,0,3,0,0,0,0,0,0,0,0,0,0,0,0,0,0,0,0,0,0,0,0,0,1,1,0,0,0,0,0,0,0,0,0,0,0]
[null,"Henri LELLOUCHE",{"$f":"SUMPRODUCT(('Avantages perçus'!$A$2:$A$30000=B14)*('Avantages perçus'!$F$2:$F$30000))","v":9155},{"$f":"COUNTIFS('Avantages perçus'!$A$2:$A$30000,B14,'Avantages perçus'!$F$2:$F$30000,\">0\")","v":64},{"$f":"COUNTIFS('Conventions signées'!$A$2:$A$15000,B14,'Conventions signées'!$A$2:$A$15000,\"*\")","v":36},1698,2011,2596,1238,1462,0,0,150,8,0,9,3,11,0,0,4,0,0,1,60,120,1166,53,378,34,0,32,0,0,0,0,3750,0,0,1928,0,0,0,0,0,527,0,0,0,0,283,54,0,0,255,0,0,0,0,0,0,140,156,0,0,0,0,114,0,0,60,45,0,0,0,0,0,0,0,0,14,1,1,2,1,1,0,5,0,0,0,0,0,0,8,2,0,0,0,0,6,6,3,0,0,0,0,0,0,0,0,4,4,0,0,0,0,0,0,0,0,2,2,0,0,0,0,0,0,0,0,0,0,0,1,1,2,2,8,1,0,0,0,1,0,0,0,0,9,2,0,0,0,6,0,0,0,0,0,0,0,3,0,0,0,0,0,0,0,0,0,0,2,0,0,0,0,0,0,0,0,0,0,0,0,0,0]
[null,"Jérémy MAILLET",{"$f":"SUMPRODUCT(('Avantages perçus'!$A$2:$A$30000=B15)*('Avantages perçus'!$F$2:$F$30000))","v":400},{"$f":"COUNTIFS('Avantages perçus'!$A$2:$A$30000,B15,'Avantages perçus'!$F$2:$F$30000,\">0\")","v":10},{"$f":"COUNTIFS('Conventions signées'!$A$2:$A$15000,B15,'Conventions signées'!$A$2:$A$15000,\"*\")","v":5},0,0,383,17,0,0,0,0,3,0,1,0,0,0,0,1,0,0,0,0,0,270,17,0,0,0,33,0,0,50,0,0,0,0,0,0,0,0,0,0,0,0,0,0,0,0,0,0,0,0,0,0,30,0,0,0,0,0,0,0,0,0,0,0,0,0,0,0,0,0,0,0,0,0,0,6,0,1,0,0,1,1,0,0,0,0,0,0,0,0,0,0,0,0,1,0,0,0,0,0,0,0,0,0,0,0,0,0,0,0,0,0,0,0,0,0,0,0,0,0,0,0,0,0,0,0,0,0,0,0,0,0,0,3,1,0,0,1,0,0,0,0,0,0,0,0,0,0,0,0,0,0,0,0,0,0,0,0,0,0,0,0,0,0,0,0,0,0,0,0,0,0,0,0,0,0,0,0,0,0,0,0]
[null,"Catherine REILLAT",{"$f":"SUMPRODUCT(('Avantages perçus'!$A$2:$A$30000=B16)*('Avantages perçus'!$F$2:$F$30000))","v":26},{"$f":"COUNTIFS('Avantages perçus'!$A$2:$A$30000,B16,'Avantages perçus'!$F$2:$F$30000,\">0\")","v":1},{"$f":"COUNTIFS('Conventions signées'!$A$2:$A$15000,B16,'Conventions signées'!$A$2:$A$15000,\"*\")","v":0},0,0,26,0,0,0,0,0,0,0,0,0,0,0,0,0,0,0,0,0,0,26,0,0,0,0,0,0,0,0,0,0,0,0,0,0,0,0,0,0,0,0,0,0,0,0,0,0,0,0,0,0,0,0,0,0,0,0,0,0,0,0,0,0,0,0,0,0,0,0,0,0,0,0,0,1,0,0,0,0,0,0,0,0,0,0,0,0,0,0,0,0,0,0,0,0,0,0,0,0,0,0,0,0,0,0,0,0,0,0,0,0,0,0,0,0,0,0,0,0,0,0,0,0,0,0,0,0,0,0,0,0,0,0,0,0,0,0,0,0,0,0,0,0,0,0,0,0,0,0,0,0,0,0,0,0,0,0,0,0,0,0,0,0,0,0,0,0,0,0,0,0,0,0,0,0,0,0,0,0,0,0]
[null,"TOTAUX",337548,1628,1008,183138,45183,45587,30438,17809,0,2263,13130,218,209,175,244,93,34,7,15,3,0,10,73471,61818,56990,33755,17417,16833,12699,10397,9200,8976,6938,5178,3804,3434,3244,1928,1848,1471,770,700,626,527,422,417,397,283,283,279,277,268,255,240,208,207,206,204,198,168,156,145,138,137,119,114,70,64,60,45,30,29,24,22,20,16,12,11,386,298,175,147,114,109,65,45,44,31,26,20,13,10,10,10,8,7,6,6,6,6,5,5,5,5,5,4,4,4,4,4,4,3,3,3,3,2,2,2,2,2,2,1,1,1,1,1,1,1,1,1,1,1,1,1,249,154,130,99,75,63,41,23,20,18,14,12,9,7,7,7,6,6,5,5,4,4,4,4,3,3,2,2,2,2,2,2,2,2,2,2,2,1,1,1,1,1,1,1,1,1,1,1,1,1,1]
[]
[]
[null,"Période d'étude","   1er semestre 2012 - 2ème semestre 2015, soient 4 années"]

{"sheet":"Regr lin nbr avt & dépenses","index":10,"n_rows":18,"n_cols":9,"rows_kept":18,"cut":false,"hidden":false,"merged":[]}
["RAPPORT DÉTAILLÉ"]
[]
["Statistiques de la régression"]
["Coefficient de détermination multiple",0.88117161759324825]
["Coefficient de détermination R^2",0.77646341965190169]
["Coefficient de détermination R^2",0.74852134710838936]
["Erreur-type",91330080.112057999]
["Observations",10]
[]
["ANALYSE DE VARIANCE"]
[null,"Degré de liberté","Somme des carrés","Moyenne des carrés","F","Valeur critique de F"]
["Régression",1,2.3178752685954768E+17,2.3178752685954768E+17,27.788325953372567,7.5395689535861241E-4]
["Résidus",8,6.6729468266199456E+16,8341183533274932]
["Total",9,2.9851699512574714E+17]
[]
[null,"Coefficients","Erreur-type","Statistique t","Probabilité","Limite inférieure pour seuil de confiance = 95%","Limite supérieure pour seuil de confiance = 95%","Limite inférieure pour seuil de confiance =  95,0%","Limite supérieure pour seuil de confiance =  95,0%"]
["Constante",2105248.4926741421,41505687.879874766,5.0721927528755227E-2,0.9607906736032974,-93607039.313740149,97817536.299088433,-93607039.313740149,97817536.299088433]
["Nombre d'avantages versés",1236345.1176587401,234535.466393385,5.2714633597676253,7.5395689535861122E-4,695505.36275035818,1777184.8725671221,695505.36275035818,1777184.8725671221]

{"sheet":"Regr lin nbr cvt & dépenses","index":11,"n_rows":18,"n_cols":9,"rows_kept":18,"cut":false,"hidden":false,"merged":[]}
["RAPPORT DÉTAILLÉ"]
[]
["Statistiques de la régression"]
["Coefficient de détermination multiple",0.8821452186301334]
["Coefficient de détermination R^2",0.77818018675200584]
["Coefficient de détermination R^2",0.75045271009600656]
["Erreur-type",90978695.383964464]
["Observations",10]
[]
["ANALYSE DE VARIANCE"]
[null,"Degré de liberté","Somme des carrés","Moyenne des carrés","F","Valeur critique de F"]
["Régression",1,2.3230001101560154E+17,2.3230001101560154E+17,28.065308517125192,7.3044056489011532E-4]
["Résidus",8,6.6216984110145584E+16,8277123013768198]
["Total",9,2.9851699512574714E+17]
[]
[null,"Coefficients","Erreur-type","Statistique t","Probabilité","Limite inférieure pour seuil de confiance = 95%","Limite supérieure pour seuil de confiance = 95%","Limite inférieure pour seuil de confiance =  95,0%","Limite supérieure pour seuil de confiance =  95,0%"]
["Constante",3330030.1458764076,41156827.386047229,8.0910759098145088E-2,0.93750048472219927,-91577783.919826806,98237844.211579621,-91577783.919826806,98237844.211579621]
["Nombre de conventions signées",1988707.6887911172,375392.88974875753,5.2976701027079036,7.3044056489011673E-4,1123050.1334193824,2854365.2441628519,1123050.1334193824,2854365.2441628519]

{"sheet":"Regr lin mts & dépenses","index":12,"n_rows":18,"n_cols":9,"rows_kept":18,"cut":false,"hidden":false,"merged":[]}
["RAPPORT DÉTAILLÉ"]
[]
["Statistiques de la régression"]
["Coefficient de détermination multiple",0.80121763101937793]
["Coefficient de détermination R^2",0.64194969225630405]
["Coefficient de détermination R^2",0.59719340378834207]
["Erreur-type",115587684.23338683]
["Observations",10]
[]
["ANALYSE DE VARIANCE"]
[null,"Degré de liberté","Somme des carrés","Moyenne des carrés","F","Valeur critique de F"]
["Régression",1,1.9163289315424998E+17,1.9163289315424998E+17,14.343228945711898,5.3327342143968696E-3]
["Résidus",8,1.0688410197149714E+17,1.3360512746437142E+16]
["Total",9,2.9851699512574714E+17]
[]
[null,"Coefficients","Erreur-type","Statistique t","Probabilité","Limite inférieure pour seuil de confiance = 95%","Limite supérieure pour seuil de confiance = 95%","Limite inférieure pour seuil de confiance =  95,0%","Limite supérieure pour seuil de confiance =  95,0%"]
["Constante",23229157.530222267,51243288.382002607,0.45331121916017958,0.66236750330088401,-94938077.282514378,141396392.34295893,-94938077.282514378,141396392.34295893]
["Total avantages versés**",5166.8219859933506,1364.269071445362,3.7872455618446366,5.3327342143968757E-3,2020.8118683081971,8312.8321036785037,2020.8118683081971,8312.8321036785037]

{"sheet":"DATA","index":13,"n_rows":25,"n_cols":6,"rows_kept":25,"cut":false,"hidden":false,"merged":[]}
[]
[]
["Médicament(s)","Firme","Total avantages versés**","Nombre d'avantages versés","Nombre de conventions signées","Dépense 2015*"]
["INFLECTRA®, infliximab","HOSPIRA",{"$f":"'Tableaux de synthèse'!BM17","v":138},{"$f":"'Tableaux de synthèse'!CZ17","v":5},{"$f":"'Tableaux de synthèse'!FU17","v":1},6378071]
["REMSIMA®, infliximab","BIOGARAN",{"$f":"'Tableaux de synthèse'!BB17","v":268},{"$f":"'Tableaux de synthèse'!CO17","v":13},{"$f":"'Tableaux de synthèse'!ER17","v":12},1808091]
["KINERET®, anakinra","SWEDISH ORPHAN BIOVITRUM",{"$f":"'Tableaux de synthèse'!BE17","v":208},{"$f":"'Tableaux de synthèse'!CS17","v":8},{"$f":"'Tableaux de synthèse'!EY17","v":5},7644188.9055000003]
["METOJECT®, méthotrexate injectable","NORDIC PHARMA",{"$f":"'Tableaux de synthèse'!AC17","v":17417},{"$f":"'Tableaux de synthèse'!CJ17","v":45},{"$f":"'Tableaux de synthèse'!EN17","v":23},43489683.722000003]
["CIMZIA®, certolizumab","UCB PHARMA",{"$f":"'Tableaux de synthèse'!AI17","v":6938},{"$f":"'Tableaux de synthèse'!CI17","v":65},{"$f":"'Tableaux de synthèse'!EM17","v":41},33438228.377]
["ORENCIA®, abatacept","BMS",{"$f":"'Tableaux de synthèse'!AB17","v":33755},{"$f":"'Tableaux de synthèse'!CE17","v":175},{"$f":"'Tableaux de synthèse'!EL17","v":63},48960481.705499999]
["MABTHERA®, rituximab + ROACTEMRA®, tocilizumab","ROCHE + CHUGAÏ",{"$f":"'Tableaux de synthèse'!AF17+'Tableaux de synthèse'!AO17","v":12245},{"$f":"'Tableaux de synthèse'!CH17+'Tableaux de synthèse'!CN17","v":129},{"$f":"'Tableaux de synthèse'!EJ17+'Tableaux de synthèse'!EU17","v":106},321117022.52850002]
["REMICADE®, infliximab + SIMPONI®, golimumab","MSD",{"$f":"'Tableaux de synthèse'!Y17","v":73471},{"$f":"'Tableaux de synthèse'!CD17","v":298},{"$f":"'Tableaux de synthèse'!EG17","v":249},409994912.86199999]
["ENBREL®, étanercept","PFIZER",{"$f":"'Tableaux de synthèse'!Z17","v":61818},{"$f":"'Tableaux de synthèse'!CF17","v":147},{"$f":"'Tableaux de synthèse'!EH17","v":154},269086357.89899999]
["HUMIRA®, adalimumab","ABBVIE",{"$f":"'Tableaux de synthèse'!AA17","v":56990},{"$f":"'Tableaux de synthèse'!CC17","v":386},{"$f":"'Tableaux de synthèse'!EI17","v":130},450530091.47150004]
[null,"LILLY",{"$f":"'Tableaux de synthèse'!AH17","v":8976},{"$f":"'Tableaux de synthèse'!CK17","v":44},{"$f":"'Tableaux de synthèse'!EQ17","v":14},26244795]
[null,"AMGEN",{"$f":"'Tableaux de synthèse'!AD17","v":16833},{"$f":"'Tableaux de synthèse'!CG17","v":114},{"$f":"'Tableaux de synthèse'!EK17","v":75},13400751]
[null,"GSK",{"$f":"'Tableaux de synthèse'!AM17","v":3244},{"$f":"'Tableaux de synthèse'!FR17","v":1},{"$f":"'Tableaux de synthèse'!FR17","v":1},"?"]
[null,"Total 12 rhumatologues",{"$f":"'Tableaux de synthèse'!C17","v":337548},{"$f":"'Tableaux de synthèse'!D17","v":1628},{"$f":"'Tableaux de synthèse'!E17","v":1008}]
[null,"Total 8 biothérapies + 2 biosimilaires PR = 9 firmes (en jaune)",{"$f":"SUM(C8:C13)+SUM(C4:C5)","v":245623},{"$f":"SUM(D8:D13)+SUM(D4:D5)","v":1218},756]
[null,"% 8 biothérapies + 2 biosimilaires PR & 9 firmes",{"$f":"C18/C17","v":0.7276683612404754},{"$f":"D18/D17","v":0.74815724815724816},0.75]
[]
["(*) Montants remboursés en ville (médecins libéraux + prescriptions hospitalières ambulatoires) + liste en sus"]
["(**) Total avantages versés aux 12 rhumatologues en Euros sur la période 2012-2015 (4 années) ; idem pour les nombres d'avantages et de conventions signées"]
["AMGEN commercialise depuis 2010 PROLIA®, dénosumab, qu'il promeut chez les rhumatologues dans l'ostéoporose post ménauposique chez la femme à risque élevé de fracture"]
["LILLY commercialise depuis septembre 2004 FORSTEO®, tériparatide, qu'il promeut chez les rhumatologues dans l'ostéoporose post ménauposique chez la femme à risque élevé de fracture et développe le baricitinib, inhibiteur des JAK1 et JAK2"]
["GSK commercialise depuis octobre 2012 BENLYSTA®, belimumab, qu'il promeut auprès des rhumatologues dans le lupus erythémateux disséminé. Mais étant réservé à l'usage hospitalier et absent de la liste en sus, les volumes et montants prescrits et remboursés sont jalousement gardés dans les coffres forts de l'ANSM..."]